Workbook

Sheet Resumo
A1: Ministério da Integração e do Desenvolvimento Regional
A2: Companhia de Desenvolvimento dos Vales do São Francisco e do Parnaíba
A4: PLANILHA RESUMO
A5: OBRA: | B5: Elaboração de Plano de Segurança de Barragens | E5: BDI (serv.): | F5: ='BDI serv'!D23 -> 0.2321 | G5: Bancos de dados:
A6: LOCAL: | B6: BARRAGENS DE AL, BA, MG e PE | E6: BDI (forn.): | F6: ='BDI forn'!D23 -> 0 | G6: SETEMBRO/25 - SINAPI
A7: DATA BASE: | B7: 2025-10-01 | C7: Encargos sociais - Horistas: | F7: ='Encargos Sociais DF'!E49 -> 1.1011 | G7: SIURB INFRA JAN/2025
A8: PRAZO: | B8: 300 dias | C8: Encargos sociais - Mensalista: | F8: ='Encargos Sociais DF'!F49 -> 0.7019 | G8: JAN/25 E JUL/2025- SETOP
E9: Desconto: | G9: JUNHO/25 - EMBASA
G10: JUL/2025 - CONSULT. DNIT
A11: ITEM | B11: DESCRIÇÃO | C11: UNID. | D11: QUANT. | E11: CUSTO UNITÁRIO | F11: PREÇO UNITÁRIO | G11: PREÇO TOTAL
A13: 1 | B13: BARRAGENS | G13: =SUM(G14:G28) -> 12193192.33
A14: 1.1 | B14: Bico da Pedra | C14: unid. | D14: 1 | E14: ='1_Bico da Pedra'!I45 -> 392907.7 | F14: ='1_Bico da Pedra'!I47 -> 484024.27 | G14: =TRUNC(D14*F14,2) -> 484024.27
A15: 1.2 | B15: Cova da Mandioca | C15: unid. | D15: 1 | E15: ='2_Cova da Mandioca'!I54 -> 562892.17 | F15: ='2_Cova da Mandioca'!I56 -> 693473.77 | G15: =TRUNC(D15*F15,2) -> 693473.77
A16: 1.3 | B16: Estreito | C16: unid. | D16: 1 | E16: ='3_Estreito'!I65 -> 615776.66 | F16: ='3_Estreito'!I67 -> 758527.46 | G16: 758527.46
A17: 1.4 | B17: Zabumbao | C17: unid. | D17: 1 | E17: ='4_Zabumbao'!I65 -> 599366.88 | F17: ='4_Zabumbao'!I67 -> 738298.98 | G17: =TRUNC(D17*F17,2) -> 738298.98
A18: 1.5 | B18: Ceraíma | C18: unid. | D18: 1 | E18: ='5_Ceraima'!I65 -> 601922.24 | F18: ='5_Ceraima'!I67 -> 741546.54 | G18: 741546.54
A19: 1.6 | B19: Boacica | C19: unid. | D19: 1 | E19: ='6_Boacica'!I69 -> 904113.94 | F19: ='6_Boacica'!I71 -> 1113688.65 | G19: 1113688.65
A20: 1.7 | B20: Macaúbas | C20: unid. | D20: 1 | E20: ='7_Macaubas'!I68 -> 824210.39 | F20: ='7_Macaubas'!I70 -> 1015209.22 | G20: 1015209.22
A21: 1.8 | B21: Poço do Magro | C21: unid. | D21: 1 | E21: ='8_Pocodomagro'!I68 -> 657287.76 | F21: ='8_Pocodomagro'!I70 -> 809747.37 | G21: 809747.37
A22: 1.9 | B22: São Gregório | C22: unid. | D22: 1 | E22: ='9_SaoGregorio'!I70 -> 724101.95 | F22: ='9_SaoGregorio'!I72 -> 891987.28 | G22: =TRUNC(D22*F22,2) -> 891987.28
A23: 1.10 | B23: Miroros | C23: unid. | D23: 1 | E23: ='10_Miroros'!I64 -> 574777.72 | F23: ='10_Miroros'!I66 -> 708082.05 | G23: =TRUNC(D23*F23,2) -> 708082.05
A24: 1.11 | B24: São Desiderio | C24: unid. | D24: 1 | E24: ='11_SaoDesiderio'!I59 -> 727197.99 | F24: ='11_SaoDesiderio'!I61 -> 895871.57 | G24: =TRUNC(D24*F24,2) -> 895871.57
A25: 1.12 | B25: Itapicuru | C25: unid. | D25: 1 | E25: ='12_Itapicuru'!I70 -> 669813.72 | F25: ='12_Itapicuru'!I72 -> 825247.8 | G25: 825247.8
A26: 1.13 | B26: Caatinga do Moura | C26: unid. | D26: 1 | E26: ='13_CaatingadoMoura'!I58 -> 673461.62 | F26: ='13_CaatingadoMoura'!I60 -> 829703.94 | G26: 829703.94
A27: 1.14 | B27: Fazenda Santa Cruz | C27: unid. | D27: 1 | E27: ='14_FazendaSantaCruz'!I70 -> 748382.65 | F27: ='14_FazendaSantaCruz'!I72 -> 921924.15 | G27: 921924.15
A28: 1.15 | B28: R5 PNC MT | C28: unid. | D28: 1 | E28: ='15_R5_PNC_MT'!I68 -> 621615.97 | F28: ='15_R5_PNC_MT'!I70 -> 765859.28 | G28: =TRUNC(D28*F28,2) -> 765859.28
B29: TOTAL (Custo): | G29: =SUMPRODUCT(D13:D28,E13:E28) -> 9897829.36
B30: BDI e Encargos Sociais: | G30: =G31-G29 -> 2295362.97
B31: TOTAL GERAL COM BDI: | G31: =SUMPRODUCT(D14:D28,F14:F28) -> 12193192.33

Sheet 1_Bico da Pedra
A1: Ministério da Integração e do Desenvolvimento Regional
A2: Companhia de Desenvolvimento dos Vales do São Francisco e do Parnaíba
A4: PLANILHA ORÇAMENTÁRIA - ORÇAMENTO NÃO DESONERADO
A5: OBRA: | B5: =Resumo!B5 -> Elaboração de Plano de Segurança de Barragens | G5: BDI (serv.): | H5: ='BDI serv'!D23 -> 0.2321 | I5: Bancos de dados:
A6: LOCAL: | B6: Janaúba, MG | G6: BDI (forn.): | H6: ='BDI forn'!D23 -> 0 | I6: =Resumo!G6 -> SETEMBRO/25 - SINAPI
A7: DATA BASE: | B7: 2025-10-01 | E7: Encargos sociais - Horistas: | H7: ='Encargos Sociais DF'!E49 -> 1.1011 | I7: =Resumo!G7 -> SIURB INFRA JAN/2025
A8: PRAZO: | B8: =Resumo!B8 -> 300 dias | E8: Encargos sociais - Mensalista: | H8: ='Encargos Sociais DF'!F49 -> 0.7019 | I8: =Resumo!G8 -> JAN/25 E JUL/2025- SETOP
I9: =Resumo!G9 -> JUNHO/25 - EMBASA
B10: =Resumo!B14 -> Bico da Pedra | G10: Desconto: | H10: 0 | I10: =Resumo!G10 -> JUL/2025 - CONSULT. DNIT
A11: ITEM | B11: REFERÊNCIA | D11: DESCRIÇÃO | E11: UNID. | F11: QUANT. | G11: CUSTO UNITÁRIO | H11: PREÇO UNITÁRIO | I11: PREÇO TOTAL
B12: FONTE | C12: CÓDIGO
A13: 1 | D13: ETAPA 1 | I13: =SUM(I16,I14,I19,I22) -> 112564.45
A14: 1.1 | D14: Visita Técnica | I14: =SUM(I15:I15) -> 55532.37
A15: 1.1.1 | B15: PRÓPRIA | C15: CPU.09 | D15: =VLOOKUP(C15,CPU!B29:G75,2,0) -> Inspeção Visual da Estrutura (Multidisciplinar) e elaboração de relatório | E15: =(VLOOKUP(C15,CPU!$B$10:D$142,3,0)) -> un | F15: 1 | G15: =TRUNC((1-$H$10)*(SUMIFS(CPU!$G:$G,CPU!$A:$A,'1_Bico da Pedra'!$C15,CPU!$H:$H,"ss")+SUMIFS(CPU!$G:$G,CPU!$A:$A,'1_Bico da Pedra'!$C15,CPU!$H:$H,"mdo")+SUMIF('Comp SINAPI DF 09-2025 Onerado'!B:B,'1_Bico da Pedra'!C15,'Comp SINAPI DF 09-2025 Onerado'!E:E)+SUMIF('Ins SINAPI DF 09-2025 Onerado'!B:B,'1_Bico da Pedra'!C15,'Ins SINAPI DF 09-2025 Onerado'!F:F)),2) -> 45071.32 | H15: =TRUNC(G15*(1+$H$5),2) -> 55532.37 | I15: =TRUNC(F15*H15,2) -> 55532.37
A16: 1.2 | D16: Investigação Geológica e Geotécnica e Estrutural | I16: =SUM(I17:I18) -> 8226.56
A17: 1.2.1 | B17: PRÓPRIA | C17: CPU.04 | D17: =VLOOKUP(C17,CPU!B29:G120,2,0) -> Avaliação da espessura de carbonatação, por ponto, em estruturas de concreto armado ou protendido, através de aspersão de solução de fenolftaleína, inclusive coleta da amostra | E17: =(VLOOKUP(C17,CPU!$B$10:D$4936,3,0)) -> un | F17: 6 | G17: =TRUNC((1-$H$10)*(SUMIFS(CPU!$G:$G,CPU!$A:$A,'1_Bico da Pedra'!$C17,CPU!$H:$H,"ss")+SUMIFS(CPU!$G:$G,CPU!$A:$A,'1_Bico da Pedra'!$C17,CPU!$H:$H,"mdo")+SUMIF('Comp SINAPI DF 09-2025 Onerado'!B:B,'1_Bico da Pedra'!C17,'Comp SINAPI DF 09-2025 Onerado'!E:E)+SUMIF('Ins SINAPI DF 09-2025 Onerado'!B:B,'1_Bico da Pedra'!C17,'Ins SINAPI DF 09-2025 Onerado'!F:F)),2) -> 470.15 | H17: =TRUNC(G17*(1+$H$5),2) -> 579.27 | I17: =TRUNC(F17*H17,2) -> 3475.62
A18: 1.2.2 | B18: PRÓPRIA | C18: CPU.05 | D18: =VLOOKUP(C18,CPU!B29:G120,2,0) -> Ensaio de esclerometria em 10 pontos com 16 tiros por ponto | E18: =(VLOOKUP(C18,CPU!$B$10:D$4936,3,0)) -> un | F18: 2 | G18: =TRUNC((1-$H$10)*(SUMIFS(CPU!$G:$G,CPU!$A:$A,'1_Bico da Pedra'!$C18,CPU!$H:$H,"ss")+SUMIFS(CPU!$G:$G,CPU!$A:$A,'1_Bico da Pedra'!$C18,CPU!$H:$H,"mdo")+SUMIF('Comp SINAPI DF 09-2025 Onerado'!B:B,'1_Bico da Pedra'!C18,'Comp SINAPI DF 09-2025 Onerado'!E:E)+SUMIF('Ins SINAPI DF 09-2025 Onerado'!B:B,'1_Bico da Pedra'!C18,'Ins SINAPI DF 09-2025 Onerado'!F:F)),2) -> 1927.99 | H18: =TRUNC(G18*(1+$H$5),2) -> 2375.47 | I18: =TRUNC(F18*H18,2) -> 4750.94
A19: 1.3 | D19: Levantamento Topográfico | I19: =SUM(I20:I21) -> 35564.34
A20: 1.3.1 | B20: PRÓPRIA | C20: CPU.28 | D20: =VLOOKUP(C20,CPU!B29:G399,2,0) -> Mobilização e Desmobilização de Equipe de Levantamento topográfico | E20: =(VLOOKUP(C20,CPU!$B$10:D$19919,3,0)) -> un | F20: 1 | G20: =TRUNC((1-$H$10)*(SUMIFS(CPU!$G:$G,CPU!$A:$A,'1_Bico da Pedra'!$C20,CPU!$H:$H,"ss")+SUMIFS(CPU!$G:$G,CPU!$A:$A,'1_Bico da Pedra'!$C20,CPU!$H:$H,"mdo")+SUMIF('Comp SINAPI DF 09-2025 Onerado'!B:B,'1_Bico da Pedra'!C20,'Comp SINAPI DF 09-2025 Onerado'!E:E)+SUMIF('Ins SINAPI DF 09-2025 Onerado'!B:B,'1_Bico da Pedra'!C20,'Ins SINAPI DF 09-2025 Onerado'!F:F)),2) -> 7747.32 | H20: =TRUNC(G20*(1+$H$5),2) -> 9545.47 | I20: =TRUNC(F20*H20,2) -> 9545.47
A21: 1.3.2 | B21: SETOP | C21: CO-27369 | D21: Levantamento planialtimétrico e cadastral - terreno maior que 50.001 m² | E21: m² | F21: =ROUNDUP('Memorial de cálculo'!L20,0) -> 60509 | G21: =TRUNC((1-$H$10)*J21,2) -> 0.35 | H21: =TRUNC(G21*(1+$H$5),2) -> 0.43 | I21: =TRUNC(F21*H21,2) -> 26018.87 | J21: =VLOOKUP(C21,'OUTRAS BASES'!B:C,2,0) -> 0.35
A22: 1.4 | D22: Levantamento Fotogramétrico | I22: =SUM(I23:I24) -> 13241.18
A23: 1.4.1 | B23: PRÓPRIA | C23: CPU.31 | D23: =VLOOKUP(C23,CPU!B29:G4906,2,0) -> Mobilização e Desmobilização de Equipe e Equipamentos de Levantamento Fotogramétrico | E23: =(VLOOKUP(C23,CPU!$B$10:D$210,3,0)) -> km | F23: ='Memorial de cálculo'!L14*2 -> 270 | G23: =TRUNC((1-$H$10)*J23,2) -> 8.01 | H23: =TRUNC(G23*(1+$H$5),2) -> 9.86 | I23: =TRUNC(F23*H23,2) -> 2662.2 | J23: =CPU!G212 -> 8.01
A24: 1.4.2 | B24: EMBASA | C24: 31.90.13 | D24: Levant. Fotogrametrico c/ VANT (drone) áreas até 100 ha, incl. Ortofotos, GSD<=3, acurácia horiz. Min.3cm e vert. Min. 6cm, aferidos c/ pontos de controle distancia min. De 650m entre eles, exclusivetransporte de equipe e equipamentos | E24: un | F24: 1 | G24: =TRUNC((1-$H$10)*J24,2) -> 8586.14 | H24: =TRUNC(G24*(1+$H$5),2) -> 10578.98 | I24: =TRUNC(F24*H24,2) -> 10578.98 | J24: =VLOOKUP(C24,'OUTRAS BASES'!B:C,2,0) -> 8586.14
A25: 2 | D25: ETAPA 2 | I25: =SUM(I26) -> 90086.5
A26: 2.1 | D26: ELABORAÇÃO DE ESTUDOS | I26: =SUM(I27:I31) -> 90086.5
A27: 2.1.1 | B27: PRÓPRIA | C27: CPU.11 | D27: =VLOOKUP(C27,CPU!B29:G4931,2,0) -> Estudo Geológico-geotécnico | E27: =(VLOOKUP(C27,CPU!$B$10:D$4932,3,0)) -> un | F27: 1 | G27: =TRUNC((1-$H$10)*(SUMIFS(CPU!$G:$G,CPU!$A:$A,'1_Bico da Pedra'!$C27,CPU!$H:$H,"ss")+SUMIFS(CPU!$G:$G,CPU!$A:$A,'1_Bico da Pedra'!$C27,CPU!$H:$H,"mdo")+SUMIF('Comp SINAPI DF 09-2025 Onerado'!B:B,'1_Bico da Pedra'!C27,'Comp SINAPI DF 09-2025 Onerado'!E:E)+SUMIF('Ins SINAPI DF 09-2025 Onerado'!B:B,'1_Bico da Pedra'!C27,'Ins SINAPI DF 09-2025 Onerado'!F:F)),2) -> 14328.22 | H27: =TRUNC(G27*(1+$H$5),2) -> 17653.79 | I27: =TRUNC(F27*H27,2) -> 17653.79
A28: 2.1.2 | B28: PRÓPRIA | C28: CPU.12 | D28: =VLOOKUP(C28,CPU!B29:G4932,2,0) -> Relatório Fotogramétricos e Tratamento de Dados | E28: =(VLOOKUP(C28,CPU!$B$10:D$4932,3,0)) -> un | F28: 1 | G28: =TRUNC((1-$H$10)*(SUMIFS(CPU!$G:$G,CPU!$A:$A,'1_Bico da Pedra'!$C28,CPU!$H:$H,"ss")+SUMIFS(CPU!$G:$G,CPU!$A:$A,'1_Bico da Pedra'!$C28,CPU!$H:$H,"mdo")+SUMIF('Comp SINAPI DF 09-2025 Onerado'!B:B,'1_Bico da Pedra'!C28,'Comp SINAPI DF 09-2025 Onerado'!E:E)+SUMIF('Ins SINAPI DF 09-2025 Onerado'!B:B,'1_Bico da Pedra'!C28,'Ins SINAPI DF 09-2025 Onerado'!F:F)),2) -> 8785.99 | H28: =TRUNC(G28*(1+$H$5),2) -> 10825.21 | I28: =TRUNC(F28*H28,2) -> 10825.21
A29: 2.1.3 | B29: PRÓPRIA | C29: CPU.14 | D29: =VLOOKUP(C29,CPU!B29:G4936,2,0) -> Estudo de Estabilidade e Percolação - Barragem de Terra | E29: =(VLOOKUP(C29,CPU!$B$10:D$4936,3,0)) -> un | F29: 1 | G29: =TRUNC((1-$H$10)*(SUMIFS(CPU!$G:$G,CPU!$A:$A,'1_Bico da Pedra'!$C29,CPU!$H:$H,"ss")+SUMIFS(CPU!$G:$G,CPU!$A:$A,'1_Bico da Pedra'!$C29,CPU!$H:$H,"mdo")+SUMIF('Comp SINAPI DF 09-2025 Onerado'!B:B,'1_Bico da Pedra'!C29,'Comp SINAPI DF 09-2025 Onerado'!E:E)+SUMIF('Ins SINAPI DF 09-2025 Onerado'!B:B,'1_Bico da Pedra'!C29,'Ins SINAPI DF 09-2025 Onerado'!F:F)),2) -> 35476.72 | H29: =TRUNC(G29*(1+$H$5),2) -> 43710.86 | I29: =TRUNC(F29*H29,2) -> 43710.86
A30: 2.1.4 | B30: PRÓPRIA | C30: CPU.33 | D30: =VLOOKUP(C30,CPU!$B$29:$G$1591,2,0) -> Relatório de Avaliação de Estruturas de Concreto | E30: =(VLOOKUP(C30,CPU!$B$10:D$1591,3,0)) -> un | F30: 1 | G30: =TRUNC((1-$H$10)*(SUMIFS(CPU!$G:$G,CPU!$A:$A,'1_Bico da Pedra'!$C30,CPU!$H:$H,"ss")+SUMIFS(CPU!$G:$G,CPU!$A:$A,'1_Bico da Pedra'!$C30,CPU!$H:$H,"mdo")+SUMIF('Comp SINAPI DF 09-2025 Onerado'!B:B,'1_Bico da Pedra'!C30,'Comp SINAPI DF 09-2025 Onerado'!E:E)+SUMIF('Ins SINAPI DF 09-2025 Onerado'!B:B,'1_Bico da Pedra'!C30,'Ins SINAPI DF 09-2025 Onerado'!F:F)),2) -> 6010.8 | H30: =TRUNC(G30*(1+$H$5),2) -> 7405.9 | I30: =TRUNC(F30*H30,2) -> 7405.9
A31: 2.1.5 | B31: PRÓPRIA | C31: CPU.40 | D31: =VLOOKUP(C31,CPU!$B$29:$G$1591,2,0) -> Relatório Topográfico e Tratamento de Dados | E31: =(VLOOKUP(C31,CPU!$B$10:D$1591,3,0)) -> un | F31: 1 | G31: =TRUNC((1-$H$10)*(SUMIFS(CPU!$G:$G,CPU!$A:$A,'1_Bico da Pedra'!$C31,CPU!$H:$H,"ss")+SUMIFS(CPU!$G:$G,CPU!$A:$A,'1_Bico da Pedra'!$C31,CPU!$H:$H,"mdo")+SUMIF('Comp SINAPI DF 09-2025 Onerado'!B:B,'1_Bico da Pedra'!C31,'Comp SINAPI DF 09-2025 Onerado'!E:E)+SUMIF('Ins SINAPI DF 09-2025 Onerado'!B:B,'1_Bico da Pedra'!C31,'Ins SINAPI DF 09-2025 Onerado'!F:F)),2) -> 8514.52 | H31: =TRUNC(G31*(1+$H$5),2) -> 10490.74 | I31: =TRUNC(F31*H31,2) -> 10490.74
A32: 3 | D32: ETAPA 3 | I32: =SUM(I33,I41) -> 281373.32
A33: 3.1 | D33: PLANO DE SEGURANÇA DE BARRAGENS | I33: =SUM(I34:J40) -> 181035.5
A34: 3.1.1 | B34: PRÓPRIA | C34: CPU.34 | D34: =VLOOKUP(C34,CPU!B34:G4887,2,0) -> Volume I - Informações Gerais | E34: =(VLOOKUP(C34,CPU!$B$10:D$4896,3,0)) -> un | F34: 1 | G34: =TRUNC((1-$H$10)*(SUMIFS(CPU!$G:$G,CPU!$A:$A,'1_Bico da Pedra'!$C34,CPU!$H:$H,"ss")+SUMIFS(CPU!$G:$G,CPU!$A:$A,'1_Bico da Pedra'!$C34,CPU!$H:$H,"mdo")+SUMIF('Comp SINAPI DF 09-2025 Onerado'!B:B,'1_Bico da Pedra'!C34,'Comp SINAPI DF 09-2025 Onerado'!E:E)+SUMIF('Ins SINAPI DF 09-2025 Onerado'!B:B,'1_Bico da Pedra'!C34,'Ins SINAPI DF 09-2025 Onerado'!F:F)),2) -> 15330.6 | H34: =TRUNC(G34*(1+$H$5),2) -> 18888.83 | I34: =TRUNC(F34*H34,2) -> 18888.83
A35: 3.1.2 | B35: PRÓPRIA | C35: CPU.35 | D35: =VLOOKUP(C35,CPU!B35:G4888,2,0) -> Volume II - Documentação Técnica | E35: =(VLOOKUP(C35,CPU!$B$10:D$4896,3,0)) -> un | F35: 1 | G35: =TRUNC((1-$H$10)*(SUMIFS(CPU!$G:$G,CPU!$A:$A,'1_Bico da Pedra'!$C35,CPU!$H:$H,"ss")+SUMIFS(CPU!$G:$G,CPU!$A:$A,'1_Bico da Pedra'!$C35,CPU!$H:$H,"mdo")+SUMIF('Comp SINAPI DF 09-2025 Onerado'!B:B,'1_Bico da Pedra'!C35,'Comp SINAPI DF 09-2025 Onerado'!E:E)+SUMIF('Ins SINAPI DF 09-2025 Onerado'!B:B,'1_Bico da Pedra'!C35,'Ins SINAPI DF 09-2025 Onerado'!F:F)),2) -> 15751.56 | H35: 19407.49 | I35: 19407.49
A36: 3.1.3 | B36: PRÓPRIA | C36: CPU.36 | D36: =VLOOKUP(C36,CPU!B36:G4889,2,0) -> Volume III - Planos e Procedimentos | E36: =(VLOOKUP(C36,CPU!$B$10:D$4896,3,0)) -> un | F36: 1 | G36: =TRUNC((1-$H$10)*(SUMIFS(CPU!$G:$G,CPU!$A:$A,'1_Bico da Pedra'!$C36,CPU!$H:$H,"ss")+SUMIFS(CPU!$G:$G,CPU!$A:$A,'1_Bico da Pedra'!$C36,CPU!$H:$H,"mdo")+SUMIF('Comp SINAPI DF 09-2025 Onerado'!B:B,'1_Bico da Pedra'!C36,'Comp SINAPI DF 09-2025 Onerado'!E:E)+SUMIF('Ins SINAPI DF 09-2025 Onerado'!B:B,'1_Bico da Pedra'!C36,'Ins SINAPI DF 09-2025 Onerado'!F:F)),2) -> 15751.56 | H36: 19407.49 | I36: 19407.49
A37: 3.1.4 | B37: PRÓPRIA | C37: CPU.37 | D37: =VLOOKUP(C37,CPU!B37:G4890,2,0) -> Volume IV - Registros e Controles | E37: =(VLOOKUP(C37,CPU!$B$10:D$4896,3,0)) -> un | F37: 1 | G37: =TRUNC((1-$H$10)*(SUMIFS(CPU!$G:$G,CPU!$A:$A,'1_Bico da Pedra'!$C37,CPU!$H:$H,"ss")+SUMIFS(CPU!$G:$G,CPU!$A:$A,'1_Bico da Pedra'!$C37,CPU!$H:$H,"mdo")+SUMIF('Comp SINAPI DF 09-2025 Onerado'!B:B,'1_Bico da Pedra'!C37,'Comp SINAPI DF 09-2025 Onerado'!E:E)+SUMIF('Ins SINAPI DF 09-2025 Onerado'!B:B,'1_Bico da Pedra'!C37,'Ins SINAPI DF 09-2025 Onerado'!F:F)),2) -> 15751.56 | H37: 19407.49 | I37: 19407.49
A38: 3.1.5 | B38: PRÓPRIA | C38: CPU.38 | D38: =VLOOKUP(C38,CPU!B38:G4891,2,0) -> Volume V - Revisão Periódica de Segurança de Barragem | E38: =(VLOOKUP(C38,CPU!$B$10:D$4896,3,0)) -> un | F38: 1 | G38: =TRUNC((1-$H$10)*(SUMIFS(CPU!$G:$G,CPU!$A:$A,'1_Bico da Pedra'!$C38,CPU!$H:$H,"ss")+SUMIFS(CPU!$G:$G,CPU!$A:$A,'1_Bico da Pedra'!$C38,CPU!$H:$H,"mdo")+SUMIF('Comp SINAPI DF 09-2025 Onerado'!B:B,'1_Bico da Pedra'!C38,'Comp SINAPI DF 09-2025 Onerado'!E:E)+SUMIF('Ins SINAPI DF 09-2025 Onerado'!B:B,'1_Bico da Pedra'!C38,'Ins SINAPI DF 09-2025 Onerado'!F:F)),2) -> 27410.88 | H38: 33772.94 | I38: 33772.94
A39: 3.1.6 | B39: PRÓPRIA | C39: CPU.39 | D39: =VLOOKUP(C39,CPU!B39:G4892,2,0) -> Volume V - A - Resumo Executivo | E39: =(VLOOKUP(C39,CPU!$B$10:D$4896,3,0)) -> un | F39: 1 | G39: =TRUNC((1-$H$10)*(SUMIFS(CPU!$G:$G,CPU!$A:$A,'1_Bico da Pedra'!$C39,CPU!$H:$H,"ss")+SUMIFS(CPU!$G:$G,CPU!$A:$A,'1_Bico da Pedra'!$C39,CPU!$H:$H,"mdo")+SUMIF('Comp SINAPI DF 09-2025 Onerado'!B:B,'1_Bico da Pedra'!C39,'Comp SINAPI DF 09-2025 Onerado'!E:E)+SUMIF('Ins SINAPI DF 09-2025 Onerado'!B:B,'1_Bico da Pedra'!C39,'Ins SINAPI DF 09-2025 Onerado'!F:F)),2) -> 24473.94 | H39: =TRUNC(G39*(1+$H$5),2) -> 30154.34 | I39: =TRUNC(F39*H39,2) -> 30154.34
A40: 3.1.7 | B40: PRÓPRIA | C40: CPU.41 | D40: =VLOOKUP(C40,CPU!B43:G4898,2,0) -> Volume VI - Plano de Ação de Emergência | E40: =(VLOOKUP(C40,CPU!$B$10:D$4896,3,0)) -> un | F40: 1 | G40: =TRUNC((1-$H$10)*(SUMIFS(CPU!$G:$G,CPU!$A:$A,'1_Bico da Pedra'!$C40,CPU!$H:$H,"ss")+SUMIFS(CPU!$G:$G,CPU!$A:$A,'1_Bico da Pedra'!$C40,CPU!$H:$H,"mdo")+SUMIF('Comp SINAPI DF 09-2025 Onerado'!B:B,'1_Bico da Pedra'!C40,'Comp SINAPI DF 09-2025 Onerado'!E:E)+SUMIF('Ins SINAPI DF 09-2025 Onerado'!B:B,'1_Bico da Pedra'!C40,'Ins SINAPI DF 09-2025 Onerado'!F:F)),2) -> 32462.4 | H40: =TRUNC(G40*(1+$H$5),2) -> 39996.92 | I40: =TRUNC(F40*H40,2) -> 39996.92
A41: 3.2 | D41: PLANO DE AÇÃO DE EMERGÊNCIA | I41: =SUM(I42:I44) -> 100337.82
A42: 3.2.1 | B42: PRÓPRIA | C42: CPU.24 | D42: =VLOOKUP(C42,CPU!B43:G4896,2,0) -> Projeto de sinalização | E42: =(VLOOKUP(C42,CPU!$B$10:D$4896,3,0)) -> un | F42: 1 | G42: =TRUNC((1-$H$10)*(SUMIFS(CPU!$G:$G,CPU!$A:$A,'1_Bico da Pedra'!$C42,CPU!$H:$H,"ss")+SUMIFS(CPU!$G:$G,CPU!$A:$A,'1_Bico da Pedra'!$C42,CPU!$H:$H,"mdo")+SUMIF('Comp SINAPI DF 09-2025 Onerado'!B:B,'1_Bico da Pedra'!C42,'Comp SINAPI DF 09-2025 Onerado'!E:E)+SUMIF('Ins SINAPI DF 09-2025 Onerado'!B:B,'1_Bico da Pedra'!C42,'Ins SINAPI DF 09-2025 Onerado'!F:F)),2) -> 27232.12 | H42: =TRUNC(G42*(1+$H$5),2) -> 33552.69 | I42: =TRUNC(F42*H42,2) -> 33552.69
A43: 3.2.2 | B43: PRÓPRIA | C43: CPU.25 | D43: =VLOOKUP(C43,CPU!B43:G4897,2,0) -> Projeto de rotas de fuga | E43: =(VLOOKUP(C43,CPU!$B$10:D$4896,3,0)) -> un | F43: 1 | G43: =TRUNC((1-$H$10)*(SUMIFS(CPU!$G:$G,CPU!$A:$A,'1_Bico da Pedra'!$C43,CPU!$H:$H,"ss")+SUMIFS(CPU!$G:$G,CPU!$A:$A,'1_Bico da Pedra'!$C43,CPU!$H:$H,"mdo")+SUMIF('Comp SINAPI DF 09-2025 Onerado'!B:B,'1_Bico da Pedra'!C43,'Comp SINAPI DF 09-2025 Onerado'!E:E)+SUMIF('Ins SINAPI DF 09-2025 Onerado'!B:B,'1_Bico da Pedra'!C43,'Ins SINAPI DF 09-2025 Onerado'!F:F)),2) -> 30599.8 | H43: =TRUNC(G43*(1+$H$5),2) -> 37702.01 | I43: =TRUNC(F43*H43,2) -> 37702.01
A44: 3.2.3 | B44: PRÓPRIA | C44: CPU.32 | D44: =VLOOKUP(C44,CPU!B43:G4899,2,0) -> Projeto de sistema sonoro | E44: =(VLOOKUP(C44,CPU!$B$10:D$4896,3,0)) -> un | F44: 1 | G44: =TRUNC((1-$H$10)*(SUMIFS(CPU!$G:$G,CPU!$A:$A,'1_Bico da Pedra'!$C44,CPU!$H:$H,"ss")+SUMIFS(CPU!$G:$G,CPU!$A:$A,'1_Bico da Pedra'!$C44,CPU!$H:$H,"mdo")+SUMIF('Comp SINAPI DF 09-2025 Onerado'!B:B,'1_Bico da Pedra'!C44,'Comp SINAPI DF 09-2025 Onerado'!E:E)+SUMIF('Ins SINAPI DF 09-2025 Onerado'!B:B,'1_Bico da Pedra'!C44,'Ins SINAPI DF 09-2025 Onerado'!F:F)),2) -> 23604.52 | H44: =TRUNC(G44*(1+$H$5),2) -> 29083.12 | I44: =TRUNC(F44*H44,2) -> 29083.12
D45: TOTAL (Custo): | I45: =TRUNC(SUMPRODUCT(F14:F44,G14:G44),2) -> 392907.7
D46: BDI e Encargos Sociais: | I46: =I47-I45 -> 91116.57
D47: TOTAL GERAL COM BDI: | I47: =SUM(I32,I25,I13) -> 484024.27 | M47: =TRUNC(SUMPRODUCT(F14:F44,H14:H44),2) -> 484024.27

Sheet 2_Cova da Mandioca
A1: Ministério da Integração e do Desenvolvimento Regional
A2: Companhia de Desenvolvimento dos Vales do São Francisco e do Parnaíba
A4: PLANILHA ORÇAMENTÁRIA - ORÇAMENTO NÃO DESONERADO
A5: OBRA: | B5: =Resumo!B5 -> Elaboração de Plano de Segurança de Barragens | G5: BDI (serv.): | H5: ='BDI serv'!D23 -> 0.2321 | I5: Bancos de dados:
A6: LOCAL: | B6: Urandi, BA | G6: BDI (forn.): | H6: ='BDI forn'!D23 -> 0 | I6: =Resumo!G6 -> SETEMBRO/25 - SINAPI
A7: DATA BASE: | B7: 2025-10-01 | E7: Encargos sociais - Horistas: | H7: ='Encargos Sociais DF'!E49 -> 1.1011 | I7: =Resumo!G7 -> SIURB INFRA JAN/2025
A8: PRAZO: | B8: =Resumo!B8 -> 300 dias | E8: Encargos sociais - Mensalista: | H8: ='Encargos Sociais DF'!F49 -> 0.7019 | I8: =Resumo!G8 -> JAN/25 E JUL/2025- SETOP
I9: ='1_Bico da Pedra'!I9 -> JUNHO/25 - EMBASA
B10: Cova da Mandioca | G10: Desconto: | H10: 0 | I10: =Resumo!G10 -> JUL/2025 - CONSULT. DNIT
A11: ITEM | B11: REFERÊNCIA | D11: DESCRIÇÃO | E11: UNID. | F11: QUANT. | G11: CUSTO UNITÁRIO | H11: PREÇO UNITÁRIO | I11: PREÇO TOTAL
B12: FONTE | C12: CÓDIGO
A13: 1 | D13: ='1_Bico da Pedra'!D13 -> ETAPA 1 | I13: =SUM(I14,I16,I24,I27) -> 198000.53
A14: 1.1 | D14: ='1_Bico da Pedra'!D14 -> Visita Técnica | I14: =SUM(I15:I15) -> 55532.37
A15: 1.1.1 | B15: PRÓPRIA | C15: CPU.09 | D15: =VLOOKUP(C15,CPU!B29:G75,2,0) -> Inspeção Visual da Estrutura (Multidisciplinar) e elaboração de relatório | E15: =(VLOOKUP(C15,CPU!$B$10:D$142,3,0)) -> un | F15: 1 | G15: =TRUNC((1-$H$10)*(SUMIFS(CPU!$G:$G,CPU!$A:$A,'2_Cova da Mandioca'!$C15,CPU!$H:$H,"ss")+SUMIFS(CPU!$G:$G,CPU!$A:$A,'2_Cova da Mandioca'!$C15,CPU!$H:$H,"mdo")+SUMIF('Comp SINAPI DF 09-2025 Onerado'!B:B,'2_Cova da Mandioca'!C15,'Comp SINAPI DF 09-2025 Onerado'!E:E)+SUMIF('Ins SINAPI DF 09-2025 Onerado'!B:B,'2_Cova da Mandioca'!C15,'Ins SINAPI DF 09-2025 Onerado'!F:F)),2) -> 45071.32 | H15: =TRUNC(G15*(1+$H$5),2) -> 55532.37 | I15: =TRUNC(F15*H15,2) -> 55532.37
A16: 1.2 | D16: Investigação Geológica e Geotécnica e Estrutural | I16: =SUM(I17:I23) -> 110528.17
A17: 1.2.1 | B17: EMBASA | C17: 32.05.04 | D17: Mobilização e desmobilização de equipe e equipamentos para sondagem rotativa ou mista | E17: km | F17: ='Memorial de cálculo'!R14*2 -> 484 | G17: =TRUNC((1-$H$10)*J17,2) -> 5.16 | H17: =TRUNC(G17*(1+$H$5),2) -> 6.35 | I17: =TRUNC(F17*H17,2) -> 3073.4 | J17: =VLOOKUP(C17,'OUTRAS BASES'!B:C,2,0) -> 5.16
A18: 1.2.2 | B18: SCO | C18: AD 05.15.0400 | D18: Sondagem rotativa vertical, em rocha sa, com coroa de diamante, diametro H (99mm), inclusive deslocamento e posicionamento em cada furo. | E18: m | F18: =ROUNDUP('Pontos de Sondagem'!G403,0) -> 50 | G18: =TRUNC((1-$H$10)*J18,2) -> 1422.4 | H18: =TRUNC(G18*(1+$H$5),2) -> 1752.53 | I18: =TRUNC(F18*H18,2) -> 87626.5 | J18: =VLOOKUP(C18,'OUTRAS BASES'!B:C,2,0) -> 1422.4
A19: 1.2.3 | B19: EMBASA | C19: 32.04.61 | D19: Ensaio de Perda de água sob pressão | E19: un | F19: =3*'Pontos de Sondagem'!$G$401 -> 9 | G19: =TRUNC((1-$H$10)*J19,2) -> 613.68 | H19: 756.11 | I19: 6804.99 | J19: =VLOOKUP(C19,'OUTRAS BASES'!B:C,2,0) -> 613.68
A20: 1.2.4 | B20: SICRO3 | C20: 3816196 | D20: Fechamento dos Furos - Injeção de nata de cimento | E20: m³ | F20: =ROUNDUP(M27,0) -> 1 | G20: =TRUNC((1-$H$10)*J20,2) -> 1012.78 | H20: 1247.84 | I20: 1247.84 | J20: =VLOOKUP(C20,'OUTRAS BASES'!B:C,2,0) -> 1012.78
A21: 1.2.5 | B21: SCO | C21: AD 35.35.0400 | D21: Ensaio de compressão simples em amostra de concreto - Base em SCO AD 35.35.0400 | E21: un | F21: 9 | G21: =TRUNC((1-$H$10)*J21,2) -> 320.04 | H21: 394.32 | I21: 3548.88 | J21: =VLOOKUP(C21,'OUTRAS BASES'!B:C,2,0) -> 320.04
A22: 1.2.6 | B22: PRÓPRIA | C22: CPU.04 | D22: =VLOOKUP(C22,CPU!$B$29:$G$233,2,0) -> Avaliação da espessura de carbonatação, por ponto, em estruturas de concreto armado ou protendido, através de aspersão de solução de fenolftaleína, inclusive coleta da amostra | E22: =(VLOOKUP(C22,CPU!$B$10:D$142,3,0)) -> un | F22: 6 | G22: =TRUNC((1-$H$10)*(SUMIFS(CPU!$G:$G,CPU!$A:$A,'2_Cova da Mandioca'!$C22,CPU!$H:$H,"ss")+SUMIFS(CPU!$G:$G,CPU!$A:$A,'2_Cova da Mandioca'!$C22,CPU!$H:$H,"mdo")+SUMIF('Comp SINAPI DF 09-2025 Onerado'!B:B,'2_Cova da Mandioca'!C22,'Comp SINAPI DF 09-2025 Onerado'!E:E)+SUMIF('Ins SINAPI DF 09-2025 Onerado'!B:B,'2_Cova da Mandioca'!C22,'Ins SINAPI DF 09-2025 Onerado'!F:F)),2) -> 470.15 | H22: 579.27 | I22: 3475.62
A23: 1.2.7 | B23: PRÓPRIA | C23: CPU.05 | D23: =VLOOKUP(C23,CPU!$B$29:$G$233,2,0) -> Ensaio de esclerometria em 10 pontos com 16 tiros por ponto | E23: =(VLOOKUP(C23,CPU!$B$10:D$142,3,0)) -> un | F23: 2 | G23: =TRUNC((1-$H$10)*(SUMIFS(CPU!$G:$G,CPU!$A:$A,'2_Cova da Mandioca'!$C23,CPU!$H:$H,"ss")+SUMIFS(CPU!$G:$G,CPU!$A:$A,'2_Cova da Mandioca'!$C23,CPU!$H:$H,"mdo")+SUMIF('Comp SINAPI DF 09-2025 Onerado'!B:B,'2_Cova da Mandioca'!C23,'Comp SINAPI DF 09-2025 Onerado'!E:E)+SUMIF('Ins SINAPI DF 09-2025 Onerado'!B:B,'2_Cova da Mandioca'!C23,'Ins SINAPI DF 09-2025 Onerado'!F:F)),2) -> 1927.99 | H23: 2375.47 | I23: 4750.94 | L23: d | M23: =99/1000 -> 0.099
A24: 1.3 | D24: Levantamento Topográfico | I24: =SUM(I25:I26) -> 16588.77 | L24: A | M24: =PI()*(M23*M23)/4 -> 0.007697687399
A25: 1.3.1 | B25: PRÓPRIA | C25: CPU.28 | D25: =VLOOKUP(C25,CPU!B29:G404,2,0) -> Mobilização e Desmobilização de Equipe de Levantamento topográfico | E25: =(VLOOKUP(C25,CPU!$B$10:D$19919,3,0)) -> un | F25: 1 | G25: =TRUNC((1-$H$10)*(SUMIFS(CPU!$G:$G,CPU!$A:$A,'2_Cova da Mandioca'!$C25,CPU!$H:$H,"ss")+SUMIFS(CPU!$G:$G,CPU!$A:$A,'2_Cova da Mandioca'!$C25,CPU!$H:$H,"mdo")+SUMIF('Comp SINAPI DF 09-2025 Onerado'!B:B,'2_Cova da Mandioca'!C25,'Comp SINAPI DF 09-2025 Onerado'!E:E)+SUMIF('Ins SINAPI DF 09-2025 Onerado'!B:B,'2_Cova da Mandioca'!C25,'Ins SINAPI DF 09-2025 Onerado'!F:F)),2) -> 7747.32 | H25: =TRUNC(G25*(1+$H$5),2) -> 9545.47 | I25: =TRUNC(F25*H25,2) -> 9545.47 | L25: c | M25: 1.5
A26: 1.3.2 | B26: SETOP | C26: CO-27367 | D26: Levantamento planialtimétrico e cadastral terreno de 10.001 a 50.000 m² | E26: m² | F26: =ROUNDUP('Memorial de cálculo'!R20,0) -> 12806 | G26: =TRUNC((1-$H$10)*J26,2) -> 0.45 | H26: =TRUNC(G26*(1+$H$5),2) -> 0.55 | I26: =TRUNC(F26*H26,2) -> 7043.3 | J26: =VLOOKUP(C26,'OUTRAS BASES'!B:C,2,0) -> 0.45
A27: 1.4 | D27: Levantamento Fotogramétrico | I27: =SUM(I28:I29) -> 15351.22 | L27: V | M27: =M24*(F18)*M25 -> 0.577326555
A28: 1.4.1 | B28: PRÓPRIA | C28: CPU.31 | D28: =VLOOKUP(C28,CPU!B29:G4911,2,0) -> Mobilização e Desmobilização de Equipe e Equipamentos de Levantamento Fotogramétrico | E28: =(VLOOKUP(C28,CPU!$B$10:D$210,3,0)) -> km | F28: ='Memorial de cálculo'!R14*2 -> 484 | G28: =TRUNC((1-$H$10)*J28,2) -> 8.01 | H28: =TRUNC(G28*(1+$H$5),2) -> 9.86 | I28: =TRUNC(F28*H28,2) -> 4772.24 | J28: =CPU!G210 -> 8.01
A29: 1.4.2 | B29: EMBASA | C29: 31.90.13 | D29: Levant. Fotogrametrico c/ VANT (drone) áreas até 100 ha, incl. Ortofotos, GSD<=3, acurácia horiz. Min.3cm e vert. Min. 6cm, aferidos c/ pontos de controle distancia min. De 650m entre eles, exclusivetransporte de equipe e equipamentos | E29: un | F29: 1 | G29: =TRUNC((1-$H$10)*J29,2) -> 8586.14 | H29: =TRUNC(G29*(1+$H$5),2) -> 10578.98 | I29: =TRUNC(F29*H29,2) -> 10578.98 | J29: =VLOOKUP(C29,'OUTRAS BASES'!B:C,2,0) -> 8586.14
A30: 2 | D30: ETAPA 2 | I30: =SUM(I31) -> 123041.13
A31: 2.1 | D31: ESTUDOS | I31: =SUM(I32:I37) -> 123041.13
A32: 2.1.1 | B32: PRÓPRIA | C32: CPU.11 | D32: =VLOOKUP(C32,CPU!B29:G4935,2,0) -> Estudo Geológico-geotécnico | E32: =(VLOOKUP(C32,CPU!$B$10:D$4932,3,0)) -> un | F32: 1 | G32: =TRUNC((1-$H$10)*(SUMIFS(CPU!$G:$G,CPU!$A:$A,'2_Cova da Mandioca'!$C32,CPU!$H:$H,"ss")+SUMIFS(CPU!$G:$G,CPU!$A:$A,'2_Cova da Mandioca'!$C32,CPU!$H:$H,"mdo")+SUMIF('Comp SINAPI DF 09-2025 Onerado'!B:B,'2_Cova da Mandioca'!C32,'Comp SINAPI DF 09-2025 Onerado'!E:E)+SUMIF('Ins SINAPI DF 09-2025 Onerado'!B:B,'2_Cova da Mandioca'!C32,'Ins SINAPI DF 09-2025 Onerado'!F:F)),2) -> 14328.22 | H32: =TRUNC(G32*(1+$H$5),2) -> 17653.79 | I32: =TRUNC(F32*H32,2) -> 17653.79
A33: 2.1.2 | B33: PRÓPRIA | C33: CPU.12 | D33: =VLOOKUP(C33,CPU!B29:G186,2,0) -> Relatório Fotogramétricos e Tratamento de Dados | E33: =(VLOOKUP(C33,CPU!$B$10:D$4939,3,0)) -> un | F33: 1 | G33: =TRUNC((1-$H$10)*(SUMIFS(CPU!$G:$G,CPU!$A:$A,'2_Cova da Mandioca'!$C33,CPU!$H:$H,"ss")+SUMIFS(CPU!$G:$G,CPU!$A:$A,'2_Cova da Mandioca'!$C33,CPU!$H:$H,"mdo")+SUMIF('Comp SINAPI DF 09-2025 Onerado'!B:B,'2_Cova da Mandioca'!C33,'Comp SINAPI DF 09-2025 Onerado'!E:E)+SUMIF('Ins SINAPI DF 09-2025 Onerado'!B:B,'2_Cova da Mandioca'!C33,'Ins SINAPI DF 09-2025 Onerado'!F:F)),2) -> 8785.99 | H33: =TRUNC(G33*(1+$H$5),2) -> 10825.21 | I33: =TRUNC(F33*H33,2) -> 10825.21
A34: 2.1.3 | B34: PRÓPRIA | C34: CPU.13 | D34: =VLOOKUP(C34,CPU!$B$29:$G$49940,2,0) -> Estudo de Ruputura e Mapas de Inundação | E34: =(VLOOKUP(C34,CPU!$B$10:D$19919,3,0)) -> un | F34: 1 | G34: =TRUNC((1-$H$10)*(SUMIFS(CPU!$G:$G,CPU!$A:$A,'2_Cova da Mandioca'!$C34,CPU!$H:$H,"ss")+SUMIFS(CPU!$G:$G,CPU!$A:$A,'2_Cova da Mandioca'!$C34,CPU!$H:$H,"mdo")+SUMIF('Comp SINAPI DF 09-2025 Onerado'!B:B,'2_Cova da Mandioca'!C34,'Comp SINAPI DF 09-2025 Onerado'!E:E)+SUMIF('Ins SINAPI DF 09-2025 Onerado'!B:B,'2_Cova da Mandioca'!C34,'Ins SINAPI DF 09-2025 Onerado'!F:F)),2) -> 38768.32 | H34: =TRUNC(G34*(1+$H$5),2) -> 47766.44 | I34: =TRUNC(F34*H34,2) -> 47766.44
A35: 2.1.4 | B35: PRÓPRIA | C35: CPU.16 | D35: =VLOOKUP(C35,CPU!B29:G412,2,0) -> Estudo de Estabilidade e Análise do controle de percolação e da distribuição das subpressões na fundação - Barragem de Concreto | E35: =(VLOOKUP(C35,CPU!$B$10:D$19919,3,0)) -> un | F35: 1 | G35: =TRUNC((1-$H$10)*(SUMIFS(CPU!$G:$G,CPU!$A:$A,'2_Cova da Mandioca'!$C35,CPU!$H:$H,"ss")+SUMIFS(CPU!$G:$G,CPU!$A:$A,'2_Cova da Mandioca'!$C35,CPU!$H:$H,"mdo")+SUMIF('Comp SINAPI DF 09-2025 Onerado'!B:B,'2_Cova da Mandioca'!C35,'Comp SINAPI DF 09-2025 Onerado'!E:E)+SUMIF('Ins SINAPI DF 09-2025 Onerado'!B:B,'2_Cova da Mandioca'!C35,'Ins SINAPI DF 09-2025 Onerado'!F:F)),2) -> 23455.12 | H35: =TRUNC(G35*(1+$H$5),2) -> 28899.05 | I35: =TRUNC(F35*H35,2) -> 28899.05
A36: 2.1.5 | B36: PRÓPRIA | C36: CPU.33 | D36: =VLOOKUP(C36,CPU!B29:G415,2,0) -> Relatório de Avaliação de Estruturas de Concreto | E36: =(VLOOKUP(C36,CPU!$B$10:D$19919,3,0)) -> un | F36: 1 | G36: =TRUNC((1-$H$10)*(SUMIFS(CPU!$G:$G,CPU!$A:$A,'2_Cova da Mandioca'!$C36,CPU!$H:$H,"ss")+SUMIFS(CPU!$G:$G,CPU!$A:$A,'2_Cova da Mandioca'!$C36,CPU!$H:$H,"mdo")+SUMIF('Comp SINAPI DF 09-2025 Onerado'!B:B,'2_Cova da Mandioca'!C36,'Comp SINAPI DF 09-2025 Onerado'!E:E)+SUMIF('Ins SINAPI DF 09-2025 Onerado'!B:B,'2_Cova da Mandioca'!C36,'Ins SINAPI DF 09-2025 Onerado'!F:F)),2) -> 6010.8 | H36: =TRUNC(G36*(1+$H$5),2) -> 7405.9 | I36: =TRUNC(F36*H36,2) -> 7405.9
A37: 2.1.6 | B37: PRÓPRIA | C37: CPU.40 | D37: =VLOOKUP(C37,CPU!B29:G417,2,0) -> Relatório Topográfico e Tratamento de Dados | E37: =(VLOOKUP(C37,CPU!$B$10:D$19919,3,0)) -> un | F37: 1 | G37: =TRUNC((1-$H$10)*(SUMIFS(CPU!$G:$G,CPU!$A:$A,'2_Cova da Mandioca'!$C37,CPU!$H:$H,"ss")+SUMIFS(CPU!$G:$G,CPU!$A:$A,'2_Cova da Mandioca'!$C37,CPU!$H:$H,"mdo")+SUMIF('Comp SINAPI DF 09-2025 Onerado'!B:B,'2_Cova da Mandioca'!C37,'Comp SINAPI DF 09-2025 Onerado'!E:E)+SUMIF('Ins SINAPI DF 09-2025 Onerado'!B:B,'2_Cova da Mandioca'!C37,'Ins SINAPI DF 09-2025 Onerado'!F:F)),2) -> 8514.52 | H37: =TRUNC(G37*(1+$H$5),2) -> 10490.74 | I37: =TRUNC(F37*H37,2) -> 10490.74
A38: 3 | D38: ETAPA 3 | I38: =SUM(I39,I42,I50) -> 372432.11
A39: 3.1 | D39: PROJETOS | I39: =SUM(I40:I41) -> 91058.79
A40: 3.1.1 | B40: PRÓPRIA | C40: CPU.18 | D40: =VLOOKUP(C40,CPU!B46:G151,2,0) -> Projeto de Instrumentação | E40: =(VLOOKUP(C40,CPU!$B$10:D$142,3,0)) -> un | F40: 1 | G40: =TRUNC((1-$H$10)*(SUMIFS(CPU!$G:$G,CPU!$A:$A,'2_Cova da Mandioca'!$C40,CPU!$H:$H,"ss")+SUMIFS(CPU!$G:$G,CPU!$A:$A,'2_Cova da Mandioca'!$C40,CPU!$H:$H,"mdo")+SUMIF('Comp SINAPI DF 09-2025 Onerado'!B:B,'2_Cova da Mandioca'!C40,'Comp SINAPI DF 09-2025 Onerado'!E:E)+SUMIF('Ins SINAPI DF 09-2025 Onerado'!B:B,'2_Cova da Mandioca'!C40,'Ins SINAPI DF 09-2025 Onerado'!F:F)),2) -> 29283.76 | H40: =TRUNC(G40*(1+$H$5),2) -> 36080.52 | I40: =TRUNC(F40*H40,2) -> 36080.52
A41: 3.1.2 | B41: PRÓPRIA | C41: CPU.20 | D41: =VLOOKUP(C41,CPU!B46:G156,2,0) -> Projeto Geométrico (AS IS) | E41: =(VLOOKUP(C41,CPU!$B$10:D$142,3,0)) -> un | F41: 1 | G41: =TRUNC((1-$H$10)*(SUMIFS(CPU!$G:$G,CPU!$A:$A,'2_Cova da Mandioca'!$C41,CPU!$H:$H,"ss")+SUMIFS(CPU!$G:$G,CPU!$A:$A,'2_Cova da Mandioca'!$C41,CPU!$H:$H,"mdo")+SUMIF('Comp SINAPI DF 09-2025 Onerado'!B:B,'2_Cova da Mandioca'!C41,'Comp SINAPI DF 09-2025 Onerado'!E:E)+SUMIF('Ins SINAPI DF 09-2025 Onerado'!B:B,'2_Cova da Mandioca'!C41,'Ins SINAPI DF 09-2025 Onerado'!F:F)),2) -> 44621.6 | H41: =TRUNC(G41*(1+$H$5),2) -> 54978.27 | I41: =TRUNC(F41*H41,2) -> 54978.27
A42: 3.2 | D42: PLANO DE SEGURANÇA DE BARRAGENS | I42: =SUM(I43:I49) -> 181035.5
A43: 3.2.1 | B43: PRÓPRIA | C43: CPU.34 | D43: =VLOOKUP(C43,CPU!B40:G4893,2,0) -> Volume I - Informações Gerais | E43: =(VLOOKUP(C43,CPU!$B$10:D$4896,3,0)) -> un | F43: 1 | G43: =TRUNC((1-$H$10)*(SUMIFS(CPU!$G:$G,CPU!$A:$A,'2_Cova da Mandioca'!$C43,CPU!$H:$H,"ss")+SUMIFS(CPU!$G:$G,CPU!$A:$A,'2_Cova da Mandioca'!$C43,CPU!$H:$H,"mdo")+SUMIF('Comp SINAPI DF 09-2025 Onerado'!B:B,'2_Cova da Mandioca'!C43,'Comp SINAPI DF 09-2025 Onerado'!E:E)+SUMIF('Ins SINAPI DF 09-2025 Onerado'!B:B,'2_Cova da Mandioca'!C43,'Ins SINAPI DF 09-2025 Onerado'!F:F)),2) -> 15330.6 | H43: =TRUNC(G43*(1+$H$5),2) -> 18888.83 | I43: =TRUNC(F43*H43,2) -> 18888.83
A44: 3.2.2 | B44: PRÓPRIA | C44: CPU.35 | D44: =VLOOKUP(C44,CPU!B41:G4894,2,0) -> Volume II - Documentação Técnica | E44: =(VLOOKUP(C44,CPU!$B$10:D$4896,3,0)) -> un | F44: 1 | G44: =TRUNC((1-$H$10)*(SUMIFS(CPU!$G:$G,CPU!$A:$A,'2_Cova da Mandioca'!$C44,CPU!$H:$H,"ss")+SUMIFS(CPU!$G:$G,CPU!$A:$A,'2_Cova da Mandioca'!$C44,CPU!$H:$H,"mdo")+SUMIF('Comp SINAPI DF 09-2025 Onerado'!B:B,'2_Cova da Mandioca'!C44,'Comp SINAPI DF 09-2025 Onerado'!E:E)+SUMIF('Ins SINAPI DF 09-2025 Onerado'!B:B,'2_Cova da Mandioca'!C44,'Ins SINAPI DF 09-2025 Onerado'!F:F)),2) -> 15751.56 | H44: =TRUNC(G44*(1+$H$5),2) -> 19407.49 | I44: =TRUNC(F44*H44,2) -> 19407.49
A45: 3.2.3 | B45: PRÓPRIA | C45: CPU.36 | D45: =VLOOKUP(C45,CPU!B42:G4895,2,0) -> Volume III - Planos e Procedimentos | E45: =(VLOOKUP(C45,CPU!$B$10:D$4896,3,0)) -> un | F45: 1 | G45: =TRUNC((1-$H$10)*(SUMIFS(CPU!$G:$G,CPU!$A:$A,'2_Cova da Mandioca'!$C45,CPU!$H:$H,"ss")+SUMIFS(CPU!$G:$G,CPU!$A:$A,'2_Cova da Mandioca'!$C45,CPU!$H:$H,"mdo")+SUMIF('Comp SINAPI DF 09-2025 Onerado'!B:B,'2_Cova da Mandioca'!C45,'Comp SINAPI DF 09-2025 Onerado'!E:E)+SUMIF('Ins SINAPI DF 09-2025 Onerado'!B:B,'2_Cova da Mandioca'!C45,'Ins SINAPI DF 09-2025 Onerado'!F:F)),2) -> 15751.56 | H45: =TRUNC(G45*(1+$H$5),2) -> 19407.49 | I45: =TRUNC(F45*H45,2) -> 19407.49
A46: 3.2.4 | B46: PRÓPRIA | C46: CPU.37 | D46: =VLOOKUP(C46,CPU!B43:G4896,2,0) -> Volume IV - Registros e Controles | E46: =(VLOOKUP(C46,CPU!$B$10:D$4896,3,0)) -> un | F46: 1 | G46: =TRUNC((1-$H$10)*(SUMIFS(CPU!$G:$G,CPU!$A:$A,'2_Cova da Mandioca'!$C46,CPU!$H:$H,"ss")+SUMIFS(CPU!$G:$G,CPU!$A:$A,'2_Cova da Mandioca'!$C46,CPU!$H:$H,"mdo")+SUMIF('Comp SINAPI DF 09-2025 Onerado'!B:B,'2_Cova da Mandioca'!C46,'Comp SINAPI DF 09-2025 Onerado'!E:E)+SUMIF('Ins SINAPI DF 09-2025 Onerado'!B:B,'2_Cova da Mandioca'!C46,'Ins SINAPI DF 09-2025 Onerado'!F:F)),2) -> 15751.56 | H46: =TRUNC(G46*(1+$H$5),2) -> 19407.49 | I46: =TRUNC(F46*H46,2) -> 19407.49
A47: 3.2.5 | B47: PRÓPRIA | C47: CPU.38 | D47: =VLOOKUP(C47,CPU!B43:G4897,2,0) -> Volume V - Revisão Periódica de Segurança de Barragem | E47: =(VLOOKUP(C47,CPU!$B$10:D$4896,3,0)) -> un | F47: 1 | G47: =TRUNC((1-$H$10)*(SUMIFS(CPU!$G:$G,CPU!$A:$A,'2_Cova da Mandioca'!$C47,CPU!$H:$H,"ss")+SUMIFS(CPU!$G:$G,CPU!$A:$A,'2_Cova da Mandioca'!$C47,CPU!$H:$H,"mdo")+SUMIF('Comp SINAPI DF 09-2025 Onerado'!B:B,'2_Cova da Mandioca'!C47,'Comp SINAPI DF 09-2025 Onerado'!E:E)+SUMIF('Ins SINAPI DF 09-2025 Onerado'!B:B,'2_Cova da Mandioca'!C47,'Ins SINAPI DF 09-2025 Onerado'!F:F)),2) -> 27410.88 | H47: 33772.94 | I47: =TRUNC(F47*H47,2) -> 33772.94
A48: 3.2.6 | B48: PRÓPRIA | C48: CPU.39 | D48: =VLOOKUP(C48,CPU!B43:G4898,2,0) -> Volume V - A - Resumo Executivo | E48: =(VLOOKUP(C48,CPU!$B$10:D$4896,3,0)) -> un | F48: 1 | G48: =TRUNC((1-$H$10)*(SUMIFS(CPU!$G:$G,CPU!$A:$A,'2_Cova da Mandioca'!$C48,CPU!$H:$H,"ss")+SUMIFS(CPU!$G:$G,CPU!$A:$A,'2_Cova da Mandioca'!$C48,CPU!$H:$H,"mdo")+SUMIF('Comp SINAPI DF 09-2025 Onerado'!B:B,'2_Cova da Mandioca'!C48,'Comp SINAPI DF 09-2025 Onerado'!E:E)+SUMIF('Ins SINAPI DF 09-2025 Onerado'!B:B,'2_Cova da Mandioca'!C48,'Ins SINAPI DF 09-2025 Onerado'!F:F)),2) -> 24473.94 | H48: =TRUNC(G48*(1+$H$5),2) -> 30154.34 | I48: =TRUNC(F48*H48,2) -> 30154.34
A49: 3.2.7 | B49: PRÓPRIA | C49: CPU.41 | D49: =VLOOKUP(C49,CPU!B48:G4915,2,0) -> Volume VI - Plano de Ação de Emergência | E49: =(VLOOKUP(C49,CPU!$B$10:D$4896,3,0)) -> un | F49: 1 | G49: =TRUNC((1-$H$10)*(SUMIFS(CPU!$G:$G,CPU!$A:$A,'2_Cova da Mandioca'!$C49,CPU!$H:$H,"ss")+SUMIFS(CPU!$G:$G,CPU!$A:$A,'2_Cova da Mandioca'!$C49,CPU!$H:$H,"mdo")+SUMIF('Comp SINAPI DF 09-2025 Onerado'!B:B,'2_Cova da Mandioca'!C49,'Comp SINAPI DF 09-2025 Onerado'!E:E)+SUMIF('Ins SINAPI DF 09-2025 Onerado'!B:B,'2_Cova da Mandioca'!C49,'Ins SINAPI DF 09-2025 Onerado'!F:F)),2) -> 32462.4 | H49: =TRUNC(G49*(1+$H$5),2) -> 39996.92 | I49: =TRUNC(F49*H49,2) -> 39996.92
A50: 3.3 | D50: PLANO DE AÇÃO DE EMERGÊNCIA | I50: =SUM(I51:I53) -> 100337.82
A51: 3.3.1 | B51: PRÓPRIA | C51: CPU.24 | D51: =VLOOKUP(C51,CPU!B48:G4913,2,0) -> Projeto de sinalização | E51: =(VLOOKUP(C51,CPU!$B$10:D$4896,3,0)) -> un | F51: 1 | G51: =TRUNC((1-$H$10)*(SUMIFS(CPU!$G:$G,CPU!$A:$A,'2_Cova da Mandioca'!$C51,CPU!$H:$H,"ss")+SUMIFS(CPU!$G:$G,CPU!$A:$A,'2_Cova da Mandioca'!$C51,CPU!$H:$H,"mdo")+SUMIF('Comp SINAPI DF 09-2025 Onerado'!B:B,'2_Cova da Mandioca'!C51,'Comp SINAPI DF 09-2025 Onerado'!E:E)+SUMIF('Ins SINAPI DF 09-2025 Onerado'!B:B,'2_Cova da Mandioca'!C51,'Ins SINAPI DF 09-2025 Onerado'!F:F)),2) -> 27232.12 | H51: =TRUNC(G51*(1+$H$5),2) -> 33552.69 | I51: =TRUNC(F51*H51,2) -> 33552.69
A52: 3.3.2 | B52: PRÓPRIA | C52: CPU.25 | D52: =VLOOKUP(C52,CPU!B48:G4914,2,0) -> Projeto de rotas de fuga | E52: =(VLOOKUP(C52,CPU!$B$10:D$4896,3,0)) -> un | F52: 1 | G52: =TRUNC((1-$H$10)*(SUMIFS(CPU!$G:$G,CPU!$A:$A,'2_Cova da Mandioca'!$C52,CPU!$H:$H,"ss")+SUMIFS(CPU!$G:$G,CPU!$A:$A,'2_Cova da Mandioca'!$C52,CPU!$H:$H,"mdo")+SUMIF('Comp SINAPI DF 09-2025 Onerado'!B:B,'2_Cova da Mandioca'!C52,'Comp SINAPI DF 09-2025 Onerado'!E:E)+SUMIF('Ins SINAPI DF 09-2025 Onerado'!B:B,'2_Cova da Mandioca'!C52,'Ins SINAPI DF 09-2025 Onerado'!F:F)),2) -> 30599.8 | H52: =TRUNC(G52*(1+$H$5),2) -> 37702.01 | I52: =TRUNC(F52*H52,2) -> 37702.01
A53: 3.3.3 | B53: PRÓPRIA | C53: CPU.32 | D53: =VLOOKUP(C53,CPU!B49:G4916,2,0) -> Projeto de sistema sonoro | E53: =(VLOOKUP(C53,CPU!$B$10:D$4896,3,0)) -> un | F53: 1 | G53: =TRUNC((1-$H$10)*(SUMIFS(CPU!$G:$G,CPU!$A:$A,'2_Cova da Mandioca'!$C53,CPU!$H:$H,"ss")+SUMIFS(CPU!$G:$G,CPU!$A:$A,'2_Cova da Mandioca'!$C53,CPU!$H:$H,"mdo")+SUMIF('Comp SINAPI DF 09-2025 Onerado'!B:B,'2_Cova da Mandioca'!C53,'Comp SINAPI DF 09-2025 Onerado'!E:E)+SUMIF('Ins SINAPI DF 09-2025 Onerado'!B:B,'2_Cova da Mandioca'!C53,'Ins SINAPI DF 09-2025 Onerado'!F:F)),2) -> 23604.52 | H53: =TRUNC(G53*(1+$H$5),2) -> 29083.12 | I53: =TRUNC(F53*H53,2) -> 29083.12
D54: TOTAL (Custo): | I54: =TRUNC(SUMPRODUCT(F14:F53,G14:G53),2) -> 562892.17
D55: BDI e Encargos Sociais: | I55: =I56-I54 -> 130581.6
D56: TOTAL GERAL COM BDI: | I56: =SUM(I38,I30,I13) -> 693473.77 | P56: =TRUNC(SUMPRODUCT(F14:F53,H14:H53),2) -> 693473.77
L64: =TRUNC(SUMPRODUCT(F14:F48,H14:H48),2) -> 553139.03

Sheet 3_Estreito
A1: Ministério da Integração e do Desenvolvimento Regional
A2: Companhia de Desenvolvimento dos Vales do São Francisco e do Parnaíba
A4: PLANILHA ORÇAMENTÁRIA - ORÇAMENTO NÃO DESONERADO
A5: OBRA: | B5: =Resumo!B5 -> Elaboração de Plano de Segurança de Barragens | G5: BDI (serv.): | H5: ='BDI serv'!D23 -> 0.2321 | I5: Bancos de dados:
A6: LOCAL: | B6: Urandi | G6: BDI (forn.): | H6: ='BDI forn'!D23 -> 0 | I6: =Resumo!G6 -> SETEMBRO/25 - SINAPI
A7: DATA BASE: | B7: 2025-10-01 | E7: Encargos sociais - Horistas: | H7: ='Encargos Sociais DF'!E49 -> 1.1011 | I7: ='1_Bico da Pedra'!I7 -> SIURB INFRA JAN/2025
A8: PRAZO: | B8: =Resumo!B8 -> 300 dias | E8: Encargos sociais - Mensalista: | H8: ='Encargos Sociais DF'!F49 -> 0.7019 | I8: =Resumo!G8 -> JAN/25 E JUL/2025- SETOP
I9: ='1_Bico da Pedra'!I9 -> JUNHO/25 - EMBASA
B10: Estreito | G10: Desconto: | H10: 0 | I10: =Resumo!G10 -> JUL/2025 - CONSULT. DNIT
A11: ITEM | B11: REFERÊNCIA | D11: DESCRIÇÃO | E11: UNID. | F11: QUANT. | G11: CUSTO UNITÁRIO | H11: PREÇO UNITÁRIO | I11: PREÇO TOTAL
B12: FONTE | C12: CÓDIGO
A13: 1 | D13: ='1_Bico da Pedra'!D13 -> ETAPA 1 | I13: =SUM(I14,I16,I34,I37) -> 240836.51
A14: 1.1 | D14: Visita Técnica | I14: =SUM(I15:I15) -> 55532.37
A15: 1.1.1 | B15: PRÓPRIA | C15: CPU.09 | D15: =VLOOKUP(C15,CPU!B29:G75,2,0) -> Inspeção Visual da Estrutura (Multidisciplinar) e elaboração de relatório | E15: =(VLOOKUP(C15,CPU!$B$10:D$142,3,0)) -> un | F15: 1 | G15: =TRUNC((1-$H$10)*(SUMIFS(CPU!$G:$G,CPU!$A:$A,'3_Estreito'!$C15,CPU!$H:$H,"ss")+SUMIFS(CPU!$G:$G,CPU!$A:$A,'3_Estreito'!$C15,CPU!$H:$H,"mdo")+SUMIF('Comp SINAPI DF 09-2025 Onerado'!B:B,'3_Estreito'!C15,'Comp SINAPI DF 09-2025 Onerado'!E:E)+SUMIF('Ins SINAPI DF 09-2025 Onerado'!B:B,'3_Estreito'!C15,'Ins SINAPI DF 09-2025 Onerado'!F:F)),2) -> 45071.32 | H15: =TRUNC(G15*(1+$H$5),2) -> 55532.37 | I15: =TRUNC(F15*H15,2) -> 55532.37
A16: 1.2 | D16: ='2_Cova da Mandioca'!D16 -> Investigação Geológica e Geotécnica e Estrutural | I16: =SUM(I17:I33) -> 105133.13
A17: 1.2.1 | B17: SETOP | C17: CO-28389 | D17: Mobilização e desmobilização de equipamento de sondagem a percussão com Ensaio de Penetração Padrão (SPT) (custo variável), exclusive custo fixo | E17: km | F17: ='Memorial de cálculo'!S14*2 -> 474 | G17: =TRUNC((1-$H$10)*J17,2) -> 2.04 | H17: =TRUNC(G17*(1+$H$5),2) -> 2.51 | I17: =TRUNC(F17*H17,2) -> 1189.74 | J17: =VLOOKUP(C17,'OUTRAS BASES'!B:C,2,0) -> 2.04
A18: 1.2.2 | B18: SETOP | C18: CO-28388 | D18: Sondagem a percussão com Ensaio de Penetração Padrão (SPT), diâmetro 2.1/2", exclusive mobilização e desmobilização | E18: m | F18: =ROUNDUP('Pontos de Sondagem'!E32,0) -> 152 | G18: =TRUNC((1-$H$10)*J18,2) -> 79.09 | H18: =TRUNC(G18*(1+$H$5),2) -> 97.44 | I18: =TRUNC(F18*H18,2) -> 14810.88 | J18: =VLOOKUP(C18,'OUTRAS BASES'!B:C,2,0) -> 79.09
A19: 1.2.1 | B19: EMBASA | C19: 32.05.04 | D19: Mobilização e desmobilização de equipe e equipamentos para sondagem rotativa ou mista | E19: km | F19: =F17 -> 474 | G19: =TRUNC((1-$H$10)*J19,2) -> 5.16 | H19: 6.35 | I19: 3009.9 | J19: =VLOOKUP(C19,'OUTRAS BASES'!B:C,2,0) -> 5.16 | M19: c | N19: 1.5
A20: 1.2.2 | B20: SCO | C20: AD 05.15.0400 | D20: Sondagem rotativa vertical, em rocha sa, com coroa de diamante, diametro H (99mm), inclusive deslocamento e posicionamento em cada furo. | E20: m | F20: =ROUNDUP('Pontos de Sondagem'!G32,1) -> 15.2 | G20: =TRUNC((1-$H$10)*J20,2) -> 1422.4 | H20: =TRUNC(G20*(1+$H$5),2) -> 1752.53 | I20: =TRUNC(F20*H20,2) -> 26638.45 | J20: =VLOOKUP(C20,'OUTRAS BASES'!B:C,2,0) -> 1422.4 | M20: d | N20: =99/1000 -> 0.099
A21: 1.2.5 | B21: SICRO3 | C21: 3816196 | D21: Fechamento dos Furos - Injeção de nata de cimento | E21: m³ | F21: =ROUNDUP(N22,0) -> 2 | G21: =TRUNC((1-$H$10)*J21,2) -> 1012.78 | H21: 1247.84 | I21: 2495.68 | J21: =VLOOKUP(C21,'OUTRAS BASES'!B:C,2,0) -> 1012.78 | M21: A | N21: =PI()*(N20*N20)/4 -> 0.007697687399
A22: 1.2.6 | B22: PRÓPRIA | C22: CPU.45 | D22: =VLOOKUP(C22,CPU!$B$29:$G$4941,2,0) -> Mobilização e Desmobilização de Equipe de retirada de amostra deformada e indeformada | E22: =(VLOOKUP(C22,CPU!$B$10:D$4935,3,0)) -> km | F22: =F17 -> 474 | G22: =TRUNC((1-$H$10)*(SUMIFS(CPU!$G:$G,CPU!$A:$A,'3_Estreito'!$C22,CPU!$H:$H,"ss")+SUMIFS(CPU!$G:$G,CPU!$A:$A,'3_Estreito'!$C22,CPU!$H:$H,"mdo")+SUMIF('Comp SINAPI DF 09-2025 Onerado'!B:B,'3_Estreito'!C22,'Comp SINAPI DF 09-2025 Onerado'!E:E)+SUMIF('Ins SINAPI DF 09-2025 Onerado'!B:B,'3_Estreito'!C22,'Ins SINAPI DF 09-2025 Onerado'!F:F)),2) -> 2.04 | H22: 2.51 | I22: 1189.74 | M22: V | N22: =N21*(F18+F20)*N19 -> 1.93058
A23: 1.2.7 | B23: EMBASA | C23: 34.04.07 | D23: Retirada de amostra deformada | E23: un | F23: =F24 -> 3 | G23: =TRUNC((1-$H$10)*J23,2) -> 105.24 | H23: =TRUNC(G23*(1+$H$5),2) -> 129.66 | I23: 388.98 | J23: =VLOOKUP(C23,'OUTRAS BASES'!B:C,2,0) -> 105.24
A24: 1.2.8 | B24: SUDECAP | C24: 65.08.22 | D24: Retirada de amostra indeformada em blocos 30X30X30CM (NBR 9604:2016), Profundidade = 1 a 2 m | E24: =(VLOOKUP(C24,CPU!$B$10:D$142,3,0)) -> un | F24: 3 | G24: =TRUNC((1-$H$10)*J24,2) -> 1800 | H24: =TRUNC(G24*(1+$H$5),2) -> 2217.78 | I24: 6653.34 | J24: =VLOOKUP(C24,'OUTRAS BASES'!B:C,2,0) -> 1800
A25: 1.2.9 | B25: PRÓPRIA | C25: CPU.23 | D25: =VLOOKUP(C25,CPU!$B$29:$G$235,2,0) -> Reaterro com compactação adequada dos pontos de coleta de amostra, Inclusive com fornecimento de solo | E25: =(VLOOKUP(C25,CPU!$B$10:D$4939,3,0)) -> m³ | F25: =ROUNDUP(1.5*1.5*1.5*F24,1) -> 10.2 | G25: =TRUNC((1-$H$10)*(SUMIFS(CPU!$G:$G,CPU!$A:$A,'3_Estreito'!$C25,CPU!$H:$H,"ss")+SUMIFS(CPU!$G:$G,CPU!$A:$A,'3_Estreito'!$C25,CPU!$H:$H,"mdo")+SUMIF('Comp SINAPI DF 09-2025 Onerado'!B:B,'3_Estreito'!C25,'Comp SINAPI DF 09-2025 Onerado'!E:E)+SUMIF('Ins SINAPI DF 09-2025 Onerado'!B:B,'3_Estreito'!C25,'Ins SINAPI DF 09-2025 Onerado'!F:F)),2) -> 79.02 | H25: =TRUNC(G25*(1+$H$5),2) -> 97.36 | I25: =TRUNC(F25*H25,2) -> 993.07
A26: 1.2.10 | B26: SETOP | C26: CO-6334 | D26: Granulometria por peneiramento e sedimentação | E26: =(VLOOKUP(C26,CPU!$B$10:D$142,3,0)) -> un | F26: 3 | G26: =TRUNC((1-$H$10)*J26,2) -> 247.24 | H26: 304.62 | I26: =TRUNC(F26*H26,2) -> 913.86 | J26: =VLOOKUP(C26,'OUTRAS BASES'!B:C,2,0) -> 247.24
A27: 1.2.11 | B27: SUDECAP | C27: 67.01.30 | D27: Compressão Triaxial Lento Saturado (CD) mínimo 3 corpos de prova | E27: =(VLOOKUP(C27,CPU!$B$10:D$142,3,0)) -> un | F27: 9 | G27: =TRUNC((1-$H$10)*J27,2) -> 1140.54 | H27: 1405.25 | I27: 12647.25 | J27: =VLOOKUP(C27,'OUTRAS BASES'!B:C,2,0) -> 1140.54
A28: 1.2.12 | B28: SUDECAP | C28: 67.01.28 | D28: Compressão Triaxial rápido pre-adensado saturado (R-SAT/CIU-SAT) c/ medidas pressão neutra mínimo 3 corpos de prova | E28: =(VLOOKUP(C28,CPU!$B$10:D$142,3,0)) -> un | F28: 3 | G28: =TRUNC((1-$H$10)*J28,2) -> 5250 | H28: 6468.52 | I28: =TRUNC(F28*H28,2) -> 19405.56 | J28: =VLOOKUP(C28,'OUTRAS BASES'!B:C,2,0) -> 5250
A29: 1.2.13 | B29: SCO | C29: AD 04.05.0300 | D29: Ensaio para determinacao, em laboratorio, do Limite de Plasticidade de amostra de solo fino, de acordo com as recomendacoes da NBR7180 e da NBR6457.(desonerado) | E29: =(VLOOKUP(C29,CPU!$B$10:D$142,3,0)) -> un | F29: =F28 -> 3 | G29: =TRUNC((1-$H$10)*J29,2) -> 161.92 | H29: =TRUNC(G29*(1+$H$5),2) -> 199.5 | I29: =TRUNC(F29*H29,2) -> 598.5 | J29: =VLOOKUP(C29,'OUTRAS BASES'!B:C,2,0) -> 161.92
A30: 1.2.14 | B30: SCO | C30: AD 04.05.0250 | D30: Ensaio para determinacao, em laboratorio, do Limite de Liquidez de amostra de solo fino, de acordo com as recomendacoes da NBR7180 e da NBR6457.(desonerado) | E30: =(VLOOKUP(C30,CPU!$B$10:D$142,3,0)) -> um | F30: =F28 -> 3 | G30: =TRUNC((1-$H$10)*J30,2) -> 161.92 | H30: =TRUNC(G30*(1+$H$5),2) -> 199.5 | I30: =TRUNC(F30*H30,2) -> 598.5 | J30: =VLOOKUP(C30,'OUTRAS BASES'!B:C,2,0) -> 161.92
A31: 1.2.15 | B31: SETOP | C31: CO-6358 | D31: Determinação do coeficiente de permeabilidade de solos argilosos à carga variável | E31: =(VLOOKUP(C31,CPU!$B$10:D$142,3,0)) -> un | F31: 9 | G31: 589.03 | H31: =TRUNC(G31*(1+$H$5),2) -> 725.74 | I31: 6531.66 | J31: =VLOOKUP(C31,'OUTRAS BASES'!B:C,2,0) -> 589.03
A32: 1.2.16 | B32: PRÓPRIA | C32: CPU.04 | D32: =VLOOKUP(C32,CPU!$B$29:$G$235,2,0) -> Avaliação da espessura de carbonatação, por ponto, em estruturas de concreto armado ou protendido, através de aspersão de solução de fenolftaleína, inclusive coleta da amostra | E32: =(VLOOKUP(C32,CPU!$B$10:D$142,3,0)) -> un | F32: 4 | G32: =TRUNC((1-$H$10)*(SUMIFS(CPU!$G:$G,CPU!$A:$A,'3_Estreito'!$C32,CPU!$H:$H,"ss")+SUMIFS(CPU!$G:$G,CPU!$A:$A,'3_Estreito'!$C32,CPU!$H:$H,"mdo")+SUMIF('Comp SINAPI DF 09-2025 Onerado'!B:B,'3_Estreito'!C32,'Comp SINAPI DF 09-2025 Onerado'!E:E)+SUMIF('Ins SINAPI DF 09-2025 Onerado'!B:B,'3_Estreito'!C32,'Ins SINAPI DF 09-2025 Onerado'!F:F)),2) -> 470.15 | H32: =TRUNC(G32*(1+$H$5),2) -> 579.27 | I32: 2317.08
A33: 1.2.17 | B33: PRÓPRIA | C33: CPU.05 | D33: =VLOOKUP(C33,CPU!$B$29:$G$235,2,0) -> Ensaio de esclerometria em 10 pontos com 16 tiros por ponto | E33: =(VLOOKUP(C33,CPU!$B$10:D$142,3,0)) -> un | F33: 2 | G33: =TRUNC((1-$H$10)*(SUMIFS(CPU!$G:$G,CPU!$A:$A,'3_Estreito'!$C33,CPU!$H:$H,"ss")+SUMIFS(CPU!$G:$G,CPU!$A:$A,'3_Estreito'!$C33,CPU!$H:$H,"mdo")+SUMIF('Comp SINAPI DF 09-2025 Onerado'!B:B,'3_Estreito'!C33,'Comp SINAPI DF 09-2025 Onerado'!E:E)+SUMIF('Ins SINAPI DF 09-2025 Onerado'!B:B,'3_Estreito'!C33,'Ins SINAPI DF 09-2025 Onerado'!F:F)),2) -> 1927.99 | H33: =TRUNC(G33*(1+$H$5),2) -> 2375.47 | I33: 4750.94
A34: 1.3 | D34: Levantamento Topográfico | I34: =SUM(I35:I36) -> 65074.81
A35: 1.3.1 | B35: PRÓPRIA | C35: CPU.28 | D35: =VLOOKUP(C35,CPU!B29:G408,2,0) -> Mobilização e Desmobilização de Equipe de Levantamento topográfico | E35: =(VLOOKUP(C35,CPU!$B$10:D$19919,3,0)) -> un | F35: 1 | G35: =TRUNC((1-$H$10)*(SUMIFS(CPU!$G:$G,CPU!$A:$A,'3_Estreito'!$C35,CPU!$H:$H,"ss")+SUMIFS(CPU!$G:$G,CPU!$A:$A,'3_Estreito'!$C35,CPU!$H:$H,"mdo")+SUMIF('Comp SINAPI DF 09-2025 Onerado'!B:B,'3_Estreito'!C35,'Comp SINAPI DF 09-2025 Onerado'!E:E)+SUMIF('Ins SINAPI DF 09-2025 Onerado'!B:B,'3_Estreito'!C35,'Ins SINAPI DF 09-2025 Onerado'!F:F)),2) -> 7747.32 | H35: =TRUNC(G35*(1+$H$5),2) -> 9545.47 | I35: =TRUNC(F35*H35,2) -> 9545.47
A36: 1.3.2 | B36: SETOP | C36: CO-27369 | D36: Levantamento planialtimétrico e cadastral - terreno maior que 50.001 m² | E36: m² | F36: ='Memorial de cálculo'!S20 -> 129138 | G36: =TRUNC((1-$H$10)*J36,2) -> 0.35 | H36: =TRUNC(G36*(1+$H$5),2) -> 0.43 | I36: =TRUNC(F36*H36,2) -> 55529.34 | J36: =VLOOKUP(C36,'OUTRAS BASES'!B:C,2,0) -> 0.35
A37: 1.4 | D37: Levantamento Fotogramétrico | I37: =SUM(I38:I39) -> 15096.2
A38: 1.4.1 | B38: PRÓPRIA | C38: CPU.31 | D38: =VLOOKUP(C38,CPU!B29:G4916,2,0) -> Mobilização e Desmobilização de Equipe e Equipamentos de Levantamento Fotogramétrico | E38: =(VLOOKUP(C38,CPU!$B$10:D$210,3,0)) -> km | F38: =F17 -> 474 | G38: =TRUNC((1-$H$10)*J38,2) -> 7.74 | H38: =TRUNC(G38*(1+$H$5),2) -> 9.53 | I38: =TRUNC(F38*H38,2) -> 4517.22 | J38: 7.74
A39: 1.4.2 | B39: EMBASA | C39: 31.90.13 | D39: Levant. Fotogrametrico c/ VANT (drone) áreas até 100 ha, incl. Ortofotos, GSD<=3, acurácia horiz. Min.3cm e vert. Min. 6cm, aferidos c/ pontos de controle distancia min. De 650m entre eles, exclusivetransporte de equipe e equipamentos | E39: un | F39: 1 | G39: =TRUNC((1-$H$10)*J39,2) -> 8586.14 | H39: =TRUNC(G39*(1+$H$5),2) -> 10578.98 | I39: =TRUNC(F39*H39,2) -> 10578.98 | J39: =VLOOKUP(C39,'OUTRAS BASES'!B:C,2,0) -> 8586.14
A40: 2 | D40: ETAPA 2 | I40: =SUM(I41) -> 145258.84
A41: 2.1 | D41: ESTUDOS | I41: =SUM(I42:I48) -> 145258.84
A42: 2.1.1 | B42: PRÓPRIA | C42: CPU.11 | D42: =VLOOKUP(C42,CPU!$B$29:$G$239,2,0) -> Estudo Geológico-geotécnico | E42: =(VLOOKUP(C42,CPU!$B$10:D$142,3,0)) -> un | F42: 1 | G42: =TRUNC((1-$H$10)*(SUMIFS(CPU!$G:$G,CPU!$A:$A,'3_Estreito'!$C42,CPU!$H:$H,"ss")+SUMIFS(CPU!$G:$G,CPU!$A:$A,'3_Estreito'!$C42,CPU!$H:$H,"mdo")+SUMIF('Comp SINAPI DF 09-2025 Onerado'!B:B,'3_Estreito'!C42,'Comp SINAPI DF 09-2025 Onerado'!E:E)+SUMIF('Ins SINAPI DF 09-2025 Onerado'!B:B,'3_Estreito'!C42,'Ins SINAPI DF 09-2025 Onerado'!F:F)),2) -> 14328.22 | H42: =TRUNC(G42*(1+$H$5),2) -> 17653.79 | I42: =TRUNC(F42*H42,2) -> 17653.79
A43: 2.1.2 | B43: PRÓPRIA | C43: CPU.12 | D43: =VLOOKUP(C43,CPU!$B$29:$G$239,2,0) -> Relatório Fotogramétricos e Tratamento de Dados | E43: =(VLOOKUP(C43,CPU!$B$10:D$142,3,0)) -> un | F43: 1 | G43: =TRUNC((1-$H$10)*(SUMIFS(CPU!$G:$G,CPU!$A:$A,'3_Estreito'!$C43,CPU!$H:$H,"ss")+SUMIFS(CPU!$G:$G,CPU!$A:$A,'3_Estreito'!$C43,CPU!$H:$H,"mdo")+SUMIF('Comp SINAPI DF 09-2025 Onerado'!B:B,'3_Estreito'!C43,'Comp SINAPI DF 09-2025 Onerado'!E:E)+SUMIF('Ins SINAPI DF 09-2025 Onerado'!B:B,'3_Estreito'!C43,'Ins SINAPI DF 09-2025 Onerado'!F:F)),2) -> 8785.99 | H43: =TRUNC(G43*(1+$H$5),2) -> 10825.21 | I43: =TRUNC(F43*H43,2) -> 10825.21
A44: 2.1.3 | B44: PRÓPRIA | C44: CPU.13 | D44: =VLOOKUP(C44,CPU!$B$29:$G$239,2,0) -> Estudo de Ruputura e Mapas de Inundação | E44: =(VLOOKUP(C44,CPU!$B$10:D$142,3,0)) -> un | F44: 1 | G44: =TRUNC((1-$H$10)*(SUMIFS(CPU!$G:$G,CPU!$A:$A,'3_Estreito'!$C44,CPU!$H:$H,"ss")+SUMIFS(CPU!$G:$G,CPU!$A:$A,'3_Estreito'!$C44,CPU!$H:$H,"mdo")+SUMIF('Comp SINAPI DF 09-2025 Onerado'!B:B,'3_Estreito'!C44,'Comp SINAPI DF 09-2025 Onerado'!E:E)+SUMIF('Ins SINAPI DF 09-2025 Onerado'!B:B,'3_Estreito'!C44,'Ins SINAPI DF 09-2025 Onerado'!F:F)),2) -> 38768.32 | H44: =TRUNC(G44*(1+$H$5),2) -> 47766.44 | I44: =TRUNC(F44*H44,2) -> 47766.44
A45: 2.1.4 | B45: PRÓPRIA | C45: CPU.14 | D45: =VLOOKUP(C45,CPU!$B$29:$G$4939,2,0) -> Estudo de Estabilidade e Percolação - Barragem de Terra | E45: =(VLOOKUP(C45,CPU!$B$10:D$49945,3,0)) -> un | F45: 1 | G45: =TRUNC((1-$H$10)*(SUMIFS(CPU!$G:$G,CPU!$A:$A,'3_Estreito'!$C45,CPU!$H:$H,"ss")+SUMIFS(CPU!$G:$G,CPU!$A:$A,'3_Estreito'!$C45,CPU!$H:$H,"mdo")+SUMIF('Comp SINAPI DF 09-2025 Onerado'!B:B,'3_Estreito'!C45,'Comp SINAPI DF 09-2025 Onerado'!E:E)+SUMIF('Ins SINAPI DF 09-2025 Onerado'!B:B,'3_Estreito'!C45,'Ins SINAPI DF 09-2025 Onerado'!F:F)),2) -> 35476.72 | H45: 43710.86 | I45: =TRUNC(F45*H45,2) -> 43710.86
A46: 2.1.5 | B46: PRÓPRIA | C46: CPU.33 | D46: =VLOOKUP(C46,CPU!B29:G4939,2,0) -> Relatório de Avaliação de Estruturas de Concreto | E46: =(VLOOKUP(C46,CPU!$B$10:D$4932,3,0)) -> un | F46: 1 | G46: =TRUNC((1-$H$10)*(SUMIFS(CPU!$G:$G,CPU!$A:$A,'3_Estreito'!$C46,CPU!$H:$H,"ss")+SUMIFS(CPU!$G:$G,CPU!$A:$A,'3_Estreito'!$C46,CPU!$H:$H,"mdo")+SUMIF('Comp SINAPI DF 09-2025 Onerado'!B:B,'3_Estreito'!C46,'Comp SINAPI DF 09-2025 Onerado'!E:E)+SUMIF('Ins SINAPI DF 09-2025 Onerado'!B:B,'3_Estreito'!C46,'Ins SINAPI DF 09-2025 Onerado'!F:F)),2) -> 6010.8 | H46: 7405.9 | I46: =TRUNC(F46*H46,2) -> 7405.9
A47: 2.1.6 | B47: PRÓPRIA | C47: CPU.40 | D47: =VLOOKUP(C47,CPU!B29:G4940,2,0) -> Relatório Topográfico e Tratamento de Dados | E47: =(VLOOKUP(C47,CPU!$B$10:D$4932,3,0)) -> un | F47: 1 | G47: =TRUNC((1-$H$10)*(SUMIFS(CPU!$G:$G,CPU!$A:$A,'3_Estreito'!$C47,CPU!$H:$H,"ss")+SUMIFS(CPU!$G:$G,CPU!$A:$A,'3_Estreito'!$C47,CPU!$H:$H,"mdo")+SUMIF('Comp SINAPI DF 09-2025 Onerado'!B:B,'3_Estreito'!C47,'Comp SINAPI DF 09-2025 Onerado'!E:E)+SUMIF('Ins SINAPI DF 09-2025 Onerado'!B:B,'3_Estreito'!C47,'Ins SINAPI DF 09-2025 Onerado'!F:F)),2) -> 8514.52 | H47: 10490.74 | I47: =TRUNC(F47*H47,2) -> 10490.74
A48: 2.1.7 | B48: PRÓPRIA | C48: CPU.42 | D48: =VLOOKUP(C48,CPU!B29:G4940,2,0) -> Relatório de Investigação Geológica/Geotécnica | E48: =(VLOOKUP(C48,CPU!$B$10:D$4932,3,0)) -> un | F48: 1 | G48: =TRUNC((1-$H$10)*(SUMIFS(CPU!$G:$G,CPU!$A:$A,'3_Estreito'!$C48,CPU!$H:$H,"ss")+SUMIFS(CPU!$G:$G,CPU!$A:$A,'3_Estreito'!$C48,CPU!$H:$H,"mdo")+SUMIF('Comp SINAPI DF 09-2025 Onerado'!B:B,'3_Estreito'!C48,'Comp SINAPI DF 09-2025 Onerado'!E:E)+SUMIF('Ins SINAPI DF 09-2025 Onerado'!B:B,'3_Estreito'!C48,'Ins SINAPI DF 09-2025 Onerado'!F:F)),2) -> 6010.8 | H48: 7405.9 | I48: =TRUNC(F48*H48,2) -> 7405.9
A49: 3 | D49: ETAPA 3 | I49: =SUM(I50,I53,I61) -> 372432.11
A50: 3.1 | D50: PROJETO DE INSTRUMENTAÇÃO | I50: =SUM(I51:I52) -> 91058.79
A51: 3.1.1 | B51: PRÓPRIA | C51: CPU.18 | D51: =VLOOKUP(C51,CPU!B49:G153,2,0) -> Projeto de Instrumentação | E51: =(VLOOKUP(C51,CPU!$B$10:D$142,3,0)) -> un | F51: 1 | G51: =TRUNC((1-$H$10)*(SUMIFS(CPU!$G:$G,CPU!$A:$A,'3_Estreito'!$C51,CPU!$H:$H,"ss")+SUMIFS(CPU!$G:$G,CPU!$A:$A,'3_Estreito'!$C51,CPU!$H:$H,"mdo")+SUMIF('Comp SINAPI DF 09-2025 Onerado'!B:B,'3_Estreito'!C51,'Comp SINAPI DF 09-2025 Onerado'!E:E)+SUMIF('Ins SINAPI DF 09-2025 Onerado'!B:B,'3_Estreito'!C51,'Ins SINAPI DF 09-2025 Onerado'!F:F)),2) -> 29283.76 | H51: =TRUNC(G51*(1+$H$5),2) -> 36080.52 | I51: =TRUNC(F51*H51,2) -> 36080.52
A52: 3.1.2 | B52: PRÓPRIA | C52: CPU.20 | D52: =VLOOKUP(C52,CPU!B49:G158,2,0) -> Projeto Geométrico (AS IS) | E52: =(VLOOKUP(C52,CPU!$B$10:D$142,3,0)) -> un | F52: 1 | G52: =TRUNC((1-$H$10)*(SUMIFS(CPU!$G:$G,CPU!$A:$A,'3_Estreito'!$C52,CPU!$H:$H,"ss")+SUMIFS(CPU!$G:$G,CPU!$A:$A,'3_Estreito'!$C52,CPU!$H:$H,"mdo")+SUMIF('Comp SINAPI DF 09-2025 Onerado'!B:B,'3_Estreito'!C52,'Comp SINAPI DF 09-2025 Onerado'!E:E)+SUMIF('Ins SINAPI DF 09-2025 Onerado'!B:B,'3_Estreito'!C52,'Ins SINAPI DF 09-2025 Onerado'!F:F)),2) -> 44621.6 | H52: =TRUNC(G52*(1+$H$5),2) -> 54978.27 | I52: =TRUNC(F52*H52,2) -> 54978.27
A53: 3.2 | D53: PLANO DE SEGURANÇA DE BARRAGENS | I53: =SUM(I54:I60) -> 181035.5
A54: 3.2.1 | B54: PRÓPRIA | C54: CPU.34 | D54: =VLOOKUP(C54,CPU!B46:G49939,2,0) -> Volume I - Informações Gerais | E54: =(VLOOKUP(C54,CPU!$B$10:D$4939,3,0)) -> un | F54: 1 | G54: =TRUNC((1-$H$10)*(SUMIFS(CPU!$G:$G,CPU!$A:$A,'3_Estreito'!$C54,CPU!$H:$H,"ss")+SUMIFS(CPU!$G:$G,CPU!$A:$A,'3_Estreito'!$C54,CPU!$H:$H,"mdo")+SUMIF('Comp SINAPI DF 09-2025 Onerado'!B:B,'3_Estreito'!C54,'Comp SINAPI DF 09-2025 Onerado'!E:E)+SUMIF('Ins SINAPI DF 09-2025 Onerado'!B:B,'3_Estreito'!C54,'Ins SINAPI DF 09-2025 Onerado'!F:F)),2) -> 15330.6 | H54: =TRUNC(G54*(1+$H$5),2) -> 18888.83 | I54: =TRUNC(F54*H54,2) -> 18888.83
A55: 3.2.2 | B55: PRÓPRIA | C55: CPU.35 | D55: =VLOOKUP(C55,CPU!B46:G49940,2,0) -> Volume II - Documentação Técnica | E55: =(VLOOKUP(C55,CPU!$B$10:D$4939,3,0)) -> un | F55: 1 | G55: =TRUNC((1-$H$10)*(SUMIFS(CPU!$G:$G,CPU!$A:$A,'3_Estreito'!$C55,CPU!$H:$H,"ss")+SUMIFS(CPU!$G:$G,CPU!$A:$A,'3_Estreito'!$C55,CPU!$H:$H,"mdo")+SUMIF('Comp SINAPI DF 09-2025 Onerado'!B:B,'3_Estreito'!C55,'Comp SINAPI DF 09-2025 Onerado'!E:E)+SUMIF('Ins SINAPI DF 09-2025 Onerado'!B:B,'3_Estreito'!C55,'Ins SINAPI DF 09-2025 Onerado'!F:F)),2) -> 15751.56 | H55: 19407.49 | I55: 19407.49
A56: 3.2.3 | B56: PRÓPRIA | C56: CPU.36 | D56: =VLOOKUP(C56,CPU!B46:G49941,2,0) -> Volume III - Planos e Procedimentos | E56: =(VLOOKUP(C56,CPU!$B$10:D$4939,3,0)) -> un | F56: 1 | G56: =TRUNC((1-$H$10)*(SUMIFS(CPU!$G:$G,CPU!$A:$A,'3_Estreito'!$C56,CPU!$H:$H,"ss")+SUMIFS(CPU!$G:$G,CPU!$A:$A,'3_Estreito'!$C56,CPU!$H:$H,"mdo")+SUMIF('Comp SINAPI DF 09-2025 Onerado'!B:B,'3_Estreito'!C56,'Comp SINAPI DF 09-2025 Onerado'!E:E)+SUMIF('Ins SINAPI DF 09-2025 Onerado'!B:B,'3_Estreito'!C56,'Ins SINAPI DF 09-2025 Onerado'!F:F)),2) -> 15751.56 | H56: 19407.49 | I56: 19407.49
A57: 3.2.4 | B57: PRÓPRIA | C57: CPU.37 | D57: =VLOOKUP(C57,CPU!B46:G49942,2,0) -> Volume IV - Registros e Controles | E57: =(VLOOKUP(C57,CPU!$B$10:D$4939,3,0)) -> un | F57: 1 | G57: =TRUNC((1-$H$10)*(SUMIFS(CPU!$G:$G,CPU!$A:$A,'3_Estreito'!$C57,CPU!$H:$H,"ss")+SUMIFS(CPU!$G:$G,CPU!$A:$A,'3_Estreito'!$C57,CPU!$H:$H,"mdo")+SUMIF('Comp SINAPI DF 09-2025 Onerado'!B:B,'3_Estreito'!C57,'Comp SINAPI DF 09-2025 Onerado'!E:E)+SUMIF('Ins SINAPI DF 09-2025 Onerado'!B:B,'3_Estreito'!C57,'Ins SINAPI DF 09-2025 Onerado'!F:F)),2) -> 15751.56 | H57: 19407.49 | I57: 19407.49
A58: 3.2.5 | B58: PRÓPRIA | C58: CPU.38 | D58: =VLOOKUP(C58,CPU!B48:G49943,2,0) -> Volume V - Revisão Periódica de Segurança de Barragem | E58: =(VLOOKUP(C58,CPU!$B$10:D$4939,3,0)) -> un | F58: 1 | G58: =TRUNC((1-$H$10)*(SUMIFS(CPU!$G:$G,CPU!$A:$A,'3_Estreito'!$C58,CPU!$H:$H,"ss")+SUMIFS(CPU!$G:$G,CPU!$A:$A,'3_Estreito'!$C58,CPU!$H:$H,"mdo")+SUMIF('Comp SINAPI DF 09-2025 Onerado'!B:B,'3_Estreito'!C58,'Comp SINAPI DF 09-2025 Onerado'!E:E)+SUMIF('Ins SINAPI DF 09-2025 Onerado'!B:B,'3_Estreito'!C58,'Ins SINAPI DF 09-2025 Onerado'!F:F)),2) -> 27410.88 | H58: =TRUNC(G58*(1+$H$5),2) -> 33772.94 | I58: =TRUNC(F58*H58,2) -> 33772.94
A59: 3.2.6 | B59: PRÓPRIA | C59: CPU.39 | D59: =VLOOKUP(C59,CPU!B49:G49944,2,0) -> Volume V - A - Resumo Executivo | E59: =(VLOOKUP(C59,CPU!$B$10:D$4896,3,0)) -> un | F59: 1 | G59: =TRUNC((1-$H$10)*(SUMIFS(CPU!$G:$G,CPU!$A:$A,'3_Estreito'!$C59,CPU!$H:$H,"ss")+SUMIFS(CPU!$G:$G,CPU!$A:$A,'3_Estreito'!$C59,CPU!$H:$H,"mdo")+SUMIF('Comp SINAPI DF 09-2025 Onerado'!B:B,'3_Estreito'!C59,'Comp SINAPI DF 09-2025 Onerado'!E:E)+SUMIF('Ins SINAPI DF 09-2025 Onerado'!B:B,'3_Estreito'!C59,'Ins SINAPI DF 09-2025 Onerado'!F:F)),2) -> 24473.94 | H59: =TRUNC(G59*(1+$H$5),2) -> 30154.34 | I59: =TRUNC(F59*H59,2) -> 30154.34
A60: 3.2.7 | B60: PRÓPRIA | C60: CPU.41 | D60: =VLOOKUP(C60,CPU!B46:G4914,2,0) -> Volume VI - Plano de Ação de Emergência | E60: =(VLOOKUP(C60,CPU!$B$10:D$4896,3,0)) -> un | F60: 1 | G60: =TRUNC((1-$H$10)*(SUMIFS(CPU!$G:$G,CPU!$A:$A,'3_Estreito'!$C60,CPU!$H:$H,"ss")+SUMIFS(CPU!$G:$G,CPU!$A:$A,'3_Estreito'!$C60,CPU!$H:$H,"mdo")+SUMIF('Comp SINAPI DF 09-2025 Onerado'!B:B,'3_Estreito'!C60,'Comp SINAPI DF 09-2025 Onerado'!E:E)+SUMIF('Ins SINAPI DF 09-2025 Onerado'!B:B,'3_Estreito'!C60,'Ins SINAPI DF 09-2025 Onerado'!F:F)),2) -> 32462.4 | H60: =TRUNC(G60*(1+$H$5),2) -> 39996.92 | I60: =TRUNC(F60*H60,2) -> 39996.92
A61: 3.3 | D61: PLANO DE AÇÃO DE EMERGÊNCIA | I61: =SUM(I62:I64) -> 100337.82
A62: 3.3.1 | B62: PRÓPRIA | C62: CPU.24 | D62: =VLOOKUP(C62,CPU!B46:G4912,2,0) -> Projeto de sinalização | E62: =(VLOOKUP(C62,CPU!$B$10:D$4896,3,0)) -> un | F62: 1 | G62: =TRUNC((1-$H$10)*(SUMIFS(CPU!$G:$G,CPU!$A:$A,'3_Estreito'!$C62,CPU!$H:$H,"ss")+SUMIFS(CPU!$G:$G,CPU!$A:$A,'3_Estreito'!$C62,CPU!$H:$H,"mdo")+SUMIF('Comp SINAPI DF 09-2025 Onerado'!B:B,'3_Estreito'!C62,'Comp SINAPI DF 09-2025 Onerado'!E:E)+SUMIF('Ins SINAPI DF 09-2025 Onerado'!B:B,'3_Estreito'!C62,'Ins SINAPI DF 09-2025 Onerado'!F:F)),2) -> 27232.12 | H62: =TRUNC(G62*(1+$H$5),2) -> 33552.69 | I62: =TRUNC(F62*H62,2) -> 33552.69
A63: 3.3.2 | B63: PRÓPRIA | C63: CPU.25 | D63: =VLOOKUP(C63,CPU!B46:G4913,2,0) -> Projeto de rotas de fuga | E63: =(VLOOKUP(C63,CPU!$B$10:D$4896,3,0)) -> un | F63: 1 | G63: =TRUNC((1-$H$10)*(SUMIFS(CPU!$G:$G,CPU!$A:$A,'3_Estreito'!$C63,CPU!$H:$H,"ss")+SUMIFS(CPU!$G:$G,CPU!$A:$A,'3_Estreito'!$C63,CPU!$H:$H,"mdo")+SUMIF('Comp SINAPI DF 09-2025 Onerado'!B:B,'3_Estreito'!C63,'Comp SINAPI DF 09-2025 Onerado'!E:E)+SUMIF('Ins SINAPI DF 09-2025 Onerado'!B:B,'3_Estreito'!C63,'Ins SINAPI DF 09-2025 Onerado'!F:F)),2) -> 30599.8 | H63: 37702.01 | I63: =TRUNC(F63*H63,2) -> 37702.01
A64: 3.3.3 | B64: PRÓPRIA | C64: CPU.32 | D64: =VLOOKUP(C64,CPU!B48:G4915,2,0) -> Projeto de sistema sonoro | E64: =(VLOOKUP(C64,CPU!$B$10:D$4896,3,0)) -> un | F64: 1 | G64: =TRUNC((1-$H$10)*(SUMIFS(CPU!$G:$G,CPU!$A:$A,'3_Estreito'!$C64,CPU!$H:$H,"ss")+SUMIFS(CPU!$G:$G,CPU!$A:$A,'3_Estreito'!$C64,CPU!$H:$H,"mdo")+SUMIF('Comp SINAPI DF 09-2025 Onerado'!B:B,'3_Estreito'!C64,'Comp SINAPI DF 09-2025 Onerado'!E:E)+SUMIF('Ins SINAPI DF 09-2025 Onerado'!B:B,'3_Estreito'!C64,'Ins SINAPI DF 09-2025 Onerado'!F:F)),2) -> 23604.52 | H64: 29083.12 | I64: =TRUNC(F64*H64,2) -> 29083.12
D65: TOTAL (Custo): | I65: =TRUNC(SUMPRODUCT(F14:F64,G14:G64),2) -> 615776.66
D66: BDI e Encargos Sociais: | I66: =I67-I65 -> 142750.8
D67: TOTAL GERAL COM BDI: | I67: =SUM(I49,I40,I13) -> 758527.46 | P67: =TRUNC(SUMPRODUCT(F14:F64,H14:H64),2) -> 758527.46

Sheet 4_Zabumbao
A1: Ministério da Integração e do Desenvolvimento Regional
A2: Companhia de Desenvolvimento dos Vales do São Francisco e do Parnaíba
A4: PLANILHA ORÇAMENTÁRIA - ORÇAMENTO NÃO DESONERADO
A5: OBRA: | B5: =Resumo!B5 -> Elaboração de Plano de Segurança de Barragens | G5: BDI (serv.): | H5: ='BDI serv'!D23 -> 0.2321 | I5: Bancos de dados:
A6: LOCAL: | B6: Paramirim - BA | G6: BDI (forn.): | H6: ='BDI forn'!D23 -> 0 | I6: =Resumo!G6 -> SETEMBRO/25 - SINAPI
A7: DATA BASE: | B7: 2025-10-01 | E7: Encargos sociais - Horistas: | H7: ='Encargos Sociais DF'!E49 -> 1.1011 | I7: =Resumo!G7 -> SIURB INFRA JAN/2025
A8: PRAZO: | B8: =Resumo!B8 -> 300 dias | E8: Encargos sociais - Mensalista: | H8: ='Encargos Sociais DF'!F49 -> 0.7019 | I8: =Resumo!G8 -> JAN/25 E JUL/2025- SETOP
I9: ='1_Bico da Pedra'!I9 -> JUNHO/25 - EMBASA
B10: Zabumbão | G10: Desconto: | H10: 0 | I10: =Resumo!G10 -> JUL/2025 - CONSULT. DNIT
A11: ITEM | B11: REFERÊNCIA | D11: DESCRIÇÃO | E11: UNID. | F11: QUANT. | G11: CUSTO UNITÁRIO | H11: PREÇO UNITÁRIO | I11: PREÇO TOTAL
B12: FONTE | C12: CÓDIGO
A13: 1 | D13: ='1_Bico da Pedra'!D13 -> ETAPA 1 | I13: =SUM(I34,I16,I14,I37) -> 220608.03
A14: 1.1 | D14: Visita Técnica | I14: =SUM(I15:I15) -> 55532.37
A15: 1.1.1 | B15: PRÓPRIA | C15: CPU.09 | D15: =VLOOKUP(C15,CPU!B29:G75,2,0) -> Inspeção Visual da Estrutura (Multidisciplinar) e elaboração de relatório | E15: =(VLOOKUP(C15,CPU!$B$10:D$142,3,0)) -> un | F15: 1 | G15: =TRUNC((1-$H$10)*(SUMIFS(CPU!$G:$G,CPU!$A:$A,'4_Zabumbao'!$C15,CPU!$H:$H,"ss")+SUMIFS(CPU!$G:$G,CPU!$A:$A,'4_Zabumbao'!$C15,CPU!$H:$H,"mdo")+SUMIF('Comp SINAPI DF 09-2025 Onerado'!B:B,'4_Zabumbao'!C15,'Comp SINAPI DF 09-2025 Onerado'!E:E)+SUMIF('Ins SINAPI DF 09-2025 Onerado'!B:B,'4_Zabumbao'!C15,'Ins SINAPI DF 09-2025 Onerado'!F:F)),2) -> 45071.32 | H15: =TRUNC(G15*(1+$H$5),2) -> 55532.37 | I15: =TRUNC(F15*H15,2) -> 55532.37
A16: 1.2 | D16: ='3_Estreito'!D16 -> Investigação Geológica e Geotécnica e Estrutural | I16: =SUM(I17:I33) -> 120279.79
A17: 1.2.1 | B17: SETOP | C17: CO-28389 | D17: Mobilização e desmobilização de equipamento de sondagem a percussão com Ensaio de Penetração Padrão (SPT) (custo variável), exclusive custo fixo | E17: km | F17: ='Memorial de cálculo'!O14*2 -> 364 | G17: =TRUNC((1-$H$10)*J17,2) -> 2.04 | H17: =TRUNC(G17*(1+$H$5),2) -> 2.51 | I17: =TRUNC(F17*H17,2) -> 913.64 | J17: =VLOOKUP(C17,'OUTRAS BASES'!B:C,2,0) -> 2.04
A18: 1.2.2 | B18: SETOP | C18: CO-28388 | D18: Sondagem a percussão com Ensaio de Penetração Padrão (SPT), diâmetro 2.1/2", exclusive mobilização e desmobilização | E18: m | F18: ='Pontos de Sondagem'!E59 -> 207 | G18: =TRUNC((1-$H$10)*J18,2) -> 79.09 | H18: =TRUNC(G18*(1+$H$5),2) -> 97.44 | I18: =TRUNC(F18*H18,2) -> 20170.08 | J18: =VLOOKUP(C18,'OUTRAS BASES'!B:C,2,0) -> 79.09
A19: 1.2.3 | B19: EMBASA | C19: 32.05.04 | D19: Mobilização e desmobilização de equipe e equipamentos para sondagem rotativa ou mista | E19: km | F19: =F17 -> 364 | G19: =TRUNC((1-$H$10)*J19,2) -> 5.16 | H19: 6.35 | I19: 2311.4 | J19: =VLOOKUP(C19,'OUTRAS BASES'!B:C,2,0) -> 5.16 | M19: c | N19: 1.5
A20: 1.2.4 | B20: SCO | C20: AD 05.15.0400 | D20: Sondagem rotativa vertical, em rocha sa, com coroa de diamante, diametro H (99mm), inclusive deslocamento e posicionamento em cada furo. | E20: m | F20: =ROUNDUP('Pontos de Sondagem'!G59,0) -> 21 | G20: =TRUNC((1-$H$10)*J20,2) -> 1422.4 | H20: =TRUNC(G20*(1+$H$5),2) -> 1752.53 | I20: =TRUNC(F20*H20,2) -> 36803.13 | J20: =VLOOKUP(C20,'OUTRAS BASES'!B:C,2,0) -> 1422.4 | M20: d | N20: =99/1000 -> 0.099
A21: 1.2.5 | B21: SICRO3 | C21: 3816196 | D21: Fechamento dos Furos - Injeção de nata de cimento | E21: m³ | F21: =ROUNDUP(N24,1) -> 2.7 | G21: =TRUNC((1-$H$10)*J21,2) -> 1012.78 | H21: 1247.84 | I21: =TRUNC(F21*H21,2) -> 3369.16 | J21: =VLOOKUP(C21,'OUTRAS BASES'!B:C,2,0) -> 1012.78 | M21: A | N21: =PI()*(N20*N20)/4 -> 0.007697687399
A22: 1.2.6 | B22: PRÓPRIA | C22: CPU.45 | D22: =VLOOKUP(C22,CPU!$B$29:$G$4941,2,0) -> Mobilização e Desmobilização de Equipe de retirada de amostra deformada e indeformada | E22: =(VLOOKUP(C22,CPU!$B$10:D$4935,3,0)) -> km | F22: =F19 -> 364 | G22: =TRUNC((1-$H$10)*(SUMIFS(CPU!$G:$G,CPU!$A:$A,'4_Zabumbao'!$C22,CPU!$H:$H,"ss")+SUMIFS(CPU!$G:$G,CPU!$A:$A,'4_Zabumbao'!$C22,CPU!$H:$H,"mdo")+SUMIF('Comp SINAPI DF 09-2025 Onerado'!B:B,'4_Zabumbao'!C22,'Comp SINAPI DF 09-2025 Onerado'!E:E)+SUMIF('Ins SINAPI DF 09-2025 Onerado'!B:B,'4_Zabumbao'!C22,'Ins SINAPI DF 09-2025 Onerado'!F:F)),2) -> 2.04 | H22: 2.51 | I22: =TRUNC(F22*H22,2) -> 913.64 | M22: V | N22: =N21*(F18+F20)*N19 -> 2.632609091
A23: 1.2.7 | B23: EMBASA | C23: 34.04.07 | D23: Retirada de amostra deformada | E23: un | F23: 3 | G23: =TRUNC((1-$H$10)*J23,2) -> 105.24 | H23: =TRUNC(G23*(1+$H$5),2) -> 129.66 | I23: 388.98 | J23: =VLOOKUP(C23,'OUTRAS BASES'!B:C,2,0) -> 105.24
A24: 1.2.8 | B24: SUDECAP | C24: 65.08.22 | D24: Retirada de amostra indeformada em blocos 30X30X30CM (NBR 9604:2016), Profundidade = 1 a 2 m | E24: =(VLOOKUP(C24,CPU!$B$10:D$142,3,0)) -> un | F24: 3 | G24: =TRUNC((1-$H$10)*J24,2) -> 1800 | H24: 2217.78 | I24: =TRUNC(F24*H24,2) -> 6653.34 | J24: =VLOOKUP(C24,'OUTRAS BASES'!B:C,2,0) -> 1800 | M24: V | N24: =N21*(F18+F20)*N19 -> 2.632609091
A25: 1.2.9 | B25: PRÓPRIA | C25: CPU.23 | D25: =VLOOKUP(C25,CPU!$B$29:$G$235,2,0) -> Reaterro com compactação adequada dos pontos de coleta de amostra, Inclusive com fornecimento de solo | E25: =(VLOOKUP(C25,CPU!$B$10:D$4939,3,0)) -> m³ | F25: =ROUNDUP(1.5*1.5*1.5*F24,1) -> 10.2 | G25: =TRUNC((1-$H$10)*(SUMIFS(CPU!$G:$G,CPU!$A:$A,'4_Zabumbao'!$C25,CPU!$H:$H,"ss")+SUMIFS(CPU!$G:$G,CPU!$A:$A,'4_Zabumbao'!$C25,CPU!$H:$H,"mdo")+SUMIF('Comp SINAPI DF 09-2025 Onerado'!B:B,'4_Zabumbao'!C25,'Comp SINAPI DF 09-2025 Onerado'!E:E)+SUMIF('Ins SINAPI DF 09-2025 Onerado'!B:B,'4_Zabumbao'!C25,'Ins SINAPI DF 09-2025 Onerado'!F:F)),2) -> 79.02 | H25: =TRUNC(G25*(1+$H$5),2) -> 97.36 | I25: =TRUNC(F25*H25,2) -> 993.07
A26: 1.2.10 | B26: SETOP | C26: CO-6334 | D26: Granulometria por peneiramento e sedimentação | E26: =(VLOOKUP(C26,CPU!$B$10:D$142,3,0)) -> un | F26: 3 | G26: 247.24 | H26: 304.62 | I26: 913.86 | J26: =VLOOKUP(C26,'OUTRAS BASES'!B:C,2,0) -> 247.24
A27: 1.2.11 | B27: SUDECAP | C27: 67.01.30 | D27: Compressão Triaxial Lento Saturado (CD) mínimo 3 corpos de prova | E27: =(VLOOKUP(C27,CPU!$B$10:D$142,3,0)) -> un | F27: 9 | G27: 1140.54 | H27: 1405.25 | I27: 12647.25 | J27: =VLOOKUP(C27,'OUTRAS BASES'!B:C,2,0) -> 1140.54
A28: 1.2.12 | B28: SUDECAP | C28: 67.01.28 | D28: Compressão Triaxial rápido pre-adensado saturado (R-SAT/CIU-SAT) c/ medidas pressão neutra mínimo 3 corpos de prova | E28: =(VLOOKUP(C28,CPU!$B$10:D$142,3,0)) -> un | F28: 3 | G28: 5250 | H28: 6468.52 | I28: 19405.56 | J28: =VLOOKUP(C28,'OUTRAS BASES'!B:C,2,0) -> 5250
A29: 1.2.13 | B29: SCO | C29: AD 04.05.0300 | D29: Ensaio para determinacao, em laboratorio, do Limite de Plasticidade de amostra de solo fino, de acordo com as recomendacoes da NBR7180 e da NBR6457.(desonerado) | E29: =(VLOOKUP(C29,CPU!$B$10:D$142,3,0)) -> un | F29: =F28 -> 3 | G29: =TRUNC((1-$H$10)*J29,2) -> 161.92 | H29: =TRUNC(G29*(1+$H$5),2) -> 199.5 | I29: =TRUNC(F29*H29,2) -> 598.5 | J29: =VLOOKUP(C29,'OUTRAS BASES'!B:C,2,0) -> 161.92
A30: 1.2.14 | B30: SCO | C30: AD 04.05.0250 | D30: Ensaio para determinacao, em laboratorio, do Limite de Liquidez de amostra de solo fino, de acordo com as recomendacoes da NBR7180 e da NBR6457.(desonerado) | E30: =(VLOOKUP(C30,CPU!$B$10:D$142,3,0)) -> um | F30: =F28 -> 3 | G30: =TRUNC((1-$H$10)*J30,2) -> 161.92 | H30: =TRUNC(G30*(1+$H$5),2) -> 199.5 | I30: =TRUNC(F30*H30,2) -> 598.5 | J30: =VLOOKUP(C30,'OUTRAS BASES'!B:C,2,0) -> 161.92
A31: 1.2.15 | B31: SETOP | C31: CO-6358 | D31: Determinação do coeficiente de permeabilidade de solos argilosos à carga variável | E31: =(VLOOKUP(C31,CPU!$B$10:D$142,3,0)) -> un | F31: 9 | G31: 589.03 | H31: 725.74 | I31: 6531.66 | J31: =VLOOKUP(C31,'OUTRAS BASES'!B:C,2,0) -> 589.03
A32: 1.2.16 | B32: PRÓPRIA | C32: CPU.04 | D32: =VLOOKUP(C32,CPU!$B$29:$G$235,2,0) -> Avaliação da espessura de carbonatação, por ponto, em estruturas de concreto armado ou protendido, através de aspersão de solução de fenolftaleína, inclusive coleta da amostra | E32: =(VLOOKUP(C32,CPU!$B$10:D$142,3,0)) -> un | F32: 4 | G32: =TRUNC((1-$H$10)*(SUMIFS(CPU!$G:$G,CPU!$A:$A,'4_Zabumbao'!$C32,CPU!$H:$H,"ss")+SUMIFS(CPU!$G:$G,CPU!$A:$A,'4_Zabumbao'!$C32,CPU!$H:$H,"mdo")+SUMIF('Comp SINAPI DF 09-2025 Onerado'!B:B,'4_Zabumbao'!C32,'Comp SINAPI DF 09-2025 Onerado'!E:E)+SUMIF('Ins SINAPI DF 09-2025 Onerado'!B:B,'4_Zabumbao'!C32,'Ins SINAPI DF 09-2025 Onerado'!F:F)),2) -> 470.15 | H32: =TRUNC(G32*(1+$H$5),2) -> 579.27 | I32: 2317.08
A33: 1.2.17 | B33: PRÓPRIA | C33: CPU.05 | D33: =VLOOKUP(C33,CPU!$B$29:$G$235,2,0) -> Ensaio de esclerometria em 10 pontos com 16 tiros por ponto | E33: =(VLOOKUP(C33,CPU!$B$10:D$142,3,0)) -> un | F33: 2 | G33: =TRUNC((1-$H$10)*(SUMIFS(CPU!$G:$G,CPU!$A:$A,'4_Zabumbao'!$C33,CPU!$H:$H,"ss")+SUMIFS(CPU!$G:$G,CPU!$A:$A,'4_Zabumbao'!$C33,CPU!$H:$H,"mdo")+SUMIF('Comp SINAPI DF 09-2025 Onerado'!B:B,'4_Zabumbao'!C33,'Comp SINAPI DF 09-2025 Onerado'!E:E)+SUMIF('Ins SINAPI DF 09-2025 Onerado'!B:B,'4_Zabumbao'!C33,'Ins SINAPI DF 09-2025 Onerado'!F:F)),2) -> 1927.99 | H33: =TRUNC(G33*(1+$H$5),2) -> 2375.47 | I33: 4750.94
A34: 1.3 | D34: Levantamento Topográfico | I34: =SUM(I35:I36) -> 30747.97
A35: 1.3.1 | B35: PRÓPRIA | C35: CPU.28 | D35: =VLOOKUP(C35,CPU!B29:G410,2,0) -> Mobilização e Desmobilização de Equipe de Levantamento topográfico | E35: =(VLOOKUP(C35,CPU!$B$10:D$19919,3,0)) -> un | F35: 1 | G35: =TRUNC((1-$H$10)*(SUMIFS(CPU!$G:$G,CPU!$A:$A,'4_Zabumbao'!$C35,CPU!$H:$H,"ss")+SUMIFS(CPU!$G:$G,CPU!$A:$A,'4_Zabumbao'!$C35,CPU!$H:$H,"mdo")+SUMIF('Comp SINAPI DF 09-2025 Onerado'!B:B,'4_Zabumbao'!C35,'Comp SINAPI DF 09-2025 Onerado'!E:E)+SUMIF('Ins SINAPI DF 09-2025 Onerado'!B:B,'4_Zabumbao'!C35,'Ins SINAPI DF 09-2025 Onerado'!F:F)),2) -> 7747.32 | H35: =TRUNC(G35*(1+$H$5),2) -> 9545.47 | I35: =TRUNC(F35*H35,2) -> 9545.47
A36: 1.3.2 | B36: SETOP | C36: CO-27367 | D36: Levantamento planialtimétrico e cadastral terreno de 10.001 a 50.000 m² | E36: m² | F36: ='Memorial de cálculo'!O20 -> 38550 | G36: =TRUNC((1-$H$10)*J36,2) -> 0.45 | H36: =TRUNC(G36*(1+$H$5),2) -> 0.55 | I36: =TRUNC(F36*H36,2) -> 21202.5 | J36: =VLOOKUP(C36,'OUTRAS BASES'!B:C,2,0) -> 0.45
A37: 1.4 | D37: Levantamento Fotogramétrico | I37: =SUM(I38:I39) -> 14047.9
A38: 1.4.1 | B38: PRÓPRIA | C38: CPU.31 | D38: =VLOOKUP(C38,CPU!B29:G4916,2,0) -> Mobilização e Desmobilização de Equipe e Equipamentos de Levantamento Fotogramétrico | E38: =(VLOOKUP(C38,CPU!$B$10:D$210,3,0)) -> km | F38: =F17 -> 364 | G38: =TRUNC((1-$H$10)*J38,2) -> 7.74 | H38: =TRUNC(G38*(1+$H$5),2) -> 9.53 | I38: =TRUNC(F38*H38,2) -> 3468.92 | J38: 7.74
A39: 1.4.2 | B39: EMBASA | C39: 31.90.13 | D39: Levant. Fotogrametrico c/ VANT (drone) áreas até 100 ha, incl. Ortofotos, GSD<=3, acurácia horiz. Min.3cm e vert. Min. 6cm, aferidos c/ pontos de controle distancia min. De 650m entre eles, exclusivetransporte de equipe e equipamentos | E39: un | F39: 1 | G39: =TRUNC((1-$H$10)*J39,2) -> 8586.14 | H39: =TRUNC(G39*(1+$H$5),2) -> 10578.98 | I39: =TRUNC(F39*H39,2) -> 10578.98 | J39: =VLOOKUP(C39,'OUTRAS BASES'!B:C,2,0) -> 8586.14
A40: 2 | D40: ETAPA 2 | I40: =SUM(I41) -> 145258.84
A41: 2.1 | D41: ESTUDOS | I41: =SUM(I42:I48) -> 145258.84
A42: 2.1.1 | B42: PRÓPRIA | C42: CPU.11 | D42: =VLOOKUP(C42,CPU!$B$29:$G$159,2,0) -> Estudo Geológico-geotécnico | E42: =(VLOOKUP(C42,CPU!$B$10:D$159,3,0)) -> un | F42: 1 | G42: =TRUNC((1-$H$10)*(SUMIFS(CPU!$G:$G,CPU!$A:$A,'4_Zabumbao'!$C42,CPU!$H:$H,"ss")+SUMIFS(CPU!$G:$G,CPU!$A:$A,'4_Zabumbao'!$C42,CPU!$H:$H,"mdo")+SUMIF('Comp SINAPI DF 09-2025 Onerado'!B:B,'4_Zabumbao'!C42,'Comp SINAPI DF 09-2025 Onerado'!E:E)+SUMIF('Ins SINAPI DF 09-2025 Onerado'!B:B,'4_Zabumbao'!C42,'Ins SINAPI DF 09-2025 Onerado'!F:F)),2) -> 14328.22 | H42: =TRUNC(G42*(1+$H$5),2) -> 17653.79 | I42: =TRUNC(F42*H42,2) -> 17653.79
A43: 2.1.2 | B43: PRÓPRIA | C43: CPU.12 | D43: =VLOOKUP(C43,CPU!$B$29:$G$159,2,0) -> Relatório Fotogramétricos e Tratamento de Dados | E43: =(VLOOKUP(C43,CPU!$B$10:D$159,3,0)) -> un | F43: 1 | G43: =TRUNC((1-$H$10)*(SUMIFS(CPU!$G:$G,CPU!$A:$A,'4_Zabumbao'!$C43,CPU!$H:$H,"ss")+SUMIFS(CPU!$G:$G,CPU!$A:$A,'4_Zabumbao'!$C43,CPU!$H:$H,"mdo")+SUMIF('Comp SINAPI DF 09-2025 Onerado'!B:B,'4_Zabumbao'!C43,'Comp SINAPI DF 09-2025 Onerado'!E:E)+SUMIF('Ins SINAPI DF 09-2025 Onerado'!B:B,'4_Zabumbao'!C43,'Ins SINAPI DF 09-2025 Onerado'!F:F)),2) -> 8785.99 | H43: =TRUNC(G43*(1+$H$5),2) -> 10825.21 | I43: =TRUNC(F43*H43,2) -> 10825.21
A44: 2.1.3 | B44: PRÓPRIA | C44: CPU.13 | D44: =VLOOKUP(C44,CPU!$B$29:$G$159,2,0) -> Estudo de Ruputura e Mapas de Inundação | E44: =(VLOOKUP(C44,CPU!$B$10:D$159,3,0)) -> un | F44: 1 | G44: =TRUNC((1-$H$10)*(SUMIFS(CPU!$G:$G,CPU!$A:$A,'4_Zabumbao'!$C44,CPU!$H:$H,"ss")+SUMIFS(CPU!$G:$G,CPU!$A:$A,'4_Zabumbao'!$C44,CPU!$H:$H,"mdo")+SUMIF('Comp SINAPI DF 09-2025 Onerado'!B:B,'4_Zabumbao'!C44,'Comp SINAPI DF 09-2025 Onerado'!E:E)+SUMIF('Ins SINAPI DF 09-2025 Onerado'!B:B,'4_Zabumbao'!C44,'Ins SINAPI DF 09-2025 Onerado'!F:F)),2) -> 38768.32 | H44: =TRUNC(G44*(1+$H$5),2) -> 47766.44 | I44: =TRUNC(F44*H44,2) -> 47766.44
A45: 2.1.4 | B45: PRÓPRIA | C45: CPU.14 | D45: =VLOOKUP(C45,CPU!$B$29:$G$159,2,0) -> Estudo de Estabilidade e Percolação - Barragem de Terra | E45: =(VLOOKUP(C45,CPU!$B$10:D$159,3,0)) -> un | F45: 1 | G45: =TRUNC((1-$H$10)*(SUMIFS(CPU!$G:$G,CPU!$A:$A,'4_Zabumbao'!$C45,CPU!$H:$H,"ss")+SUMIFS(CPU!$G:$G,CPU!$A:$A,'4_Zabumbao'!$C45,CPU!$H:$H,"mdo")+SUMIF('Comp SINAPI DF 09-2025 Onerado'!B:B,'4_Zabumbao'!C45,'Comp SINAPI DF 09-2025 Onerado'!E:E)+SUMIF('Ins SINAPI DF 09-2025 Onerado'!B:B,'4_Zabumbao'!C45,'Ins SINAPI DF 09-2025 Onerado'!F:F)),2) -> 35476.72 | H45: =TRUNC(G45*(1+$H$5),2) -> 43710.86 | I45: =TRUNC(F45*H45,2) -> 43710.86
A46: 2.1.5 | B46: PRÓPRIA | C46: CPU.33 | D46: =VLOOKUP(C46,CPU!B29:G4939,2,0) -> Relatório de Avaliação de Estruturas de Concreto | E46: =(VLOOKUP(C46,CPU!$B$10:D$4932,3,0)) -> un | F46: 1 | G46: =TRUNC((1-$H$10)*(SUMIFS(CPU!$G:$G,CPU!$A:$A,'4_Zabumbao'!$C46,CPU!$H:$H,"ss")+SUMIFS(CPU!$G:$G,CPU!$A:$A,'4_Zabumbao'!$C46,CPU!$H:$H,"mdo")+SUMIF('Comp SINAPI DF 09-2025 Onerado'!B:B,'4_Zabumbao'!C46,'Comp SINAPI DF 09-2025 Onerado'!E:E)+SUMIF('Ins SINAPI DF 09-2025 Onerado'!B:B,'4_Zabumbao'!C46,'Ins SINAPI DF 09-2025 Onerado'!F:F)),2) -> 6010.8 | H46: =TRUNC(G46*(1+$H$5),2) -> 7405.9 | I46: =TRUNC(F46*H46,2) -> 7405.9
A47: 2.1.6 | B47: PRÓPRIA | C47: CPU.40 | D47: =VLOOKUP(C47,CPU!B29:G4940,2,0) -> Relatório Topográfico e Tratamento de Dados | E47: =(VLOOKUP(C47,CPU!$B$10:D$4932,3,0)) -> un | F47: 1 | G47: =TRUNC((1-$H$10)*(SUMIFS(CPU!$G:$G,CPU!$A:$A,'4_Zabumbao'!$C47,CPU!$H:$H,"ss")+SUMIFS(CPU!$G:$G,CPU!$A:$A,'4_Zabumbao'!$C47,CPU!$H:$H,"mdo")+SUMIF('Comp SINAPI DF 09-2025 Onerado'!B:B,'4_Zabumbao'!C47,'Comp SINAPI DF 09-2025 Onerado'!E:E)+SUMIF('Ins SINAPI DF 09-2025 Onerado'!B:B,'4_Zabumbao'!C47,'Ins SINAPI DF 09-2025 Onerado'!F:F)),2) -> 8514.52 | H47: 10490.74 | I47: =TRUNC(F47*H47,2) -> 10490.74
A48: 2.1.7 | B48: PRÓPRIA | C48: CPU.42 | D48: =VLOOKUP(C48,CPU!B29:G4940,2,0) -> Relatório de Investigação Geológica/Geotécnica | E48: =(VLOOKUP(C48,CPU!$B$10:D$4932,3,0)) -> un | F48: 1 | G48: =TRUNC((1-$H$10)*(SUMIFS(CPU!$G:$G,CPU!$A:$A,'4_Zabumbao'!$C48,CPU!$H:$H,"ss")+SUMIFS(CPU!$G:$G,CPU!$A:$A,'4_Zabumbao'!$C48,CPU!$H:$H,"mdo")+SUMIF('Comp SINAPI DF 09-2025 Onerado'!B:B,'4_Zabumbao'!C48,'Comp SINAPI DF 09-2025 Onerado'!E:E)+SUMIF('Ins SINAPI DF 09-2025 Onerado'!B:B,'4_Zabumbao'!C48,'Ins SINAPI DF 09-2025 Onerado'!F:F)),2) -> 6010.8 | H48: 7405.9 | I48: 7405.9
A49: 3 | D49: ETAPA 3 | I49: =SUM(I61,I50,I53) -> 372432.11
A50: 3.1 | D50: PROJETOS | I50: =SUM(I51:I52) -> 91058.79
A51: 3.1.1 | B51: PRÓPRIA | C51: CPU.18 | D51: =VLOOKUP(C51,CPU!B54:G159,2,0) -> Projeto de Instrumentação | E51: =(VLOOKUP(C51,CPU!$B$10:D$142,3,0)) -> un | F51: 1 | G51: =TRUNC((1-$H$10)*(SUMIFS(CPU!$G:$G,CPU!$A:$A,'4_Zabumbao'!$C51,CPU!$H:$H,"ss")+SUMIFS(CPU!$G:$G,CPU!$A:$A,'4_Zabumbao'!$C51,CPU!$H:$H,"mdo")+SUMIF('Comp SINAPI DF 09-2025 Onerado'!B:B,'4_Zabumbao'!C51,'Comp SINAPI DF 09-2025 Onerado'!E:E)+SUMIF('Ins SINAPI DF 09-2025 Onerado'!B:B,'4_Zabumbao'!C51,'Ins SINAPI DF 09-2025 Onerado'!F:F)),2) -> 29283.76 | H51: =TRUNC(G51*(1+$H$5),2) -> 36080.52 | I51: =TRUNC(F51*H51,2) -> 36080.52
A52: 3.1.2 | B52: PRÓPRIA | C52: CPU.20 | D52: =VLOOKUP(C52,CPU!B54:G164,2,0) -> Projeto Geométrico (AS IS) | E52: =(VLOOKUP(C52,CPU!$B$10:D$142,3,0)) -> un | F52: 1 | G52: =TRUNC((1-$H$10)*(SUMIFS(CPU!$G:$G,CPU!$A:$A,'4_Zabumbao'!$C52,CPU!$H:$H,"ss")+SUMIFS(CPU!$G:$G,CPU!$A:$A,'4_Zabumbao'!$C52,CPU!$H:$H,"mdo")+SUMIF('Comp SINAPI DF 09-2025 Onerado'!B:B,'4_Zabumbao'!C52,'Comp SINAPI DF 09-2025 Onerado'!E:E)+SUMIF('Ins SINAPI DF 09-2025 Onerado'!B:B,'4_Zabumbao'!C52,'Ins SINAPI DF 09-2025 Onerado'!F:F)),2) -> 44621.6 | H52: =TRUNC(G52*(1+$H$5),2) -> 54978.27 | I52: =TRUNC(F52*H52,2) -> 54978.27
A53: 3.2 | D53: PLANO DE SEGURANÇA DE BARRAGENS | I53: =SUM(I54:O60) -> 181035.5
A54: 3.2.1 | B54: PRÓPRIA | C54: CPU.34 | D54: =VLOOKUP(C54,CPU!B43:G49936,2,0) -> Volume I - Informações Gerais | E54: =(VLOOKUP(C54,CPU!$B$10:D$4939,3,0)) -> un | F54: 1 | G54: =TRUNC((1-$H$10)*(SUMIFS(CPU!$G:$G,CPU!$A:$A,'4_Zabumbao'!$C54,CPU!$H:$H,"ss")+SUMIFS(CPU!$G:$G,CPU!$A:$A,'4_Zabumbao'!$C54,CPU!$H:$H,"mdo")+SUMIF('Comp SINAPI DF 09-2025 Onerado'!B:B,'4_Zabumbao'!C54,'Comp SINAPI DF 09-2025 Onerado'!E:E)+SUMIF('Ins SINAPI DF 09-2025 Onerado'!B:B,'4_Zabumbao'!C54,'Ins SINAPI DF 09-2025 Onerado'!F:F)),2) -> 15330.6 | H54: =TRUNC(G54*(1+$H$5),2) -> 18888.83 | I54: =TRUNC(F54*H54,2) -> 18888.83
A55: 3.2.2 | B55: PRÓPRIA | C55: CPU.35 | D55: =VLOOKUP(C55,CPU!B44:G49937,2,0) -> Volume II - Documentação Técnica | E55: =(VLOOKUP(C55,CPU!$B$10:D$4939,3,0)) -> un | F55: 1 | G55: =TRUNC((1-$H$10)*(SUMIFS(CPU!$G:$G,CPU!$A:$A,'4_Zabumbao'!$C55,CPU!$H:$H,"ss")+SUMIFS(CPU!$G:$G,CPU!$A:$A,'4_Zabumbao'!$C55,CPU!$H:$H,"mdo")+SUMIF('Comp SINAPI DF 09-2025 Onerado'!B:B,'4_Zabumbao'!C55,'Comp SINAPI DF 09-2025 Onerado'!E:E)+SUMIF('Ins SINAPI DF 09-2025 Onerado'!B:B,'4_Zabumbao'!C55,'Ins SINAPI DF 09-2025 Onerado'!F:F)),2) -> 15751.56 | H55: 19407.49 | I55: 19407.49
A56: 3.2.3 | B56: PRÓPRIA | C56: CPU.36 | D56: =VLOOKUP(C56,CPU!B45:G49938,2,0) -> Volume III - Planos e Procedimentos | E56: =(VLOOKUP(C56,CPU!$B$10:D$4939,3,0)) -> un | F56: 1 | G56: =TRUNC((1-$H$10)*(SUMIFS(CPU!$G:$G,CPU!$A:$A,'4_Zabumbao'!$C56,CPU!$H:$H,"ss")+SUMIFS(CPU!$G:$G,CPU!$A:$A,'4_Zabumbao'!$C56,CPU!$H:$H,"mdo")+SUMIF('Comp SINAPI DF 09-2025 Onerado'!B:B,'4_Zabumbao'!C56,'Comp SINAPI DF 09-2025 Onerado'!E:E)+SUMIF('Ins SINAPI DF 09-2025 Onerado'!B:B,'4_Zabumbao'!C56,'Ins SINAPI DF 09-2025 Onerado'!F:F)),2) -> 15751.56 | H56: 19407.49 | I56: 19407.49
A57: 3.2.4 | B57: PRÓPRIA | C57: CPU.37 | D57: =VLOOKUP(C57,CPU!B46:G49939,2,0) -> Volume IV - Registros e Controles | E57: =(VLOOKUP(C57,CPU!$B$10:D$4939,3,0)) -> un | F57: 1 | G57: =TRUNC((1-$H$10)*(SUMIFS(CPU!$G:$G,CPU!$A:$A,'4_Zabumbao'!$C57,CPU!$H:$H,"ss")+SUMIFS(CPU!$G:$G,CPU!$A:$A,'4_Zabumbao'!$C57,CPU!$H:$H,"mdo")+SUMIF('Comp SINAPI DF 09-2025 Onerado'!B:B,'4_Zabumbao'!C57,'Comp SINAPI DF 09-2025 Onerado'!E:E)+SUMIF('Ins SINAPI DF 09-2025 Onerado'!B:B,'4_Zabumbao'!C57,'Ins SINAPI DF 09-2025 Onerado'!F:F)),2) -> 15751.56 | H57: 19407.49 | I57: 19407.49
A58: 3.2.5 | B58: PRÓPRIA | C58: CPU.38 | D58: =VLOOKUP(C58,CPU!B46:G49940,2,0) -> Volume V - Revisão Periódica de Segurança de Barragem | E58: =(VLOOKUP(C58,CPU!$B$10:D$4939,3,0)) -> un | F58: 1 | G58: =TRUNC((1-$H$10)*(SUMIFS(CPU!$G:$G,CPU!$A:$A,'4_Zabumbao'!$C58,CPU!$H:$H,"ss")+SUMIFS(CPU!$G:$G,CPU!$A:$A,'4_Zabumbao'!$C58,CPU!$H:$H,"mdo")+SUMIF('Comp SINAPI DF 09-2025 Onerado'!B:B,'4_Zabumbao'!C58,'Comp SINAPI DF 09-2025 Onerado'!E:E)+SUMIF('Ins SINAPI DF 09-2025 Onerado'!B:B,'4_Zabumbao'!C58,'Ins SINAPI DF 09-2025 Onerado'!F:F)),2) -> 27410.88 | H58: =TRUNC(G58*(1+$H$5),2) -> 33772.94 | I58: =TRUNC(F58*H58,2) -> 33772.94
A59: 3.2.6 | B59: PRÓPRIA | C59: CPU.39 | D59: =VLOOKUP(C59,CPU!B46:G49941,2,0) -> Volume V - A - Resumo Executivo | E59: =(VLOOKUP(C59,CPU!$B$10:D$4896,3,0)) -> un | F59: 1 | G59: =TRUNC((1-$H$10)*(SUMIFS(CPU!$G:$G,CPU!$A:$A,'4_Zabumbao'!$C59,CPU!$H:$H,"ss")+SUMIFS(CPU!$G:$G,CPU!$A:$A,'4_Zabumbao'!$C59,CPU!$H:$H,"mdo")+SUMIF('Comp SINAPI DF 09-2025 Onerado'!B:B,'4_Zabumbao'!C59,'Comp SINAPI DF 09-2025 Onerado'!E:E)+SUMIF('Ins SINAPI DF 09-2025 Onerado'!B:B,'4_Zabumbao'!C59,'Ins SINAPI DF 09-2025 Onerado'!F:F)),2) -> 24473.94 | H59: =TRUNC(G59*(1+$H$5),2) -> 30154.34 | I59: =TRUNC(F59*H59,2) -> 30154.34
A60: 3.2.7 | B60: PRÓPRIA | C60: CPU.41 | D60: =VLOOKUP(C60,CPU!B55:G4923,2,0) -> Volume VI - Plano de Ação de Emergência | E60: =(VLOOKUP(C60,CPU!$B$10:D$4896,3,0)) -> un | F60: 1 | G60: =TRUNC((1-$H$10)*(SUMIFS(CPU!$G:$G,CPU!$A:$A,'4_Zabumbao'!$C60,CPU!$H:$H,"ss")+SUMIFS(CPU!$G:$G,CPU!$A:$A,'4_Zabumbao'!$C60,CPU!$H:$H,"mdo")+SUMIF('Comp SINAPI DF 09-2025 Onerado'!B:B,'4_Zabumbao'!C60,'Comp SINAPI DF 09-2025 Onerado'!E:E)+SUMIF('Ins SINAPI DF 09-2025 Onerado'!B:B,'4_Zabumbao'!C60,'Ins SINAPI DF 09-2025 Onerado'!F:F)),2) -> 32462.4 | H60: =TRUNC(G60*(1+$H$5),2) -> 39996.92 | I60: =TRUNC(F60*H60,2) -> 39996.92
A61: 3.3 | D61: PLANO DE AÇÃO DE EMERGÊNCIA | I61: =SUM(I62:I64) -> 100337.82
A62: 3.3.1 | B62: PRÓPRIA | C62: CPU.24 | D62: =VLOOKUP(C62,CPU!B55:G4921,2,0) -> Projeto de sinalização | E62: =(VLOOKUP(C62,CPU!$B$10:D$4896,3,0)) -> un | F62: 1 | G62: =TRUNC((1-$H$10)*(SUMIFS(CPU!$G:$G,CPU!$A:$A,'4_Zabumbao'!$C62,CPU!$H:$H,"ss")+SUMIFS(CPU!$G:$G,CPU!$A:$A,'4_Zabumbao'!$C62,CPU!$H:$H,"mdo")+SUMIF('Comp SINAPI DF 09-2025 Onerado'!B:B,'4_Zabumbao'!C62,'Comp SINAPI DF 09-2025 Onerado'!E:E)+SUMIF('Ins SINAPI DF 09-2025 Onerado'!B:B,'4_Zabumbao'!C62,'Ins SINAPI DF 09-2025 Onerado'!F:F)),2) -> 27232.12 | H62: =TRUNC(G62*(1+$H$5),2) -> 33552.69 | I62: =TRUNC(F62*H62,2) -> 33552.69
A63: 3.3.2 | B63: PRÓPRIA | C63: CPU.25 | D63: =VLOOKUP(C63,CPU!B55:G4922,2,0) -> Projeto de rotas de fuga | E63: =(VLOOKUP(C63,CPU!$B$10:D$4896,3,0)) -> un | F63: 1 | G63: =TRUNC((1-$H$10)*(SUMIFS(CPU!$G:$G,CPU!$A:$A,'4_Zabumbao'!$C63,CPU!$H:$H,"ss")+SUMIFS(CPU!$G:$G,CPU!$A:$A,'4_Zabumbao'!$C63,CPU!$H:$H,"mdo")+SUMIF('Comp SINAPI DF 09-2025 Onerado'!B:B,'4_Zabumbao'!C63,'Comp SINAPI DF 09-2025 Onerado'!E:E)+SUMIF('Ins SINAPI DF 09-2025 Onerado'!B:B,'4_Zabumbao'!C63,'Ins SINAPI DF 09-2025 Onerado'!F:F)),2) -> 30599.8 | H63: =TRUNC(G63*(1+$H$5),2) -> 37702.01 | I63: =TRUNC(F63*H63,2) -> 37702.01
A64: 3.3.3 | B64: PRÓPRIA | C64: CPU.32 | D64: =VLOOKUP(C64,CPU!B56:G4924,2,0) -> Projeto de sistema sonoro | E64: =(VLOOKUP(C64,CPU!$B$10:D$4896,3,0)) -> un | F64: 1 | G64: =TRUNC((1-$H$10)*(SUMIFS(CPU!$G:$G,CPU!$A:$A,'4_Zabumbao'!$C64,CPU!$H:$H,"ss")+SUMIFS(CPU!$G:$G,CPU!$A:$A,'4_Zabumbao'!$C64,CPU!$H:$H,"mdo")+SUMIF('Comp SINAPI DF 09-2025 Onerado'!B:B,'4_Zabumbao'!C64,'Comp SINAPI DF 09-2025 Onerado'!E:E)+SUMIF('Ins SINAPI DF 09-2025 Onerado'!B:B,'4_Zabumbao'!C64,'Ins SINAPI DF 09-2025 Onerado'!F:F)),2) -> 23604.52 | H64: =TRUNC(G64*(1+$H$5),2) -> 29083.12 | I64: =TRUNC(F64*H64,2) -> 29083.12
D65: TOTAL (Custo): | I65: =TRUNC(SUMPRODUCT(F14:F64,G14:G64),2) -> 599366.88
D66: BDI e Encargos Sociais: | I66: =I67-I65 -> 138932.1 | M66: =TRUNC(SUMPRODUCT(F14:F59,H14:H59),2) -> 597964.25
D67: TOTAL GERAL COM BDI: | I67: =SUM(I49,I40,I13) -> 738298.98 | P67: =TRUNC(SUMPRODUCT(F14:F64,H14:H64),2) -> 738298.99

Sheet 5_Ceraima
A1: Ministério da Integração e do Desenvolvimento Regional
A2: Companhia de Desenvolvimento dos Vales do São Francisco e do Parnaíba
A4: PLANILHA ORÇAMENTÁRIA - ORÇAMENTO NÃO DESONERADO
A5: OBRA: | B5: =Resumo!B5 -> Elaboração de Plano de Segurança de Barragens | G5: BDI (serv.): | H5: ='BDI serv'!D23 -> 0.2321 | I5: Bancos de dados:
A6: LOCAL: | B6: Guanambi - BA | G6: BDI (forn.): | H6: ='BDI forn'!D23 -> 0 | I6: =Resumo!G6 -> SETEMBRO/25 - SINAPI
A7: DATA BASE: | B7: 2025-10-01 | E7: Encargos sociais - Horistas: | H7: ='Encargos Sociais DF'!E49 -> 1.1011 | I7: =Resumo!G7 -> SIURB INFRA JAN/2025
A8: PRAZO: | B8: =Resumo!B8 -> 300 dias | E8: Encargos sociais - Mensalista: | H8: ='Encargos Sociais DF'!F49 -> 0.7019 | I8: =Resumo!G8 -> JAN/25 E JUL/2025- SETOP
I9: =Resumo!G9 -> JUNHO/25 - EMBASA
B10: Ceraíma | G10: Desconto: | H10: 0 | I10: =Resumo!G10 -> JUL/2025 - CONSULT. DNIT
A11: ITEM | B11: REFERÊNCIA | D11: DESCRIÇÃO | E11: UNID. | F11: QUANT. | G11: CUSTO UNITÁRIO | H11: PREÇO UNITÁRIO | I11: PREÇO TOTAL
B12: FONTE | C12: CÓDIGO
A13: 1 | D13: ='1_Bico da Pedra'!D13 -> ETAPA 1 | I13: =I34+I16+I14+I37 -> 223855.59
A14: 1.1 | D14: Visita Técnica | I14: =SUM(I15:I15) -> 55532.37
A15: 1.1.1 | B15: PRÓPRIA | C15: CPU.09 | D15: =VLOOKUP(C15,CPU!B29:G75,2,0) -> Inspeção Visual da Estrutura (Multidisciplinar) e elaboração de relatório | E15: =(VLOOKUP(C15,CPU!$B$10:D$142,3,0)) -> un | F15: 1 | G15: =TRUNC((1-$H$10)*(SUMIFS(CPU!$G:$G,CPU!$A:$A,'5_Ceraima'!$C15,CPU!$H:$H,"ss")+SUMIFS(CPU!$G:$G,CPU!$A:$A,'5_Ceraima'!$C15,CPU!$H:$H,"mdo")+SUMIF('Comp SINAPI DF 09-2025 Onerado'!B:B,'5_Ceraima'!C15,'Comp SINAPI DF 09-2025 Onerado'!E:E)+SUMIF('Ins SINAPI DF 09-2025 Onerado'!B:B,'5_Ceraima'!C15,'Ins SINAPI DF 09-2025 Onerado'!F:F)),2) -> 45071.32 | H15: =TRUNC(G15*(1+$H$5),2) -> 55532.37 | I15: =TRUNC(F15*H15,2) -> 55532.37
A16: 1.2 | D16: INVESTIGAÇÃO GEOLÓGICA E GEOTÉCNICA | I16: =SUM(I17:I33) -> 118531.67
A17: 1.2.1 | B17: SETOP | C17: CO-28389 | D17: Mobilização e desmobilização de equipamento de sondagem a percussão com Ensaio de Penetração Padrão (SPT) (custo variável), exclusive custo fixo | E17: km | F17: ='Memorial de cálculo'!Q14*2 -> 324 | G17: =TRUNC((1-$H$10)*J17,2) -> 2.04 | H17: =TRUNC(G17*(1+$H$5),2) -> 2.51 | I17: =TRUNC(F17*H17,2) -> 813.24 | J17: =VLOOKUP(C17,'OUTRAS BASES'!B:C,2,0) -> 2.04
A18: 1.2.2 | B18: SETOP | C18: CO-28388 | D18: Sondagem a percussão com Ensaio de Penetração Padrão (SPT), diâmetro 2.1/2", exclusive mobilização e desmobilização | E18: m | F18: ='Pontos de Sondagem'!E94 -> 216 | G18: =TRUNC((1-$H$10)*J18,2) -> 79.09 | H18: =TRUNC(G18*(1+$H$5),2) -> 97.44 | I18: =TRUNC(F18*H18,2) -> 21047.04 | J18: =VLOOKUP(C18,'OUTRAS BASES'!B:C,2,0) -> 79.09
A19: 1.2.3 | B19: EMBASA | C19: 32.05.04 | D19: Mobilização e desmobilização de equipe e equipamentos para sondagem rotativa ou mista | E19: km | F19: 1 | G19: =TRUNC((1-$H$10)*J19,2) -> 5.16 | H19: 6.35 | I19: 6.35 | J19: =VLOOKUP(C19,'OUTRAS BASES'!B:C,2,0) -> 5.16 | M19: c | N19: 1.5
A20: 1.2.4 | B20: SCO | C20: AD 05.15.0400 | D20: Sondagem rotativa vertical, em rocha sa, com coroa de diamante, diametro H (99mm), inclusive deslocamento e posicionamento em cada furo. | E20: m | F20: =ROUNDUP('Pontos de Sondagem'!G94,0) -> 22 | G20: =TRUNC((1-$H$10)*J20,2) -> 1422.4 | H20: =TRUNC(G20*(1+$H$5),2) -> 1752.53 | I20: =TRUNC(F20*H20,2) -> 38555.66 | J20: =VLOOKUP(C20,'OUTRAS BASES'!B:C,2,0) -> 1422.4 | M20: d | N20: =63.5/1000 -> 0.0635
A21: 1.2.5 | B21: SICRO3 | C21: 3816196 | D21: Fechamento dos Furos - Injeção de nata de cimento | E21: m³ | F21: =ROUNDUP(N22,1) -> 1.2 | G21: =TRUNC((1-$H$10)*J21,2) -> 1012.78 | H21: =TRUNC(G21*(1+$H$5),2) -> 1247.84 | I21: =TRUNC(F21*H21,2) -> 1497.4 | J21: =VLOOKUP(C21,'OUTRAS BASES'!B:C,2,0) -> 1012.78 | M21: A | N21: =PI()*(N20*N20)/4 -> 0.003166921744
A22: 1.2.6 | B22: PRÓPRIA | C22: CPU.45 | D22: =VLOOKUP(C22,CPU!$B$29:$G$4941,2,0) -> Mobilização e Desmobilização de Equipe de retirada de amostra deformada e indeformada | E22: =(VLOOKUP(C22,CPU!$B$10:D$4935,3,0)) -> km | F22: =F17 -> 324 | G22: =TRUNC((1-$H$10)*(SUMIFS(CPU!$G:$G,CPU!$A:$A,'5_Ceraima'!$C22,CPU!$H:$H,"ss")+SUMIFS(CPU!$G:$G,CPU!$A:$A,'5_Ceraima'!$C22,CPU!$H:$H,"mdo")+SUMIF('Comp SINAPI DF 09-2025 Onerado'!B:B,'5_Ceraima'!C22,'Comp SINAPI DF 09-2025 Onerado'!E:E)+SUMIF('Ins SINAPI DF 09-2025 Onerado'!B:B,'5_Ceraima'!C22,'Ins SINAPI DF 09-2025 Onerado'!F:F)),2) -> 2.04 | H22: 2.51 | I22: =TRUNC(F22*H22,2) -> 813.24 | M22: V | N22: =N21*(F18+F20)*N19 -> 1.130591063
A23: 1.2.7 | B23: EMBASA | C23: 34.04.07 | D23: Retirada de amostra deformada | E23: un | F23: 3 | G23: =TRUNC((1-$H$10)*J23,2) -> 105.24 | H23: =TRUNC(G23*(1+$H$5),2) -> 129.66 | I23: 388.98 | J23: =VLOOKUP(C23,'OUTRAS BASES'!B:C,2,0) -> 105.24
A24: 1.2.8 | B24: SUDECAP | C24: 65.08.22 | D24: Retirada de amostra indeformada em blocos 30X30X30CM (NBR 9604:2016), Profundidade = 1 a 2 m | E24: =(VLOOKUP(C24,CPU!$B$10:D$1582,3,0)) -> un | F24: 3 | G24: =TRUNC((1-$H$10)*J24,2) -> 1800 | H24: 2217.78 | I24: =TRUNC(F24*H24,2) -> 6653.34 | J24: =VLOOKUP(C24,'OUTRAS BASES'!B:C,2,0) -> 1800
A25: 1.2.9 | B25: PRÓPRIA | C25: CPU.23 | D25: =VLOOKUP(C25,CPU!$B$29:$G$235,2,0) -> Reaterro com compactação adequada dos pontos de coleta de amostra, Inclusive com fornecimento de solo | E25: =(VLOOKUP(C25,CPU!$B$10:D$1582,3,0)) -> m³ | F25: =ROUNDUP(1.5*1.5*1.5*F24,1) -> 10.2 | G25: =TRUNC((1-$H$10)*(SUMIFS(CPU!$G:$G,CPU!$A:$A,'5_Ceraima'!$C25,CPU!$H:$H,"ss")+SUMIFS(CPU!$G:$G,CPU!$A:$A,'5_Ceraima'!$C25,CPU!$H:$H,"mdo")+SUMIF('Comp SINAPI DF 09-2025 Onerado'!B:B,'5_Ceraima'!C25,'Comp SINAPI DF 09-2025 Onerado'!E:E)+SUMIF('Ins SINAPI DF 09-2025 Onerado'!B:B,'5_Ceraima'!C25,'Ins SINAPI DF 09-2025 Onerado'!F:F)),2) -> 79.02 | H25: =TRUNC(G25*(1+$H$5),2) -> 97.36 | I25: =TRUNC(F25*H25,2) -> 993.07
A26: 1.2.10 | B26: SETOP | C26: CO-6334 | D26: Granulometria por peneiramento e sedimentação | E26: =(VLOOKUP(C26,CPU!$B$10:D$142,3,0)) -> un | F26: 3 | G26: =TRUNC((1-$H$10)*J26,2) -> 247.24 | H26: =TRUNC(G26*(1+$H$5),2) -> 304.62 | I26: 913.86 | J26: =VLOOKUP(C26,'OUTRAS BASES'!B:C,2,0) -> 247.24
A27: 1.2.11 | B27: SUDECAP | C27: 67.01.30 | D27: Compressão Triaxial Lento Saturado (CD) mínimo 3 corpos de prova | E27: =(VLOOKUP(C27,CPU!$B$10:D$142,3,0)) -> un | F27: =3*F24 -> 9 | G27: 1140.54 | H27: 1405.25 | I27: 12647.25 | J27: =VLOOKUP(C27,'OUTRAS BASES'!B:C,2,0) -> 1140.54
A28: 1.2.12 | B28: SUDECAP | C28: 67.01.28 | D28: Compressão Triaxial rápido pre-adensado saturado (R-SAT/CIU-SAT) c/ medidas pressão neutra mínimo 3 corpos de prova | E28: =(VLOOKUP(C28,CPU!$B$10:D$142,3,0)) -> un | F28: =F24 -> 3 | G28: 5250 | H28: 6468.52 | I28: 19405.56 | J28: =VLOOKUP(C28,'OUTRAS BASES'!B:C,2,0) -> 5250
A29: 1.2.13 | B29: SCO | C29: AD 04.05.0300 | D29: Ensaio para determinacao, em laboratorio, do Limite de Plasticidade de amostra de solo fino, de acordo com as recomendacoes da NBR7180 e da NBR6457.(desonerado) | E29: =(VLOOKUP(C29,CPU!$B$10:D$142,3,0)) -> un | F29: =F24 -> 3 | G29: =TRUNC((1-$H$10)*J29,2) -> 161.92 | H29: =TRUNC(G29*(1+$H$5),2) -> 199.5 | I29: =TRUNC(F29*H29,2) -> 598.5 | J29: =VLOOKUP(C29,'OUTRAS BASES'!B:C,2,0) -> 161.92
A30: 1.2.14 | B30: SCO | C30: AD 04.05.0250 | D30: Ensaio para determinacao, em laboratorio, do Limite de Liquidez de amostra de solo fino, de acordo com as recomendacoes da NBR7180 e da NBR6457.(desonerado) | E30: =(VLOOKUP(C30,CPU!$B$10:D$142,3,0)) -> um | F30: =F24 -> 3 | G30: =TRUNC((1-$H$10)*J30,2) -> 161.92 | H30: =TRUNC(G30*(1+$H$5),2) -> 199.5 | I30: =TRUNC(F30*H30,2) -> 598.5 | J30: =VLOOKUP(C30,'OUTRAS BASES'!B:C,2,0) -> 161.92
A31: 1.2.15 | B31: SETOP | C31: CO-6358 | D31: Determinação do coeficiente de permeabilidade de solos argilosos à carga variável | E31: =(VLOOKUP(C31,CPU!$B$10:D$142,3,0)) -> un | F31: 9 | G31: 589.03 | H31: 725.74 | I31: 6531.66 | J31: =VLOOKUP(C31,'OUTRAS BASES'!B:C,2,0) -> 589.03
A32: 1.2.16 | B32: PRÓPRIA | C32: CPU.04 | D32: =VLOOKUP(C32,CPU!$B$29:$G$235,2,0) -> Avaliação da espessura de carbonatação, por ponto, em estruturas de concreto armado ou protendido, através de aspersão de solução de fenolftaleína, inclusive coleta da amostra | E32: =(VLOOKUP(C32,CPU!$B$10:D$142,3,0)) -> un | F32: 4 | G32: =TRUNC((1-$H$10)*(SUMIFS(CPU!$G:$G,CPU!$A:$A,'5_Ceraima'!$C32,CPU!$H:$H,"ss")+SUMIFS(CPU!$G:$G,CPU!$A:$A,'5_Ceraima'!$C32,CPU!$H:$H,"mdo")+SUMIF('Comp SINAPI DF 09-2025 Onerado'!B:B,'5_Ceraima'!C32,'Comp SINAPI DF 09-2025 Onerado'!E:E)+SUMIF('Ins SINAPI DF 09-2025 Onerado'!B:B,'5_Ceraima'!C32,'Ins SINAPI DF 09-2025 Onerado'!F:F)),2) -> 470.15 | H32: =TRUNC(G32*(1+$H$5),2) -> 579.27 | I32: 2317.08
A33: 1.2.17 | B33: PRÓPRIA | C33: CPU.05 | D33: =VLOOKUP(C33,CPU!$B$29:$G$235,2,0) -> Ensaio de esclerometria em 10 pontos com 16 tiros por ponto | E33: =(VLOOKUP(C33,CPU!$B$10:D$142,3,0)) -> un | F33: 2 | G33: =TRUNC((1-$H$10)*(SUMIFS(CPU!$G:$G,CPU!$A:$A,'5_Ceraima'!$C33,CPU!$H:$H,"ss")+SUMIFS(CPU!$G:$G,CPU!$A:$A,'5_Ceraima'!$C33,CPU!$H:$H,"mdo")+SUMIF('Comp SINAPI DF 09-2025 Onerado'!B:B,'5_Ceraima'!C33,'Comp SINAPI DF 09-2025 Onerado'!E:E)+SUMIF('Ins SINAPI DF 09-2025 Onerado'!B:B,'5_Ceraima'!C33,'Ins SINAPI DF 09-2025 Onerado'!F:F)),2) -> 1927.99 | H33: 2375.47 | I33: 4750.94
A34: 1.3 | D34: Levantamento Topográfico | I34: =SUM(I35:I36) -> 35743.65
A35: 1.3.1 | B35: PRÓPRIA | C35: CPU.28 | D35: =VLOOKUP(C35,CPU!B29:G412,2,0) -> Mobilização e Desmobilização de Equipe de Levantamento topográfico | E35: =(VLOOKUP(C35,CPU!$B$10:D$19919,3,0)) -> un | F35: 1 | G35: =TRUNC((1-$H$10)*(SUMIFS(CPU!$G:$G,CPU!$A:$A,'5_Ceraima'!$C35,CPU!$H:$H,"ss")+SUMIFS(CPU!$G:$G,CPU!$A:$A,'5_Ceraima'!$C35,CPU!$H:$H,"mdo")+SUMIF('Comp SINAPI DF 09-2025 Onerado'!B:B,'5_Ceraima'!C35,'Comp SINAPI DF 09-2025 Onerado'!E:E)+SUMIF('Ins SINAPI DF 09-2025 Onerado'!B:B,'5_Ceraima'!C35,'Ins SINAPI DF 09-2025 Onerado'!F:F)),2) -> 7747.32 | H35: =TRUNC(G35*(1+$H$5),2) -> 9545.47 | I35: =TRUNC(F35*H35,2) -> 9545.47
A36: 1.3.3 | B36: SETOP | C36: CO-27369 | D36: Levantamento planialtimétrico e cadastral - terreno maior que 50.001 m² | E36: m² | F36: ='Memorial de cálculo'!Q20 -> 60926 | G36: =TRUNC((1-$H$10)*J36,2) -> 0.35 | H36: =TRUNC(G36*(1+$H$5),2) -> 0.43 | I36: =TRUNC(F36*H36,2) -> 26198.18 | J36: =VLOOKUP(C36,'OUTRAS BASES'!B:C,2,0) -> 0.35
A37: 1.4 | D37: Levantamento Fotogramétrico | I37: =SUM(I38:I39) -> 14047.9
A38: 1.4.1 | B38: PRÓPRIA | C38: CPU.31 | D38: Mobilização e Desmobilização de Equipe e Equipamentos de Levantamento Fotométrico | E38: km | F38: 364 | G38: =TRUNC((1-$H$10)*J38,2) -> 7.74 | H38: =TRUNC(G38*(1+$H$5),2) -> 9.53 | I38: =TRUNC(F38*H38,2) -> 3468.92 | J38: 7.74
A39: 1.4.2 | B39: EMBASA | C39: 31.90.13 | D39: Levant. Fotogrametrico c/ VANT (drone) áreas até 100 ha, incl. Ortofotos, GSD<=3, acurácia horiz. Min.3cm e vert. Min. 6cm, aferidos c/ pontos de controle distancia min. De 650m entre eles, exclusivetransporte de equipe e equipamentos | E39: un | F39: 1 | G39: =TRUNC((1-$H$10)*J39,2) -> 8586.14 | H39: =TRUNC(G39*(1+$H$5),2) -> 10578.98 | I39: =TRUNC(F39*H39,2) -> 10578.98 | J39: =VLOOKUP(C39,'OUTRAS BASES'!B:C,2,0) -> 8586.14
A40: 2 | D40: ETAPA 2 | I40: =SUM(I41) -> 145258.84
A41: 2.1 | D41: ESTUDOS | I41: =SUM(I42:I48) -> 145258.84
A42: 2.1.1 | B42: PRÓPRIA | C42: CPU.11 | D42: =VLOOKUP(C42,CPU!$B$29:$G$159,2,0) -> Estudo Geológico-geotécnico | E42: =(VLOOKUP(C42,CPU!$B$10:D$159,3,0)) -> un | F42: 1 | G42: =TRUNC((1-$H$10)*(SUMIFS(CPU!$G:$G,CPU!$A:$A,'5_Ceraima'!$C42,CPU!$H:$H,"ss")+SUMIFS(CPU!$G:$G,CPU!$A:$A,'5_Ceraima'!$C42,CPU!$H:$H,"mdo")+SUMIF('Comp SINAPI DF 09-2025 Onerado'!B:B,'5_Ceraima'!C42,'Comp SINAPI DF 09-2025 Onerado'!E:E)+SUMIF('Ins SINAPI DF 09-2025 Onerado'!B:B,'5_Ceraima'!C42,'Ins SINAPI DF 09-2025 Onerado'!F:F)),2) -> 14328.22 | H42: =TRUNC(G42*(1+$H$5),2) -> 17653.79 | I42: =TRUNC(F42*H42,2) -> 17653.79
A43: 2.1.2 | B43: PRÓPRIA | C43: CPU.12 | D43: =VLOOKUP(C43,CPU!$B$29:$G$159,2,0) -> Relatório Fotogramétricos e Tratamento de Dados | E43: un | F43: 1 | G43: =TRUNC((1-$H$10)*(SUMIFS(CPU!$G:$G,CPU!$A:$A,'5_Ceraima'!$C43,CPU!$H:$H,"ss")+SUMIFS(CPU!$G:$G,CPU!$A:$A,'5_Ceraima'!$C43,CPU!$H:$H,"mdo")+SUMIF('Comp SINAPI DF 09-2025 Onerado'!B:B,'5_Ceraima'!C43,'Comp SINAPI DF 09-2025 Onerado'!E:E)+SUMIF('Ins SINAPI DF 09-2025 Onerado'!B:B,'5_Ceraima'!C43,'Ins SINAPI DF 09-2025 Onerado'!F:F)),2) -> 8785.99 | H43: =TRUNC(G43*(1+$H$5),2) -> 10825.21 | I43: =TRUNC(F43*H43,2) -> 10825.21
A44: 2.1.3 | B44: PRÓPRIA | C44: CPU.13 | D44: =VLOOKUP(C44,CPU!$B$29:$G$159,2,0) -> Estudo de Ruputura e Mapas de Inundação | E44: =(VLOOKUP(C44,CPU!$B$10:D$159,3,0)) -> un | F44: 1 | G44: =TRUNC((1-$H$10)*(SUMIFS(CPU!$G:$G,CPU!$A:$A,'5_Ceraima'!$C44,CPU!$H:$H,"ss")+SUMIFS(CPU!$G:$G,CPU!$A:$A,'5_Ceraima'!$C44,CPU!$H:$H,"mdo")+SUMIF('Comp SINAPI DF 09-2025 Onerado'!B:B,'5_Ceraima'!C44,'Comp SINAPI DF 09-2025 Onerado'!E:E)+SUMIF('Ins SINAPI DF 09-2025 Onerado'!B:B,'5_Ceraima'!C44,'Ins SINAPI DF 09-2025 Onerado'!F:F)),2) -> 38768.32 | H44: =TRUNC(G44*(1+$H$5),2) -> 47766.44 | I44: =TRUNC(F44*H44,2) -> 47766.44
A45: 2.1.4 | B45: PRÓPRIA | C45: CPU.14 | D45: =VLOOKUP(C45,CPU!$B$29:$G$159,2,0) -> Estudo de Estabilidade e Percolação - Barragem de Terra | E45: =(VLOOKUP(C45,CPU!$B$10:D$4939,3,0)) -> un | F45: 1 | G45: =TRUNC((1-$H$10)*(SUMIFS(CPU!$G:$G,CPU!$A:$A,'5_Ceraima'!$C45,CPU!$H:$H,"ss")+SUMIFS(CPU!$G:$G,CPU!$A:$A,'5_Ceraima'!$C45,CPU!$H:$H,"mdo")+SUMIF('Comp SINAPI DF 09-2025 Onerado'!B:B,'5_Ceraima'!C45,'Comp SINAPI DF 09-2025 Onerado'!E:E)+SUMIF('Ins SINAPI DF 09-2025 Onerado'!B:B,'5_Ceraima'!C45,'Ins SINAPI DF 09-2025 Onerado'!F:F)),2) -> 35476.72 | H45: =TRUNC(G45*(1+$H$5),2) -> 43710.86 | I45: =TRUNC(F45*H45,2) -> 43710.86
A46: 2.1.5 | B46: PRÓPRIA | C46: CPU.33 | D46: =VLOOKUP(C46,CPU!$B$29:$G$4939,2,0) -> Relatório de Avaliação de Estruturas de Concreto | E46: =(VLOOKUP(C46,CPU!$B$10:D$4939,3,0)) -> un | F46: 1 | G46: =TRUNC((1-$H$10)*(SUMIFS(CPU!$G:$G,CPU!$A:$A,'5_Ceraima'!$C46,CPU!$H:$H,"ss")+SUMIFS(CPU!$G:$G,CPU!$A:$A,'5_Ceraima'!$C46,CPU!$H:$H,"mdo")+SUMIF('Comp SINAPI DF 09-2025 Onerado'!B:B,'5_Ceraima'!C46,'Comp SINAPI DF 09-2025 Onerado'!E:E)+SUMIF('Ins SINAPI DF 09-2025 Onerado'!B:B,'5_Ceraima'!C46,'Ins SINAPI DF 09-2025 Onerado'!F:F)),2) -> 6010.8 | H46: =TRUNC(G46*(1+$H$5),2) -> 7405.9 | I46: =TRUNC(F46*H46,2) -> 7405.9
A47: 2.1.6 | B47: PRÓPRIA | C47: CPU.40 | D47: =VLOOKUP(C47,CPU!$B$29:$G$4939,2,0) -> Relatório Topográfico e Tratamento de Dados | E47: =(VLOOKUP(C47,CPU!$B$10:D$4939,3,0)) -> un | F47: 1 | G47: =TRUNC((1-$H$10)*(SUMIFS(CPU!$G:$G,CPU!$A:$A,'5_Ceraima'!$C47,CPU!$H:$H,"ss")+SUMIFS(CPU!$G:$G,CPU!$A:$A,'5_Ceraima'!$C47,CPU!$H:$H,"mdo")+SUMIF('Comp SINAPI DF 09-2025 Onerado'!B:B,'5_Ceraima'!C47,'Comp SINAPI DF 09-2025 Onerado'!E:E)+SUMIF('Ins SINAPI DF 09-2025 Onerado'!B:B,'5_Ceraima'!C47,'Ins SINAPI DF 09-2025 Onerado'!F:F)),2) -> 8514.52 | H47: 10490.74 | I47: 10490.74
A48: 2.1.7 | B48: PRÓPRIA | C48: CPU.42 | D48: =VLOOKUP(C48,CPU!$B$29:$G$4939,2,0) -> Relatório de Investigação Geológica/Geotécnica | E48: =(VLOOKUP(C48,CPU!$B$10:D$4939,3,0)) -> un | F48: 1 | G48: =TRUNC((1-$H$10)*(SUMIFS(CPU!$G:$G,CPU!$A:$A,'5_Ceraima'!$C48,CPU!$H:$H,"ss")+SUMIFS(CPU!$G:$G,CPU!$A:$A,'5_Ceraima'!$C48,CPU!$H:$H,"mdo")+SUMIF('Comp SINAPI DF 09-2025 Onerado'!B:B,'5_Ceraima'!C48,'Comp SINAPI DF 09-2025 Onerado'!E:E)+SUMIF('Ins SINAPI DF 09-2025 Onerado'!B:B,'5_Ceraima'!C48,'Ins SINAPI DF 09-2025 Onerado'!F:F)),2) -> 6010.8 | H48: 7405.9 | I48: 7405.9
A49: 3 | D49: ETAPA 3 | I49: =SUM(I50+I53+I61) -> 372432.11
A50: 3.1 | D50: PROJETOS | I50: =SUM(I51:I52) -> 91058.79
A51: 3.1.1 | B51: PRÓPRIA | C51: CPU.18 | D51: =VLOOKUP(C51,CPU!B57:G162,2,0) -> Projeto de Instrumentação | E51: =(VLOOKUP(C51,CPU!$B$10:D$142,3,0)) -> un | F51: 1 | G51: =TRUNC((1-$H$10)*(SUMIFS(CPU!$G:$G,CPU!$A:$A,'5_Ceraima'!$C51,CPU!$H:$H,"ss")+SUMIFS(CPU!$G:$G,CPU!$A:$A,'5_Ceraima'!$C51,CPU!$H:$H,"mdo")+SUMIF('Comp SINAPI DF 09-2025 Onerado'!B:B,'5_Ceraima'!C51,'Comp SINAPI DF 09-2025 Onerado'!E:E)+SUMIF('Ins SINAPI DF 09-2025 Onerado'!B:B,'5_Ceraima'!C51,'Ins SINAPI DF 09-2025 Onerado'!F:F)),2) -> 29283.76 | H51: =TRUNC(G51*(1+$H$5),2) -> 36080.52 | I51: =TRUNC(F51*H51,2) -> 36080.52
A52: 3.1.2 | B52: PRÓPRIA | C52: CPU.20 | D52: =VLOOKUP(C52,CPU!B57:G167,2,0) -> Projeto Geométrico (AS IS) | E52: =(VLOOKUP(C52,CPU!$B$10:D$142,3,0)) -> un | F52: 1 | G52: =TRUNC((1-$H$10)*(SUMIFS(CPU!$G:$G,CPU!$A:$A,'5_Ceraima'!$C52,CPU!$H:$H,"ss")+SUMIFS(CPU!$G:$G,CPU!$A:$A,'5_Ceraima'!$C52,CPU!$H:$H,"mdo")+SUMIF('Comp SINAPI DF 09-2025 Onerado'!B:B,'5_Ceraima'!C52,'Comp SINAPI DF 09-2025 Onerado'!E:E)+SUMIF('Ins SINAPI DF 09-2025 Onerado'!B:B,'5_Ceraima'!C52,'Ins SINAPI DF 09-2025 Onerado'!F:F)),2) -> 44621.6 | H52: =TRUNC(G52*(1+$H$5),2) -> 54978.27 | I52: =TRUNC(F52*H52,2) -> 54978.27
A53: 3.2 | D53: PLANO DE SEGURANÇA DE BARRAGENS | I53: =SUM(I54:I60) -> 181035.5
A54: 3.2.1 | B54: PRÓPRIA | C54: CPU.34 | D54: =VLOOKUP(C54,CPU!B51:G4932,2,0) -> Volume I - Informações Gerais | E54: =(VLOOKUP(C54,CPU!$B$10:D$4896,3,0)) -> un | F54: 1 | G54: =TRUNC((1-$H$10)*(SUMIFS(CPU!$G:$G,CPU!$A:$A,'5_Ceraima'!$C54,CPU!$H:$H,"ss")+SUMIFS(CPU!$G:$G,CPU!$A:$A,'5_Ceraima'!$C54,CPU!$H:$H,"mdo")+SUMIF('Comp SINAPI DF 09-2025 Onerado'!B:B,'5_Ceraima'!C54,'Comp SINAPI DF 09-2025 Onerado'!E:E)+SUMIF('Ins SINAPI DF 09-2025 Onerado'!B:B,'5_Ceraima'!C54,'Ins SINAPI DF 09-2025 Onerado'!F:F)),2) -> 15330.6 | H54: =TRUNC(G54*(1+$H$5),2) -> 18888.83 | I54: =TRUNC(F54*H54,2) -> 18888.83
A55: 3.2.2 | B55: PRÓPRIA | C55: CPU.35 | D55: =VLOOKUP(C55,CPU!B52:G4933,2,0) -> Volume II - Documentação Técnica | E55: =(VLOOKUP(C55,CPU!$B$10:D$4896,3,0)) -> un | F55: 1 | G55: =TRUNC((1-$H$10)*(SUMIFS(CPU!$G:$G,CPU!$A:$A,'5_Ceraima'!$C55,CPU!$H:$H,"ss")+SUMIFS(CPU!$G:$G,CPU!$A:$A,'5_Ceraima'!$C55,CPU!$H:$H,"mdo")+SUMIF('Comp SINAPI DF 09-2025 Onerado'!B:B,'5_Ceraima'!C55,'Comp SINAPI DF 09-2025 Onerado'!E:E)+SUMIF('Ins SINAPI DF 09-2025 Onerado'!B:B,'5_Ceraima'!C55,'Ins SINAPI DF 09-2025 Onerado'!F:F)),2) -> 15751.56 | H55: 19407.49 | I55: 19407.49
A56: 3.2.3 | B56: PRÓPRIA | C56: CPU.36 | D56: =VLOOKUP(C56,CPU!B53:G4934,2,0) -> Volume III - Planos e Procedimentos | E56: =(VLOOKUP(C56,CPU!$B$10:D$4896,3,0)) -> un | F56: 1 | G56: =TRUNC((1-$H$10)*(SUMIFS(CPU!$G:$G,CPU!$A:$A,'5_Ceraima'!$C56,CPU!$H:$H,"ss")+SUMIFS(CPU!$G:$G,CPU!$A:$A,'5_Ceraima'!$C56,CPU!$H:$H,"mdo")+SUMIF('Comp SINAPI DF 09-2025 Onerado'!B:B,'5_Ceraima'!C56,'Comp SINAPI DF 09-2025 Onerado'!E:E)+SUMIF('Ins SINAPI DF 09-2025 Onerado'!B:B,'5_Ceraima'!C56,'Ins SINAPI DF 09-2025 Onerado'!F:F)),2) -> 15751.56 | H56: 19407.49 | I56: 19407.49
A57: 3.2.4 | B57: PRÓPRIA | C57: CPU.37 | D57: =VLOOKUP(C57,CPU!B53:G4935,2,0) -> Volume IV - Registros e Controles | E57: =(VLOOKUP(C57,CPU!$B$10:D$4896,3,0)) -> un | F57: 1 | G57: =TRUNC((1-$H$10)*(SUMIFS(CPU!$G:$G,CPU!$A:$A,'5_Ceraima'!$C57,CPU!$H:$H,"ss")+SUMIFS(CPU!$G:$G,CPU!$A:$A,'5_Ceraima'!$C57,CPU!$H:$H,"mdo")+SUMIF('Comp SINAPI DF 09-2025 Onerado'!B:B,'5_Ceraima'!C57,'Comp SINAPI DF 09-2025 Onerado'!E:E)+SUMIF('Ins SINAPI DF 09-2025 Onerado'!B:B,'5_Ceraima'!C57,'Ins SINAPI DF 09-2025 Onerado'!F:F)),2) -> 15751.56 | H57: 19407.49 | I57: 19407.49
A58: 3.2.5 | B58: PRÓPRIA | C58: CPU.38 | D58: =VLOOKUP(C58,CPU!B54:G4936,2,0) -> Volume V - Revisão Periódica de Segurança de Barragem | E58: =(VLOOKUP(C58,CPU!$B$10:D$4896,3,0)) -> un | F58: 1 | G58: =TRUNC((1-$H$10)*(SUMIFS(CPU!$G:$G,CPU!$A:$A,'5_Ceraima'!$C58,CPU!$H:$H,"ss")+SUMIFS(CPU!$G:$G,CPU!$A:$A,'5_Ceraima'!$C58,CPU!$H:$H,"mdo")+SUMIF('Comp SINAPI DF 09-2025 Onerado'!B:B,'5_Ceraima'!C58,'Comp SINAPI DF 09-2025 Onerado'!E:E)+SUMIF('Ins SINAPI DF 09-2025 Onerado'!B:B,'5_Ceraima'!C58,'Ins SINAPI DF 09-2025 Onerado'!F:F)),2) -> 27410.88 | H58: 33772.94 | I58: 33772.94
A59: 3.2.6 | B59: PRÓPRIA | C59: CPU.39 | D59: =VLOOKUP(C59,CPU!B55:G4937,2,0) -> Volume V - A - Resumo Executivo | E59: =(VLOOKUP(C59,CPU!$B$10:D$4896,3,0)) -> un | F59: 1 | G59: =TRUNC((1-$H$10)*(SUMIFS(CPU!$G:$G,CPU!$A:$A,'5_Ceraima'!$C59,CPU!$H:$H,"ss")+SUMIFS(CPU!$G:$G,CPU!$A:$A,'5_Ceraima'!$C59,CPU!$H:$H,"mdo")+SUMIF('Comp SINAPI DF 09-2025 Onerado'!B:B,'5_Ceraima'!C59,'Comp SINAPI DF 09-2025 Onerado'!E:E)+SUMIF('Ins SINAPI DF 09-2025 Onerado'!B:B,'5_Ceraima'!C59,'Ins SINAPI DF 09-2025 Onerado'!F:F)),2) -> 24473.94 | H59: =TRUNC(G59*(1+$H$5),2) -> 30154.34 | I59: =TRUNC(F59*H59,2) -> 30154.34
A60: 3.2.7 | B60: PRÓPRIA | C60: CPU.41 | D60: =VLOOKUP(C60,CPU!B59:G4926,2,0) -> Volume VI - Plano de Ação de Emergência | E60: =(VLOOKUP(C60,CPU!$B$10:D$4896,3,0)) -> un | F60: 1 | G60: =TRUNC((1-$H$10)*(SUMIFS(CPU!$G:$G,CPU!$A:$A,'5_Ceraima'!$C60,CPU!$H:$H,"ss")+SUMIFS(CPU!$G:$G,CPU!$A:$A,'5_Ceraima'!$C60,CPU!$H:$H,"mdo")+SUMIF('Comp SINAPI DF 09-2025 Onerado'!B:B,'5_Ceraima'!C60,'Comp SINAPI DF 09-2025 Onerado'!E:E)+SUMIF('Ins SINAPI DF 09-2025 Onerado'!B:B,'5_Ceraima'!C60,'Ins SINAPI DF 09-2025 Onerado'!F:F)),2) -> 32462.4 | H60: =TRUNC(G60*(1+$H$5),2) -> 39996.92 | I60: =TRUNC(F60*H60,2) -> 39996.92
A61: 3.3 | D61: PLANO DE AÇÃO DE EMERGÊNCIA | I61: =SUM(I62:I64) -> 100337.82
A62: 3.3.1 | B62: PRÓPRIA | C62: CPU.24 | D62: =VLOOKUP(C62,CPU!B59:G4924,2,0) -> Projeto de sinalização | E62: =(VLOOKUP(C62,CPU!$B$10:D$4896,3,0)) -> un | F62: 1 | G62: =TRUNC((1-$H$10)*(SUMIFS(CPU!$G:$G,CPU!$A:$A,'5_Ceraima'!$C62,CPU!$H:$H,"ss")+SUMIFS(CPU!$G:$G,CPU!$A:$A,'5_Ceraima'!$C62,CPU!$H:$H,"mdo")+SUMIF('Comp SINAPI DF 09-2025 Onerado'!B:B,'5_Ceraima'!C62,'Comp SINAPI DF 09-2025 Onerado'!E:E)+SUMIF('Ins SINAPI DF 09-2025 Onerado'!B:B,'5_Ceraima'!C62,'Ins SINAPI DF 09-2025 Onerado'!F:F)),2) -> 27232.12 | H62: =TRUNC(G62*(1+$H$5),2) -> 33552.69 | I62: =TRUNC(F62*H62,2) -> 33552.69
A63: 3.3.2 | B63: PRÓPRIA | C63: CPU.25 | D63: =VLOOKUP(C63,CPU!B59:G4925,2,0) -> Projeto de rotas de fuga | E63: =(VLOOKUP(C63,CPU!$B$10:D$4896,3,0)) -> un | F63: 1 | G63: =TRUNC((1-$H$10)*(SUMIFS(CPU!$G:$G,CPU!$A:$A,'5_Ceraima'!$C63,CPU!$H:$H,"ss")+SUMIFS(CPU!$G:$G,CPU!$A:$A,'5_Ceraima'!$C63,CPU!$H:$H,"mdo")+SUMIF('Comp SINAPI DF 09-2025 Onerado'!B:B,'5_Ceraima'!C63,'Comp SINAPI DF 09-2025 Onerado'!E:E)+SUMIF('Ins SINAPI DF 09-2025 Onerado'!B:B,'5_Ceraima'!C63,'Ins SINAPI DF 09-2025 Onerado'!F:F)),2) -> 30599.8 | H63: =TRUNC(G63*(1+$H$5),2) -> 37702.01 | I63: =TRUNC(F63*H63,2) -> 37702.01
A64: 3.3.3 | B64: PRÓPRIA | C64: CPU.32 | D64: =VLOOKUP(C64,CPU!B60:G4927,2,0) -> Projeto de sistema sonoro | E64: =(VLOOKUP(C64,CPU!$B$10:D$4896,3,0)) -> un | F64: 1 | G64: =TRUNC((1-$H$10)*(SUMIFS(CPU!$G:$G,CPU!$A:$A,'5_Ceraima'!$C64,CPU!$H:$H,"ss")+SUMIFS(CPU!$G:$G,CPU!$A:$A,'5_Ceraima'!$C64,CPU!$H:$H,"mdo")+SUMIF('Comp SINAPI DF 09-2025 Onerado'!B:B,'5_Ceraima'!C64,'Comp SINAPI DF 09-2025 Onerado'!E:E)+SUMIF('Ins SINAPI DF 09-2025 Onerado'!B:B,'5_Ceraima'!C64,'Ins SINAPI DF 09-2025 Onerado'!F:F)),2) -> 23604.52 | H64: =TRUNC(G64*(1+$H$5),2) -> 29083.12 | I64: =TRUNC(F64*H64,2) -> 29083.12
D65: TOTAL (Custo): | I65: =TRUNC(SUMPRODUCT(F14:F64,G14:G64),2) -> 601922.24 | M65: =TRUNC(SUMPRODUCT(F14:F53,H14:H53),2) -> 460173.23
D66: BDI e Encargos Sociais: | I66: =I67-I65 -> 139624.3
D67: TOTAL GERAL COM BDI: | I67: =SUM(I49,I40,I13) -> 741546.54 | Q67: =TRUNC(SUMPRODUCT(F14:F64,H14:H64),2) -> 741546.55

Sheet 6_Boacica
A1: Ministério da Integração e do Desenvolvimento Regional
A2: Companhia de Desenvolvimento dos Vales do São Francisco e do Parnaíba
A4: PLANILHA ORÇAMENTÁRIA - ORÇAMENTO NÃO DESONERADO
A5: OBRA: | B5: =Resumo!B5 -> Elaboração de Plano de Segurança de Barragens | G5: BDI (serv.): | H5: ='BDI serv'!D23 -> 0.2321 | I5: Bancos de dados:
A6: LOCAL: | B6: Igreja Nova - AL | G6: BDI (forn.): | H6: ='BDI forn'!D23 -> 0 | I6: =Resumo!G6 -> SETEMBRO/25 - SINAPI
A7: DATA BASE: | B7: 2025-10-01 | E7: Encargos sociais - Horistas: | H7: ='Encargos Sociais DF'!E49 -> 1.1011 | I7: =Resumo!G7 -> SIURB INFRA JAN/2025
A8: PRAZO: | B8: =Resumo!B8 -> 300 dias | E8: Encargos sociais - Mensalista: | H8: ='Encargos Sociais DF'!F49 -> 0.7019 | I8: =Resumo!G8 -> JAN/25 E JUL/2025- SETOP
I9: =Resumo!G9 -> JUNHO/25 - EMBASA
B10: Boacica | G10: Desconto: | H10: 0 | I10: =Resumo!G10 -> JUL/2025 - CONSULT. DNIT
A11: ITEM | B11: REFERÊNCIA | D11: DESCRIÇÃO | E11: UNID. | F11: QUANT. | G11: CUSTO UNITÁRIO | H11: PREÇO UNITÁRIO | I11: PREÇO TOTAL
B12: FONTE | C12: CÓDIGO
A13: 1 | D13: ='1_Bico da Pedra'!D13 -> ETAPA 1 | I13: =SUM(I14,I16,I34,I37,I40) -> 585506.96
A14: 1.1 | D14: Visita Técnica | I14: =SUM(I15:I15) -> 55532.37
A15: 1.1.1 | B15: PRÓPRIA | C15: CPU.09 | D15: =VLOOKUP(C15,CPU!B29:G75,2,0) -> Inspeção Visual da Estrutura (Multidisciplinar) e elaboração de relatório | E15: =(VLOOKUP(C15,CPU!$B$10:D$4937,3,0)) -> un | F15: 1 | G15: =TRUNC((1-$H$10)*(SUMIFS(CPU!$G:$G,CPU!$A:$A,'6_Boacica'!$C15,CPU!$H:$H,"ss")+SUMIFS(CPU!$G:$G,CPU!$A:$A,'6_Boacica'!$C15,CPU!$H:$H,"mdo")+SUMIF('Comp SINAPI DF 09-2025 Onerado'!B:B,'6_Boacica'!C15,'Comp SINAPI DF 09-2025 Onerado'!E:E)+SUMIF('Ins SINAPI DF 09-2025 Onerado'!B:B,'6_Boacica'!C15,'Ins SINAPI DF 09-2025 Onerado'!F:F)),2) -> 45071.32 | H15: =TRUNC(G15*(1+$H$5),2) -> 55532.37 | I15: =TRUNC(F15*H15,2) -> 55532.37
A16: 1.2 | D16: INVESTIGAÇÃO GEOLÓGICA E GEOTÉCNICA | I16: =SUM(I17:I33) -> 145429.85
A17: 1.2.1 | B17: SETOP | C17: CO-28389 | D17: Mobilização e desmobilização de equipamento de sondagem a percussão com Ensaio de Penetração Padrão (SPT) (custo variável), exclusive custo fixo | E17: km | F17: ='Memorial de cálculo'!M14*2 -> 321.2 | G17: =TRUNC((1-$H$10)*J17,2) -> 2.04 | H17: =TRUNC(G17*(1+$H$5),2) -> 2.51 | I17: =TRUNC(F17*H17,2) -> 806.21 | J17: =VLOOKUP(C17,'OUTRAS BASES'!B:C,2,0) -> 2.04
A18: 1.2.2 | B18: SETOP | C18: CO-28388 | D18: Sondagem a percussão com Ensaio de Penetração Padrão (SPT), diâmetro 2.1/2", exclusive mobilização e desmobilização | E18: m | F18: =ROUNDUP('Pontos de Sondagem'!E124,0) -> 212 | G18: =TRUNC((1-$H$10)*J18,2) -> 79.09 | H18: =TRUNC(G18*(1+$H$5),2) -> 97.44 | I18: =TRUNC(F18*H18,2) -> 20657.28 | J18: =VLOOKUP(C18,'OUTRAS BASES'!B:C,2,0) -> 79.09
A19: 1.2.3 | B19: EMBASA | C19: 32.05.04 | D19: Mobilização e desmobilização de equipe e equipamentos para sondagem rotativa ou mista | E19: km | F19: 1 | G19: =TRUNC((1-$H$10)*J19,2) -> 5.16 | H19: 6.35 | I19: 6.35 | J19: =VLOOKUP(C19,'OUTRAS BASES'!B:C,2,0) -> 5.16 | L19: c | M19: 1.5
A20: 1.2.4 | B20: SCO | C20: AD 05.15.0400 | D20: Sondagem rotativa vertical, em rocha sa, com coroa de diamante, diametro H (99mm), inclusive deslocamento e posicionamento em cada furo. | E20: m | F20: =ROUNDUP('Pontos de Sondagem'!G124,0) -> 43 | G20: =TRUNC((1-$H$10)*J20,2) -> 1422.4 | H20: =TRUNC(G20*(1+$H$5),2) -> 1752.53 | I20: =TRUNC(F20*H20,2) -> 75358.79 | J20: =VLOOKUP(C20,'OUTRAS BASES'!B:C,2,0) -> 1422.4 | L20: d | M20: =63.5/1000 -> 0.0635 | N20: m
A21: 1.2.5 | B21: SICRO3 | C21: 3816196 | D21: Fechamento dos Furos - Injeção de nata de cimento | E21: =(VLOOKUP(C21,CPU!$B$10:D$4937,3,0)) -> m³ | F21: =ROUNDUP(M24,1) -> 1.3 | G21: =TRUNC((1-$H$10)*J21,2) -> 1012.78 | H21: =TRUNC(G21*(1+$H$5),2) -> 1247.84 | I21: =TRUNC(F21*H21,2) -> 1622.19 | J21: =VLOOKUP(C21,'OUTRAS BASES'!B:C,2,0) -> 1012.78 | L21: A | M21: =PI()*(M20*M20)/4 -> 0.003166921744
A22: 1.2.6 | B22: PRÓPRIA | C22: CPU.45 | D22: =VLOOKUP(C22,CPU!$B$29:$G$4941,2,0) -> Mobilização e Desmobilização de Equipe de retirada de amostra deformada e indeformada | E22: =(VLOOKUP(C22,CPU!$B$10:D$4935,3,0)) -> km | F22: =F17 -> 321.2 | G22: =TRUNC((1-$H$10)*(SUMIFS(CPU!$G:$G,CPU!$A:$A,'6_Boacica'!$C22,CPU!$H:$H,"ss")+SUMIFS(CPU!$G:$G,CPU!$A:$A,'6_Boacica'!$C22,CPU!$H:$H,"mdo")+SUMIF('Comp SINAPI DF 09-2025 Onerado'!B:B,'6_Boacica'!C22,'Comp SINAPI DF 09-2025 Onerado'!E:E)+SUMIF('Ins SINAPI DF 09-2025 Onerado'!B:B,'6_Boacica'!C22,'Ins SINAPI DF 09-2025 Onerado'!F:F)),2) -> 2.04 | H22: 2.51 | I22: =TRUNC(F22*H22,2) -> 806.21
A23: 1.2.7 | B23: EMBASA | C23: 34.04.07 | D23: Retirada de amostra deformada | E23: un | F23: 3 | G23: =TRUNC((1-$H$10)*J23,2) -> 105.24 | H23: =TRUNC(G23*(1+$H$5),2) -> 129.66 | I23: 388.98 | J23: =VLOOKUP(C23,'OUTRAS BASES'!B:C,2,0) -> 105.24
A24: 1.2.8 | B24: SUDECAP | C24: 65.08.22 | D24: Retirada de amostra indeformada em blocos 30X30X30CM (NBR 9604:2016), Profundidade = 1 a 2 m | E24: =(VLOOKUP(C24,CPU!$B$10:D$4937,3,0)) -> un | F24: 2 | G24: 1800 | H24: 2217.78 | I24: =TRUNC(F24*H24,2) -> 4435.56 | J24: =VLOOKUP(C24,'OUTRAS BASES'!B:C,2,0) -> 1800 | L24: V | M24: =M21*(F18+F20)*M19 -> 1.211347567
A25: 1.2.9 | B25: PRÓPRIA | C25: CPU.23 | D25: =VLOOKUP(C25,CPU!$B$29:$G$235,2,0) -> Reaterro com compactação adequada dos pontos de coleta de amostra, Inclusive com fornecimento de solo | E25: =(VLOOKUP(C25,CPU!$B$10:D$4939,3,0)) -> m³ | F25: =ROUNDUP(1.5*1.5*1.5*F24,0) -> 7 | G25: =TRUNC((1-$H$10)*(SUMIFS(CPU!$G:$G,CPU!$A:$A,'3_Estreito'!$C25,CPU!$H:$H,"ss")+SUMIFS(CPU!$G:$G,CPU!$A:$A,'3_Estreito'!$C25,CPU!$H:$H,"mdo")+SUMIF('Comp SINAPI DF 09-2025 Onerado'!B:B,'3_Estreito'!C25,'Comp SINAPI DF 09-2025 Onerado'!E:E)+SUMIF('Ins SINAPI DF 09-2025 Onerado'!B:B,'3_Estreito'!C25,'Ins SINAPI DF 09-2025 Onerado'!F:F)),2) -> 79.02 | H25: =TRUNC(G25*(1+$H$5),2) -> 97.36 | I25: =TRUNC(F25*H25,2) -> 681.52
A26: 1.2.10 | B26: SETOP | C26: CO-6334 | D26: Granulometria por peneiramento e sedimentação | E26: =(VLOOKUP(C26,CPU!$B$10:D$4937,3,0)) -> un | F26: 2 | G26: 247.24 | H26: 304.62 | I26: 609.24 | J26: =VLOOKUP(C26,'OUTRAS BASES'!B:C,2,0) -> 247.24
A27: 1.2.11 | B27: SUDECAP | C27: 67.01.30 | D27: Compressão Triaxial Lento Saturado (CD) mínimo 3 corpos de prova | E27: =(VLOOKUP(C27,CPU!$B$10:D$4937,3,0)) -> un | F27: 6 | G27: 1140.54 | H27: 1405.25 | I27: 8431.5 | J27: =VLOOKUP(C27,'OUTRAS BASES'!B:C,2,0) -> 1140.54
A28: 1.2.12 | B28: SUDECAP | C28: 67.01.28 | D28: Compressão Triaxial rápido pre-adensado saturado (R-SAT/CIU-SAT) c/ medidas pressão neutra mínimo 3 corpos de prova | E28: =(VLOOKUP(C28,CPU!$B$10:D$4937,3,0)) -> un | F28: 3 | G28: 5250 | H28: 6468.52 | I28: 19405.56 | J28: =VLOOKUP(C28,'OUTRAS BASES'!B:C,2,0) -> 5250
A29: 1.2.13 | B29: SCO | C29: AD 04.05.0300 | D29: Ensaio para determinacao, em laboratorio, do Limite de Plasticidade de amostra de solo fino, de acordo com as recomendacoes da NBR7180 e da NBR6457.(desonerado) | E29: =(VLOOKUP(C29,CPU!$B$10:D$142,3,0)) -> un | F29: =F26 -> 2 | G29: =TRUNC((1-$H$10)*J29,2) -> 161.92 | H29: =TRUNC(G29*(1+$H$5),2) -> 199.5 | I29: =TRUNC(F29*H29,2) -> 399 | J29: =VLOOKUP(C29,'OUTRAS BASES'!B:C,2,0) -> 161.92
A30: 1.2.14 | B30: SCO | C30: AD 04.05.0250 | D30: Ensaio para determinacao, em laboratorio, do Limite de Liquidez de amostra de solo fino, de acordo com as recomendacoes da NBR7180 e da NBR6457.(desonerado) | E30: =(VLOOKUP(C30,CPU!$B$10:D$142,3,0)) -> um | F30: =F26 -> 2 | G30: =TRUNC((1-$H$10)*J30,2) -> 161.92 | H30: =TRUNC(G30*(1+$H$5),2) -> 199.5 | I30: =TRUNC(F30*H30,2) -> 399 | J30: =VLOOKUP(C30,'OUTRAS BASES'!B:C,2,0) -> 161.92
A31: 1.2.15 | B31: SETOP | C31: CO-6358 | D31: Determinação do coeficiente de permeabilidade de solos argilosos à carga variável | E31: =(VLOOKUP(C31,CPU!$B$10:D$4937,3,0)) -> un | F31: 6 | G31: 589.03 | H31: 725.74 | I31: 4354.44 | J31: =VLOOKUP(C31,'OUTRAS BASES'!B:C,2,0) -> 589.03
A32: 1.2.16 | B32: PRÓPRIA | C32: CPU.04 | D32: =VLOOKUP(C32,CPU!$B$29:$G$235,2,0) -> Avaliação da espessura de carbonatação, por ponto, em estruturas de concreto armado ou protendido, através de aspersão de solução de fenolftaleína, inclusive coleta da amostra | E32: =(VLOOKUP(C32,CPU!$B$10:D$4937,3,0)) -> un | F32: 4 | G32: =TRUNC((1-$H$10)*(SUMIFS(CPU!$G:$G,CPU!$A:$A,'6_Boacica'!$C32,CPU!$H:$H,"ss")+SUMIFS(CPU!$G:$G,CPU!$A:$A,'6_Boacica'!$C32,CPU!$H:$H,"mdo")+SUMIF('Comp SINAPI DF 09-2025 Onerado'!B:B,'6_Boacica'!C32,'Comp SINAPI DF 09-2025 Onerado'!E:E)+SUMIF('Ins SINAPI DF 09-2025 Onerado'!B:B,'6_Boacica'!C32,'Ins SINAPI DF 09-2025 Onerado'!F:F)),2) -> 470.15 | H32: =TRUNC(G32*(1+$H$5),2) -> 579.27 | I32: 2317.08
A33: 1.2.17 | B33: PRÓPRIA | C33: CPU.05 | D33: =VLOOKUP(C33,CPU!$B$29:$G$235,2,0) -> Ensaio de esclerometria em 10 pontos com 16 tiros por ponto | E33: =(VLOOKUP(C33,CPU!$B$10:D$142,3,0)) -> un | F33: 2 | G33: =TRUNC((1-$H$10)*(SUMIFS(CPU!$G:$G,CPU!$A:$A,'6_Boacica'!$C33,CPU!$H:$H,"ss")+SUMIFS(CPU!$G:$G,CPU!$A:$A,'6_Boacica'!$C33,CPU!$H:$H,"mdo")+SUMIF('Comp SINAPI DF 09-2025 Onerado'!B:B,'6_Boacica'!C33,'Comp SINAPI DF 09-2025 Onerado'!E:E)+SUMIF('Ins SINAPI DF 09-2025 Onerado'!B:B,'6_Boacica'!C33,'Ins SINAPI DF 09-2025 Onerado'!F:F)),2) -> 1927.99 | H33: 2375.47 | I33: 4750.94
A34: 1.3 | D34: Levantamento Topográfico | I34: =SUM(I35:I36) -> 50192.23
A35: 1.3.1 | B35: PRÓPRIA | C35: CPU.28 | D35: =VLOOKUP(C35,CPU!B29:G413,2,0) -> Mobilização e Desmobilização de Equipe de Levantamento topográfico | E35: =(VLOOKUP(C35,CPU!$B$10:D$4937,3,0)) -> un | F35: 1 | G35: =TRUNC((1-$H$10)*J35,2) -> 21877.07 | H35: =TRUNC(G35*(1+$H$5),2) -> 26954.73 | I35: =TRUNC(F35*H35,2) -> 26954.73 | J35: 21877.07
A36: 1.3.2 | B36: SETOP | C36: CO-27367 | D36: Levantamento planialtimétrico e cadastral terreno de 10.001 a 50.000 m² | E36: m² | F36: ='Memorial de cálculo'!M20 -> 42250 | G36: =TRUNC((1-$H$10)*J36,2) -> 0.45 | H36: =TRUNC(G36*(1+$H$5),2) -> 0.55 | I36: =TRUNC(F36*H36,2) -> 23237.5 | J36: =VLOOKUP(C36,'OUTRAS BASES'!B:C,2,0) -> 0.45
A37: 1.4 | D37: Levantamento Batimétrico | I37: =SUM(I38:I39) -> 225803.96
A38: 1.4.1 | B38: EMBASA | C38: 31.90.12 | D38: Transporte de Equipe e Equipamentos para levantamento batimétrico com Ecobatímetro | E38: km | F38: =F17 -> 321.2 | G38: =TRUNC((1-$H$10)*J38,2) -> 6.68 | H38: =TRUNC(G38*(1+$H$5),2) -> 8.23 | I38: =TRUNC(F38*H38,2) -> 2643.47 | J38: =VLOOKUP(C38,'OUTRAS BASES'!B:C,2,0) -> 6.68
A39: 1.4.2 | B39: PRÓPRIA | C39: CPU.44 | D39: =VLOOKUP(C39,CPU!B29:G4917,2,0) -> Levantamento batimétrico com equipamento ecobatímetro, processamento de dados e desenho técnico | E39: =(VLOOKUP(C39,CPU!$B$10:D$4939,3,0)) -> ha | F39: ='Memorial de cálculo'!M5 -> 483 | G39: =TRUNC((1-$H$10)*(SUMIFS(CPU!$G:$G,CPU!$A:$A,'6_Boacica'!$C39,CPU!$H:$H,"ss")+SUMIFS(CPU!$G:$G,CPU!$A:$A,'6_Boacica'!$C39,CPU!$H:$H,"mdo")+SUMIF('Comp SINAPI DF 09-2025 Onerado'!B:B,'6_Boacica'!C39,'Comp SINAPI DF 09-2025 Onerado'!E:E)+SUMIF('Ins SINAPI DF 09-2025 Onerado'!B:B,'6_Boacica'!C39,'Ins SINAPI DF 09-2025 Onerado'!F:F)),2) -> 375 | H39: =TRUNC(G39*(1+$H$5),2) -> 462.03 | I39: =TRUNC(F39*H39,2) -> 223160.49
A40: 1.5 | D40: Levantamento Fotogramétrico | I40: =SUM(I41:I42) -> 108548.55
A41: 1.5.1 | B41: PRÓPRIA | C41: CPU.31 | D41: =VLOOKUP(C41,CPU!B33:G4925,2,0) -> Mobilização e Desmobilização de Equipe e Equipamentos de Levantamento Fotogramétrico | E41: =(VLOOKUP(C41,CPU!$B$10:D$210,3,0)) -> km | F41: =F17 -> 321.2 | G41: =TRUNC((1-$H$10)*J41,2) -> 7.74 | H41: =TRUNC(G41*(1+$H$5),2) -> 9.53 | I41: =TRUNC(F41*H41,2) -> 3061.03 | J41: 7.74
A42: 1.5.2 | B42: EMBASA | C42: 31.90.15 | D42: Levant. Fotogrametrico c/ VANT (drone) áreas pelo que exceder 1000 ha, incl. ortofotos, GSD<=3, acuracia horiz. min. 3 cm e vert. min. 6cm, aferidos c/ pontos de controle dist. min. 650 m entre eles,exclusive transporte de equipe e equipamentos | E42: ha | F42: ='Memorial de cálculo'!M27+'Memorial de cálculo'!M21 -> 10886.225 | G42: =TRUNC((1-$H$10)*J42,2) -> 7.87 | H42: =TRUNC(G42*(1+$H$5),2) -> 9.69 | I42: =TRUNC(F42*H42,2) -> 105487.52 | J42: =VLOOKUP(C42,'OUTRAS BASES'!B:C,2,0) -> 7.87
A43: 2 | D43: ETAPA 2 | I43: =SUM(I44) -> 155749.58
A44: 2.1 | D44: ESTUDOS | I44: =SUM(I45:I52) -> 155749.58
A45: 2.1.1 | B45: PRÓPRIA | C45: CPU.11 | D45: =VLOOKUP(C45,CPU!$B$29:$G$159,2,0) -> Estudo Geológico-geotécnico | E45: =(VLOOKUP(C45,CPU!$B$10:D$159,3,0)) -> un | F45: 1 | G45: =TRUNC((1-$H$10)*(SUMIFS(CPU!$G:$G,CPU!$A:$A,'6_Boacica'!$C45,CPU!$H:$H,"ss")+SUMIFS(CPU!$G:$G,CPU!$A:$A,'6_Boacica'!$C45,CPU!$H:$H,"mdo")+SUMIF('Comp SINAPI DF 09-2025 Onerado'!B:B,'6_Boacica'!C45,'Comp SINAPI DF 09-2025 Onerado'!E:E)+SUMIF('Ins SINAPI DF 09-2025 Onerado'!B:B,'6_Boacica'!C45,'Ins SINAPI DF 09-2025 Onerado'!F:F)),2) -> 14328.22 | H45: =TRUNC(G45*(1+$H$5),2) -> 17653.79 | I45: =TRUNC(F45*H45,2) -> 17653.79
A46: 2.1.2 | B46: PRÓPRIA | C46: CPU.12 | D46: =VLOOKUP(C46,CPU!$B$29:$G$159,2,0) -> Relatório Fotogramétricos e Tratamento de Dados | E46: =(VLOOKUP(C46,CPU!$B$10:D$142,3,0)) -> un | F46: 1 | G46: =TRUNC((1-$H$10)*(SUMIFS(CPU!$G:$G,CPU!$A:$A,'6_Boacica'!$C46,CPU!$H:$H,"ss")+SUMIFS(CPU!$G:$G,CPU!$A:$A,'6_Boacica'!$C46,CPU!$H:$H,"mdo")+SUMIF('Comp SINAPI DF 09-2025 Onerado'!B:B,'6_Boacica'!C46,'Comp SINAPI DF 09-2025 Onerado'!E:E)+SUMIF('Ins SINAPI DF 09-2025 Onerado'!B:B,'6_Boacica'!C46,'Ins SINAPI DF 09-2025 Onerado'!F:F)),2) -> 8785.99 | H46: =TRUNC(G46*(1+$H$5),2) -> 10825.21 | I46: =TRUNC(F46*H46,2) -> 10825.21
A47: 2.1.3 | B47: PRÓPRIA | C47: CPU.13 | D47: =VLOOKUP(C47,CPU!$B$29:$G$159,2,0) -> Estudo de Ruputura e Mapas de Inundação | E47: =(VLOOKUP(C47,CPU!$B$10:D$159,3,0)) -> un | F47: 1 | G47: =TRUNC((1-$H$10)*(SUMIFS(CPU!$G:$G,CPU!$A:$A,'6_Boacica'!$C47,CPU!$H:$H,"ss")+SUMIFS(CPU!$G:$G,CPU!$A:$A,'6_Boacica'!$C47,CPU!$H:$H,"mdo")+SUMIF('Comp SINAPI DF 09-2025 Onerado'!B:B,'6_Boacica'!C47,'Comp SINAPI DF 09-2025 Onerado'!E:E)+SUMIF('Ins SINAPI DF 09-2025 Onerado'!B:B,'6_Boacica'!C47,'Ins SINAPI DF 09-2025 Onerado'!F:F)),2) -> 38768.32 | H47: =TRUNC(G47*(1+$H$5),2) -> 47766.44 | I47: =TRUNC(F47*H47,2) -> 47766.44
A48: 2.1.4 | B48: PRÓPRIA | C48: CPU.14 | D48: =VLOOKUP(C48,CPU!$B$29:$G$159,2,0) -> Estudo de Estabilidade e Percolação - Barragem de Terra | E48: =(VLOOKUP(C48,CPU!$B$10:D$4939,3,0)) -> un | F48: 1 | G48: =TRUNC((1-$H$10)*(SUMIFS(CPU!$G:$G,CPU!$A:$A,'6_Boacica'!$C48,CPU!$H:$H,"ss")+SUMIFS(CPU!$G:$G,CPU!$A:$A,'6_Boacica'!$C48,CPU!$H:$H,"mdo")+SUMIF('Comp SINAPI DF 09-2025 Onerado'!B:B,'6_Boacica'!C48,'Comp SINAPI DF 09-2025 Onerado'!E:E)+SUMIF('Ins SINAPI DF 09-2025 Onerado'!B:B,'6_Boacica'!C48,'Ins SINAPI DF 09-2025 Onerado'!F:F)),2) -> 35476.72 | H48: =TRUNC(G48*(1+$H$5),2) -> 43710.86 | I48: =TRUNC(F48*H48,2) -> 43710.86
A49: 2.1.5 | B49: PRÓPRIA | C49: CPU.33 | D49: =VLOOKUP(C49,CPU!$B$29:$G$4939,2,0) -> Relatório de Avaliação de Estruturas de Concreto | E49: =(VLOOKUP(C49,CPU!$B$10:D$4939,3,0)) -> un | F49: 1 | G49: =TRUNC((1-$H$10)*(SUMIFS(CPU!$G:$G,CPU!$A:$A,'6_Boacica'!$C49,CPU!$H:$H,"ss")+SUMIFS(CPU!$G:$G,CPU!$A:$A,'6_Boacica'!$C49,CPU!$H:$H,"mdo")+SUMIF('Comp SINAPI DF 09-2025 Onerado'!B:B,'6_Boacica'!C49,'Comp SINAPI DF 09-2025 Onerado'!E:E)+SUMIF('Ins SINAPI DF 09-2025 Onerado'!B:B,'6_Boacica'!C49,'Ins SINAPI DF 09-2025 Onerado'!F:F)),2) -> 6010.8 | H49: =TRUNC(G49*(1+$H$5),2) -> 7405.9 | I49: =TRUNC(F49*H49,2) -> 7405.9
A50: 2.1.6 | B50: PRÓPRIA | C50: CPU.40 | D50: =VLOOKUP(C50,CPU!$B$29:$G$4939,2,0) -> Relatório Topográfico e Tratamento de Dados | E50: =(VLOOKUP(C50,CPU!$B$10:D$4939,3,0)) -> un | F50: 1 | G50: =TRUNC((1-$H$10)*(SUMIFS(CPU!$G:$G,CPU!$A:$A,'6_Boacica'!$C50,CPU!$H:$H,"ss")+SUMIFS(CPU!$G:$G,CPU!$A:$A,'6_Boacica'!$C50,CPU!$H:$H,"mdo")+SUMIF('Comp SINAPI DF 09-2025 Onerado'!B:B,'6_Boacica'!C50,'Comp SINAPI DF 09-2025 Onerado'!E:E)+SUMIF('Ins SINAPI DF 09-2025 Onerado'!B:B,'6_Boacica'!C50,'Ins SINAPI DF 09-2025 Onerado'!F:F)),2) -> 8514.52 | H50: 10490.74 | I50: 10490.74
A51: 2.1.7 | B51: PRÓPRIA | C51: CPU.42 | D51: =VLOOKUP(C51,CPU!$B$29:$G$4939,2,0) -> Relatório de Investigação Geológica/Geotécnica | E51: =(VLOOKUP(C51,CPU!$B$10:D$4939,3,0)) -> un | F51: 1 | G51: =TRUNC((1-$H$10)*(SUMIFS(CPU!$G:$G,CPU!$A:$A,'6_Boacica'!$C51,CPU!$H:$H,"ss")+SUMIFS(CPU!$G:$G,CPU!$A:$A,'6_Boacica'!$C51,CPU!$H:$H,"mdo")+SUMIF('Comp SINAPI DF 09-2025 Onerado'!B:B,'6_Boacica'!C51,'Comp SINAPI DF 09-2025 Onerado'!E:E)+SUMIF('Ins SINAPI DF 09-2025 Onerado'!B:B,'6_Boacica'!C51,'Ins SINAPI DF 09-2025 Onerado'!F:F)),2) -> 6010.8 | H51: 7405.9 | I51: 7405.9
A52: 2.1.8 | B52: PRÓPRIA | C52: CPU.43 | D52: =VLOOKUP(C52,CPU!$B$29:$G$4939,2,0) -> Relatório de Levantamento Batimétrico e Tratamento de Dados | E52: =(VLOOKUP(C52,CPU!$B$10:D$4939,3,0)) -> un | F52: 1 | G52: =TRUNC((1-$H$10)*(SUMIFS(CPU!$G:$G,CPU!$A:$A,'6_Boacica'!$C52,CPU!$H:$H,"ss")+SUMIFS(CPU!$G:$G,CPU!$A:$A,'6_Boacica'!$C52,CPU!$H:$H,"mdo")+SUMIF('Comp SINAPI DF 09-2025 Onerado'!B:B,'6_Boacica'!C52,'Comp SINAPI DF 09-2025 Onerado'!E:E)+SUMIF('Ins SINAPI DF 09-2025 Onerado'!B:B,'6_Boacica'!C52,'Ins SINAPI DF 09-2025 Onerado'!F:F)),2) -> 8514.52 | H52: 10490.74 | I52: =TRUNC(F52*H52,2) -> 10490.74
A53: 3 | D53: ETAPA 3 | I53: =SUM(I54+I57+I65) -> 372432.11
A54: 3.1 | D54: PROJETOS | I54: =SUM(I55:I56) -> 91058.79
A55: 3.1.1 | B55: PRÓPRIA | C55: CPU.18 | D55: =VLOOKUP(C55,CPU!B69:G175,2,0) -> Projeto de Instrumentação | E55: =(VLOOKUP(C55,CPU!$B$10:D$142,3,0)) -> un | F55: 1 | G55: =TRUNC((1-$H$10)*(SUMIFS(CPU!$G:$G,CPU!$A:$A,'6_Boacica'!$C55,CPU!$H:$H,"ss")+SUMIFS(CPU!$G:$G,CPU!$A:$A,'6_Boacica'!$C55,CPU!$H:$H,"mdo")+SUMIF('Comp SINAPI DF 09-2025 Onerado'!B:B,'6_Boacica'!C55,'Comp SINAPI DF 09-2025 Onerado'!E:E)+SUMIF('Ins SINAPI DF 09-2025 Onerado'!B:B,'6_Boacica'!C55,'Ins SINAPI DF 09-2025 Onerado'!F:F)),2) -> 29283.76 | H55: =TRUNC(G55*(1+$H$5),2) -> 36080.52 | I55: =TRUNC(F55*H55,2) -> 36080.52
A56: 3.1.2 | B56: PRÓPRIA | C56: CPU.20 | D56: =VLOOKUP(C56,CPU!B69:G183,2,0) -> Projeto Geométrico (AS IS) | E56: =(VLOOKUP(C56,CPU!$B$10:D$142,3,0)) -> un | F56: 1 | G56: =TRUNC((1-$H$10)*(SUMIFS(CPU!$G:$G,CPU!$A:$A,'6_Boacica'!$C56,CPU!$H:$H,"ss")+SUMIFS(CPU!$G:$G,CPU!$A:$A,'6_Boacica'!$C56,CPU!$H:$H,"mdo")+SUMIF('Comp SINAPI DF 09-2025 Onerado'!B:B,'6_Boacica'!C56,'Comp SINAPI DF 09-2025 Onerado'!E:E)+SUMIF('Ins SINAPI DF 09-2025 Onerado'!B:B,'6_Boacica'!C56,'Ins SINAPI DF 09-2025 Onerado'!F:F)),2) -> 44621.6 | H56: =TRUNC(G56*(1+$H$5),2) -> 54978.27 | I56: =TRUNC(F56*H56,2) -> 54978.27
A57: 3.2 | D57: PLANO DE SEGURANÇA DE BARRAGENS | I57: =SUM(I58:N64) -> 181035.5
A58: 3.2.1 | B58: PRÓPRIA | C58: CPU.34 | D58: =VLOOKUP(C58,CPU!B64:G4933,2,0) -> Volume I - Informações Gerais | E58: =(VLOOKUP(C58,CPU!$B$10:D$4896,3,0)) -> un | F58: 1 | G58: =TRUNC((1-$H$10)*(SUMIFS(CPU!$G:$G,CPU!$A:$A,'6_Boacica'!$C58,CPU!$H:$H,"ss")+SUMIFS(CPU!$G:$G,CPU!$A:$A,'6_Boacica'!$C58,CPU!$H:$H,"mdo")+SUMIF('Comp SINAPI DF 09-2025 Onerado'!B:B,'6_Boacica'!C58,'Comp SINAPI DF 09-2025 Onerado'!E:E)+SUMIF('Ins SINAPI DF 09-2025 Onerado'!B:B,'6_Boacica'!C58,'Ins SINAPI DF 09-2025 Onerado'!F:F)),2) -> 15330.6 | H58: =TRUNC(G58*(1+$H$5),2) -> 18888.83 | I58: =TRUNC(F58*H58,2) -> 18888.83
A59: 3.2.2 | B59: PRÓPRIA | C59: CPU.35 | D59: =VLOOKUP(C59,CPU!B65:G4934,2,0) -> Volume II - Documentação Técnica | E59: =(VLOOKUP(C59,CPU!$B$10:D$4896,3,0)) -> un | F59: 1 | G59: =TRUNC((1-$H$10)*(SUMIFS(CPU!$G:$G,CPU!$A:$A,'6_Boacica'!$C59,CPU!$H:$H,"ss")+SUMIFS(CPU!$G:$G,CPU!$A:$A,'6_Boacica'!$C59,CPU!$H:$H,"mdo")+SUMIF('Comp SINAPI DF 09-2025 Onerado'!B:B,'6_Boacica'!C59,'Comp SINAPI DF 09-2025 Onerado'!E:E)+SUMIF('Ins SINAPI DF 09-2025 Onerado'!B:B,'6_Boacica'!C59,'Ins SINAPI DF 09-2025 Onerado'!F:F)),2) -> 15751.56 | H59: 19407.49 | I59: =TRUNC(F59*H59,2) -> 19407.49
A60: 3.2.3 | B60: PRÓPRIA | C60: CPU.36 | D60: =VLOOKUP(C60,CPU!B66:G4935,2,0) -> Volume III - Planos e Procedimentos | E60: =(VLOOKUP(C60,CPU!$B$10:D$4896,3,0)) -> un | F60: 1 | G60: =TRUNC((1-$H$10)*(SUMIFS(CPU!$G:$G,CPU!$A:$A,'6_Boacica'!$C60,CPU!$H:$H,"ss")+SUMIFS(CPU!$G:$G,CPU!$A:$A,'6_Boacica'!$C60,CPU!$H:$H,"mdo")+SUMIF('Comp SINAPI DF 09-2025 Onerado'!B:B,'6_Boacica'!C60,'Comp SINAPI DF 09-2025 Onerado'!E:E)+SUMIF('Ins SINAPI DF 09-2025 Onerado'!B:B,'6_Boacica'!C60,'Ins SINAPI DF 09-2025 Onerado'!F:F)),2) -> 15751.56 | H60: 19407.49 | I60: 19407.49
A61: 3.2.4 | B61: PRÓPRIA | C61: CPU.37 | D61: =VLOOKUP(C61,CPU!B67:G4936,2,0) -> Volume IV - Registros e Controles | E61: =(VLOOKUP(C61,CPU!$B$10:D$4896,3,0)) -> un | F61: 1 | G61: =TRUNC((1-$H$10)*(SUMIFS(CPU!$G:$G,CPU!$A:$A,'6_Boacica'!$C61,CPU!$H:$H,"ss")+SUMIFS(CPU!$G:$G,CPU!$A:$A,'6_Boacica'!$C61,CPU!$H:$H,"mdo")+SUMIF('Comp SINAPI DF 09-2025 Onerado'!B:B,'6_Boacica'!C61,'Comp SINAPI DF 09-2025 Onerado'!E:E)+SUMIF('Ins SINAPI DF 09-2025 Onerado'!B:B,'6_Boacica'!C61,'Ins SINAPI DF 09-2025 Onerado'!F:F)),2) -> 15751.56 | H61: 19407.49 | I61: 19407.49
A62: 3.2.5 | B62: PRÓPRIA | C62: CPU.38 | D62: =VLOOKUP(C62,CPU!B67:G4937,2,0) -> Volume V - Revisão Periódica de Segurança de Barragem | E62: =(VLOOKUP(C62,CPU!$B$10:D$4896,3,0)) -> un | F62: 1 | G62: =TRUNC((1-$H$10)*(SUMIFS(CPU!$G:$G,CPU!$A:$A,'6_Boacica'!$C62,CPU!$H:$H,"ss")+SUMIFS(CPU!$G:$G,CPU!$A:$A,'6_Boacica'!$C62,CPU!$H:$H,"mdo")+SUMIF('Comp SINAPI DF 09-2025 Onerado'!B:B,'6_Boacica'!C62,'Comp SINAPI DF 09-2025 Onerado'!E:E)+SUMIF('Ins SINAPI DF 09-2025 Onerado'!B:B,'6_Boacica'!C62,'Ins SINAPI DF 09-2025 Onerado'!F:F)),2) -> 27410.88 | H62: 33772.94 | I62: 33772.94
A63: 3.2.6 | B63: PRÓPRIA | C63: CPU.39 | D63: =VLOOKUP(C63,CPU!B67:G4937,2,0) -> Volume V - A - Resumo Executivo | E63: =(VLOOKUP(C63,CPU!$B$10:D$4896,3,0)) -> un | F63: 1 | G63: =TRUNC((1-$H$10)*(SUMIFS(CPU!$G:$G,CPU!$A:$A,'6_Boacica'!$C63,CPU!$H:$H,"ss")+SUMIFS(CPU!$G:$G,CPU!$A:$A,'6_Boacica'!$C63,CPU!$H:$H,"mdo")+SUMIF('Comp SINAPI DF 09-2025 Onerado'!B:B,'6_Boacica'!C63,'Comp SINAPI DF 09-2025 Onerado'!E:E)+SUMIF('Ins SINAPI DF 09-2025 Onerado'!B:B,'6_Boacica'!C63,'Ins SINAPI DF 09-2025 Onerado'!F:F)),2) -> 24473.94 | H63: =TRUNC(G63*(1+$H$5),2) -> 30154.34 | I63: =TRUNC(F63*H63,2) -> 30154.34
A64: 3.2.7 | B64: PRÓPRIA | C64: CPU.41 | D64: =VLOOKUP(C64,CPU!B70:G4938,2,0) -> Volume VI - Plano de Ação de Emergência | E64: =(VLOOKUP(C64,CPU!$B$10:D$4896,3,0)) -> un | F64: 1 | G64: =TRUNC((1-$H$10)*(SUMIFS(CPU!$G:$G,CPU!$A:$A,'6_Boacica'!$C64,CPU!$H:$H,"ss")+SUMIFS(CPU!$G:$G,CPU!$A:$A,'6_Boacica'!$C64,CPU!$H:$H,"mdo")+SUMIF('Comp SINAPI DF 09-2025 Onerado'!B:B,'6_Boacica'!C64,'Comp SINAPI DF 09-2025 Onerado'!E:E)+SUMIF('Ins SINAPI DF 09-2025 Onerado'!B:B,'6_Boacica'!C64,'Ins SINAPI DF 09-2025 Onerado'!F:F)),2) -> 32462.4 | H64: =TRUNC(G64*(1+$H$5),2) -> 39996.92 | I64: =TRUNC(F64*H64,2) -> 39996.92
A65: 3.3 | D65: PLANO DE AÇÃO DE EMERGÊNCIA | I65: =SUM(I66:J68) -> 100337.82
A66: 3.3.1 | B66: PRÓPRIA | C66: CPU.24 | D66: =VLOOKUP(C66,CPU!B70:G4936,2,0) -> Projeto de sinalização | E66: =(VLOOKUP(C66,CPU!$B$10:D$4896,3,0)) -> un | F66: 1 | G66: =TRUNC((1-$H$10)*(SUMIFS(CPU!$G:$G,CPU!$A:$A,'6_Boacica'!$C66,CPU!$H:$H,"ss")+SUMIFS(CPU!$G:$G,CPU!$A:$A,'6_Boacica'!$C66,CPU!$H:$H,"mdo")+SUMIF('Comp SINAPI DF 09-2025 Onerado'!B:B,'6_Boacica'!C66,'Comp SINAPI DF 09-2025 Onerado'!E:E)+SUMIF('Ins SINAPI DF 09-2025 Onerado'!B:B,'6_Boacica'!C66,'Ins SINAPI DF 09-2025 Onerado'!F:F)),2) -> 27232.12 | H66: =TRUNC(G66*(1+$H$5),2) -> 33552.69 | I66: =TRUNC(F66*H66,2) -> 33552.69
A67: 3.3.2 | B67: PRÓPRIA | C67: CPU.25 | D67: =VLOOKUP(C67,CPU!B70:G4937,2,0) -> Projeto de rotas de fuga | E67: =(VLOOKUP(C67,CPU!$B$10:D$4896,3,0)) -> un | F67: 1 | G67: =TRUNC((1-$H$10)*(SUMIFS(CPU!$G:$G,CPU!$A:$A,'6_Boacica'!$C67,CPU!$H:$H,"ss")+SUMIFS(CPU!$G:$G,CPU!$A:$A,'6_Boacica'!$C67,CPU!$H:$H,"mdo")+SUMIF('Comp SINAPI DF 09-2025 Onerado'!B:B,'6_Boacica'!C67,'Comp SINAPI DF 09-2025 Onerado'!E:E)+SUMIF('Ins SINAPI DF 09-2025 Onerado'!B:B,'6_Boacica'!C67,'Ins SINAPI DF 09-2025 Onerado'!F:F)),2) -> 30599.8 | H67: =TRUNC(G67*(1+$H$5),2) -> 37702.01 | I67: =TRUNC(F67*H67,2) -> 37702.01
A68: 3.3.3 | B68: PRÓPRIA | C68: CPU.32 | D68: =VLOOKUP(C68,CPU!B71:G4939,2,0) -> Projeto de sistema sonoro | E68: =(VLOOKUP(C68,CPU!$B$10:D$4896,3,0)) -> un | F68: 1 | G68: =TRUNC((1-$H$10)*(SUMIFS(CPU!$G:$G,CPU!$A:$A,'6_Boacica'!$C68,CPU!$H:$H,"ss")+SUMIFS(CPU!$G:$G,CPU!$A:$A,'6_Boacica'!$C68,CPU!$H:$H,"mdo")+SUMIF('Comp SINAPI DF 09-2025 Onerado'!B:B,'6_Boacica'!C68,'Comp SINAPI DF 09-2025 Onerado'!E:E)+SUMIF('Ins SINAPI DF 09-2025 Onerado'!B:B,'6_Boacica'!C68,'Ins SINAPI DF 09-2025 Onerado'!F:F)),2) -> 23604.52 | H68: =TRUNC(G68*(1+$H$5),2) -> 29083.12 | I68: =TRUNC(F68*H68,2) -> 29083.12
D69: TOTAL (Custo): | I69: =TRUNC(SUMPRODUCT(F14:F68,G14:G68),2) -> 904113.94
D70: BDI e Encargos Sociais: | I70: =I71-I69 -> 209574.71
D71: TOTAL GERAL COM BDI: | I71: =SUM(I53,I43,I13) -> 1113688.65 | Q71: =TRUNC(SUMPRODUCT(F14:F68,H14:H68),2) -> 1113688.66

Sheet 7_Macaubas
A1: Ministério da Integração e do Desenvolvimento Regional
A2: Companhia de Desenvolvimento dos Vales do São Francisco e do Parnaíba
A4: PLANILHA ORÇAMENTÁRIA - ORÇAMENTO NÃO DESONERADO
A5: OBRA: | B5: =Resumo!B5 -> Elaboração de Plano de Segurança de Barragens | G5: BDI (serv.): | H5: ='BDI serv'!D23 -> 0.2321 | I5: Bancos de dados:
A6: LOCAL: | B6: Macaubas - BA | G6: BDI (forn.): | H6: ='BDI forn'!D23 -> 0 | I6: =Resumo!G6 -> SETEMBRO/25 - SINAPI
A7: DATA BASE: | B7: 2025-10-01 | E7: Encargos sociais - Horistas: | H7: ='Encargos Sociais DF'!E49 -> 1.1011 | I7: =Resumo!G7 -> SIURB INFRA JAN/2025
A8: PRAZO: | B8: =Resumo!B8 -> 300 dias | E8: Encargos sociais - Mensalista: | H8: ='Encargos Sociais DF'!F49 -> 0.7019 | I8: =Resumo!G8 -> JAN/25 E JUL/2025- SETOP
I9: =Resumo!G9 -> JUNHO/25 - EMBASA
B10: Macaubas | G10: Desconto: | H10: 0 | I10: =Resumo!G10 -> JUL/2025 - CONSULT. DNIT
A11: ITEM | B11: REFERÊNCIA | D11: DESCRIÇÃO | E11: UNID. | F11: QUANT. | G11: CUSTO UNITÁRIO | H11: PREÇO UNITÁRIO | I11: PREÇO TOTAL
B12: FONTE | C12: CÓDIGO
A13: 1 | D13: ='1_Bico da Pedra'!D13 -> ETAPA 1 | I13: =SUM(I14,I16,I32,I35,I38) -> 438442.78
A14: 1.1 | D14: Visita Técnica | I14: =SUM(I15:I15) -> 55532.37
A15: 1.1.1 | B15: PRÓPRIA | C15: CPU.09 | D15: =VLOOKUP(C15,CPU!B29:G75,2,0) -> Inspeção Visual da Estrutura (Multidisciplinar) e elaboração de relatório | E15: =(VLOOKUP(C15,CPU!$B$10:D$142,3,0)) -> un | F15: 1 | G15: =TRUNC((1-$H$10)*(SUMIFS(CPU!$G:$G,CPU!$A:$A,'7_Macaubas'!$C15,CPU!$H:$H,"ss")+SUMIFS(CPU!$G:$G,CPU!$A:$A,'7_Macaubas'!$C15,CPU!$H:$H,"mdo")+SUMIF('Comp SINAPI DF 09-2025 Onerado'!B:B,'7_Macaubas'!C15,'Comp SINAPI DF 09-2025 Onerado'!E:E)+SUMIF('Ins SINAPI DF 09-2025 Onerado'!B:B,'7_Macaubas'!C15,'Ins SINAPI DF 09-2025 Onerado'!F:F)),2) -> 45071.32 | H15: =TRUNC(G15*(1+$H$5),2) -> 55532.37 | I15: =TRUNC(F15*H15,2) -> 55532.37
A16: 1.2 | D16: INVESTIGAÇÃO GEOLÓGICA E GEOTÉCNICA | I16: =SUM(I17:I31) -> 70866.84
A17: 1.2.1 | B17: SETOP | C17: CO-28389 | D17: Mobilização e desmobilização de equipamento de sondagem a percussão com Ensaio de Penetração Padrão (SPT) (custo variável), exclusive custo fixo | E17: km | F17: ='Memorial de cálculo'!T14*2 -> 486 | G17: =TRUNC((1-$H$10)*J17,2) -> 2.04 | H17: =TRUNC(G17*(1+$H$5),2) -> 2.51 | I17: =TRUNC(F17*H17,2) -> 1219.86 | J17: =VLOOKUP(C17,'OUTRAS BASES'!B:C,2,0) -> 2.04
A18: 1.2.2 | B18: SETOP | C18: CO-28388 | D18: Sondagem a percussão com Ensaio de Penetração Padrão (SPT), diâmetro 2.1/2", exclusive mobilização e desmobilização | E18: m | F18: =ROUNDUP('Pontos de Sondagem'!E154,0) -> 58 | G18: =TRUNC((1-$H$10)*J18,2) -> 79.09 | H18: =TRUNC(G18*(1+$H$5),2) -> 97.44 | I18: =TRUNC(F18*H18,2) -> 5651.52 | J18: =VLOOKUP(C18,'OUTRAS BASES'!B:C,2,0) -> 79.09
A19: 1.2.3 | B19: SUDECAP | C19: 65.06.01 | D19: Mobilização e Desmobilização - Sondagem Rotativa | E19: =(VLOOKUP(C19,CPU!$B$10:D$142,3,0)) -> un | F19: 1 | G19: =TRUNC((1-$H$10)*J19,2) -> 3000 | H19: =TRUNC(G19*(1+$H$5),2) -> 3696.3 | I19: 3696.3 | J19: =VLOOKUP(C19,'OUTRAS BASES'!B:C,2,0) -> 3000 | L19: c | M19: 1.5
A20: 1.2.4 | B20: SBC | C20: 000015 | D20: Sondagem Rotativa Coroa Widia | E20: m | F20: =ROUNDUP('Pontos de Sondagem'!G154,0) -> 18 | G20: 886.19 | H20: 1091.87 | I20: =TRUNC(F20*H20,2) -> 19653.66 | J20: =VLOOKUP(C20,'OUTRAS BASES'!B:C,2,0) -> 886.19 | L20: d | M20: =63.5/1000 -> 0.0635 | N20: m
A21: 1.2.5 | B21: SICRO3 | C21: 3816196 | D21: Fechamento dos Furos - Injeção de nata de cimento | E21: m³ | F21: =M22 -> 0.3610290789 | G21: 1012.78 | H21: 1247.84 | I21: =TRUNC(F21*H21,2) -> 450.5 | J21: =VLOOKUP(C21,'OUTRAS BASES'!B:C,2,0) -> 1012.78 | L21: A | M21: =PI()*(M20*M20)/4 -> 0.003166921744
A22: 1.2.6 | B22: PRÓPRIA | C22: CPU.45 | D22: =VLOOKUP(C22,CPU!$B$29:$G$4941,2,0) -> Mobilização e Desmobilização de Equipe de retirada de amostra deformada e indeformada | E22: =(VLOOKUP(C22,CPU!$B$10:D$4935,3,0)) -> km | F22: =F17 -> 486 | G22: =TRUNC((1-$H$10)*(SUMIFS(CPU!$G:$G,CPU!$A:$A,'7_Macaubas'!$C22,CPU!$H:$H,"ss")+SUMIFS(CPU!$G:$G,CPU!$A:$A,'7_Macaubas'!$C22,CPU!$H:$H,"mdo")+SUMIF('Comp SINAPI DF 09-2025 Onerado'!B:B,'7_Macaubas'!C22,'Comp SINAPI DF 09-2025 Onerado'!E:E)+SUMIF('Ins SINAPI DF 09-2025 Onerado'!B:B,'7_Macaubas'!C22,'Ins SINAPI DF 09-2025 Onerado'!F:F)),2) -> 2.04 | H22: 2.51 | I22: =TRUNC(F22*H22,2) -> 1219.86 | L22: V | M22: =M21*(F18+F20)*M19 -> 0.3610290789
A23: 1.2.7 | B23: EMBASA | C23: 34.04.07 | D23: Retirada de amostra deformada | E23: um | F23: =F24 -> 2 | G23: =TRUNC((1-$H$10)*J23,2) -> 105.24 | H23: =TRUNC(G23*(1+$H$5),2) -> 129.66 | I23: 259.32 | J23: =VLOOKUP(C23,'OUTRAS BASES'!B:C,2,0) -> 105.24
A24: 1.2.8 | B24: SUDECAP | C24: 65.08.22 | D24: Retirada de amostra indeformada em blocos 30X30X30CM (NBR 9604:2016), Profundidade = 1 a 2 m | E24: =(VLOOKUP(C24,CPU!$B$10:D$142,3,0)) -> un | F24: 2 | G24: =TRUNC((1-$H$10)*J24,2) -> 1800 | H24: 2217.78 | I24: 4435.56 | J24: =VLOOKUP(C24,'OUTRAS BASES'!B:C,2,0) -> 1800
A25: 1.2.9 | B25: PRÓPRIA | C25: CPU.23 | D25: =VLOOKUP(C25,CPU!$B$29:$G$235,2,0) -> Reaterro com compactação adequada dos pontos de coleta de amostra, Inclusive com fornecimento de solo | E25: =(VLOOKUP(C25,CPU!$B$10:D$4939,3,0)) -> m³ | F25: =ROUNDUP(1.5*1.5*1.5*F24,0) -> 7 | G25: =TRUNC((1-$H$10)*(SUMIFS(CPU!$G:$G,CPU!$A:$A,'7_Macaubas'!$C25,CPU!$H:$H,"ss")+SUMIFS(CPU!$G:$G,CPU!$A:$A,'7_Macaubas'!$C25,CPU!$H:$H,"mdo")+SUMIF('Comp SINAPI DF 09-2025 Onerado'!B:B,'7_Macaubas'!C25,'Comp SINAPI DF 09-2025 Onerado'!E:E)+SUMIF('Ins SINAPI DF 09-2025 Onerado'!B:B,'7_Macaubas'!C25,'Ins SINAPI DF 09-2025 Onerado'!F:F)),2) -> 79.02 | H25: =TRUNC(G25*(1+$H$5),2) -> 97.36 | I25: =TRUNC(F25*H25,2) -> 681.52
A26: 1.2.10 | B26: SETOP | C26: CO-6334 | D26: Granulometria por peneiramento e sedimentação | E26: =(VLOOKUP(C26,CPU!$B$10:D$142,3,0)) -> un | F26: 2 | G26: 247.24 | H26: 304.62 | I26: 609.24 | J26: =VLOOKUP(C26,'OUTRAS BASES'!B:C,2,0) -> 247.24
A27: 1.2.11 | B27: SUDECAP | C27: 67.01.30 | D27: Compressão Triaxial Lento Saturado (CD) mínimo 3 corpos de prova | E27: =(VLOOKUP(C27,CPU!$B$10:D$142,3,0)) -> un | F27: 6 | G27: =TRUNC((1-$H$10)*J27,2) -> 1140.54 | H27: 1405.25 | I27: 8431.5 | J27: =VLOOKUP(C27,'OUTRAS BASES'!B:C,2,0) -> 1140.54
A28: 1.2.12 | B28: SUDECAP | C28: 67.01.28 | D28: Compressão Triaxial rápido pre-adensado saturado (R-SAT/CIU-SAT) c/ medidas pressão neutra mínimo 3 corpos de prova | E28: =(VLOOKUP(C28,CPU!$B$10:D$142,3,0)) -> un | F28: 3 | G28: 5250 | H28: 6468.52 | I28: 19405.56 | J28: =VLOOKUP(C28,'OUTRAS BASES'!B:C,2,0) -> 5250
A29: 1.2.13 | B29: SCO | C29: AD 04.05.0300 | D29: Ensaio para determinacao, em laboratorio, do Limite de Plasticidade de amostra de solo fino, de acordo com as recomendacoes da NBR7180 e da NBR6457.(desonerado) | E29: =(VLOOKUP(C29,CPU!$B$10:D$142,3,0)) -> un | F29: =F26 -> 2 | G29: =TRUNC((1-$H$10)*J29,2) -> 161.92 | H29: =TRUNC(G29*(1+$H$5),2) -> 199.5 | I29: =TRUNC(F29*H29,2) -> 399 | J29: =VLOOKUP(C29,'OUTRAS BASES'!B:C,2,0) -> 161.92
A30: 1.2.14 | B30: SCO | C30: AD 04.05.0250 | D30: Ensaio para determinacao, em laboratorio, do Limite de Liquidez de amostra de solo fino, de acordo com as recomendacoes da NBR7180 e da NBR6457.(desonerado) | E30: =(VLOOKUP(C30,CPU!$B$10:D$142,3,0)) -> um | F30: =F26 -> 2 | G30: =TRUNC((1-$H$10)*J30,2) -> 161.92 | H30: =TRUNC(G30*(1+$H$5),2) -> 199.5 | I30: =TRUNC(F30*H30,2) -> 399 | J30: =VLOOKUP(C30,'OUTRAS BASES'!B:C,2,0) -> 161.92
A31: 1.2.15 | B31: SETOP | C31: CO-6358 | D31: Determinação do coeficiente de permeabilidade de solos argilosos à carga variável | E31: =(VLOOKUP(C31,CPU!$B$10:D$142,3,0)) -> un | F31: 6 | G31: =TRUNC((1-$H$10)*J31,2) -> 589.03 | H31: 725.74 | I31: 4354.44 | J31: =VLOOKUP(C31,'OUTRAS BASES'!B:C,2,0) -> 589.03
A32: 1.3 | D32: Levantamento Topográfico | I32: =SUM(I33:I34) -> 30448.77
A33: 1.3.1 | B33: PRÓPRIA | C33: CPU.28 | D33: =VLOOKUP(C33,CPU!B29:G413,2,0) -> Mobilização e Desmobilização de Equipe de Levantamento topográfico | E33: =(VLOOKUP(C33,CPU!$B$10:D$4937,3,0)) -> un | F33: 1 | G33: =TRUNC((1-$H$10)*(SUMIFS(CPU!$G:$G,CPU!$A:$A,'7_Macaubas'!$C33,CPU!$H:$H,"ss")+SUMIFS(CPU!$G:$G,CPU!$A:$A,'7_Macaubas'!$C33,CPU!$H:$H,"mdo")+SUMIF('Comp SINAPI DF 09-2025 Onerado'!B:B,'7_Macaubas'!C33,'Comp SINAPI DF 09-2025 Onerado'!E:E)+SUMIF('Ins SINAPI DF 09-2025 Onerado'!B:B,'7_Macaubas'!C33,'Ins SINAPI DF 09-2025 Onerado'!F:F)),2) -> 7747.32 | H33: =TRUNC(G33*(1+$H$5),2) -> 9545.47 | I33: =TRUNC(F33*H33,2) -> 9545.47
A34: 1.3.2 | B34: SETOP | C34: CO-27367 | D34: Levantamento planialtimétrico e cadastral terreno de 10.001 a 50.000 m² | E34: m² | F34: ='Memorial de cálculo'!T20 -> 38006 | G34: =TRUNC((1-$H$10)*J34,2) -> 0.45 | H34: =TRUNC(G34*(1+$H$5),2) -> 0.55 | I34: =TRUNC(F34*H34,2) -> 20903.3 | J34: =VLOOKUP(C34,'OUTRAS BASES'!B:C,2,0) -> 0.45
A35: 1.4 | D35: Levantamento Batimétrico | I35: =SUM(I36:I37) -> 97884.27
A36: 1.4.1 | B36: EMBASA | C36: 31.90.12 | D36: Transporte de Equipe e Equipamentos para levantamento batimétrico com Ecobatímetro | E36: km | F36: =F17 -> 486 | G36: =TRUNC((1-$H$10)*J36,2) -> 6.68 | H36: =TRUNC(G36*(1+$H$5),2) -> 8.23 | I36: =TRUNC(F36*H36,2) -> 3999.78 | J36: =VLOOKUP(C36,'OUTRAS BASES'!B:C,2,0) -> 6.68
A37: 1.4.2 | B37: PRÓPRIA | C37: CPU.44 | D37: =VLOOKUP(C37,CPU!B29:G4918,2,0) -> Levantamento batimétrico com equipamento ecobatímetro, processamento de dados e desenho técnico | E37: =(VLOOKUP(C37,CPU!$B$10:D$4939,3,0)) -> ha | F37: ='Memorial de cálculo'!T5 -> 203.2 | G37: =TRUNC((1-$H$10)*(SUMIFS(CPU!$G:$G,CPU!$A:$A,'7_Macaubas'!$C37,CPU!$H:$H,"ss")+SUMIFS(CPU!$G:$G,CPU!$A:$A,'7_Macaubas'!$C37,CPU!$H:$H,"mdo")+SUMIF('Comp SINAPI DF 09-2025 Onerado'!B:B,'7_Macaubas'!C37,'Comp SINAPI DF 09-2025 Onerado'!E:E)+SUMIF('Ins SINAPI DF 09-2025 Onerado'!B:B,'7_Macaubas'!C37,'Ins SINAPI DF 09-2025 Onerado'!F:F)),2) -> 375 | H37: =TRUNC(G37*(1+$H$5),2) -> 462.03 | I37: =TRUNC(F37*H37,2) -> 93884.49
A38: 1.5 | D38: Levantamento Fotogramétrico | I38: =SUM(I39:I40) -> 183710.53
A39: 1.5.1 | B39: PRÓPRIA | C39: CPU.31 | D39: =VLOOKUP(C39,CPU!B33:G4925,2,0) -> Mobilização e Desmobilização de Equipe e Equipamentos de Levantamento Fotogramétrico | E39: =(VLOOKUP(C39,CPU!$B$10:D$210,3,0)) -> km | F39: =F17 -> 486 | G39: =TRUNC((1-$H$10)*J39,2) -> 7.74 | H39: =TRUNC(G39*(1+$H$5),2) -> 9.53 | I39: =TRUNC(F39*H39,2) -> 4631.58 | J39: 7.74
A40: 1.5.2 | B40: EMBASA | C40: 31.90.15 | D40: Levant. Fotogrametrico c/ VANT (drone) áreas pelo que exceder 1000 ha, incl. ortofotos, GSD<=3, acuracia horiz. min. 3 cm e vert. min. 6cm, aferidos c/ pontos de controle dist. min. 650 m entre eles,exclusive transporte de equipe e equipamentos | E40: ha | F40: ='Memorial de cálculo'!T27+'Memorial de cálculo'!T21 -> 18480.8006 | G40: =TRUNC((1-$H$10)*J40,2) -> 7.87 | H40: =TRUNC(G40*(1+$H$5),2) -> 9.69 | I40: =TRUNC(F40*H40,2) -> 179078.95 | J40: =VLOOKUP(C40,'OUTRAS BASES'!B:C,2,0) -> 7.87
A41: 2 | D41: ETAPA 2 | I41: =SUM(I42) -> 204334.33
A42: 2.1 | D42: ESTUDOS | I42: =SUM(I43:I51) -> 204334.33
A43: 2.1.1 | B43: PRÓPRIA | C43: CPU.10 | D43: =VLOOKUP(C43,CPU!$B$29:$G$159,2,0) -> Estudo Hidrológico e Hidráulico | E43: =(VLOOKUP(C43,CPU!$B$10:D$159,3,0)) -> un | F43: 1 | G43: =TRUNC((1-$H$10)*(SUMIFS(CPU!$G:$G,CPU!$A:$A,'7_Macaubas'!$C43,CPU!$H:$H,"ss")+SUMIFS(CPU!$G:$G,CPU!$A:$A,'7_Macaubas'!$C43,CPU!$H:$H,"mdo")+SUMIF('Comp SINAPI DF 09-2025 Onerado'!B:B,'7_Macaubas'!C43,'Comp SINAPI DF 09-2025 Onerado'!E:E)+SUMIF('Ins SINAPI DF 09-2025 Onerado'!B:B,'7_Macaubas'!C43,'Ins SINAPI DF 09-2025 Onerado'!F:F)),2) -> 39432.48 | H43: =TRUNC(G43*(1+$H$5),2) -> 48584.75 | I43: =TRUNC(F43*H43,2) -> 48584.75
A44: 2.1.2 | B44: PRÓPRIA | C44: CPU.11 | D44: =VLOOKUP(C44,CPU!$B$29:$G$159,2,0) -> Estudo Geológico-geotécnico | E44: =(VLOOKUP(C44,CPU!$B$10:D$159,3,0)) -> un | F44: 1 | G44: =TRUNC((1-$H$10)*(SUMIFS(CPU!$G:$G,CPU!$A:$A,'7_Macaubas'!$C44,CPU!$H:$H,"ss")+SUMIFS(CPU!$G:$G,CPU!$A:$A,'7_Macaubas'!$C44,CPU!$H:$H,"mdo")+SUMIF('Comp SINAPI DF 09-2025 Onerado'!B:B,'7_Macaubas'!C44,'Comp SINAPI DF 09-2025 Onerado'!E:E)+SUMIF('Ins SINAPI DF 09-2025 Onerado'!B:B,'7_Macaubas'!C44,'Ins SINAPI DF 09-2025 Onerado'!F:F)),2) -> 14328.22 | H44: =TRUNC(G44*(1+$H$5),2) -> 17653.79 | I44: 17653.79
A45: 2.1.3 | B45: PRÓPRIA | C45: CPU.13 | D45: =VLOOKUP(C45,CPU!$B$29:$G$159,2,0) -> Estudo de Ruputura e Mapas de Inundação | E45: =(VLOOKUP(C45,CPU!$B$10:D$4939,3,0)) -> un | F45: 1 | G45: =TRUNC((1-$H$10)*(SUMIFS(CPU!$G:$G,CPU!$A:$A,'7_Macaubas'!$C45,CPU!$H:$H,"ss")+SUMIFS(CPU!$G:$G,CPU!$A:$A,'7_Macaubas'!$C45,CPU!$H:$H,"mdo")+SUMIF('Comp SINAPI DF 09-2025 Onerado'!B:B,'7_Macaubas'!C45,'Comp SINAPI DF 09-2025 Onerado'!E:E)+SUMIF('Ins SINAPI DF 09-2025 Onerado'!B:B,'7_Macaubas'!C45,'Ins SINAPI DF 09-2025 Onerado'!F:F)),2) -> 38768.32 | H45: =TRUNC(G45*(1+$H$5),2) -> 47766.44 | I45: 47766.44
A46: 2.1.4 | B46: PRÓPRIA | C46: CPU.14 | D46: =VLOOKUP(C46,CPU!$B$29:$G$4939,2,0) -> Estudo de Estabilidade e Percolação - Barragem de Terra | E46: =(VLOOKUP(C46,CPU!$B$10:D$4939,3,0)) -> un | F46: 1 | G46: =TRUNC((1-$H$10)*(SUMIFS(CPU!$G:$G,CPU!$A:$A,'7_Macaubas'!$C46,CPU!$H:$H,"ss")+SUMIFS(CPU!$G:$G,CPU!$A:$A,'7_Macaubas'!$C46,CPU!$H:$H,"mdo")+SUMIF('Comp SINAPI DF 09-2025 Onerado'!B:B,'7_Macaubas'!C46,'Comp SINAPI DF 09-2025 Onerado'!E:E)+SUMIF('Ins SINAPI DF 09-2025 Onerado'!B:B,'7_Macaubas'!C46,'Ins SINAPI DF 09-2025 Onerado'!F:F)),2) -> 35476.72 | H46: =TRUNC(G46*(1+$H$5),2) -> 43710.86 | I46: 43710.86
A47: 2.1.5 | B47: PRÓPRIA | C47: CPU.33 | D47: =VLOOKUP(C47,CPU!$B$29:$G$4939,2,0) -> Relatório de Avaliação de Estruturas de Concreto | E47: =(VLOOKUP(C47,CPU!$B$10:D$4939,3,0)) -> un | F47: 1 | G47: =TRUNC((1-$H$10)*(SUMIFS(CPU!$G:$G,CPU!$A:$A,'7_Macaubas'!$C47,CPU!$H:$H,"ss")+SUMIFS(CPU!$G:$G,CPU!$A:$A,'7_Macaubas'!$C47,CPU!$H:$H,"mdo")+SUMIF('Comp SINAPI DF 09-2025 Onerado'!B:B,'7_Macaubas'!C47,'Comp SINAPI DF 09-2025 Onerado'!E:E)+SUMIF('Ins SINAPI DF 09-2025 Onerado'!B:B,'7_Macaubas'!C47,'Ins SINAPI DF 09-2025 Onerado'!F:F)),2) -> 6010.8 | H47: 7405.9 | I47: 7405.9
A48: 2.1.6 | B48: PRÓPRIA | C48: CPU.40 | D48: =VLOOKUP(C48,CPU!$B$29:$G$4939,2,0) -> Relatório Topográfico e Tratamento de Dados | E48: =(VLOOKUP(C48,CPU!$B$10:D$4939,3,0)) -> un | F48: 1 | G48: =TRUNC((1-$H$10)*(SUMIFS(CPU!$G:$G,CPU!$A:$A,'7_Macaubas'!$C48,CPU!$H:$H,"ss")+SUMIFS(CPU!$G:$G,CPU!$A:$A,'7_Macaubas'!$C48,CPU!$H:$H,"mdo")+SUMIF('Comp SINAPI DF 09-2025 Onerado'!B:B,'7_Macaubas'!C48,'Comp SINAPI DF 09-2025 Onerado'!E:E)+SUMIF('Ins SINAPI DF 09-2025 Onerado'!B:B,'7_Macaubas'!C48,'Ins SINAPI DF 09-2025 Onerado'!F:F)),2) -> 8514.52 | H48: 10490.74 | I48: 10490.74
A49: 2.1.7 | B49: PRÓPRIA | C49: CPU.42 | D49: =VLOOKUP(C49,CPU!$B$29:$G$4939,2,0) -> Relatório de Investigação Geológica/Geotécnica | E49: =(VLOOKUP(C49,CPU!$B$10:D$4939,3,0)) -> un | F49: 1 | G49: =TRUNC((1-$H$10)*(SUMIFS(CPU!$G:$G,CPU!$A:$A,'7_Macaubas'!$C49,CPU!$H:$H,"ss")+SUMIFS(CPU!$G:$G,CPU!$A:$A,'7_Macaubas'!$C49,CPU!$H:$H,"mdo")+SUMIF('Comp SINAPI DF 09-2025 Onerado'!B:B,'7_Macaubas'!C49,'Comp SINAPI DF 09-2025 Onerado'!E:E)+SUMIF('Ins SINAPI DF 09-2025 Onerado'!B:B,'7_Macaubas'!C49,'Ins SINAPI DF 09-2025 Onerado'!F:F)),2) -> 6010.8 | H49: 7405.9 | I49: 7405.9
A50: 2.1.8 | B50: PRÓPRIA | C50: CPU.43 | D50: =VLOOKUP(C50,CPU!B29:G1043,2,0) -> Relatório de Levantamento Batimétrico e Tratamento de Dados | E50: =(VLOOKUP(C50,CPU!$B$10:D$1833,3,0)) -> un | F50: 1 | G50: =TRUNC((1-$H$10)*(SUMIFS(CPU!$G:$G,CPU!$A:$A,'7_Macaubas'!$C50,CPU!$H:$H,"ss")+SUMIFS(CPU!$G:$G,CPU!$A:$A,'7_Macaubas'!$C50,CPU!$H:$H,"mdo")+SUMIF('Comp SINAPI DF 09-2025 Onerado'!B:B,'7_Macaubas'!C50,'Comp SINAPI DF 09-2025 Onerado'!E:E)+SUMIF('Ins SINAPI DF 09-2025 Onerado'!B:B,'7_Macaubas'!C50,'Ins SINAPI DF 09-2025 Onerado'!F:F)),2) -> 8514.52 | H50: =TRUNC(G50*(1+$H$5),2) -> 10490.74 | I50: 10490.74
A51: 2.1.9 | B51: PRÓPRIA | C51: CPU.12 | D51: =VLOOKUP(C51,CPU!B29:G133,2,0) -> Relatório Fotogramétricos e Tratamento de Dados | E51: =(VLOOKUP(C51,CPU!$B$10:D$142,3,0)) -> un | F51: 1 | G51: =TRUNC((1-$H$10)*(SUMIFS(CPU!$G:$G,CPU!$A:$A,'7_Macaubas'!$C51,CPU!$H:$H,"ss")+SUMIFS(CPU!$G:$G,CPU!$A:$A,'7_Macaubas'!$C51,CPU!$H:$H,"mdo")+SUMIF('Comp SINAPI DF 09-2025 Onerado'!B:B,'7_Macaubas'!C51,'Comp SINAPI DF 09-2025 Onerado'!E:E)+SUMIF('Ins SINAPI DF 09-2025 Onerado'!B:B,'7_Macaubas'!C51,'Ins SINAPI DF 09-2025 Onerado'!F:F)),2) -> 8785.99 | H51: =TRUNC(G51*(1+$H$5),2) -> 10825.21 | I51: 10825.21 | J51: 12710
A52: 3 | D52: ETAPA 3 | I52: =SUM(I53+I56+I64) -> 372432.11
A53: 3.1 | D53: PROJETOS | I53: =SUM(I54:I55) -> 91058.79
A54: 3.1.1 | B54: PRÓPRIA | C54: CPU.18 | D54: =VLOOKUP(C54,CPU!B69:G175,2,0) -> Projeto de Instrumentação | E54: =(VLOOKUP(C54,CPU!$B$10:D$142,3,0)) -> un | F54: 1 | G54: =TRUNC((1-$H$10)*(SUMIFS(CPU!$G:$G,CPU!$A:$A,'7_Macaubas'!$C54,CPU!$H:$H,"ss")+SUMIFS(CPU!$G:$G,CPU!$A:$A,'7_Macaubas'!$C54,CPU!$H:$H,"mdo")+SUMIF('Comp SINAPI DF 09-2025 Onerado'!B:B,'7_Macaubas'!C54,'Comp SINAPI DF 09-2025 Onerado'!E:E)+SUMIF('Ins SINAPI DF 09-2025 Onerado'!B:B,'7_Macaubas'!C54,'Ins SINAPI DF 09-2025 Onerado'!F:F)),2) -> 29283.76 | H54: =TRUNC(G54*(1+$H$5),2) -> 36080.52 | I54: =TRUNC(F54*H54,2) -> 36080.52
A55: 3.1.2 | B55: PRÓPRIA | C55: CPU.20 | D55: =VLOOKUP(C55,CPU!B69:G183,2,0) -> Projeto Geométrico (AS IS) | E55: =(VLOOKUP(C55,CPU!$B$10:D$142,3,0)) -> un | F55: 1 | G55: =TRUNC((1-$H$10)*(SUMIFS(CPU!$G:$G,CPU!$A:$A,'7_Macaubas'!$C55,CPU!$H:$H,"ss")+SUMIFS(CPU!$G:$G,CPU!$A:$A,'7_Macaubas'!$C55,CPU!$H:$H,"mdo")+SUMIF('Comp SINAPI DF 09-2025 Onerado'!B:B,'7_Macaubas'!C55,'Comp SINAPI DF 09-2025 Onerado'!E:E)+SUMIF('Ins SINAPI DF 09-2025 Onerado'!B:B,'7_Macaubas'!C55,'Ins SINAPI DF 09-2025 Onerado'!F:F)),2) -> 44621.6 | H55: =TRUNC(G55*(1+$H$5),2) -> 54978.27 | I55: =TRUNC(F55*H55,2) -> 54978.27
A56: 3.2 | D56: PLANO DE SEGURANÇA DE BARRAGENS | I56: =SUM(I57:I63) -> 181035.5
A57: 3.2.1 | B57: PRÓPRIA | C57: CPU.34 | D57: =VLOOKUP(C57,CPU!B67:G4936,2,0) -> Volume I - Informações Gerais | E57: =(VLOOKUP(C57,CPU!$B$10:D$4896,3,0)) -> un | F57: 1 | G57: =TRUNC((1-$H$10)*(SUMIFS(CPU!$G:$G,CPU!$A:$A,'7_Macaubas'!$C57,CPU!$H:$H,"ss")+SUMIFS(CPU!$G:$G,CPU!$A:$A,'7_Macaubas'!$C57,CPU!$H:$H,"mdo")+SUMIF('Comp SINAPI DF 09-2025 Onerado'!B:B,'7_Macaubas'!C57,'Comp SINAPI DF 09-2025 Onerado'!E:E)+SUMIF('Ins SINAPI DF 09-2025 Onerado'!B:B,'7_Macaubas'!C57,'Ins SINAPI DF 09-2025 Onerado'!F:F)),2) -> 15330.6 | H57: =TRUNC(G57*(1+$H$5),2) -> 18888.83 | I57: =TRUNC(F57*H57,2) -> 18888.83
A58: 3.2.2 | B58: PRÓPRIA | C58: CPU.35 | D58: =VLOOKUP(C58,CPU!B67:G4937,2,0) -> Volume II - Documentação Técnica | E58: =(VLOOKUP(C58,CPU!$B$10:D$4896,3,0)) -> un | F58: 1 | G58: =TRUNC((1-$H$10)*(SUMIFS(CPU!$G:$G,CPU!$A:$A,'7_Macaubas'!$C58,CPU!$H:$H,"ss")+SUMIFS(CPU!$G:$G,CPU!$A:$A,'7_Macaubas'!$C58,CPU!$H:$H,"mdo")+SUMIF('Comp SINAPI DF 09-2025 Onerado'!B:B,'7_Macaubas'!C58,'Comp SINAPI DF 09-2025 Onerado'!E:E)+SUMIF('Ins SINAPI DF 09-2025 Onerado'!B:B,'7_Macaubas'!C58,'Ins SINAPI DF 09-2025 Onerado'!F:F)),2) -> 15751.56 | H58: 19407.49 | I58: =TRUNC(F58*H58,2) -> 19407.49
A59: 3.2.3 | B59: PRÓPRIA | C59: CPU.36 | D59: =VLOOKUP(C59,CPU!B68:G4938,2,0) -> Volume III - Planos e Procedimentos | E59: =(VLOOKUP(C59,CPU!$B$10:D$4896,3,0)) -> un | F59: 1 | G59: =TRUNC((1-$H$10)*(SUMIFS(CPU!$G:$G,CPU!$A:$A,'7_Macaubas'!$C59,CPU!$H:$H,"ss")+SUMIFS(CPU!$G:$G,CPU!$A:$A,'7_Macaubas'!$C59,CPU!$H:$H,"mdo")+SUMIF('Comp SINAPI DF 09-2025 Onerado'!B:B,'7_Macaubas'!C59,'Comp SINAPI DF 09-2025 Onerado'!E:E)+SUMIF('Ins SINAPI DF 09-2025 Onerado'!B:B,'7_Macaubas'!C59,'Ins SINAPI DF 09-2025 Onerado'!F:F)),2) -> 15751.56 | H59: 19407.49 | I59: 19407.49
A60: 3.2.4 | B60: PRÓPRIA | C60: CPU.37 | D60: =VLOOKUP(C60,CPU!B69:G4939,2,0) -> Volume IV - Registros e Controles | E60: =(VLOOKUP(C60,CPU!$B$10:D$4896,3,0)) -> un | F60: 1 | G60: =TRUNC((1-$H$10)*(SUMIFS(CPU!$G:$G,CPU!$A:$A,'7_Macaubas'!$C60,CPU!$H:$H,"ss")+SUMIFS(CPU!$G:$G,CPU!$A:$A,'7_Macaubas'!$C60,CPU!$H:$H,"mdo")+SUMIF('Comp SINAPI DF 09-2025 Onerado'!B:B,'7_Macaubas'!C60,'Comp SINAPI DF 09-2025 Onerado'!E:E)+SUMIF('Ins SINAPI DF 09-2025 Onerado'!B:B,'7_Macaubas'!C60,'Ins SINAPI DF 09-2025 Onerado'!F:F)),2) -> 15751.56 | H60: 19407.49 | I60: 19407.49
A61: 3.2.5 | B61: PRÓPRIA | C61: CPU.38 | D61: =VLOOKUP(C61,CPU!B70:G4940,2,0) -> Volume V - Revisão Periódica de Segurança de Barragem | E61: =(VLOOKUP(C61,CPU!$B$10:D$4896,3,0)) -> un | F61: 1 | G61: =TRUNC((1-$H$10)*(SUMIFS(CPU!$G:$G,CPU!$A:$A,'7_Macaubas'!$C61,CPU!$H:$H,"ss")+SUMIFS(CPU!$G:$G,CPU!$A:$A,'7_Macaubas'!$C61,CPU!$H:$H,"mdo")+SUMIF('Comp SINAPI DF 09-2025 Onerado'!B:B,'7_Macaubas'!C61,'Comp SINAPI DF 09-2025 Onerado'!E:E)+SUMIF('Ins SINAPI DF 09-2025 Onerado'!B:B,'7_Macaubas'!C61,'Ins SINAPI DF 09-2025 Onerado'!F:F)),2) -> 27410.88 | H61: 33772.94 | I61: 33772.94
A62: 3.2.6 | B62: PRÓPRIA | C62: CPU.39 | D62: =VLOOKUP(C62,CPU!B71:G4941,2,0) -> Volume V - A - Resumo Executivo | E62: =(VLOOKUP(C62,CPU!$B$10:D$4896,3,0)) -> un | F62: 1 | G62: =TRUNC((1-$H$10)*(SUMIFS(CPU!$G:$G,CPU!$A:$A,'7_Macaubas'!$C62,CPU!$H:$H,"ss")+SUMIFS(CPU!$G:$G,CPU!$A:$A,'7_Macaubas'!$C62,CPU!$H:$H,"mdo")+SUMIF('Comp SINAPI DF 09-2025 Onerado'!B:B,'7_Macaubas'!C62,'Comp SINAPI DF 09-2025 Onerado'!E:E)+SUMIF('Ins SINAPI DF 09-2025 Onerado'!B:B,'7_Macaubas'!C62,'Ins SINAPI DF 09-2025 Onerado'!F:F)),2) -> 24473.94 | H62: 30154.34 | I62: 30154.34
A63: 3.2.7 | B63: PRÓPRIA | C63: CPU.41 | D63: =VLOOKUP(C63,CPU!B70:G4938,2,0) -> Volume VI - Plano de Ação de Emergência | E63: =(VLOOKUP(C63,CPU!$B$10:D$4896,3,0)) -> un | F63: 1 | G63: =TRUNC((1-$H$10)*(SUMIFS(CPU!$G:$G,CPU!$A:$A,'7_Macaubas'!$C63,CPU!$H:$H,"ss")+SUMIFS(CPU!$G:$G,CPU!$A:$A,'7_Macaubas'!$C63,CPU!$H:$H,"mdo")+SUMIF('Comp SINAPI DF 09-2025 Onerado'!B:B,'7_Macaubas'!C63,'Comp SINAPI DF 09-2025 Onerado'!E:E)+SUMIF('Ins SINAPI DF 09-2025 Onerado'!B:B,'7_Macaubas'!C63,'Ins SINAPI DF 09-2025 Onerado'!F:F)),2) -> 32462.4 | H63: =TRUNC(G63*(1+$H$5),2) -> 39996.92 | I63: =TRUNC(F63*H63,2) -> 39996.92
A64: 3.3 | D64: PLANO DE AÇÃO DE EMERGÊNCIA | I64: =SUM(I65:I67) -> 100337.82
A65: 3.3.1 | B65: PRÓPRIA | C65: CPU.24 | D65: =VLOOKUP(C65,CPU!B70:G4936,2,0) -> Projeto de sinalização | E65: =(VLOOKUP(C65,CPU!$B$10:D$4896,3,0)) -> un | F65: 1 | G65: =TRUNC((1-$H$10)*(SUMIFS(CPU!$G:$G,CPU!$A:$A,'7_Macaubas'!$C65,CPU!$H:$H,"ss")+SUMIFS(CPU!$G:$G,CPU!$A:$A,'7_Macaubas'!$C65,CPU!$H:$H,"mdo")+SUMIF('Comp SINAPI DF 09-2025 Onerado'!B:B,'7_Macaubas'!C65,'Comp SINAPI DF 09-2025 Onerado'!E:E)+SUMIF('Ins SINAPI DF 09-2025 Onerado'!B:B,'7_Macaubas'!C65,'Ins SINAPI DF 09-2025 Onerado'!F:F)),2) -> 27232.12 | H65: =TRUNC(G65*(1+$H$5),2) -> 33552.69 | I65: =TRUNC(F65*H65,2) -> 33552.69
A66: 3.3.2 | B66: PRÓPRIA | C66: CPU.25 | D66: =VLOOKUP(C66,CPU!B70:G4937,2,0) -> Projeto de rotas de fuga | E66: =(VLOOKUP(C66,CPU!$B$10:D$4896,3,0)) -> un | F66: 1 | G66: =TRUNC((1-$H$10)*(SUMIFS(CPU!$G:$G,CPU!$A:$A,'7_Macaubas'!$C66,CPU!$H:$H,"ss")+SUMIFS(CPU!$G:$G,CPU!$A:$A,'7_Macaubas'!$C66,CPU!$H:$H,"mdo")+SUMIF('Comp SINAPI DF 09-2025 Onerado'!B:B,'7_Macaubas'!C66,'Comp SINAPI DF 09-2025 Onerado'!E:E)+SUMIF('Ins SINAPI DF 09-2025 Onerado'!B:B,'7_Macaubas'!C66,'Ins SINAPI DF 09-2025 Onerado'!F:F)),2) -> 30599.8 | H66: =TRUNC(G66*(1+$H$5),2) -> 37702.01 | I66: =TRUNC(F66*H66,2) -> 37702.01
A67: 3.3.3 | B67: PRÓPRIA | C67: CPU.32 | D67: =VLOOKUP(C67,CPU!B71:G4939,2,0) -> Projeto de sistema sonoro | E67: =(VLOOKUP(C67,CPU!$B$10:D$4896,3,0)) -> un | F67: 1 | G67: =TRUNC((1-$H$10)*(SUMIFS(CPU!$G:$G,CPU!$A:$A,'7_Macaubas'!$C67,CPU!$H:$H,"ss")+SUMIFS(CPU!$G:$G,CPU!$A:$A,'7_Macaubas'!$C67,CPU!$H:$H,"mdo")+SUMIF('Comp SINAPI DF 09-2025 Onerado'!B:B,'7_Macaubas'!C67,'Comp SINAPI DF 09-2025 Onerado'!E:E)+SUMIF('Ins SINAPI DF 09-2025 Onerado'!B:B,'7_Macaubas'!C67,'Ins SINAPI DF 09-2025 Onerado'!F:F)),2) -> 23604.52 | H67: =TRUNC(G67*(1+$H$5),2) -> 29083.12 | I67: =TRUNC(F67*H67,2) -> 29083.12
D68: TOTAL (Custo): | I68: =TRUNC(SUMPRODUCT(F14:F67,G14:G67),2) -> 824210.39
D69: BDI e Encargos Sociais: | I69: =I70-I68 -> 190998.83
D70: TOTAL GERAL COM BDI: | I70: =SUM(I52,I41,I13) -> 1015209.22 | Q70: =TRUNC(SUMPRODUCT(F14:F67,H14:H67),2) -> 1015209.24

Sheet 8_Pocodomagro
A1: Ministério da Integração e do Desenvolvimento Regional
A2: Companhia de Desenvolvimento dos Vales do São Francisco e do Parnaíba
A4: PLANILHA ORÇAMENTÁRIA - ORÇAMENTO NÃO DESONERADO
A5: OBRA: | B5: =Resumo!B5 -> Elaboração de Plano de Segurança de Barragens | G5: BDI (serv.): | H5: ='BDI serv'!D23 -> 0.2321 | I5: Bancos de dados:
A6: LOCAL: | B6: Guanambi, BA | G6: BDI (forn.): | H6: ='BDI forn'!D23 -> 0 | I6: =Resumo!G6 -> SETEMBRO/25 - SINAPI
A7: DATA BASE: | B7: 2025-10-01 | E7: Encargos sociais - Horistas: | H7: ='Encargos Sociais DF'!E49 -> 1.1011 | I7: =Resumo!G7 -> SIURB INFRA JAN/2025
A8: PRAZO: | B8: =Resumo!B8 -> 300 dias | E8: Encargos sociais - Mensalista: | H8: ='Encargos Sociais DF'!F49 -> 0.7019 | I8: =Resumo!G8 -> JAN/25 E JUL/2025- SETOP
I9: =Resumo!G9 -> JUNHO/25 - EMBASA
B10: Poço do Magro | G10: Desconto: | H10: 0 | I10: =Resumo!G10 -> JUL/2025 - CONSULT. DNIT
A11: ITEM | B11: REFERÊNCIA | D11: DESCRIÇÃO | E11: UNID. | F11: QUANT. | G11: CUSTO UNITÁRIO | H11: PREÇO UNITÁRIO | I11: PREÇO TOTAL
B12: FONTE | C12: CÓDIGO
A13: 1 | D13: ='1_Bico da Pedra'!D13 -> ETAPA 1 | I13: =I14+I36+I16+I39 -> 263157.37
A14: 1.1 | D14: Visita Técnica | I14: =SUM(I15:I15) -> 55532.37
A15: 1.1.1 | B15: PRÓPRIA | C15: CPU.09 | D15: =VLOOKUP(C15,CPU!B29:G75,2,0) -> Inspeção Visual da Estrutura (Multidisciplinar) e elaboração de relatório | E15: =(VLOOKUP(C15,CPU!$B$10:D$142,3,0)) -> un | F15: 1 | G15: =TRUNC((1-$H$10)*(SUMIFS(CPU!$G:$G,CPU!$A:$A,'8_Pocodomagro'!$C15,CPU!$H:$H,"ss")+SUMIFS(CPU!$G:$G,CPU!$A:$A,'8_Pocodomagro'!$C15,CPU!$H:$H,"mdo")+SUMIF('Comp SINAPI DF 09-2025 Onerado'!B:B,'8_Pocodomagro'!C15,'Comp SINAPI DF 09-2025 Onerado'!E:E)+SUMIF('Ins SINAPI DF 09-2025 Onerado'!B:B,'8_Pocodomagro'!C15,'Ins SINAPI DF 09-2025 Onerado'!F:F)),2) -> 45071.32 | H15: =TRUNC(G15*(1+$H$5),2) -> 55532.37 | I15: =TRUNC(F15*H15,2) -> 55532.37
A16: 1.2 | D16: INVESTIGAÇÃO GEOLÓGICA E GEOTÉCNICA | I16: =SUM(I17:I35) -> 152699.16
A17: 1.2.1 | B17: SETOP | C17: CO-28389 | D17: Mobilização e desmobilização de equipamento de sondagem a percussão com Ensaio de Penetração Padrão (SPT) (custo variável), exclusive custo fixo | E17: km | F17: ='Memorial de cálculo'!P14*2 -> 310 | G17: =TRUNC((1-$H$10)*J17,2) -> 2.04 | H17: =TRUNC(G17*(1+$H$5),2) -> 2.51 | I17: =TRUNC(F17*H17,2) -> 778.1 | J17: =VLOOKUP(C17,'OUTRAS BASES'!B:C,2,0) -> 2.04
A18: 1.2.2 | B18: SETOP | C18: CO-28388 | D18: Sondagem a percussão com Ensaio de Penetração Padrão (SPT), diâmetro 2.1/2", exclusive mobilização e desmobilização | E18: m | F18: =ROUNDUP('Pontos de Sondagem'!E183,0) -> 69 | G18: =TRUNC((1-$H$10)*J18,2) -> 79.09 | H18: =TRUNC(G18*(1+$H$5),2) -> 97.44 | I18: =TRUNC(F18*H18,2) -> 6723.36 | J18: =VLOOKUP(C18,'OUTRAS BASES'!B:C,2,0) -> 79.09
A19: 1.2.3 | B19: EMBASA | C19: 32.05.04 | D19: Mobilização e desmobilização de equipe e equipamentos para sondagem rotativa ou mista | E19: km | F19: 1 | G19: =TRUNC((1-$H$10)*J19,2) -> 5.16 | H19: =TRUNC(G19*(1+$H$5),2) -> 6.35 | I19: 6.35 | J19: =VLOOKUP(C19,'OUTRAS BASES'!B:C,2,0) -> 5.16 | L19: c | M19: 1.5
A20: 1.2.4 | B20: SCO | C20: AD 05.15.0400 | D20: Sondagem rotativa vertical, em rocha sa, com coroa de diamante, diametro H (99mm), inclusive deslocamento e posicionamento em cada furo. | E20: m | F20: =ROUNDUP('Pontos de Sondagem'!E190+'Pontos de Sondagem'!G183,0) -> 49 | G20: =TRUNC((1-$H$10)*J20,2) -> 1422.4 | H20: 1752.53 | I20: 85873.97 | J20: =VLOOKUP(C20,'OUTRAS BASES'!B:C,2,0) -> 1422.4 | L20: d | M20: =99/1000 -> 0.099
A21: 1.2.5 | B21: EMBASA | C21: 32.04.61 | D21: Ensaio de Perda de água sob pressão | E21: un | F21: =3*'Pontos de Sondagem'!E188 -> 6 | G21: =TRUNC((1-$H$10)*1058.68,2) -> 1058.68 | H21: =TRUNC(G21*(1+$H$5),2) -> 1304.39 | I21: 7826.34
A22: 1.2.6 | B22: SICRO3 | C22: 3816196 | D22: Fechamento dos Furos - Injeção de nata de cimento | E22: m³ | F22: =M23 -> 1.36249067 | G22: =TRUNC((1-$H$10)*J22,2) -> 1012.78 | H22: 1247.84 | I22: =TRUNC(F22*H22,2) -> 1700.17 | J22: =VLOOKUP(C22,'OUTRAS BASES'!B:C,2,0) -> 1012.78 | L22: A | M22: =PI()*(M20*M20)/4 -> 0.007697687399
A23: 1.2.7 | B23: PRÓPRIA | C23: CPU.45 | D23: =VLOOKUP(C23,CPU!$B$29:$G$4941,2,0) -> Mobilização e Desmobilização de Equipe de retirada de amostra deformada e indeformada | E23: =(VLOOKUP(C23,CPU!$B$10:D$4935,3,0)) -> km | F23: =F17 -> 310 | G23: =TRUNC((1-$H$10)*(SUMIFS(CPU!$G:$G,CPU!$A:$A,'8_Pocodomagro'!$C23,CPU!$H:$H,"ss")+SUMIFS(CPU!$G:$G,CPU!$A:$A,'8_Pocodomagro'!$C23,CPU!$H:$H,"mdo")+SUMIF('Comp SINAPI DF 09-2025 Onerado'!B:B,'8_Pocodomagro'!C23,'Comp SINAPI DF 09-2025 Onerado'!E:E)+SUMIF('Ins SINAPI DF 09-2025 Onerado'!B:B,'8_Pocodomagro'!C23,'Ins SINAPI DF 09-2025 Onerado'!F:F)),2) -> 2.04 | H23: =TRUNC(G23*(1+$H$5),2) -> 2.51 | I23: =TRUNC(F23*H23,2) -> 778.1 | L23: V | M23: =M22*(F18+F20)*M19 -> 1.36249067
A24: 1.2.8 | B24: EMBASA | C24: 34.04.07 | D24: Retirada de amostra deformada | E24: un | F24: =F25 -> 2 | G24: =TRUNC((1-$H$10)*J24,2) -> 105.24 | H24: =TRUNC(G24*(1+$H$5),2) -> 129.66 | I24: 259.32 | J24: =VLOOKUP(C24,'OUTRAS BASES'!B:C,2,0) -> 105.24
A25: 1.2.9 | B25: SUDECAP | C25: 65.08.22 | D25: Retirada de amostra indeformada em blocos 30X30X30CM (NBR 9604:2016), Profundidade = 1 a 2 m | E25: =(VLOOKUP(C25,CPU!$B$10:D$142,3,0)) -> un | F25: 2 | G25: =TRUNC((1-$H$10)*J25,2) -> 1800 | H25: 2217.78 | I25: 4435.56 | J25: =VLOOKUP(C25,'OUTRAS BASES'!B:C,2,0) -> 1800
A26: 1.2.10 | B26: PRÓPRIA | C26: CPU.23 | D26: =VLOOKUP(C26,CPU!$B$29:$G$235,2,0) -> Reaterro com compactação adequada dos pontos de coleta de amostra, Inclusive com fornecimento de solo | E26: =(VLOOKUP(C26,CPU!$B$10:D$4939,3,0)) -> m³ | F26: =ROUNDUP(1.5*1.5*1.5*F25,0) -> 7 | G26: =TRUNC((1-$H$10)*(SUMIFS(CPU!$G:$G,CPU!$A:$A,'3_Estreito'!$C25,CPU!$H:$H,"ss")+SUMIFS(CPU!$G:$G,CPU!$A:$A,'3_Estreito'!$C25,CPU!$H:$H,"mdo")+SUMIF('Comp SINAPI DF 09-2025 Onerado'!B:B,'3_Estreito'!C25,'Comp SINAPI DF 09-2025 Onerado'!E:E)+SUMIF('Ins SINAPI DF 09-2025 Onerado'!B:B,'3_Estreito'!C25,'Ins SINAPI DF 09-2025 Onerado'!F:F)),2) -> 79.02 | H26: =TRUNC(G26*(1+$H$5),2) -> 97.36 | I26: =TRUNC(F26*H26,2) -> 681.52
A27: 1.2.11 | B27: SETOP | C27: CO-6334 | D27: Granulometria por peneiramento e sedimentação | E27: =(VLOOKUP(C27,CPU!$B$10:D$142,3,0)) -> un | F27: 2 | G27: 247.24 | H27: 304.62 | I27: 609.24 | J27: =VLOOKUP(C27,'OUTRAS BASES'!B:C,2,0) -> 247.24
A28: 1.2.12 | B28: SUDECAP | C28: 67.01.30 | D28: Compressão Triaxial Lento Saturado (CD) mínimo 3 corpos de prova | E28: =(VLOOKUP(C28,CPU!$B$10:D$142,3,0)) -> un | F28: 6 | G28: 1140.54 | H28: 1405.25 | I28: 8431.5 | J28: =VLOOKUP(C28,'OUTRAS BASES'!B:C,2,0) -> 1140.54
A29: 1.2.13 | B29: SUDECAP | C29: 67.01.28 | D29: Compressão Triaxial rápido pre-adensado saturado (R-SAT/CIU-SAT) c/ medidas pressão neutra mínimo 3 corpos de prova | E29: =(VLOOKUP(C29,CPU!$B$10:D$142,3,0)) -> un | F29: 3 | G29: 5250 | H29: =TRUNC(G29*(1+$H$5),2) -> 6468.52 | I29: 19405.56 | J29: =VLOOKUP(C29,'OUTRAS BASES'!B:C,2,0) -> 5250
A30: 1.2.14 | B30: SCO | C30: AD 04.05.0300 | D30: Ensaio para determinacao, em laboratorio, do Limite de Plasticidade de amostra de solo fino, de acordo com as recomendacoes da NBR7180 e da NBR6457.(desonerado) | E30: =(VLOOKUP(C30,CPU!$B$10:D$142,3,0)) -> un | F30: =F27 -> 2 | G30: 161.92 | H30: =TRUNC(G30*(1+$H$5),2) -> 199.5 | I30: =TRUNC(F30*H30,2) -> 399 | J30: =VLOOKUP(C30,'OUTRAS BASES'!B:C,2,0) -> 161.92
A31: 1.2.15 | B31: SCO | C31: AD 04.05.0250 | D31: Ensaio para determinacao, em laboratorio, do Limite de Liquidez de amostra de solo fino, de acordo com as recomendacoes da NBR7180 e da NBR6457.(desonerado) | E31: =(VLOOKUP(C31,CPU!$B$10:D$142,3,0)) -> um | F31: =F27 -> 2 | G31: =TRUNC((1-$H$10)*J31,2) -> 161.92 | H31: =TRUNC(G31*(1+$H$5),2) -> 199.5 | I31: =TRUNC(F31*H31,2) -> 399 | J31: =VLOOKUP(C31,'OUTRAS BASES'!B:C,2,0) -> 161.92
A32: 1.2.16 | B32: SETOP | C32: CO-6358 | D32: Determinação do coeficiente de permeabilidade de solos argilosos à carga variável | E32: =(VLOOKUP(C32,CPU!$B$10:D$142,3,0)) -> un | F32: 6 | G32: 589.03 | H32: 725.74 | I32: 4354.44 | J32: =VLOOKUP(C32,'OUTRAS BASES'!B:C,2,0) -> 589.03
A33: 1.2.17 | B33: SCO | C33: AD 35.35.0400 | D33: Ensaio de compressão simples em amostra de concreto - Base em SCO AD 35.35.0400 | E33: un | F33: 9 | G33: 320.04 | H33: 394.32 | I33: 3548.88 | J33: =VLOOKUP(C33,'OUTRAS BASES'!B:C,2,0) -> 320.04
A34: 1.2.18 | B34: PRÓPRIA | C34: CPU.04 | D34: =VLOOKUP(C34,CPU!$B$29:$G$235,2,0) -> Avaliação da espessura de carbonatação, por ponto, em estruturas de concreto armado ou protendido, através de aspersão de solução de fenolftaleína, inclusive coleta da amostra | E34: =(VLOOKUP(C34,CPU!$B$10:D$142,3,0)) -> un | F34: 3 | G34: =TRUNC((1-$H$10)*(SUMIFS(CPU!$G:$G,CPU!$A:$A,'8_Pocodomagro'!$C34,CPU!$H:$H,"ss")+SUMIFS(CPU!$G:$G,CPU!$A:$A,'8_Pocodomagro'!$C34,CPU!$H:$H,"mdo")+SUMIF('Comp SINAPI DF 09-2025 Onerado'!B:B,'8_Pocodomagro'!C34,'Comp SINAPI DF 09-2025 Onerado'!E:E)+SUMIF('Ins SINAPI DF 09-2025 Onerado'!B:B,'8_Pocodomagro'!C34,'Ins SINAPI DF 09-2025 Onerado'!F:F)),2) -> 470.15 | H34: =TRUNC(G34*(1+$H$5),2) -> 579.27 | I34: 1737.81
A35: 1.2.19 | B35: PRÓPRIA | C35: CPU.05 | D35: =VLOOKUP(C35,CPU!$B$29:$G$235,2,0) -> Ensaio de esclerometria em 10 pontos com 16 tiros por ponto | E35: =(VLOOKUP(C35,CPU!$B$10:D$142,3,0)) -> un | F35: 2 | G35: =TRUNC((1-$H$10)*(SUMIFS(CPU!$G:$G,CPU!$A:$A,'8_Pocodomagro'!$C35,CPU!$H:$H,"ss")+SUMIFS(CPU!$G:$G,CPU!$A:$A,'8_Pocodomagro'!$C35,CPU!$H:$H,"mdo")+SUMIF('Comp SINAPI DF 09-2025 Onerado'!B:B,'8_Pocodomagro'!C35,'Comp SINAPI DF 09-2025 Onerado'!E:E)+SUMIF('Ins SINAPI DF 09-2025 Onerado'!B:B,'8_Pocodomagro'!C35,'Ins SINAPI DF 09-2025 Onerado'!F:F)),2) -> 1927.99 | H35: 2375.47 | I35: 4750.94
A36: 1.3 | D36: Levantamento Topográfico | I36: =SUM(I37:I38) -> 41392.56
A37: 1.3.1 | B37: PRÓPRIA | C37: CPU.28 | D37: =VLOOKUP(C37,CPU!B29:G413,2,0) -> Mobilização e Desmobilização de Equipe de Levantamento topográfico | E37: =(VLOOKUP(C37,CPU!$B$10:D$499937,3,0)) -> un | F37: 1 | G37: =TRUNC((1-$H$10)*(SUMIFS(CPU!$G:$G,CPU!$A:$A,'8_Pocodomagro'!$C37,CPU!$H:$H,"ss")+SUMIFS(CPU!$G:$G,CPU!$A:$A,'8_Pocodomagro'!$C37,CPU!$H:$H,"mdo")+SUMIF('Comp SINAPI DF 09-2025 Onerado'!B:B,'8_Pocodomagro'!C37,'Comp SINAPI DF 09-2025 Onerado'!E:E)+SUMIF('Ins SINAPI DF 09-2025 Onerado'!B:B,'8_Pocodomagro'!C37,'Ins SINAPI DF 09-2025 Onerado'!F:F)),2) -> 7747.32 | H37: =TRUNC(G37*(1+$H$5),2) -> 9545.47 | I37: =TRUNC(F37*H37,2) -> 9545.47
A38: 1.3.2 | B38: SETOP | C38: CO-27369 | D38: Levantamento planialtimétrico e cadastral - terreno maior que 50.001 m² | E38: m² | F38: ='Memorial de cálculo'!P20 -> 74063 | G38: =TRUNC((1-$H$10)*J38,2) -> 0.35 | H38: =TRUNC(G38*(1+$H$5),2) -> 0.43 | I38: =TRUNC(F38*H38,2) -> 31847.09 | J38: =VLOOKUP(C38,'OUTRAS BASES'!B:C,2,0) -> 0.35
A39: 1.4 | D39: Levantamento Fotogramétrico | I39: =SUM(I40:I41) -> 13533.28
A40: 1.4.1 | B40: PRÓPRIA | C40: CPU.31 | D40: =VLOOKUP(C40,CPU!B29:G4918,2,0) -> Mobilização e Desmobilização de Equipe e Equipamentos de Levantamento Fotogramétrico | E40: =(VLOOKUP(C40,CPU!$B$10:D$210,3,0)) -> km | F40: ='Memorial de cálculo'!P14*2 -> 310 | G40: =TRUNC((1-$H$10)*J40,2) -> 7.74 | H40: =TRUNC(G40*(1+$H$5),2) -> 9.53 | I40: =TRUNC(F40*H40,2) -> 2954.3 | J40: 7.74
A41: 1.4.2 | B41: EMBASA | C41: 31.90.13 | D41: Levant. Fotogrametrico c/ VANT (drone) áreas até 100 ha, incl. Ortofotos, GSD<=3, acurácia horiz. Min.3cm e vert. Min. 6cm, aferidos c/ pontos de controle distancia min. De 650m entre eles, exclusivetransporte de equipe e equipamentos | E41: un | F41: 1 | G41: =TRUNC((1-$H$10)*J41,2) -> 8586.14 | H41: =TRUNC(G41*(1+$H$5),2) -> 10578.98 | I41: =TRUNC(F41*H41,2) -> 10578.98 | J41: =VLOOKUP(C41,'OUTRAS BASES'!B:C,2,0) -> 8586.14
A42: 2 | D42: ETAPA 2 | I42: =SUM(I43) -> 174157.89
A43: 2.1 | D43: ESTUDOS | I43: =SUM(I44:I51) -> 174157.89
A44: 2.1.1 | B44: PRÓPRIA | C44: CPU.11 | D44: =VLOOKUP(C44,CPU!$B$29:$G$4928,2,0) -> Estudo Geológico-geotécnico | E44: =(VLOOKUP(C44,CPU!$B$10:D$4928,3,0)) -> un | F44: 1 | G44: =TRUNC((1-$H$10)*(SUMIFS(CPU!$G:$G,CPU!$A:$A,'8_Pocodomagro'!$C44,CPU!$H:$H,"ss")+SUMIFS(CPU!$G:$G,CPU!$A:$A,'8_Pocodomagro'!$C44,CPU!$H:$H,"mdo")+SUMIF('Comp SINAPI DF 09-2025 Onerado'!B:B,'8_Pocodomagro'!C44,'Comp SINAPI DF 09-2025 Onerado'!E:E)+SUMIF('Ins SINAPI DF 09-2025 Onerado'!B:B,'8_Pocodomagro'!C44,'Ins SINAPI DF 09-2025 Onerado'!F:F)),2) -> 14328.22 | H44: =TRUNC(G44*(1+$H$5),2) -> 17653.79 | I44: =TRUNC(F44*H44,2) -> 17653.79
A45: 2.1.2 | B45: PRÓPRIA | C45: CPU.12 | D45: =VLOOKUP(C45,CPU!$B$29:$G$4928,2,0) -> Relatório Fotogramétricos e Tratamento de Dados | E45: =(VLOOKUP(C45,CPU!$B$10:D$4928,3,0)) -> un | F45: 1 | G45: =TRUNC((1-$H$10)*(SUMIFS(CPU!$G:$G,CPU!$A:$A,'8_Pocodomagro'!$C45,CPU!$H:$H,"ss")+SUMIFS(CPU!$G:$G,CPU!$A:$A,'8_Pocodomagro'!$C45,CPU!$H:$H,"mdo")+SUMIF('Comp SINAPI DF 09-2025 Onerado'!B:B,'8_Pocodomagro'!C45,'Comp SINAPI DF 09-2025 Onerado'!E:E)+SUMIF('Ins SINAPI DF 09-2025 Onerado'!B:B,'8_Pocodomagro'!C45,'Ins SINAPI DF 09-2025 Onerado'!F:F)),2) -> 8785.99 | H45: =TRUNC(G45*(1+$H$5),2) -> 10825.21 | I45: =TRUNC(F45*H45,2) -> 10825.21
A46: 2.1.3 | B46: PRÓPRIA | C46: CPU.13 | D46: =VLOOKUP(C46,CPU!$B$29:$G$4928,2,0) -> Estudo de Ruputura e Mapas de Inundação | E46: =(VLOOKUP(C46,CPU!$B$10:D$4928,3,0)) -> un | F46: 1 | G46: =TRUNC((1-$H$10)*(SUMIFS(CPU!$G:$G,CPU!$A:$A,'8_Pocodomagro'!$C46,CPU!$H:$H,"ss")+SUMIFS(CPU!$G:$G,CPU!$A:$A,'8_Pocodomagro'!$C46,CPU!$H:$H,"mdo")+SUMIF('Comp SINAPI DF 09-2025 Onerado'!B:B,'8_Pocodomagro'!C46,'Comp SINAPI DF 09-2025 Onerado'!E:E)+SUMIF('Ins SINAPI DF 09-2025 Onerado'!B:B,'8_Pocodomagro'!C46,'Ins SINAPI DF 09-2025 Onerado'!F:F)),2) -> 38768.32 | H46: =TRUNC(G46*(1+$H$5),2) -> 47766.44 | I46: =TRUNC(F46*H46,2) -> 47766.44
A47: 2.1.4 | B47: PRÓPRIA | C47: CPU.14 | D47: =VLOOKUP(C47,CPU!$B$29:$G$4928,2,0) -> Estudo de Estabilidade e Percolação - Barragem de Terra | E47: =(VLOOKUP(C47,CPU!$B$10:D$4928,3,0)) -> un | F47: 1 | G47: =TRUNC((1-$H$10)*(SUMIFS(CPU!$G:$G,CPU!$A:$A,'8_Pocodomagro'!$C47,CPU!$H:$H,"ss")+SUMIFS(CPU!$G:$G,CPU!$A:$A,'8_Pocodomagro'!$C47,CPU!$H:$H,"mdo")+SUMIF('Comp SINAPI DF 09-2025 Onerado'!B:B,'8_Pocodomagro'!C47,'Comp SINAPI DF 09-2025 Onerado'!E:E)+SUMIF('Ins SINAPI DF 09-2025 Onerado'!B:B,'8_Pocodomagro'!C47,'Ins SINAPI DF 09-2025 Onerado'!F:F)),2) -> 35476.72 | H47: =TRUNC(G47*(1+$H$5),2) -> 43710.86 | I47: =TRUNC(F47*H47,2) -> 43710.86
A48: 2.1.5 | B48: PRÓPRIA | C48: CPU.16 | D48: =VLOOKUP(C48,CPU!$B$29:$G$159,2,0) -> Estudo de Estabilidade e Análise do controle de percolação e da distribuição das subpressões na fundação - Barragem de Concreto | E48: =(VLOOKUP(C48,CPU!$B$10:D$4939,3,0)) -> un | F48: 1 | G48: =TRUNC((1-$H$10)*(SUMIFS(CPU!$G:$G,CPU!$A:$A,'8_Pocodomagro'!$C48,CPU!$H:$H,"ss")+SUMIFS(CPU!$G:$G,CPU!$A:$A,'8_Pocodomagro'!$C48,CPU!$H:$H,"mdo")+SUMIF('Comp SINAPI DF 09-2025 Onerado'!B:B,'8_Pocodomagro'!C48,'Comp SINAPI DF 09-2025 Onerado'!E:E)+SUMIF('Ins SINAPI DF 09-2025 Onerado'!B:B,'8_Pocodomagro'!C48,'Ins SINAPI DF 09-2025 Onerado'!F:F)),2) -> 23455.12 | H48: =TRUNC(G48*(1+$H$5),2) -> 28899.05 | I48: =TRUNC(F48*H48,2) -> 28899.05
A49: 2.1.6 | B49: PRÓPRIA | C49: CPU.33 | D49: =VLOOKUP(C49,CPU!$B$29:$G$4939,2,0) -> Relatório de Avaliação de Estruturas de Concreto | E49: =(VLOOKUP(C49,CPU!$B$10:D$4939,3,0)) -> un | F49: 1 | G49: =TRUNC((1-$H$10)*(SUMIFS(CPU!$G:$G,CPU!$A:$A,'8_Pocodomagro'!$C49,CPU!$H:$H,"ss")+SUMIFS(CPU!$G:$G,CPU!$A:$A,'8_Pocodomagro'!$C49,CPU!$H:$H,"mdo")+SUMIF('Comp SINAPI DF 09-2025 Onerado'!B:B,'8_Pocodomagro'!C49,'Comp SINAPI DF 09-2025 Onerado'!E:E)+SUMIF('Ins SINAPI DF 09-2025 Onerado'!B:B,'8_Pocodomagro'!C49,'Ins SINAPI DF 09-2025 Onerado'!F:F)),2) -> 6010.8 | H49: =TRUNC(G49*(1+$H$5),2) -> 7405.9 | I49: =TRUNC(F49*H49,2) -> 7405.9
A50: 2.1.7 | B50: PRÓPRIA | C50: CPU.40 | D50: =VLOOKUP(C50,CPU!$B$29:$G$4939,2,0) -> Relatório Topográfico e Tratamento de Dados | E50: =(VLOOKUP(C50,CPU!$B$10:D$4939,3,0)) -> un | F50: 1 | G50: =TRUNC((1-$H$10)*(SUMIFS(CPU!$G:$G,CPU!$A:$A,'8_Pocodomagro'!$C50,CPU!$H:$H,"ss")+SUMIFS(CPU!$G:$G,CPU!$A:$A,'8_Pocodomagro'!$C50,CPU!$H:$H,"mdo")+SUMIF('Comp SINAPI DF 09-2025 Onerado'!B:B,'8_Pocodomagro'!C50,'Comp SINAPI DF 09-2025 Onerado'!E:E)+SUMIF('Ins SINAPI DF 09-2025 Onerado'!B:B,'8_Pocodomagro'!C50,'Ins SINAPI DF 09-2025 Onerado'!F:F)),2) -> 8514.52 | H50: 10490.74 | I50: 10490.74
A51: 2.1.8 | B51: PRÓPRIA | C51: CPU.42 | D51: =VLOOKUP(C51,CPU!$B$29:$G$4939,2,0) -> Relatório de Investigação Geológica/Geotécnica | E51: =(VLOOKUP(C51,CPU!$B$10:D$4939,3,0)) -> un | F51: 1 | G51: =TRUNC((1-$H$10)*(SUMIFS(CPU!$G:$G,CPU!$A:$A,'8_Pocodomagro'!$C51,CPU!$H:$H,"ss")+SUMIFS(CPU!$G:$G,CPU!$A:$A,'8_Pocodomagro'!$C51,CPU!$H:$H,"mdo")+SUMIF('Comp SINAPI DF 09-2025 Onerado'!B:B,'8_Pocodomagro'!C51,'Comp SINAPI DF 09-2025 Onerado'!E:E)+SUMIF('Ins SINAPI DF 09-2025 Onerado'!B:B,'8_Pocodomagro'!C51,'Ins SINAPI DF 09-2025 Onerado'!F:F)),2) -> 6010.8 | H51: 7405.9 | I51: 7405.9
A52: 3 | D52: ETAPA 3 | I52: =SUM(I53,I56,I64) -> 372432.11
A53: 3.1 | D53: PROJETOS | I53: =SUM(I54:I55) -> 91058.79
A54: 3.1.1 | B54: PRÓPRIA | C54: CPU.18 | D54: =VLOOKUP(C54,CPU!B59:G163,2,0) -> Projeto de Instrumentação | E54: =(VLOOKUP(C54,CPU!$B$10:D$142,3,0)) -> un | F54: 1 | G54: =TRUNC((1-$H$10)*(SUMIFS(CPU!$G:$G,CPU!$A:$A,'8_Pocodomagro'!$C54,CPU!$H:$H,"ss")+SUMIFS(CPU!$G:$G,CPU!$A:$A,'8_Pocodomagro'!$C54,CPU!$H:$H,"mdo")+SUMIF('Comp SINAPI DF 09-2025 Onerado'!B:B,'8_Pocodomagro'!C54,'Comp SINAPI DF 09-2025 Onerado'!E:E)+SUMIF('Ins SINAPI DF 09-2025 Onerado'!B:B,'8_Pocodomagro'!C54,'Ins SINAPI DF 09-2025 Onerado'!F:F)),2) -> 29283.76 | H54: =TRUNC(G54*(1+$H$5),2) -> 36080.52 | I54: =TRUNC(F54*H54,2) -> 36080.52
A55: 3.1.2 | B55: PRÓPRIA | C55: CPU.20 | D55: =VLOOKUP(C55,CPU!B59:G168,2,0) -> Projeto Geométrico (AS IS) | E55: =(VLOOKUP(C55,CPU!$B$10:D$142,3,0)) -> un | F55: 1 | G55: =TRUNC((1-$H$10)*(SUMIFS(CPU!$G:$G,CPU!$A:$A,'8_Pocodomagro'!$C55,CPU!$H:$H,"ss")+SUMIFS(CPU!$G:$G,CPU!$A:$A,'8_Pocodomagro'!$C55,CPU!$H:$H,"mdo")+SUMIF('Comp SINAPI DF 09-2025 Onerado'!B:B,'8_Pocodomagro'!C55,'Comp SINAPI DF 09-2025 Onerado'!E:E)+SUMIF('Ins SINAPI DF 09-2025 Onerado'!B:B,'8_Pocodomagro'!C55,'Ins SINAPI DF 09-2025 Onerado'!F:F)),2) -> 44621.6 | H55: =TRUNC(G55*(1+$H$5),2) -> 54978.27 | I55: =TRUNC(F55*H55,2) -> 54978.27
A56: 3.2 | D56: PLANO DE SEGURANÇA DE BARRAGENS | I56: =SUM(I57:I63) -> 181035.5
A57: 3.2.1 | B57: PRÓPRIA | C57: CPU.34 | D57: =VLOOKUP(C57,CPU!B52:G4933,2,0) -> Volume I - Informações Gerais | E57: =(VLOOKUP(C57,CPU!$B$10:D$4896,3,0)) -> un | F57: 1 | G57: =TRUNC((1-$H$10)*(SUMIFS(CPU!$G:$G,CPU!$A:$A,'8_Pocodomagro'!$C57,CPU!$H:$H,"ss")+SUMIFS(CPU!$G:$G,CPU!$A:$A,'8_Pocodomagro'!$C57,CPU!$H:$H,"mdo")+SUMIF('Comp SINAPI DF 09-2025 Onerado'!B:B,'8_Pocodomagro'!C57,'Comp SINAPI DF 09-2025 Onerado'!E:E)+SUMIF('Ins SINAPI DF 09-2025 Onerado'!B:B,'8_Pocodomagro'!C57,'Ins SINAPI DF 09-2025 Onerado'!F:F)),2) -> 15330.6 | H57: =TRUNC(G57*(1+$H$5),2) -> 18888.83 | I57: =TRUNC(F57*H57,2) -> 18888.83
A58: 3.2.2 | B58: PRÓPRIA | C58: CPU.35 | D58: =VLOOKUP(C58,CPU!B53:G4934,2,0) -> Volume II - Documentação Técnica | E58: =(VLOOKUP(C58,CPU!$B$10:D$4896,3,0)) -> un | F58: 1 | G58: =TRUNC((1-$H$10)*(SUMIFS(CPU!$G:$G,CPU!$A:$A,'8_Pocodomagro'!$C58,CPU!$H:$H,"ss")+SUMIFS(CPU!$G:$G,CPU!$A:$A,'8_Pocodomagro'!$C58,CPU!$H:$H,"mdo")+SUMIF('Comp SINAPI DF 09-2025 Onerado'!B:B,'8_Pocodomagro'!C58,'Comp SINAPI DF 09-2025 Onerado'!E:E)+SUMIF('Ins SINAPI DF 09-2025 Onerado'!B:B,'8_Pocodomagro'!C58,'Ins SINAPI DF 09-2025 Onerado'!F:F)),2) -> 15751.56 | H58: 19407.49 | I58: 19407.49
A59: 3.2.3 | B59: PRÓPRIA | C59: CPU.36 | D59: =VLOOKUP(C59,CPU!B53:G4935,2,0) -> Volume III - Planos e Procedimentos | E59: =(VLOOKUP(C59,CPU!$B$10:D$4896,3,0)) -> un | F59: 1 | G59: =TRUNC((1-$H$10)*(SUMIFS(CPU!$G:$G,CPU!$A:$A,'8_Pocodomagro'!$C59,CPU!$H:$H,"ss")+SUMIFS(CPU!$G:$G,CPU!$A:$A,'8_Pocodomagro'!$C59,CPU!$H:$H,"mdo")+SUMIF('Comp SINAPI DF 09-2025 Onerado'!B:B,'8_Pocodomagro'!C59,'Comp SINAPI DF 09-2025 Onerado'!E:E)+SUMIF('Ins SINAPI DF 09-2025 Onerado'!B:B,'8_Pocodomagro'!C59,'Ins SINAPI DF 09-2025 Onerado'!F:F)),2) -> 15751.56 | H59: 19407.49 | I59: 19407.49
A60: 3.2.4 | B60: PRÓPRIA | C60: CPU.37 | D60: =VLOOKUP(C60,CPU!B54:G4936,2,0) -> Volume IV - Registros e Controles | E60: =(VLOOKUP(C60,CPU!$B$10:D$4896,3,0)) -> un | F60: 1 | G60: =TRUNC((1-$H$10)*(SUMIFS(CPU!$G:$G,CPU!$A:$A,'8_Pocodomagro'!$C60,CPU!$H:$H,"ss")+SUMIFS(CPU!$G:$G,CPU!$A:$A,'8_Pocodomagro'!$C60,CPU!$H:$H,"mdo")+SUMIF('Comp SINAPI DF 09-2025 Onerado'!B:B,'8_Pocodomagro'!C60,'Comp SINAPI DF 09-2025 Onerado'!E:E)+SUMIF('Ins SINAPI DF 09-2025 Onerado'!B:B,'8_Pocodomagro'!C60,'Ins SINAPI DF 09-2025 Onerado'!F:F)),2) -> 15751.56 | H60: 19407.49 | I60: 19407.49
A61: 3.2.5 | B61: PRÓPRIA | C61: CPU.38 | D61: =VLOOKUP(C61,CPU!B55:G4937,2,0) -> Volume V - Revisão Periódica de Segurança de Barragem | E61: =(VLOOKUP(C61,CPU!$B$10:D$4896,3,0)) -> un | F61: 1 | G61: =TRUNC((1-$H$10)*(SUMIFS(CPU!$G:$G,CPU!$A:$A,'8_Pocodomagro'!$C61,CPU!$H:$H,"ss")+SUMIFS(CPU!$G:$G,CPU!$A:$A,'8_Pocodomagro'!$C61,CPU!$H:$H,"mdo")+SUMIF('Comp SINAPI DF 09-2025 Onerado'!B:B,'8_Pocodomagro'!C61,'Comp SINAPI DF 09-2025 Onerado'!E:E)+SUMIF('Ins SINAPI DF 09-2025 Onerado'!B:B,'8_Pocodomagro'!C61,'Ins SINAPI DF 09-2025 Onerado'!F:F)),2) -> 27410.88 | H61: 33772.94 | I61: 33772.94
A62: 3.2.6 | B62: PRÓPRIA | C62: CPU.39 | D62: =VLOOKUP(C62,CPU!B56:G4938,2,0) -> Volume V - A - Resumo Executivo | E62: =(VLOOKUP(C62,CPU!$B$10:D$4896,3,0)) -> un | F62: 1 | G62: =TRUNC((1-$H$10)*(SUMIFS(CPU!$G:$G,CPU!$A:$A,'8_Pocodomagro'!$C62,CPU!$H:$H,"ss")+SUMIFS(CPU!$G:$G,CPU!$A:$A,'8_Pocodomagro'!$C62,CPU!$H:$H,"mdo")+SUMIF('Comp SINAPI DF 09-2025 Onerado'!B:B,'8_Pocodomagro'!C62,'Comp SINAPI DF 09-2025 Onerado'!E:E)+SUMIF('Ins SINAPI DF 09-2025 Onerado'!B:B,'8_Pocodomagro'!C62,'Ins SINAPI DF 09-2025 Onerado'!F:F)),2) -> 24473.94 | H62: =TRUNC(G62*(1+$H$5),2) -> 30154.34 | I62: 30154.34
A63: 3.2.7 | B63: PRÓPRIA | C63: CPU.41 | D63: =VLOOKUP(C63,CPU!B57:G4939,2,0) -> Volume VI - Plano de Ação de Emergência | E63: un | F63: 1 | G63: =TRUNC((1-$H$10)*(SUMIFS(CPU!$G:$G,CPU!$A:$A,'8_Pocodomagro'!$C63,CPU!$H:$H,"ss")+SUMIFS(CPU!$G:$G,CPU!$A:$A,'8_Pocodomagro'!$C63,CPU!$H:$H,"mdo")+SUMIF('Comp SINAPI DF 09-2025 Onerado'!B:B,'8_Pocodomagro'!C63,'Comp SINAPI DF 09-2025 Onerado'!E:E)+SUMIF('Ins SINAPI DF 09-2025 Onerado'!B:B,'8_Pocodomagro'!C63,'Ins SINAPI DF 09-2025 Onerado'!F:F)),2) -> 32462.4 | H63: =TRUNC(G63*(1+$H$5),2) -> 39996.92 | I63: =TRUNC(F63*H63,2) -> 39996.92
A64: 3.3 | D64: PLANO DE AÇÃO DE EMERGÊNCIA | I64: =SUM(I65:I67) -> 100337.82
A65: 3.3.1 | B65: PRÓPRIA | C65: CPU.24 | D65: =VLOOKUP(C65,CPU!B59:G4941,2,0) -> Projeto de sinalização | E65: un | F65: 1 | G65: =TRUNC((1-$H$10)*(SUMIFS(CPU!$G:$G,CPU!$A:$A,'8_Pocodomagro'!$C65,CPU!$H:$H,"ss")+SUMIFS(CPU!$G:$G,CPU!$A:$A,'8_Pocodomagro'!$C65,CPU!$H:$H,"mdo")+SUMIF('Comp SINAPI DF 09-2025 Onerado'!B:B,'8_Pocodomagro'!C65,'Comp SINAPI DF 09-2025 Onerado'!E:E)+SUMIF('Ins SINAPI DF 09-2025 Onerado'!B:B,'8_Pocodomagro'!C65,'Ins SINAPI DF 09-2025 Onerado'!F:F)),2) -> 27232.12 | H65: =TRUNC(G65*(1+$H$5),2) -> 33552.69 | I65: =TRUNC(F65*H65,2) -> 33552.69
A66: 3.3.2 | B66: PRÓPRIA | C66: CPU.25 | D66: =VLOOKUP(C66,CPU!B60:G4942,2,0) -> Projeto de rotas de fuga | E66: un | F66: 1 | G66: =TRUNC((1-$H$10)*(SUMIFS(CPU!$G:$G,CPU!$A:$A,'8_Pocodomagro'!$C66,CPU!$H:$H,"ss")+SUMIFS(CPU!$G:$G,CPU!$A:$A,'8_Pocodomagro'!$C66,CPU!$H:$H,"mdo")+SUMIF('Comp SINAPI DF 09-2025 Onerado'!B:B,'8_Pocodomagro'!C66,'Comp SINAPI DF 09-2025 Onerado'!E:E)+SUMIF('Ins SINAPI DF 09-2025 Onerado'!B:B,'8_Pocodomagro'!C66,'Ins SINAPI DF 09-2025 Onerado'!F:F)),2) -> 30599.8 | H66: =TRUNC(G66*(1+$H$5),2) -> 37702.01 | I66: 37702.01
A67: 3.3.3 | B67: PRÓPRIA | C67: CPU.32 | D67: =VLOOKUP(C67,CPU!B61:G4943,2,0) -> Projeto de sistema sonoro | E67: un | F67: 1 | G67: =TRUNC((1-$H$10)*(SUMIFS(CPU!$G:$G,CPU!$A:$A,'8_Pocodomagro'!$C67,CPU!$H:$H,"ss")+SUMIFS(CPU!$G:$G,CPU!$A:$A,'8_Pocodomagro'!$C67,CPU!$H:$H,"mdo")+SUMIF('Comp SINAPI DF 09-2025 Onerado'!B:B,'8_Pocodomagro'!C67,'Comp SINAPI DF 09-2025 Onerado'!E:E)+SUMIF('Ins SINAPI DF 09-2025 Onerado'!B:B,'8_Pocodomagro'!C67,'Ins SINAPI DF 09-2025 Onerado'!F:F)),2) -> 23604.52 | H67: 29083.12 | I67: 29083.12
D68: TOTAL (Custo): | I68: =TRUNC(SUMPRODUCT(F14:F67,G14:G67),2) -> 657287.76 | L68: =TRUNC(SUMPRODUCT(F14:F62,H14:H62),2) -> 669412.63
D69: BDI e Encargos Sociais: | I69: =I70-I68 -> 152459.61
D70: TOTAL GERAL COM BDI: | I70: =SUM(I52,I42,I13) -> 809747.37 | P70: =TRUNC(SUMPRODUCT(F14:F67,H14:H67),2) -> 809747.37

Sheet 9_SaoGregorio
A1: Ministério da Integração e do Desenvolvimento Regional
A2: Companhia de Desenvolvimento dos Vales do São Francisco e do Parnaíba
A4: PLANILHA ORÇAMENTÁRIA - ORÇAMENTO NÃO DESONERADO
A5: OBRA: | B5: =Resumo!B5 -> Elaboração de Plano de Segurança de Barragens | G5: BDI (serv.): | H5: ='BDI serv'!D23 -> 0.2321 | I5: Bancos de dados:
A6: LOCAL: | B6: Campo Azul, MG | G6: BDI (forn.): | H6: ='BDI forn'!D23 -> 0 | I6: =Resumo!G6 -> SETEMBRO/25 - SINAPI
A7: DATA BASE: | B7: 2025-10-01 | E7: Encargos sociais - Horistas: | H7: ='Encargos Sociais DF'!E49 -> 1.1011 | I7: =Resumo!G7 -> SIURB INFRA JAN/2025
A8: PRAZO: | B8: =Resumo!B8 -> 300 dias | E8: Encargos sociais - Mensalista: | H8: ='Encargos Sociais DF'!F49 -> 0.7019 | I8: =Resumo!G8 -> JAN/25 E JUL/2025- SETOP
B10: São Gregório | G10: Desconto: | H10: 0 | I10: =Resumo!G10 -> JUL/2025 - CONSULT. DNIT
A11: ITEM | B11: REFERÊNCIA | D11: DESCRIÇÃO | E11: UNID. | F11: QUANT. | G11: CUSTO UNITÁRIO | H11: PREÇO UNITÁRIO | I11: PREÇO TOTAL
B12: FONTE | C12: CÓDIGO
A13: 1 | D13: ='1_Bico da Pedra'!D13 -> ETAPA 1 | I13: =I14+I16+I34+I37+I40 -> 315220.84
A14: 1.1 | D14: Visita Técnica | I14: =SUM(I15:I15) -> 55532.37
A15: 1.1.1 | B15: PRÓPRIA | C15: CPU.09 | D15: =VLOOKUP(C15,CPU!B29:G75,2,0) -> Inspeção Visual da Estrutura (Multidisciplinar) e elaboração de relatório | E15: =(VLOOKUP(C15,CPU!$B$10:D$142,3,0)) -> un | F15: 1 | G15: =TRUNC((1-$H$10)*(SUMIFS(CPU!$G:$G,CPU!$A:$A,'9_SaoGregorio'!$C15,CPU!$H:$H,"ss")+SUMIFS(CPU!$G:$G,CPU!$A:$A,'9_SaoGregorio'!$C15,CPU!$H:$H,"mdo")+SUMIF('Comp SINAPI DF 09-2025 Onerado'!B:B,'9_SaoGregorio'!C15,'Comp SINAPI DF 09-2025 Onerado'!E:E)+SUMIF('Ins SINAPI DF 09-2025 Onerado'!B:B,'9_SaoGregorio'!C15,'Ins SINAPI DF 09-2025 Onerado'!F:F)),2) -> 45071.32 | H15: =TRUNC(G15*(1+$H$5),2) -> 55532.37 | I15: =TRUNC(F15*H15,2) -> 55532.37
A16: 1.2 | D16: INVESTIGAÇÃO GEOLÓGICA E GEOTÉCNICA | I16: =SUM(I17:I33) -> 82604.72
A17: 1.2.1 | B17: SETOP | C17: CO-28389 | D17: Mobilização e desmobilização de equipamento de sondagem a percussão com Ensaio de Penetração Padrão (SPT) (custo variável), exclusive custo fixo | E17: km | F17: ='Memorial de cálculo'!N14*2 -> 352 | G17: =TRUNC((1-$H$10)*J17,2) -> 2.04 | H17: =TRUNC(G17*(1+$H$5),2) -> 2.51 | I17: =TRUNC(F17*H17,2) -> 883.52 | J17: =VLOOKUP(C17,'OUTRAS BASES'!B:C,2,0) -> 2.04
A18: 1.2.2 | B18: SETOP | C18: CO-28388 | D18: Sondagem a percussão com Ensaio de Penetração Padrão (SPT), diâmetro 2.1/2", exclusive mobilização e desmobilização | E18: m | F18: =ROUNDUP('Pontos de Sondagem'!E221,0) -> 121 | G18: 79.09 | H18: =TRUNC(G18*(1+$H$5),2) -> 97.44 | I18: =TRUNC(F18*H18,2) -> 11790.24 | J18: =VLOOKUP(C18,'OUTRAS BASES'!B:C,2,0) -> 79.09
A19: 1.2.3 | B19: EMBASA | C19: 32.05.04 | D19: Mobilização e desmobilização de equipe e equipamentos para sondagem rotativa ou mista | E19: km | F19: 1 | G19: 5.16 | H19: =TRUNC(G19*(1+$H$5),2) -> 6.35 | I19: 6.35 | J19: =VLOOKUP(C19,'OUTRAS BASES'!B:C,2,0) -> 5.16 | L19: c | M19: 1.5
A20: 1.2.4 | B20: SCO | C20: AD 05.15.0400 | D20: Sondagem rotativa vertical, em rocha sa, com coroa de diamante, diametro H (99mm), inclusive deslocamento e posicionamento em cada furo. | E20: m | F20: =ROUNDUP('Pontos de Sondagem'!G221,0) -> 13 | G20: 1422.4 | H20: 1752.53 | I20: 22782.89 | J20: =VLOOKUP(C20,'OUTRAS BASES'!B:C,2,0) -> 1422.4 | L20: d | M20: =63.5/1000 -> 0.0635 | N20: m
A21: 1.2.5 | B21: SICRO3 | C21: 3816196 | D21: Fechamento dos Furos - Injeção de nata de cimento | E21: m³ | F21: =M24 -> 0.6365512706 | G21: 1012.78 | H21: 1247.84 | I21: =TRUNC(F21*H21,2) -> 794.31 | J21: =VLOOKUP(C21,'OUTRAS BASES'!B:C,2,0) -> 1012.78 | L21: A | M21: =PI()*(M20*M20)/4 -> 0.003166921744
A22: 1.2.6 | B22: PRÓPRIA | C22: CPU.45 | D22: =VLOOKUP(C22,CPU!$B$29:$G$4941,2,0) -> Mobilização e Desmobilização de Equipe de retirada de amostra deformada e indeformada | E22: =(VLOOKUP(C22,CPU!$B$10:D$4935,3,0)) -> km | F22: =F17 -> 352 | G22: =TRUNC((1-$H$10)*(SUMIFS(CPU!$G:$G,CPU!$A:$A,'9_SaoGregorio'!$C22,CPU!$H:$H,"ss")+SUMIFS(CPU!$G:$G,CPU!$A:$A,'9_SaoGregorio'!$C22,CPU!$H:$H,"mdo")+SUMIF('Comp SINAPI DF 09-2025 Onerado'!B:B,'9_SaoGregorio'!C22,'Comp SINAPI DF 09-2025 Onerado'!E:E)+SUMIF('Ins SINAPI DF 09-2025 Onerado'!B:B,'9_SaoGregorio'!C22,'Ins SINAPI DF 09-2025 Onerado'!F:F)),2) -> 2.04 | H22: 2.51 | I22: =TRUNC(F22*H22,2) -> 883.52 | M22: V | N22: =N21*(F18+F20)*N19 -> 0
A23: 1.2.7 | B23: EMBASA | C23: 34.04.07 | D23: Retirada de amostra deformada | E23: un | F23: =F24 -> 2 | G23: =TRUNC((1-$H$10)*J23,2) -> 105.24 | H23: =TRUNC(G23*(1+$H$5),2) -> 129.66 | I23: 259.32 | J23: =VLOOKUP(C23,'OUTRAS BASES'!B:C,2,0) -> 105.24
A24: 1.2.8 | B24: SUDECAP | C24: 65.08.22 | D24: Retirada de amostra indeformada em blocos 30X30X30CM (NBR 9604:2016), Profundidade = 1 a 2 m | E24: =(VLOOKUP(C24,CPU!$B$10:D$142,3,0)) -> un | F24: 2 | G24: 1800 | H24: 2217.78 | I24: 4435.56 | J24: =VLOOKUP(C24,'OUTRAS BASES'!B:C,2,0) -> 1800 | L24: V | M24: =M21*(F18+F20)*M19 -> 0.6365512706
A25: 1.2.9 | B25: PRÓPRIA | C25: CPU.23 | D25: =VLOOKUP(C25,CPU!$B$29:$G$235,2,0) -> Reaterro com compactação adequada dos pontos de coleta de amostra, Inclusive com fornecimento de solo | E25: =(VLOOKUP(C25,CPU!$B$10:D$4939,3,0)) -> m³ | F25: =ROUNDUP(1.5*1.5*1.5*F24,0) -> 7 | G25: =TRUNC((1-$H$10)*(SUMIFS(CPU!$G:$G,CPU!$A:$A,'3_Estreito'!$C25,CPU!$H:$H,"ss")+SUMIFS(CPU!$G:$G,CPU!$A:$A,'3_Estreito'!$C25,CPU!$H:$H,"mdo")+SUMIF('Comp SINAPI DF 09-2025 Onerado'!B:B,'3_Estreito'!C25,'Comp SINAPI DF 09-2025 Onerado'!E:E)+SUMIF('Ins SINAPI DF 09-2025 Onerado'!B:B,'3_Estreito'!C25,'Ins SINAPI DF 09-2025 Onerado'!F:F)),2) -> 79.02 | H25: =TRUNC(G25*(1+$H$5),2) -> 97.36 | I25: =TRUNC(F25*H25,2) -> 681.52
A26: 1.2.10 | B26: SETOP | C26: CO-6334 | D26: Granulometria por peneiramento e sedimentação | E26: =(VLOOKUP(C26,CPU!$B$10:D$142,3,0)) -> un | F26: 2 | G26: 247.24 | H26: 304.62 | I26: 609.24 | J26: =VLOOKUP(C26,'OUTRAS BASES'!B:C,2,0) -> 247.24
A27: 1.2.11 | B27: SUDECAP | C27: 67.01.30 | D27: Compressão Triaxial Lento Saturado (CD) mínimo 3 corpos de prova | E27: =(VLOOKUP(C27,CPU!$B$10:D$142,3,0)) -> un | F27: 6 | G27: 1140.54 | H27: 1405.25 | I27: 8431.5 | J27: =VLOOKUP(C27,'OUTRAS BASES'!B:C,2,0) -> 1140.54
A28: 1.2.12 | B28: SUDECAP | C28: 67.01.28 | D28: Compressão Triaxial rápido pre-adensado saturado (R-SAT/CIU-SAT) c/ medidas pressão neutra mínimo 3 corpos de prova | E28: =(VLOOKUP(C28,CPU!$B$10:D$142,3,0)) -> un | F28: 3 | G28: 5250 | H28: =TRUNC(G28*(1+$H$5),2) -> 6468.52 | I28: 19405.56 | J28: =VLOOKUP(C28,'OUTRAS BASES'!B:C,2,0) -> 5250
A29: 1.2.13 | B29: SCO | C29: AD 04.05.0300 | D29: Ensaio para determinacao, em laboratorio, do Limite de Plasticidade de amostra de solo fino, de acordo com as recomendacoes da NBR7180 e da NBR6457.(desonerado) | E29: =(VLOOKUP(C29,CPU!$B$10:D$142,3,0)) -> un | F29: =F26 -> 2 | G29: =TRUNC((1-$H$10)*J29,2) -> 161.92 | H29: =TRUNC(G29*(1+$H$5),2) -> 199.5 | I29: =TRUNC(F29*H29,2) -> 399 | J29: =VLOOKUP(C29,'OUTRAS BASES'!B:C,2,0) -> 161.92
A30: 1.2.14 | B30: SCO | C30: AD 04.05.0250 | D30: Ensaio para determinacao, em laboratorio, do Limite de Liquidez de amostra de solo fino, de acordo com as recomendacoes da NBR7180 e da NBR6457.(desonerado) | E30: =(VLOOKUP(C30,CPU!$B$10:D$142,3,0)) -> um | F30: =F26 -> 2 | G30: =TRUNC((1-$H$10)*J30,2) -> 161.92 | H30: =TRUNC(G30*(1+$H$5),2) -> 199.5 | I30: =TRUNC(F30*H30,2) -> 399 | J30: =VLOOKUP(C30,'OUTRAS BASES'!B:C,2,0) -> 161.92
A31: 1.2.15 | B31: SETOP | C31: CO-6358 | D31: Determinação do coeficiente de permeabilidade de solos argilosos à carga variável | E31: =(VLOOKUP(C31,CPU!$B$10:D$142,3,0)) -> un | F31: 6 | G31: 589.03 | H31: 725.74 | I31: 4354.44 | J31: =VLOOKUP(C31,'OUTRAS BASES'!B:C,2,0) -> 589.03
A32: 1.2.16 | B32: PRÓPRIA | C32: CPU.04 | D32: =VLOOKUP(C32,CPU!$B$29:$G$235,2,0) -> Avaliação da espessura de carbonatação, por ponto, em estruturas de concreto armado ou protendido, através de aspersão de solução de fenolftaleína, inclusive coleta da amostra | E32: =(VLOOKUP(C32,CPU!$B$10:D$142,3,0)) -> un | F32: 3 | G32: =TRUNC((1-$H$10)*(SUMIFS(CPU!$G:$G,CPU!$A:$A,'9_SaoGregorio'!$C32,CPU!$H:$H,"ss")+SUMIFS(CPU!$G:$G,CPU!$A:$A,'9_SaoGregorio'!$C32,CPU!$H:$H,"mdo")+SUMIF('Comp SINAPI DF 09-2025 Onerado'!B:B,'9_SaoGregorio'!C32,'Comp SINAPI DF 09-2025 Onerado'!E:E)+SUMIF('Ins SINAPI DF 09-2025 Onerado'!B:B,'9_SaoGregorio'!C32,'Ins SINAPI DF 09-2025 Onerado'!F:F)),2) -> 470.15 | H32: =TRUNC(G32*(1+$H$5),2) -> 579.27 | I32: 1737.81
A33: 1.2.17 | B33: PRÓPRIA | C33: CPU.05 | D33: =VLOOKUP(C33,CPU!$B$29:$G$235,2,0) -> Ensaio de esclerometria em 10 pontos com 16 tiros por ponto | E33: =(VLOOKUP(C33,CPU!$B$10:D$142,3,0)) -> un | F33: 2 | G33: =TRUNC((1-$H$10)*(SUMIFS(CPU!$G:$G,CPU!$A:$A,'9_SaoGregorio'!$C33,CPU!$H:$H,"ss")+SUMIFS(CPU!$G:$G,CPU!$A:$A,'9_SaoGregorio'!$C33,CPU!$H:$H,"mdo")+SUMIF('Comp SINAPI DF 09-2025 Onerado'!B:B,'9_SaoGregorio'!C33,'Comp SINAPI DF 09-2025 Onerado'!E:E)+SUMIF('Ins SINAPI DF 09-2025 Onerado'!B:B,'9_SaoGregorio'!C33,'Ins SINAPI DF 09-2025 Onerado'!F:F)),2) -> 1927.99 | H33: 2375.47 | I33: 4750.94
A34: 1.3 | D34: Levantamento Topográfico | I34: =SUM(I35:I36) -> 22423.17
A35: 1.3.1 | B35: PRÓPRIA | C35: CPU.28 | D35: =VLOOKUP(C35,CPU!B29:G413,2,0) -> Mobilização e Desmobilização de Equipe de Levantamento topográfico | E35: un | F35: 1 | G35: =TRUNC((1-$H$10)*(SUMIFS(CPU!$G:$G,CPU!$A:$A,'9_SaoGregorio'!$C35,CPU!$H:$H,"ss")+SUMIFS(CPU!$G:$G,CPU!$A:$A,'9_SaoGregorio'!$C35,CPU!$H:$H,"mdo")+SUMIF('Comp SINAPI DF 09-2025 Onerado'!B:B,'9_SaoGregorio'!C35,'Comp SINAPI DF 09-2025 Onerado'!E:E)+SUMIF('Ins SINAPI DF 09-2025 Onerado'!B:B,'9_SaoGregorio'!C35,'Ins SINAPI DF 09-2025 Onerado'!F:F)),2) -> 7747.32 | H35: =TRUNC(G35*(1+$H$5),2) -> 9545.47 | I35: =TRUNC(F35*H35,2) -> 9545.47
A36: 1.3.2 | B36: SETOP | C36: CO-27367 | D36: Levantamento planialtimétrico e cadastral terreno de 10.001 a 50.000 m² | E36: m² | F36: ='Memorial de cálculo'!N20 -> 23414 | G36: =TRUNC((1-$H$10)*J36,2) -> 0.45 | H36: =TRUNC(G36*(1+$H$5),2) -> 0.55 | I36: =TRUNC(F36*H36,2) -> 12877.7 | J36: =VLOOKUP(C36,'OUTRAS BASES'!B:C,2,0) -> 0.45
A37: 1.4 | D37: Levantamento Batimétrico | I37: =SUM(I38:N39) -> 42222.39
A38: 1.4.1 | B38: EMBASA | C38: 31.90.12 | D38: Transporte de Equipe e Equipamentos para levantamento batimétrico com Ecobatímetro | E38: km | F38: =F17 -> 352 | G38: =TRUNC((1-$H$10)*J38,2) -> 6.68 | H38: =TRUNC(G38*(1+$H$5),2) -> 8.23 | I38: =TRUNC(F38*H38,2) -> 2896.96 | J38: =VLOOKUP(C38,'OUTRAS BASES'!B:C,2,0) -> 6.68
A39: 1.4.2 | B39: PRÓPRIA | C39: CPU.44 | D39: =VLOOKUP(C39,CPU!B29:G4917,2,0) -> Levantamento batimétrico com equipamento ecobatímetro, processamento de dados e desenho técnico | E39: =(VLOOKUP(C39,CPU!B29:D$4928,3,0)) -> ha | F39: ='Memorial de cálculo'!N5 -> 85.1 | G39: =TRUNC((1-$H$10)*(SUMIFS(CPU!$G:$G,CPU!$A:$A,'9_SaoGregorio'!$C39,CPU!$H:$H,"ss")+SUMIFS(CPU!$G:$G,CPU!$A:$A,'9_SaoGregorio'!$C39,CPU!$H:$H,"mdo")+SUMIF('Comp SINAPI DF 09-2025 Onerado'!B:B,'9_SaoGregorio'!C39,'Comp SINAPI DF 09-2025 Onerado'!E:E)+SUMIF('Ins SINAPI DF 09-2025 Onerado'!B:B,'9_SaoGregorio'!C39,'Ins SINAPI DF 09-2025 Onerado'!F:F)),2) -> 375 | H39: =TRUNC(G39*(1+$H$5),2) -> 462.03 | I39: =TRUNC(F39*H39,2) -> 39318.75
A40: 1.5 | D40: Levantamento Fotogramétrico | I40: =SUM(I41:I42) -> 112438.19
A41: 1.5.1 | B41: PRÓPRIA | C41: CPU.31 | D41: =VLOOKUP(C41,CPU!B33:G4925,2,0) -> Mobilização e Desmobilização de Equipe e Equipamentos de Levantamento Fotogramétrico | E41: =(VLOOKUP(C41,CPU!$B$10:D$210,3,0)) -> km | F41: =F17 -> 352 | G41: =TRUNC((1-$H$10)*J41,2) -> 7.74 | H41: =TRUNC(G41*(1+$H$5),2) -> 9.53 | I41: =TRUNC(F41*H41,2) -> 3354.56 | J41: 7.74
A42: 1.5.2 | B42: EMBASA | C42: 31.90.15 | D42: Levant. Fotogrametrico c/ VANT (drone) áreas pelo que exceder 1000 ha, incl. ortofotos, GSD<=3, acuracia horiz. min. 3 cm e vert. min. 6cm, aferidos c/ pontos de controle dist. min. 650 m entre eles,exclusive transporte de equipe e equipamentos | E42: ha | F42: ='Memorial de cálculo'!N27+'Memorial de cálculo'!N21 -> 11257.3414 | G42: =TRUNC((1-$H$10)*J42,2) -> 7.87 | H42: =TRUNC(G42*(1+$H$5),2) -> 9.69 | I42: =TRUNC(F42*H42,2) -> 109083.63 | J42: =VLOOKUP(C42,'OUTRAS BASES'!B:C,2,0) -> 7.87
A43: 2 | D43: ETAPA 2 | I43: =SUM(I44) -> 204334.33
A44: 2.1 | D44: ESTUDOS | I44: =SUM(I45:I53) -> 204334.33
A45: 2.1.1 | B45: PRÓPRIA | C45: CPU.10 | D45: =VLOOKUP(C45,CPU!$B$29:$G$142,2,0) -> Estudo Hidrológico e Hidráulico | E45: =(VLOOKUP(C45,CPU!$B$10:D$142,3,0)) -> un | F45: 1 | G45: =TRUNC((1-$H$10)*(SUMIFS(CPU!$G:$G,CPU!$A:$A,'9_SaoGregorio'!$C45,CPU!$H:$H,"ss")+SUMIFS(CPU!$G:$G,CPU!$A:$A,'9_SaoGregorio'!$C45,CPU!$H:$H,"mdo")+SUMIF('Comp SINAPI DF 09-2025 Onerado'!B:B,'9_SaoGregorio'!C45,'Comp SINAPI DF 09-2025 Onerado'!E:E)+SUMIF('Ins SINAPI DF 09-2025 Onerado'!B:B,'9_SaoGregorio'!C45,'Ins SINAPI DF 09-2025 Onerado'!F:F)),2) -> 39432.48 | H45: =TRUNC(G45*(1+$H$5),2) -> 48584.75 | I45: =TRUNC(F45*H45,2) -> 48584.75
A46: 2.1.2 | B46: PRÓPRIA | C46: CPU.11 | D46: =VLOOKUP(C46,CPU!B29:G145,2,0) -> Estudo Geológico-geotécnico | E46: =(VLOOKUP(C46,CPU!B29:D$142,3,0)) -> un | F46: 1 | G46: =TRUNC((1-$H$10)*(SUMIFS(CPU!$G:$G,CPU!$A:$A,'9_SaoGregorio'!$C46,CPU!$H:$H,"ss")+SUMIFS(CPU!$G:$G,CPU!$A:$A,'9_SaoGregorio'!$C46,CPU!$H:$H,"mdo")+SUMIF('Comp SINAPI DF 09-2025 Onerado'!B:B,'9_SaoGregorio'!C46,'Comp SINAPI DF 09-2025 Onerado'!E:E)+SUMIF('Ins SINAPI DF 09-2025 Onerado'!B:B,'9_SaoGregorio'!C46,'Ins SINAPI DF 09-2025 Onerado'!F:F)),2) -> 14328.22 | H46: =TRUNC(G46*(1+$H$5),2) -> 17653.79 | I46: =TRUNC(F46*H46,2) -> 17653.79
A47: 2.1.3 | B47: PRÓPRIA | C47: CPU.12 | D47: =VLOOKUP(C47,CPU!$B$29:$G$142,2,0) -> Relatório Fotogramétricos e Tratamento de Dados | E47: =(VLOOKUP(C47,CPU!$B$10:D$142,3,0)) -> un | F47: 1 | G47: =TRUNC((1-$H$10)*(SUMIFS(CPU!$G:$G,CPU!$A:$A,'9_SaoGregorio'!$C47,CPU!$H:$H,"ss")+SUMIFS(CPU!$G:$G,CPU!$A:$A,'9_SaoGregorio'!$C47,CPU!$H:$H,"mdo")+SUMIF('Comp SINAPI DF 09-2025 Onerado'!B:B,'9_SaoGregorio'!C47,'Comp SINAPI DF 09-2025 Onerado'!E:E)+SUMIF('Ins SINAPI DF 09-2025 Onerado'!B:B,'9_SaoGregorio'!C47,'Ins SINAPI DF 09-2025 Onerado'!F:F)),2) -> 8785.99 | H47: 10825.21 | I47: 10825.21
A48: 2.1.4 | B48: PRÓPRIA | C48: CPU.13 | D48: =VLOOKUP(C48,CPU!$B$29:$G$142,2,0) -> Estudo de Ruputura e Mapas de Inundação | E48: =(VLOOKUP(C48,CPU!$B$10:D$142,3,0)) -> un | F48: 1 | G48: =TRUNC((1-$H$10)*(SUMIFS(CPU!$G:$G,CPU!$A:$A,'9_SaoGregorio'!$C48,CPU!$H:$H,"ss")+SUMIFS(CPU!$G:$G,CPU!$A:$A,'9_SaoGregorio'!$C48,CPU!$H:$H,"mdo")+SUMIF('Comp SINAPI DF 09-2025 Onerado'!B:B,'9_SaoGregorio'!C48,'Comp SINAPI DF 09-2025 Onerado'!E:E)+SUMIF('Ins SINAPI DF 09-2025 Onerado'!B:B,'9_SaoGregorio'!C48,'Ins SINAPI DF 09-2025 Onerado'!F:F)),2) -> 38768.32 | H48: 47766.44 | I48: 47766.44
A49: 2.1.5 | B49: PRÓPRIA | C49: CPU.14 | D49: =VLOOKUP(C49,CPU!$B$29:$G$4939,2,0) -> Estudo de Estabilidade e Percolação - Barragem de Terra | E49: =(VLOOKUP(C49,CPU!$B$10:D$4939,3,0)) -> un | F49: 1 | G49: =TRUNC((1-$H$10)*(SUMIFS(CPU!$G:$G,CPU!$A:$A,'9_SaoGregorio'!$C49,CPU!$H:$H,"ss")+SUMIFS(CPU!$G:$G,CPU!$A:$A,'9_SaoGregorio'!$C49,CPU!$H:$H,"mdo")+SUMIF('Comp SINAPI DF 09-2025 Onerado'!B:B,'9_SaoGregorio'!C49,'Comp SINAPI DF 09-2025 Onerado'!E:E)+SUMIF('Ins SINAPI DF 09-2025 Onerado'!B:B,'9_SaoGregorio'!C49,'Ins SINAPI DF 09-2025 Onerado'!F:F)),2) -> 35476.72 | H49: 43710.86 | I49: 43710.86
A50: 2.1.6 | B50: PRÓPRIA | C50: CPU.33 | D50: =VLOOKUP(C50,CPU!$B$29:$G$1663,2,0) -> Relatório de Avaliação de Estruturas de Concreto | E50: =(VLOOKUP(C50,CPU!$B$10:D$1663,3,0)) -> un | F50: 1 | G50: =TRUNC((1-$H$10)*(SUMIFS(CPU!$G:$G,CPU!$A:$A,'9_SaoGregorio'!$C50,CPU!$H:$H,"ss")+SUMIFS(CPU!$G:$G,CPU!$A:$A,'9_SaoGregorio'!$C50,CPU!$H:$H,"mdo")+SUMIF('Comp SINAPI DF 09-2025 Onerado'!B:B,'9_SaoGregorio'!C50,'Comp SINAPI DF 09-2025 Onerado'!E:E)+SUMIF('Ins SINAPI DF 09-2025 Onerado'!B:B,'9_SaoGregorio'!C50,'Ins SINAPI DF 09-2025 Onerado'!F:F)),2) -> 6010.8 | H50: 7405.9 | I50: 7405.9
A51: 2.1.7 | B51: PRÓPRIA | C51: CPU.40 | D51: =VLOOKUP(C51,CPU!B29:G4952,2,0) -> Relatório Topográfico e Tratamento de Dados | E51: =(VLOOKUP(C51,CPU!$B$10:D$4932,3,0)) -> un | F51: 1 | G51: =TRUNC((1-$H$10)*(SUMIFS(CPU!$G:$G,CPU!$A:$A,'9_SaoGregorio'!$C51,CPU!$H:$H,"ss")+SUMIFS(CPU!$G:$G,CPU!$A:$A,'9_SaoGregorio'!$C51,CPU!$H:$H,"mdo")+SUMIF('Comp SINAPI DF 09-2025 Onerado'!B:B,'9_SaoGregorio'!C51,'Comp SINAPI DF 09-2025 Onerado'!E:E)+SUMIF('Ins SINAPI DF 09-2025 Onerado'!B:B,'9_SaoGregorio'!C51,'Ins SINAPI DF 09-2025 Onerado'!F:F)),2) -> 8514.52 | H51: 10490.74 | I51: 10490.74
A52: 2.1.8 | B52: PRÓPRIA | C52: CPU.42 | D52: =VLOOKUP(C52,CPU!$B$29:$G$4939,2,0) -> Relatório de Investigação Geológica/Geotécnica | E52: =(VLOOKUP(C52,CPU!$B$10:D$4939,3,0)) -> un | F52: 1 | G52: =TRUNC((1-$H$10)*(SUMIFS(CPU!$G:$G,CPU!$A:$A,'9_SaoGregorio'!$C52,CPU!$H:$H,"ss")+SUMIFS(CPU!$G:$G,CPU!$A:$A,'9_SaoGregorio'!$C52,CPU!$H:$H,"mdo")+SUMIF('Comp SINAPI DF 09-2025 Onerado'!B:B,'9_SaoGregorio'!C52,'Comp SINAPI DF 09-2025 Onerado'!E:E)+SUMIF('Ins SINAPI DF 09-2025 Onerado'!B:B,'9_SaoGregorio'!C52,'Ins SINAPI DF 09-2025 Onerado'!F:F)),2) -> 6010.8 | H52: 7405.9 | I52: 7405.9
A53: 2.1.9 | B53: PRÓPRIA | C53: CPU.43 | D53: =VLOOKUP(C53,CPU!$B$29:$G$4939,2,0) -> Relatório de Levantamento Batimétrico e Tratamento de Dados | E53: =(VLOOKUP(C53,CPU!$B$10:D$4939,3,0)) -> un | F53: 1 | G53: =TRUNC((1-$H$10)*(SUMIFS(CPU!$G:$G,CPU!$A:$A,'9_SaoGregorio'!$C53,CPU!$H:$H,"ss")+SUMIFS(CPU!$G:$G,CPU!$A:$A,'9_SaoGregorio'!$C53,CPU!$H:$H,"mdo")+SUMIF('Comp SINAPI DF 09-2025 Onerado'!B:B,'9_SaoGregorio'!C53,'Comp SINAPI DF 09-2025 Onerado'!E:E)+SUMIF('Ins SINAPI DF 09-2025 Onerado'!B:B,'9_SaoGregorio'!C53,'Ins SINAPI DF 09-2025 Onerado'!F:F)),2) -> 8514.52 | H53: 10490.74 | I53: 10490.74
A54: 3 | D54: ETAPA 3 | I54: =SUM(I55+I58+I66) -> 372432.11
A55: 3.1 | D55: PROJETOS | I55: =SUM(I56:I57) -> 91058.79
A56: 3.1.1 | B56: PRÓPRIA | C56: CPU.18 | D56: =VLOOKUP(C56,CPU!B59:G163,2,0) -> Projeto de Instrumentação | E56: =(VLOOKUP(C56,CPU!$B$10:D$142,3,0)) -> un | F56: 1 | G56: =TRUNC((1-$H$10)*(SUMIFS(CPU!$G:$G,CPU!$A:$A,'9_SaoGregorio'!$C56,CPU!$H:$H,"ss")+SUMIFS(CPU!$G:$G,CPU!$A:$A,'9_SaoGregorio'!$C56,CPU!$H:$H,"mdo")+SUMIF('Comp SINAPI DF 09-2025 Onerado'!B:B,'9_SaoGregorio'!C56,'Comp SINAPI DF 09-2025 Onerado'!E:E)+SUMIF('Ins SINAPI DF 09-2025 Onerado'!B:B,'9_SaoGregorio'!C56,'Ins SINAPI DF 09-2025 Onerado'!F:F)),2) -> 29283.76 | H56: =TRUNC(G56*(1+$H$5),2) -> 36080.52 | I56: =TRUNC(F56*H56,2) -> 36080.52
A57: 3.1.2 | B57: PRÓPRIA | C57: CPU.20 | D57: =VLOOKUP(C57,CPU!B59:G168,2,0) -> Projeto Geométrico (AS IS) | E57: =(VLOOKUP(C57,CPU!$B$10:D$142,3,0)) -> un | F57: 1 | G57: =TRUNC((1-$H$10)*(SUMIFS(CPU!$G:$G,CPU!$A:$A,'9_SaoGregorio'!$C57,CPU!$H:$H,"ss")+SUMIFS(CPU!$G:$G,CPU!$A:$A,'9_SaoGregorio'!$C57,CPU!$H:$H,"mdo")+SUMIF('Comp SINAPI DF 09-2025 Onerado'!B:B,'9_SaoGregorio'!C57,'Comp SINAPI DF 09-2025 Onerado'!E:E)+SUMIF('Ins SINAPI DF 09-2025 Onerado'!B:B,'9_SaoGregorio'!C57,'Ins SINAPI DF 09-2025 Onerado'!F:F)),2) -> 44621.6 | H57: =TRUNC(G57*(1+$H$5),2) -> 54978.27 | I57: =TRUNC(F57*H57,2) -> 54978.27
A58: 3.2 | D58: PLANO DE SEGURANÇA DE BARRAGENS | I58: =SUM(I59:N65) -> 181035.5
A59: 3.2.1 | B59: PRÓPRIA | C59: CPU.34 | D59: =VLOOKUP(C59,CPU!B53:G4918,2,0) -> Volume I - Informações Gerais | E59: =(VLOOKUP(C59,CPU!$B$10:D$4896,3,0)) -> un | F59: 1 | G59: =TRUNC((1-$H$10)*(SUMIFS(CPU!$G:$G,CPU!$A:$A,'9_SaoGregorio'!$C59,CPU!$H:$H,"ss")+SUMIFS(CPU!$G:$G,CPU!$A:$A,'9_SaoGregorio'!$C59,CPU!$H:$H,"mdo")+SUMIF('Comp SINAPI DF 09-2025 Onerado'!B:B,'9_SaoGregorio'!C59,'Comp SINAPI DF 09-2025 Onerado'!E:E)+SUMIF('Ins SINAPI DF 09-2025 Onerado'!B:B,'9_SaoGregorio'!C59,'Ins SINAPI DF 09-2025 Onerado'!F:F)),2) -> 15330.6 | H59: =TRUNC(G59*(1+$H$5),2) -> 18888.83 | I59: =TRUNC(F59*H59,2) -> 18888.83
A60: 3.2.2 | B60: PRÓPRIA | C60: CPU.35 | D60: =VLOOKUP(C60,CPU!B53:G4919,2,0) -> Volume II - Documentação Técnica | E60: =(VLOOKUP(C60,CPU!$B$10:D$4896,3,0)) -> un | F60: 1 | G60: =TRUNC((1-$H$10)*(SUMIFS(CPU!$G:$G,CPU!$A:$A,'9_SaoGregorio'!$C60,CPU!$H:$H,"ss")+SUMIFS(CPU!$G:$G,CPU!$A:$A,'9_SaoGregorio'!$C60,CPU!$H:$H,"mdo")+SUMIF('Comp SINAPI DF 09-2025 Onerado'!B:B,'9_SaoGregorio'!C60,'Comp SINAPI DF 09-2025 Onerado'!E:E)+SUMIF('Ins SINAPI DF 09-2025 Onerado'!B:B,'9_SaoGregorio'!C60,'Ins SINAPI DF 09-2025 Onerado'!F:F)),2) -> 15751.56 | H60: 19407.49 | I60: 19407.49
A61: 3.2.3 | B61: PRÓPRIA | C61: CPU.36 | D61: =VLOOKUP(C61,CPU!B54:G4920,2,0) -> Volume III - Planos e Procedimentos | E61: =(VLOOKUP(C61,CPU!$B$10:D$4896,3,0)) -> un | F61: 1 | G61: =TRUNC((1-$H$10)*(SUMIFS(CPU!$G:$G,CPU!$A:$A,'9_SaoGregorio'!$C61,CPU!$H:$H,"ss")+SUMIFS(CPU!$G:$G,CPU!$A:$A,'9_SaoGregorio'!$C61,CPU!$H:$H,"mdo")+SUMIF('Comp SINAPI DF 09-2025 Onerado'!B:B,'9_SaoGregorio'!C61,'Comp SINAPI DF 09-2025 Onerado'!E:E)+SUMIF('Ins SINAPI DF 09-2025 Onerado'!B:B,'9_SaoGregorio'!C61,'Ins SINAPI DF 09-2025 Onerado'!F:F)),2) -> 15751.56 | H61: 19407.49 | I61: 19407.49
A62: 3.2.4 | B62: PRÓPRIA | C62: CPU.37 | D62: =VLOOKUP(C62,CPU!B55:G4921,2,0) -> Volume IV - Registros e Controles | E62: =(VLOOKUP(C62,CPU!$B$10:D$4896,3,0)) -> un | F62: 1 | G62: =TRUNC((1-$H$10)*(SUMIFS(CPU!$G:$G,CPU!$A:$A,'9_SaoGregorio'!$C62,CPU!$H:$H,"ss")+SUMIFS(CPU!$G:$G,CPU!$A:$A,'9_SaoGregorio'!$C62,CPU!$H:$H,"mdo")+SUMIF('Comp SINAPI DF 09-2025 Onerado'!B:B,'9_SaoGregorio'!C62,'Comp SINAPI DF 09-2025 Onerado'!E:E)+SUMIF('Ins SINAPI DF 09-2025 Onerado'!B:B,'9_SaoGregorio'!C62,'Ins SINAPI DF 09-2025 Onerado'!F:F)),2) -> 15751.56 | H62: 19407.49 | I62: 19407.49
A63: 3.2.5 | B63: PRÓPRIA | C63: CPU.38 | D63: =VLOOKUP(C63,CPU!B56:G4922,2,0) -> Volume V - Revisão Periódica de Segurança de Barragem | E63: =(VLOOKUP(C63,CPU!$B$10:D$4896,3,0)) -> un | F63: 1 | G63: =TRUNC((1-$H$10)*(SUMIFS(CPU!$G:$G,CPU!$A:$A,'9_SaoGregorio'!$C63,CPU!$H:$H,"ss")+SUMIFS(CPU!$G:$G,CPU!$A:$A,'9_SaoGregorio'!$C63,CPU!$H:$H,"mdo")+SUMIF('Comp SINAPI DF 09-2025 Onerado'!B:B,'9_SaoGregorio'!C63,'Comp SINAPI DF 09-2025 Onerado'!E:E)+SUMIF('Ins SINAPI DF 09-2025 Onerado'!B:B,'9_SaoGregorio'!C63,'Ins SINAPI DF 09-2025 Onerado'!F:F)),2) -> 27410.88 | H63: 33772.94 | I63: 33772.94
A64: 3.2.6 | B64: PRÓPRIA | C64: CPU.39 | D64: =VLOOKUP(C64,CPU!B57:G4923,2,0) -> Volume V - A - Resumo Executivo | E64: =(VLOOKUP(C64,CPU!$B$10:D$4896,3,0)) -> un | F64: 1 | G64: =TRUNC((1-$H$10)*(SUMIFS(CPU!$G:$G,CPU!$A:$A,'9_SaoGregorio'!$C64,CPU!$H:$H,"ss")+SUMIFS(CPU!$G:$G,CPU!$A:$A,'9_SaoGregorio'!$C64,CPU!$H:$H,"mdo")+SUMIF('Comp SINAPI DF 09-2025 Onerado'!B:B,'9_SaoGregorio'!C64,'Comp SINAPI DF 09-2025 Onerado'!E:E)+SUMIF('Ins SINAPI DF 09-2025 Onerado'!B:B,'9_SaoGregorio'!C64,'Ins SINAPI DF 09-2025 Onerado'!F:F)),2) -> 24473.94 | H64: 30154.34 | I64: 30154.34
A65: 3.2.7 | B65: PRÓPRIA | C65: CPU.41 | D65: =VLOOKUP(C65,CPU!B60:G4927,2,0) -> Volume VI - Plano de Ação de Emergência | E65: =(VLOOKUP(C65,CPU!$B$10:D$4896,3,0)) -> un | F65: 1 | G65: =TRUNC((1-$H$10)*(SUMIFS(CPU!$G:$G,CPU!$A:$A,'9_SaoGregorio'!$C65,CPU!$H:$H,"ss")+SUMIFS(CPU!$G:$G,CPU!$A:$A,'9_SaoGregorio'!$C65,CPU!$H:$H,"mdo")+SUMIF('Comp SINAPI DF 09-2025 Onerado'!B:B,'9_SaoGregorio'!C65,'Comp SINAPI DF 09-2025 Onerado'!E:E)+SUMIF('Ins SINAPI DF 09-2025 Onerado'!B:B,'9_SaoGregorio'!C65,'Ins SINAPI DF 09-2025 Onerado'!F:F)),2) -> 32462.4 | H65: =TRUNC(G65*(1+$H$5),2) -> 39996.92 | I65: =TRUNC(F65*H65,2) -> 39996.92
A66: 3.3 | D66: PLANO DE AÇÃO DE EMERGÊNCIA | I66: =SUM(I67:I69) -> 100337.82
A67: 3.3.1 | B67: PRÓPRIA | C67: CPU.24 | D67: =VLOOKUP(C67,CPU!B60:G4925,2,0) -> Projeto de sinalização | E67: =(VLOOKUP(C67,CPU!$B$10:D$4896,3,0)) -> un | F67: 1 | G67: =TRUNC((1-$H$10)*(SUMIFS(CPU!$G:$G,CPU!$A:$A,'9_SaoGregorio'!$C67,CPU!$H:$H,"ss")+SUMIFS(CPU!$G:$G,CPU!$A:$A,'9_SaoGregorio'!$C67,CPU!$H:$H,"mdo")+SUMIF('Comp SINAPI DF 09-2025 Onerado'!B:B,'9_SaoGregorio'!C67,'Comp SINAPI DF 09-2025 Onerado'!E:E)+SUMIF('Ins SINAPI DF 09-2025 Onerado'!B:B,'9_SaoGregorio'!C67,'Ins SINAPI DF 09-2025 Onerado'!F:F)),2) -> 27232.12 | H67: =TRUNC(G67*(1+$H$5),2) -> 33552.69 | I67: =TRUNC(F67*H67,2) -> 33552.69
A68: 3.3.2 | B68: PRÓPRIA | C68: CPU.25 | D68: =VLOOKUP(C68,CPU!B60:G4926,2,0) -> Projeto de rotas de fuga | E68: =(VLOOKUP(C68,CPU!$B$10:D$4896,3,0)) -> un | F68: 1 | G68: =TRUNC((1-$H$10)*(SUMIFS(CPU!$G:$G,CPU!$A:$A,'9_SaoGregorio'!$C68,CPU!$H:$H,"ss")+SUMIFS(CPU!$G:$G,CPU!$A:$A,'9_SaoGregorio'!$C68,CPU!$H:$H,"mdo")+SUMIF('Comp SINAPI DF 09-2025 Onerado'!B:B,'9_SaoGregorio'!C68,'Comp SINAPI DF 09-2025 Onerado'!E:E)+SUMIF('Ins SINAPI DF 09-2025 Onerado'!B:B,'9_SaoGregorio'!C68,'Ins SINAPI DF 09-2025 Onerado'!F:F)),2) -> 30599.8 | H68: =TRUNC(G68*(1+$H$5),2) -> 37702.01 | I68: =TRUNC(F68*H68,2) -> 37702.01
A69: 3.3.3 | B69: PRÓPRIA | C69: CPU.32 | D69: =VLOOKUP(C69,CPU!B61:G4928,2,0) -> Projeto de sistema sonoro | E69: =(VLOOKUP(C69,CPU!$B$10:D$4896,3,0)) -> un | F69: 1 | G69: =TRUNC((1-$H$10)*(SUMIFS(CPU!$G:$G,CPU!$A:$A,'9_SaoGregorio'!$C69,CPU!$H:$H,"ss")+SUMIFS(CPU!$G:$G,CPU!$A:$A,'9_SaoGregorio'!$C69,CPU!$H:$H,"mdo")+SUMIF('Comp SINAPI DF 09-2025 Onerado'!B:B,'9_SaoGregorio'!C69,'Comp SINAPI DF 09-2025 Onerado'!E:E)+SUMIF('Ins SINAPI DF 09-2025 Onerado'!B:B,'9_SaoGregorio'!C69,'Ins SINAPI DF 09-2025 Onerado'!F:F)),2) -> 23604.52 | H69: =TRUNC(G69*(1+$H$5),2) -> 29083.12 | I69: =TRUNC(F69*H69,2) -> 29083.12
D70: TOTAL (Custo): | I70: =TRUNC(SUMPRODUCT(F14:F69,G14:G69),2) -> 724101.95
D71: BDI e Encargos Sociais: | I71: =I72-I70 -> 167885.33
D72: TOTAL GERAL COM BDI: | I72: =I13+I43+I54 -> 891987.28 | Q72: =TRUNC(SUMPRODUCT(F14:F69,H14:H69),2) -> 891980.61

Sheet 10_Miroros
A1: =Resumo!B5 -> Elaboração de Plano de Segurança de Barragens
A2: Companhia de Desenvolvimento dos Vales do São Francisco e do Parnaíba
A4: PLANILHA ORÇAMENTÁRIA - ORÇAMENTO NÃO DESONERADO
A5: OBRA: | B5: =Resumo!B5 -> Elaboração de Plano de Segurança de Barragens | G5: BDI (serv.): | H5: ='BDI serv'!D23 -> 0.2321 | I5: Bancos de dados:
A6: LOCAL: | B6: Gentio do Ouro, BA | G6: BDI (forn.): | H6: ='BDI forn'!D23 -> 0 | I6: =Resumo!G6 -> SETEMBRO/25 - SINAPI
A7: DATA BASE: | B7: 2025-10-01 | E7: Encargos sociais - Horistas: | H7: ='Encargos Sociais DF'!E49 -> 1.1011 | I7: =Resumo!G7 -> SIURB INFRA JAN/2025
A8: PRAZO: | B8: =Resumo!B8 -> 300 dias | E8: Encargos sociais - Mensalista: | H8: ='Encargos Sociais DF'!F49 -> 0.7019 | I8: =Resumo!G8 -> JAN/25 E JUL/2025- SETOP
I9: =Resumo!G9 -> JUNHO/25 - EMBASA
B10: Miroros | G10: Desconto: | H10: 0 | I10: =Resumo!G10 -> JUL/2025 - CONSULT. DNIT
A11: ITEM | B11: REFERÊNCIA | D11: DESCRIÇÃO | E11: UNID. | F11: QUANT. | G11: CUSTO UNITÁRIO | H11: PREÇO UNITÁRIO | I11: PREÇO TOTAL
B12: FONTE | C12: CÓDIGO
A13: 1 | D13: ='1_Bico da Pedra'!D13 -> ETAPA 1 | I13: =I14+I16+I34+I37 -> 238157.54
A14: 1.1 | D14: Visita Técnica | I14: =SUM(I15:I15) -> 55532.37
A15: 1.1.1 | B15: PRÓPRIA | C15: CPU.09 | D15: =VLOOKUP(C15,CPU!B29:G75,2,0) -> Inspeção Visual da Estrutura (Multidisciplinar) e elaboração de relatório | E15: =(VLOOKUP(C15,CPU!$B$10:D$142,3,0)) -> un | F15: 1 | G15: =TRUNC((1-$H$10)*(SUMIFS(CPU!$G:$G,CPU!$A:$A,'10_Miroros'!$C15,CPU!$H:$H,"ss")+SUMIFS(CPU!$G:$G,CPU!$A:$A,'10_Miroros'!$C15,CPU!$H:$H,"mdo")+SUMIF('Comp SINAPI DF 09-2025 Onerado'!B:B,'10_Miroros'!C15,'Comp SINAPI DF 09-2025 Onerado'!E:E)+SUMIF('Ins SINAPI DF 09-2025 Onerado'!B:B,'10_Miroros'!C15,'Ins SINAPI DF 09-2025 Onerado'!F:F)),2) -> 45071.32 | H15: =TRUNC(G15*(1+$H$5),2) -> 55532.37 | I15: =TRUNC(F15*H15,2) -> 55532.37
A16: 1.2 | D16: INVESTIGAÇÃO GEOLÓGICA E GEOTÉCNICA | I16: =SUM(I17:I33) -> 125832.77
A17: 1.2.1 | B17: SETOP | C17: CO-28389 | D17: Mobilização e desmobilização de equipamento de sondagem a percussão com Ensaio de Penetração Padrão (SPT) (custo variável), exclusive custo fixo | E17: km | F17: ='Memorial de cálculo'!W14*2 -> 868 | G17: =TRUNC((1-$H$10)*J17,2) -> 2.04 | H17: =TRUNC(G17*(1+$H$5),2) -> 2.51 | I17: =TRUNC(F17*H17,2) -> 2178.68 | J17: =VLOOKUP(C17,'OUTRAS BASES'!B:C,2,0) -> 2.04
A18: 1.2.2 | B18: SETOP | C18: CO-28388 | D18: Sondagem a percussão com Ensaio de Penetração Padrão (SPT), diâmetro 2.1/2", exclusive mobilização e desmobilização | E18: m | F18: ='Pontos de Sondagem'!E252 -> 181.5 | G18: =TRUNC((1-$H$10)*J18,2) -> 79.09 | H18: =TRUNC(G18*(1+$H$5),2) -> 97.44 | I18: =TRUNC(F18*H18,2) -> 17685.36 | J18: =VLOOKUP(C18,'OUTRAS BASES'!B:C,2,0) -> 79.09
A19: 1.2.3 | B19: EMBASA | C19: 32.05.04 | D19: Mobilização e desmobilização de equipe e equipamentos para sondagem rotativa ou mista | E19: km | F19: =F17 -> 868 | G19: =TRUNC((1-$H$10)*J19,2) -> 5.16 | H19: 6.35 | I19: 5511.8 | J19: =VLOOKUP(C19,'OUTRAS BASES'!B:C,2,0) -> 5.16 | M19: c | N19: 1.5
A20: 1.2.4 | B20: SCO | C20: AD 05.15.0400 | D20: Sondagem rotativa vertical, em rocha sa, com coroa de diamante, diametro H (99mm), inclusive deslocamento e posicionamento em cada furo. | E20: m | F20: =ROUNDUP('Pontos de Sondagem'!G252,0) -> 28 | G20: =TRUNC((1-$H$10)*J20,2) -> 1422.4 | H20: =TRUNC(G20*(1+$H$5),2) -> 1752.53 | I20: =TRUNC(F20*H20,2) -> 49070.84 | J20: =VLOOKUP(C20,'OUTRAS BASES'!B:C,2,0) -> 1422.4 | M20: d | N20: =99/1000 -> 0.099
A21: 1.2.5 | B21: SICRO3 | C21: 3816196 | D21: Fechamento dos Furos - Injeção de nata de cimento | E21: m³ | F21: =ROUNDUP(N24,0) -> 3 | G21: =TRUNC((1-$H$10)*J21,2) -> 1012.78 | H21: 1247.84 | I21: 3743.52 | J21: =VLOOKUP(C21,'OUTRAS BASES'!B:C,2,0) -> 1012.78 | M21: A | N21: =PI()*(N20*N20)/4 -> 0.007697687399
A22: 1.2.6 | B22: PRÓPRIA | C22: CPU.45 | D22: =VLOOKUP(C22,CPU!$B$29:$G$4941,2,0) -> Mobilização e Desmobilização de Equipe de retirada de amostra deformada e indeformada | E22: =(VLOOKUP(C22,CPU!$B$10:D$4935,3,0)) -> km | F22: =F17 -> 868 | G22: =TRUNC((1-$H$10)*(SUMIFS(CPU!$G:$G,CPU!$A:$A,'10_Miroros'!$C22,CPU!$H:$H,"ss")+SUMIFS(CPU!$G:$G,CPU!$A:$A,'10_Miroros'!$C22,CPU!$H:$H,"mdo")+SUMIF('Comp SINAPI DF 09-2025 Onerado'!B:B,'10_Miroros'!C22,'Comp SINAPI DF 09-2025 Onerado'!E:E)+SUMIF('Ins SINAPI DF 09-2025 Onerado'!B:B,'10_Miroros'!C22,'Ins SINAPI DF 09-2025 Onerado'!F:F)),2) -> 2.04 | H22: =TRUNC(G22*(1+$H$5),2) -> 2.51 | I22: =TRUNC(F22*H22,2) -> 2178.68 | M22: V | N22: =N21*(F18+F20)*N19 -> 2.418998265
A23: 1.2.7 | B23: EMBASA | C23: 34.04.07 | D23: Retirada de amostra deformada | E23: un | F23: =F24 -> 2 | G23: =TRUNC((1-$H$10)*J23,2) -> 105.24 | H23: =TRUNC(G23*(1+$H$5),2) -> 129.66 | I23: 259.32 | J23: =VLOOKUP(C23,'OUTRAS BASES'!B:C,2,0) -> 105.24
A24: 1.2.8 | B24: SUDECAP | C24: 65.08.22 | D24: Retirada de amostra indeformada em blocos 30X30X30CM (NBR 9604:2016), Profundidade = 1 a 2 m | E24: =(VLOOKUP(C24,CPU!$B$10:D$142,3,0)) -> un | F24: 2 | G24: =TRUNC((1-$H$10)*J24,2) -> 1800 | H24: 2217.78 | I24: =TRUNC(F24*H24,2) -> 4435.56 | J24: =VLOOKUP(C24,'OUTRAS BASES'!B:C,2,0) -> 1800 | M24: V | N24: =N21*(F18+F20)*N19 -> 2.418998265
A25: 1.2.9 | B25: PRÓPRIA | C25: CPU.23 | D25: =VLOOKUP(C25,CPU!$B$29:$G$235,2,0) -> Reaterro com compactação adequada dos pontos de coleta de amostra, Inclusive com fornecimento de solo | E25: =(VLOOKUP(C25,CPU!$B$10:D$4939,3,0)) -> m³ | F25: =ROUNDUP(1.5*1.5*1.5*F24,0) -> 7 | G25: =TRUNC((1-$H$10)*(SUMIFS(CPU!$G:$G,CPU!$A:$A,'3_Estreito'!$C25,CPU!$H:$H,"ss")+SUMIFS(CPU!$G:$G,CPU!$A:$A,'3_Estreito'!$C25,CPU!$H:$H,"mdo")+SUMIF('Comp SINAPI DF 09-2025 Onerado'!B:B,'3_Estreito'!C25,'Comp SINAPI DF 09-2025 Onerado'!E:E)+SUMIF('Ins SINAPI DF 09-2025 Onerado'!B:B,'3_Estreito'!C25,'Ins SINAPI DF 09-2025 Onerado'!F:F)),2) -> 79.02 | H25: =TRUNC(G25*(1+$H$5),2) -> 97.36 | I25: =TRUNC(F25*H25,2) -> 681.52
A26: 1.2.10 | B26: SETOP | C26: CO-6334 | D26: Granulometria por peneiramento e sedimentação | E26: =(VLOOKUP(C26,CPU!$B$10:D$142,3,0)) -> un | F26: 2 | G26: 247.24 | H26: 304.62 | I26: 609.24 | J26: =VLOOKUP(C26,'OUTRAS BASES'!B:C,2,0) -> 247.24
A27: 1.2.11 | B27: SUDECAP | C27: 67.01.30 | D27: Compressão Triaxial Lento Saturado (CD) mínimo 3 corpos de prova | E27: =(VLOOKUP(C27,CPU!$B$10:D$142,3,0)) -> un | F27: 6 | G27: 1140.54 | H27: 1405.25 | I27: 8431.5 | J27: =VLOOKUP(C27,'OUTRAS BASES'!B:C,2,0) -> 1140.54
A28: 1.2.12 | B28: SUDECAP | C28: 67.01.28 | D28: Compressão Triaxial rápido pre-adensado saturado (R-SAT/CIU-SAT) c/ medidas pressão neutra mínimo 3 corpos de prova | E28: =(VLOOKUP(C28,CPU!$B$10:D$142,3,0)) -> un | F28: 3 | G28: 5250 | H28: =TRUNC(G28*(1+$H$5),2) -> 6468.52 | I28: 19405.56 | J28: =VLOOKUP(C28,'OUTRAS BASES'!B:C,2,0) -> 5250
A29: 1.2.13 | B29: SCO | C29: AD 04.05.0300 | D29: Ensaio para determinacao, em laboratorio, do Limite de Plasticidade de amostra de solo fino, de acordo com as recomendacoes da NBR7180 e da NBR6457.(desonerado) | E29: =(VLOOKUP(C29,CPU!$B$10:D$142,3,0)) -> un | F29: =F26 -> 2 | G29: =TRUNC((1-$H$10)*J29,2) -> 161.92 | H29: =TRUNC(G29*(1+$H$5),2) -> 199.5 | I29: =TRUNC(F29*H29,2) -> 399 | J29: =VLOOKUP(C29,'OUTRAS BASES'!B:C,2,0) -> 161.92
A30: 1.2.14 | B30: SCO | C30: AD 04.05.0250 | D30: Ensaio para determinacao, em laboratorio, do Limite de Liquidez de amostra de solo fino, de acordo com as recomendacoes da NBR7180 e da NBR6457.(desonerado) | E30: =(VLOOKUP(C30,CPU!$B$10:D$142,3,0)) -> um | F30: =F26 -> 2 | G30: =TRUNC((1-$H$10)*J30,2) -> 161.92 | H30: =TRUNC(G30*(1+$H$5),2) -> 199.5 | I30: =TRUNC(F30*H30,2) -> 399 | J30: =VLOOKUP(C30,'OUTRAS BASES'!B:C,2,0) -> 161.92
A31: 1.2.15 | B31: SETOP | C31: CO-6358 | D31: Determinação do coeficiente de permeabilidade de solos argilosos à carga variável | E31: =(VLOOKUP(C31,CPU!$B$10:D$142,3,0)) -> un | F31: 6 | G31: 589.03 | H31: 725.74 | I31: 4354.44 | J31: =VLOOKUP(C31,'OUTRAS BASES'!B:C,2,0) -> 589.03
A32: 1.2.16 | B32: PRÓPRIA | C32: CPU.04 | D32: =VLOOKUP(C32,CPU!$B$29:$G$235,2,0) -> Avaliação da espessura de carbonatação, por ponto, em estruturas de concreto armado ou protendido, através de aspersão de solução de fenolftaleína, inclusive coleta da amostra | E32: =(VLOOKUP(C32,CPU!$B$10:D$142,3,0)) -> un | F32: 3 | G32: =TRUNC((1-$H$10)*(SUMIFS(CPU!$G:$G,CPU!$A:$A,'10_Miroros'!$C32,CPU!$H:$H,"ss")+SUMIFS(CPU!$G:$G,CPU!$A:$A,'10_Miroros'!$C32,CPU!$H:$H,"mdo")+SUMIF('Comp SINAPI DF 09-2025 Onerado'!B:B,'10_Miroros'!C32,'Comp SINAPI DF 09-2025 Onerado'!E:E)+SUMIF('Ins SINAPI DF 09-2025 Onerado'!B:B,'10_Miroros'!C32,'Ins SINAPI DF 09-2025 Onerado'!F:F)),2) -> 470.15 | H32: 579.27 | I32: 1737.81
A33: 1.2.17 | B33: PRÓPRIA | C33: CPU.05 | D33: =VLOOKUP(C33,CPU!$B$29:$G$235,2,0) -> Ensaio de esclerometria em 10 pontos com 16 tiros por ponto | E33: =(VLOOKUP(C33,CPU!$B$10:D$142,3,0)) -> un | F33: 2 | G33: =TRUNC((1-$H$10)*(SUMIFS(CPU!$G:$G,CPU!$A:$A,'10_Miroros'!$C33,CPU!$H:$H,"ss")+SUMIFS(CPU!$G:$G,CPU!$A:$A,'10_Miroros'!$C33,CPU!$H:$H,"mdo")+SUMIF('Comp SINAPI DF 09-2025 Onerado'!B:B,'10_Miroros'!C33,'Comp SINAPI DF 09-2025 Onerado'!E:E)+SUMIF('Ins SINAPI DF 09-2025 Onerado'!B:B,'10_Miroros'!C33,'Ins SINAPI DF 09-2025 Onerado'!F:F)),2) -> 1927.99 | H33: 2375.47 | I33: 4750.94
A34: 1.3 | D34: Levantamento Topográfico | I34: =SUM(I35:I36) -> 37941.38
A35: 1.3.1 | B35: PRÓPRIA | C35: CPU.28 | D35: =VLOOKUP(C35,CPU!B29:G413,2,0) -> Mobilização e Desmobilização de Equipe de Levantamento topográfico | E35: =(VLOOKUP(C35,CPU!$B$10:D$4939,3,0)) -> un | F35: 1 | G35: =TRUNC((1-$H$10)*(SUMIFS(CPU!$G:$G,CPU!$A:$A,'10_Miroros'!$C35,CPU!$H:$H,"ss")+SUMIFS(CPU!$G:$G,CPU!$A:$A,'10_Miroros'!$C35,CPU!$H:$H,"mdo")+SUMIF('Comp SINAPI DF 09-2025 Onerado'!B:B,'10_Miroros'!C35,'Comp SINAPI DF 09-2025 Onerado'!E:E)+SUMIF('Ins SINAPI DF 09-2025 Onerado'!B:B,'10_Miroros'!C35,'Ins SINAPI DF 09-2025 Onerado'!F:F)),2) -> 7747.32 | H35: =TRUNC(G35*(1+$H$5),2) -> 9545.47 | I35: =TRUNC(F35*H35,2) -> 9545.47
A36: 1.3.2 | B36: SETOP | C36: CO-27369 | D36: Levantamento planialtimétrico e cadastral - terreno maior que 50.001 m² | E36: m² | F36: ='Memorial de cálculo'!W20 -> 66037 | G36: =TRUNC((1-$H$10)*J36,2) -> 0.35 | H36: =TRUNC(G36*(1+$H$5),2) -> 0.43 | I36: =TRUNC(F36*H36,2) -> 28395.91 | J36: =VLOOKUP(C36,'OUTRAS BASES'!B:C,2,0) -> 0.35
A37: 1.4 | D37: Levantamento Fotogramétrico | I37: =SUM(I38:I39) -> 18851.02
A38: 1.4.1 | B38: PRÓPRIA | C38: CPU.31 | D38: =VLOOKUP(C38,CPU!B29:G4917,2,0) -> Mobilização e Desmobilização de Equipe e Equipamentos de Levantamento Fotogramétrico | E38: =(VLOOKUP(C38,CPU!$B$10:D$210,3,0)) -> km | F38: =F17 -> 868 | G38: =TRUNC((1-$H$10)*J38,2) -> 7.74 | H38: =TRUNC(G38*(1+$H$5),2) -> 9.53 | I38: =TRUNC(F38*H38,2) -> 8272.04 | J38: 7.74
A39: 1.4.2 | B39: EMBASA | C39: 31.90.13 | D39: Levant. Fotogrametrico c/ VANT (drone) áreas até 100 ha, incl. Ortofotos, GSD<=3, acurácia horiz. Min.3cm e vert. Min. 6cm, aferidos c/ pontos de controle distancia min. De 650m entre eles, exclusivetransporte de equipe e equipamentos | E39: un | F39: 1 | G39: =TRUNC((1-$H$10)*J39,2) -> 8586.14 | H39: =TRUNC(G39*(1+$H$5),2) -> 10578.98 | I39: =TRUNC(F39*H39,2) -> 10578.98 | J39: =VLOOKUP(C39,'OUTRAS BASES'!B:C,2,0) -> 8586.14
A40: 2 | D40: ETAPA 2 | I40: =SUM(I41) -> 97492.4
A41: 2.1 | D41: ESTUDOS | I41: =SUM(I42:I47) -> 97492.4
A42: 2.1.1 | B42: PRÓPRIA | C42: CPU.11 | D42: =VLOOKUP(C42,CPU!$B$29:$G$167,2,0) -> Estudo Geológico-geotécnico | E42: =(VLOOKUP(C42,CPU!$B$10:D$167,3,0)) -> un | F42: 1 | G42: =TRUNC((1-$H$10)*(SUMIFS(CPU!$G:$G,CPU!$A:$A,'10_Miroros'!$C42,CPU!$H:$H,"ss")+SUMIFS(CPU!$G:$G,CPU!$A:$A,'10_Miroros'!$C42,CPU!$H:$H,"mdo")+SUMIF('Comp SINAPI DF 09-2025 Onerado'!B:B,'10_Miroros'!C42,'Comp SINAPI DF 09-2025 Onerado'!E:E)+SUMIF('Ins SINAPI DF 09-2025 Onerado'!B:B,'10_Miroros'!C42,'Ins SINAPI DF 09-2025 Onerado'!F:F)),2) -> 14328.22 | H42: =TRUNC(G42*(1+$H$5),2) -> 17653.79 | I42: =TRUNC(F42*H42,2) -> 17653.79
A43: 2.1.2 | B43: PRÓPRIA | C43: CPU.12 | D43: =VLOOKUP(C43,CPU!$B$29:$G$167,2,0) -> Relatório Fotogramétricos e Tratamento de Dados | E43: =(VLOOKUP(C43,CPU!$B$10:D$167,3,0)) -> un | F43: 1 | G43: =TRUNC((1-$H$10)*(SUMIFS(CPU!$G:$G,CPU!$A:$A,'10_Miroros'!$C43,CPU!$H:$H,"ss")+SUMIFS(CPU!$G:$G,CPU!$A:$A,'10_Miroros'!$C43,CPU!$H:$H,"mdo")+SUMIF('Comp SINAPI DF 09-2025 Onerado'!B:B,'10_Miroros'!C43,'Comp SINAPI DF 09-2025 Onerado'!E:E)+SUMIF('Ins SINAPI DF 09-2025 Onerado'!B:B,'10_Miroros'!C43,'Ins SINAPI DF 09-2025 Onerado'!F:F)),2) -> 8785.99 | H43: =TRUNC(G43*(1+$H$5),2) -> 10825.21 | I43: =TRUNC(F43*H43,2) -> 10825.21
A44: 2.1.3 | B44: PRÓPRIA | C44: CPU.14 | D44: =VLOOKUP(C44,CPU!$B$29:$G$167,2,0) -> Estudo de Estabilidade e Percolação - Barragem de Terra | E44: =(VLOOKUP(C44,CPU!$B$10:D$167,3,0)) -> un | F44: 1 | G44: =TRUNC((1-$H$10)*(SUMIFS(CPU!$G:$G,CPU!$A:$A,'10_Miroros'!$C44,CPU!$H:$H,"ss")+SUMIFS(CPU!$G:$G,CPU!$A:$A,'10_Miroros'!$C44,CPU!$H:$H,"mdo")+SUMIF('Comp SINAPI DF 09-2025 Onerado'!B:B,'10_Miroros'!C44,'Comp SINAPI DF 09-2025 Onerado'!E:E)+SUMIF('Ins SINAPI DF 09-2025 Onerado'!B:B,'10_Miroros'!C44,'Ins SINAPI DF 09-2025 Onerado'!F:F)),2) -> 35476.72 | H44: 43710.86 | I44: 43710.86
A45: 2.1.4 | B45: PRÓPRIA | C45: CPU.33 | D45: =VLOOKUP(C45,CPU!$B$29:$G$4939,2,0) -> Relatório de Avaliação de Estruturas de Concreto | E45: =(VLOOKUP(C45,CPU!$B$10:D$4939,3,0)) -> un | F45: 1 | G45: =TRUNC((1-$H$10)*(SUMIFS(CPU!$G:$G,CPU!$A:$A,'10_Miroros'!$C45,CPU!$H:$H,"ss")+SUMIFS(CPU!$G:$G,CPU!$A:$A,'10_Miroros'!$C45,CPU!$H:$H,"mdo")+SUMIF('Comp SINAPI DF 09-2025 Onerado'!B:B,'10_Miroros'!C45,'Comp SINAPI DF 09-2025 Onerado'!E:E)+SUMIF('Ins SINAPI DF 09-2025 Onerado'!B:B,'10_Miroros'!C45,'Ins SINAPI DF 09-2025 Onerado'!F:F)),2) -> 6010.8 | H45: 7405.9 | I45: 7405.9
A46: 2.1.5 | B46: PRÓPRIA | C46: CPU.40 | D46: =VLOOKUP(C46,CPU!B29:G4939,2,0) -> Relatório Topográfico e Tratamento de Dados | E46: =(VLOOKUP(C46,CPU!$B$10:D$4932,3,0)) -> un | F46: 1 | G46: =TRUNC((1-$H$10)*(SUMIFS(CPU!$G:$G,CPU!$A:$A,'10_Miroros'!$C46,CPU!$H:$H,"ss")+SUMIFS(CPU!$G:$G,CPU!$A:$A,'10_Miroros'!$C46,CPU!$H:$H,"mdo")+SUMIF('Comp SINAPI DF 09-2025 Onerado'!B:B,'10_Miroros'!C46,'Comp SINAPI DF 09-2025 Onerado'!E:E)+SUMIF('Ins SINAPI DF 09-2025 Onerado'!B:B,'10_Miroros'!C46,'Ins SINAPI DF 09-2025 Onerado'!F:F)),2) -> 8514.52 | H46: 10490.74 | I46: 10490.74
A47: 2.1.6 | B47: PRÓPRIA | C47: CPU.42 | D47: =VLOOKUP(C47,CPU!$B$29:$G$49940,2,0) -> Relatório de Investigação Geológica/Geotécnica | E47: =(VLOOKUP(C47,CPU!$B$10:D$19919,3,0)) -> un | F47: 1 | G47: =TRUNC((1-$H$10)*(SUMIFS(CPU!$G:$G,CPU!$A:$A,'10_Miroros'!$C47,CPU!$H:$H,"ss")+SUMIFS(CPU!$G:$G,CPU!$A:$A,'10_Miroros'!$C47,CPU!$H:$H,"mdo")+SUMIF('Comp SINAPI DF 09-2025 Onerado'!B:B,'10_Miroros'!C47,'Comp SINAPI DF 09-2025 Onerado'!E:E)+SUMIF('Ins SINAPI DF 09-2025 Onerado'!B:B,'10_Miroros'!C47,'Ins SINAPI DF 09-2025 Onerado'!F:F)),2) -> 6010.8 | H47: 7405.9 | I47: 7405.9
A48: 3 | D48: ETAPA 3 | I48: =SUM(I60,I49,I52) -> 372432.11
A49: 3.1 | D49: PROJETOS | I49: =SUM(I50:I51) -> 91058.79
A50: 3.1.1 | B50: PRÓPRIA | C50: CPU.18 | D50: =VLOOKUP(C50,CPU!B44:G146,2,0) -> Projeto de Instrumentação | E50: =(VLOOKUP(C50,CPU!$B$10:D$142,3,0)) -> un | F50: 1 | G50: =TRUNC((1-$H$10)*(SUMIFS(CPU!$G:$G,CPU!$A:$A,'10_Miroros'!$C50,CPU!$H:$H,"ss")+SUMIFS(CPU!$G:$G,CPU!$A:$A,'10_Miroros'!$C50,CPU!$H:$H,"mdo")+SUMIF('Comp SINAPI DF 09-2025 Onerado'!B:B,'10_Miroros'!C50,'Comp SINAPI DF 09-2025 Onerado'!E:E)+SUMIF('Ins SINAPI DF 09-2025 Onerado'!B:B,'10_Miroros'!C50,'Ins SINAPI DF 09-2025 Onerado'!F:F)),2) -> 29283.76 | H50: =TRUNC(G50*(1+$H$5),2) -> 36080.52 | I50: =TRUNC(F50*H50,2) -> 36080.52
A51: 3.1.2 | B51: PRÓPRIA | C51: CPU.20 | D51: =VLOOKUP(C51,CPU!B44:G151,2,0) -> Projeto Geométrico (AS IS) | E51: =(VLOOKUP(C51,CPU!$B$10:D$142,3,0)) -> un | F51: 1 | G51: =TRUNC((1-$H$10)*(SUMIFS(CPU!$G:$G,CPU!$A:$A,'10_Miroros'!$C51,CPU!$H:$H,"ss")+SUMIFS(CPU!$G:$G,CPU!$A:$A,'10_Miroros'!$C51,CPU!$H:$H,"mdo")+SUMIF('Comp SINAPI DF 09-2025 Onerado'!B:B,'10_Miroros'!C51,'Comp SINAPI DF 09-2025 Onerado'!E:E)+SUMIF('Ins SINAPI DF 09-2025 Onerado'!B:B,'10_Miroros'!C51,'Ins SINAPI DF 09-2025 Onerado'!F:F)),2) -> 44621.6 | H51: =TRUNC(G51*(1+$H$5),2) -> 54978.27 | I51: =TRUNC(F51*H51,2) -> 54978.27
A52: 3.2 | D52: PLANO DE SEGURANÇA DE BARRAGENS | I52: =SUM(I53:N59) -> 181035.5
A53: 3.2.1 | B53: PRÓPRIA | C53: CPU.34 | D53: =VLOOKUP(C53,CPU!B43:G4939,2,0) -> Volume I - Informações Gerais | E53: =(VLOOKUP(C53,CPU!$B$10:D$4896,3,0)) -> un | F53: 1 | G53: =TRUNC((1-$H$10)*(SUMIFS(CPU!$G:$G,CPU!$A:$A,'10_Miroros'!$C53,CPU!$H:$H,"ss")+SUMIFS(CPU!$G:$G,CPU!$A:$A,'10_Miroros'!$C53,CPU!$H:$H,"mdo")+SUMIF('Comp SINAPI DF 09-2025 Onerado'!B:B,'10_Miroros'!C53,'Comp SINAPI DF 09-2025 Onerado'!E:E)+SUMIF('Ins SINAPI DF 09-2025 Onerado'!B:B,'10_Miroros'!C53,'Ins SINAPI DF 09-2025 Onerado'!F:F)),2) -> 15330.6 | H53: =TRUNC(G53*(1+$H$5),2) -> 18888.83 | I53: =TRUNC(F53*H53,2) -> 18888.83
A54: 3.2.2 | B54: PRÓPRIA | C54: CPU.35 | D54: =VLOOKUP(C54,CPU!B43:G4940,2,0) -> Volume II - Documentação Técnica | E54: =(VLOOKUP(C54,CPU!$B$10:D$4896,3,0)) -> un | F54: 1 | G54: =TRUNC((1-$H$10)*(SUMIFS(CPU!$G:$G,CPU!$A:$A,'10_Miroros'!$C54,CPU!$H:$H,"ss")+SUMIFS(CPU!$G:$G,CPU!$A:$A,'10_Miroros'!$C54,CPU!$H:$H,"mdo")+SUMIF('Comp SINAPI DF 09-2025 Onerado'!B:B,'10_Miroros'!C54,'Comp SINAPI DF 09-2025 Onerado'!E:E)+SUMIF('Ins SINAPI DF 09-2025 Onerado'!B:B,'10_Miroros'!C54,'Ins SINAPI DF 09-2025 Onerado'!F:F)),2) -> 15751.56 | H54: 19407.49 | I54: =TRUNC(F54*H54,2) -> 19407.49
A55: 3.2.3 | B55: PRÓPRIA | C55: CPU.36 | D55: =VLOOKUP(C55,CPU!B43:G4941,2,0) -> Volume III - Planos e Procedimentos | E55: =(VLOOKUP(C55,CPU!$B$10:D$4896,3,0)) -> un | F55: 1 | G55: =TRUNC((1-$H$10)*(SUMIFS(CPU!$G:$G,CPU!$A:$A,'10_Miroros'!$C55,CPU!$H:$H,"ss")+SUMIFS(CPU!$G:$G,CPU!$A:$A,'10_Miroros'!$C55,CPU!$H:$H,"mdo")+SUMIF('Comp SINAPI DF 09-2025 Onerado'!B:B,'10_Miroros'!C55,'Comp SINAPI DF 09-2025 Onerado'!E:E)+SUMIF('Ins SINAPI DF 09-2025 Onerado'!B:B,'10_Miroros'!C55,'Ins SINAPI DF 09-2025 Onerado'!F:F)),2) -> 15751.56 | H55: 19407.49 | I55: 19407.49
A56: 3.2.4 | B56: PRÓPRIA | C56: CPU.37 | D56: =VLOOKUP(C56,CPU!B43:G4942,2,0) -> Volume IV - Registros e Controles | E56: =(VLOOKUP(C56,CPU!$B$10:D$4896,3,0)) -> un | F56: 1 | G56: =TRUNC((1-$H$10)*(SUMIFS(CPU!$G:$G,CPU!$A:$A,'10_Miroros'!$C56,CPU!$H:$H,"ss")+SUMIFS(CPU!$G:$G,CPU!$A:$A,'10_Miroros'!$C56,CPU!$H:$H,"mdo")+SUMIF('Comp SINAPI DF 09-2025 Onerado'!B:B,'10_Miroros'!C56,'Comp SINAPI DF 09-2025 Onerado'!E:E)+SUMIF('Ins SINAPI DF 09-2025 Onerado'!B:B,'10_Miroros'!C56,'Ins SINAPI DF 09-2025 Onerado'!F:F)),2) -> 15751.56 | H56: 19407.49 | I56: 19407.49
A57: 3.2.5 | B57: PRÓPRIA | C57: CPU.38 | D57: =VLOOKUP(C57,CPU!B43:G4943,2,0) -> Volume V - Revisão Periódica de Segurança de Barragem | E57: =(VLOOKUP(C57,CPU!$B$10:D$4896,3,0)) -> un | F57: 1 | G57: =TRUNC((1-$H$10)*(SUMIFS(CPU!$G:$G,CPU!$A:$A,'10_Miroros'!$C57,CPU!$H:$H,"ss")+SUMIFS(CPU!$G:$G,CPU!$A:$A,'10_Miroros'!$C57,CPU!$H:$H,"mdo")+SUMIF('Comp SINAPI DF 09-2025 Onerado'!B:B,'10_Miroros'!C57,'Comp SINAPI DF 09-2025 Onerado'!E:E)+SUMIF('Ins SINAPI DF 09-2025 Onerado'!B:B,'10_Miroros'!C57,'Ins SINAPI DF 09-2025 Onerado'!F:F)),2) -> 27410.88 | H57: =TRUNC(G57*(1+$H$5),2) -> 33772.94 | I57: =TRUNC(F57*H57,2) -> 33772.94
A58: 3.2.6 | B58: PRÓPRIA | C58: CPU.39 | D58: =VLOOKUP(C58,CPU!B44:G4944,2,0) -> Volume V - A - Resumo Executivo | E58: =(VLOOKUP(C58,CPU!$B$10:D$4896,3,0)) -> un | F58: 1 | G58: =TRUNC((1-$H$10)*(SUMIFS(CPU!$G:$G,CPU!$A:$A,'10_Miroros'!$C58,CPU!$H:$H,"ss")+SUMIFS(CPU!$G:$G,CPU!$A:$A,'10_Miroros'!$C58,CPU!$H:$H,"mdo")+SUMIF('Comp SINAPI DF 09-2025 Onerado'!B:B,'10_Miroros'!C58,'Comp SINAPI DF 09-2025 Onerado'!E:E)+SUMIF('Ins SINAPI DF 09-2025 Onerado'!B:B,'10_Miroros'!C58,'Ins SINAPI DF 09-2025 Onerado'!F:F)),2) -> 24473.94 | H58: =TRUNC(G58*(1+$H$5),2) -> 30154.34 | I58: =TRUNC(F58*H58,2) -> 30154.34
A59: 3.2.7 | B59: PRÓPRIA | C59: CPU.41 | D59: =VLOOKUP(C59,CPU!B45:G4910,2,0) -> Volume VI - Plano de Ação de Emergência | E59: =(VLOOKUP(C59,CPU!$B$10:D$4896,3,0)) -> un | F59: 1 | G59: =TRUNC((1-$H$10)*(SUMIFS(CPU!$G:$G,CPU!$A:$A,'10_Miroros'!$C59,CPU!$H:$H,"ss")+SUMIFS(CPU!$G:$G,CPU!$A:$A,'10_Miroros'!$C59,CPU!$H:$H,"mdo")+SUMIF('Comp SINAPI DF 09-2025 Onerado'!B:B,'10_Miroros'!C59,'Comp SINAPI DF 09-2025 Onerado'!E:E)+SUMIF('Ins SINAPI DF 09-2025 Onerado'!B:B,'10_Miroros'!C59,'Ins SINAPI DF 09-2025 Onerado'!F:F)),2) -> 32462.4 | H59: =TRUNC(G59*(1+$H$5),2) -> 39996.92 | I59: =TRUNC(F59*H59,2) -> 39996.92
A60: 3.3 | D60: PLANO DE AÇÃO DE EMERGÊNCIA | I60: =SUM(I61:I63) -> 100337.82
A61: 3.3.1 | B61: PRÓPRIA | C61: CPU.24 | D61: =VLOOKUP(C61,CPU!B45:G4908,2,0) -> Projeto de sinalização | E61: =(VLOOKUP(C61,CPU!$B$10:D$4896,3,0)) -> un | F61: 1 | G61: =TRUNC((1-$H$10)*(SUMIFS(CPU!$G:$G,CPU!$A:$A,'10_Miroros'!$C61,CPU!$H:$H,"ss")+SUMIFS(CPU!$G:$G,CPU!$A:$A,'10_Miroros'!$C61,CPU!$H:$H,"mdo")+SUMIF('Comp SINAPI DF 09-2025 Onerado'!B:B,'10_Miroros'!C61,'Comp SINAPI DF 09-2025 Onerado'!E:E)+SUMIF('Ins SINAPI DF 09-2025 Onerado'!B:B,'10_Miroros'!C61,'Ins SINAPI DF 09-2025 Onerado'!F:F)),2) -> 27232.12 | H61: =TRUNC(G61*(1+$H$5),2) -> 33552.69 | I61: =TRUNC(F61*H61,2) -> 33552.69
A62: 3.3.2 | B62: PRÓPRIA | C62: CPU.25 | D62: =VLOOKUP(C62,CPU!B45:G4909,2,0) -> Projeto de rotas de fuga | E62: =(VLOOKUP(C62,CPU!$B$10:D$4896,3,0)) -> un | F62: 1 | G62: =TRUNC((1-$H$10)*(SUMIFS(CPU!$G:$G,CPU!$A:$A,'10_Miroros'!$C62,CPU!$H:$H,"ss")+SUMIFS(CPU!$G:$G,CPU!$A:$A,'10_Miroros'!$C62,CPU!$H:$H,"mdo")+SUMIF('Comp SINAPI DF 09-2025 Onerado'!B:B,'10_Miroros'!C62,'Comp SINAPI DF 09-2025 Onerado'!E:E)+SUMIF('Ins SINAPI DF 09-2025 Onerado'!B:B,'10_Miroros'!C62,'Ins SINAPI DF 09-2025 Onerado'!F:F)),2) -> 30599.8 | H62: =TRUNC(G62*(1+$H$5),2) -> 37702.01 | I62: =TRUNC(F62*H62,2) -> 37702.01
A63: 3.3.3 | B63: PRÓPRIA | C63: CPU.32 | D63: =VLOOKUP(C63,CPU!B46:G4911,2,0) -> Projeto de sistema sonoro | E63: =(VLOOKUP(C63,CPU!$B$10:D$4896,3,0)) -> un | F63: 1 | G63: =TRUNC((1-$H$10)*(SUMIFS(CPU!$G:$G,CPU!$A:$A,'10_Miroros'!$C63,CPU!$H:$H,"ss")+SUMIFS(CPU!$G:$G,CPU!$A:$A,'10_Miroros'!$C63,CPU!$H:$H,"mdo")+SUMIF('Comp SINAPI DF 09-2025 Onerado'!B:B,'10_Miroros'!C63,'Comp SINAPI DF 09-2025 Onerado'!E:E)+SUMIF('Ins SINAPI DF 09-2025 Onerado'!B:B,'10_Miroros'!C63,'Ins SINAPI DF 09-2025 Onerado'!F:F)),2) -> 23604.52 | H63: =TRUNC(G63*(1+$H$5),2) -> 29083.12 | I63: =TRUNC(F63*H63,2) -> 29083.12
D64: TOTAL (Custo): | I64: =TRUNC(SUMPRODUCT(F14:F63,G14:G63),2) -> 574777.72
D65: BDI e Encargos Sociais: | I65: =I66-I64 -> 133304.33
D66: TOTAL GERAL COM BDI: | I66: =I48+I40+I13 -> 708082.05 | Q66: =TRUNC(SUMPRODUCT(F14:F63,H14:H63),2) -> 708082.05

Sheet 11_SaoDesiderio
A1: =Resumo!B5 -> Elaboração de Plano de Segurança de Barragens
A2: Companhia de Desenvolvimento dos Vales do São Francisco e do Parnaíba
A4: PLANILHA ORÇAMENTÁRIA - ORÇAMENTO NÃO DESONERADO
A5: OBRA: | B5: =Resumo!B5 -> Elaboração de Plano de Segurança de Barragens | G5: BDI (serv.): | H5: ='BDI serv'!D23 -> 0.2321 | I5: Bancos de dados:
A6: LOCAL: | B6: São Desiderio - BA | G6: BDI (forn.): | H6: ='BDI forn'!D23 -> 0 | I6: =Resumo!G6 -> SETEMBRO/25 - SINAPI
A7: DATA BASE: | B7: 2025-10-01 | E7: Encargos sociais - Horistas: | H7: ='Encargos Sociais DF'!E49 -> 1.1011 | I7: =Resumo!G7 -> SIURB INFRA JAN/2025
A8: PRAZO: | B8: =Resumo!B8 -> 300 dias | E8: Encargos sociais - Mensalista: | H8: ='Encargos Sociais DF'!F49 -> 0.7019 | I8: =Resumo!G8 -> JAN/25 E JUL/2025- SETOP
I9: =Resumo!G9 -> JUNHO/25 - EMBASA
B10: São Desiderio | G10: Desconto: | H10: 0 | I10: =Resumo!G10 -> JUL/2025 - CONSULT. DNIT
A11: ITEM | B11: REFERÊNCIA | D11: DESCRIÇÃO | E11: UNID. | F11: QUANT. | G11: CUSTO UNITÁRIO | H11: PREÇO UNITÁRIO | I11: PREÇO TOTAL
B12: FONTE | C12: CÓDIGO
A13: 1 | D13: ='1_Bico da Pedra'!D13 -> ETAPA 1 | I13: =SUM(I14,I16,I24,I27,I30) -> 341322.84
A14: 1.1 | D14: Visita Técnica | I14: =SUM(I15:I15) -> 55532.37
A15: 1.1.1 | B15: PRÓPRIA | C15: CPU.09 | D15: =VLOOKUP(C15,CPU!B29:G75,2,0) -> Inspeção Visual da Estrutura (Multidisciplinar) e elaboração de relatório | E15: =(VLOOKUP(C15,CPU!$B$10:D$142,3,0)) -> un | F15: 1 | G15: =TRUNC((1-$H$10)*(SUMIFS(CPU!$G:$G,CPU!$A:$A,'11_SaoDesiderio'!$C15,CPU!$H:$H,"ss")+SUMIFS(CPU!$G:$G,CPU!$A:$A,'11_SaoDesiderio'!$C15,CPU!$H:$H,"mdo")+SUMIF('Comp SINAPI DF 09-2025 Onerado'!B:B,'11_SaoDesiderio'!C15,'Comp SINAPI DF 09-2025 Onerado'!E:E)+SUMIF('Ins SINAPI DF 09-2025 Onerado'!B:B,'11_SaoDesiderio'!C15,'Ins SINAPI DF 09-2025 Onerado'!F:F)),2) -> 45071.32 | H15: =TRUNC(G15*(1+$H$5),2) -> 55532.37 | I15: =TRUNC(F15*H15,2) -> 55532.37
A16: 1.2 | D16: INVESTIGAÇÃO GEOLÓGICA E GEOTÉCNICA | I16: =SUM(I17:I23) -> 70695.88
A17: 1.2.1 | B17: EMBASA | C17: 32.05.04 | D17: Mobilização e desmobilização de equipe e equipamentos para sondagem rotativa ou mista | E17: km | F17: =F28 -> 562 | G17: =TRUNC((1-$H$10)*J17,2) -> 5.16 | H17: =TRUNC(G17*(1+$H$5),2) -> 6.35 | I17: =TRUNC(F17*H17,2) -> 3568.7 | J17: =VLOOKUP(C17,'OUTRAS BASES'!B:C,2,0) -> 5.16
A18: 1.2.2 | B18: SCO | C18: AD 05.15.0400 | D18: Sondagem rotativa vertical, em rocha sa, com coroa de diamante, diametro H (99mm), inclusive deslocamento e posicionamento em cada furo. | E18: m | F18: =ROUNDUP('Pontos de Sondagem'!E366,0) -> 29 | G18: =TRUNC((1-$H$10)*J18,2) -> 1422.4 | H18: 1752.53 | I18: 50823.37 | J18: =VLOOKUP(C18,'OUTRAS BASES'!B:C,2,0) -> 1422.4
A19: 1.2.3 | B19: EMBASA | C19: 32.04.61 | D19: Ensaio de Perda de água sob pressão | E19: un | F19: =3*'Pontos de Sondagem'!G364 -> 9 | G19: =TRUNC((1-$H$10)*J19,2) -> 613.68 | H19: 756.11 | I19: 6804.99 | J19: =VLOOKUP(C19,'OUTRAS BASES'!B:C,2,0) -> 613.68
A20: 1.2.4 | B20: SICRO3 | C20: 3816196 | D20: Fechamento dos Furos - Injeção de nata de cimento | E20: m³ | F20: =ROUNDUP(N26,0) -> 1 | G20: =TRUNC((1-$H$10)*J20,2) -> 1012.78 | H20: 1247.84 | I20: 1247.84 | J20: =VLOOKUP(C20,'OUTRAS BASES'!B:C,2,0) -> 1012.78
A21: 1.2.5 | B21: SCO | C21: AD 35.35.0400 | D21: Ensaio de compressão simples em amostra de concreto - Base em SCO 35.35.0400 | E21: un | F21: 3 | G21: =TRUNC((1-$H$10)*J21,2) -> 320.04 | H21: 394.32 | I21: 1182.96 | J21: =VLOOKUP(C21,'OUTRAS BASES'!B:C,2,0) -> 320.04
A22: 1.2.6 | B22: PRÓPRIA | C22: CPU.04 | D22: =VLOOKUP(C22,CPU!B29:G4909,2,0) -> Avaliação da espessura de carbonatação, por ponto, em estruturas de concreto armado ou protendido, através de aspersão de solução de fenolftaleína, inclusive coleta da amostra | E22: =(VLOOKUP(C22,CPU!$B$10:D$142,3,0)) -> un | F22: 4 | G22: =TRUNC((1-$H$10)*(SUMIFS(CPU!$G:$G,CPU!$A:$A,'11_SaoDesiderio'!$C22,CPU!$H:$H,"ss")+SUMIFS(CPU!$G:$G,CPU!$A:$A,'11_SaoDesiderio'!$C22,CPU!$H:$H,"mdo")+SUMIF('Comp SINAPI DF 09-2025 Onerado'!B:B,'11_SaoDesiderio'!C22,'Comp SINAPI DF 09-2025 Onerado'!E:E)+SUMIF('Ins SINAPI DF 09-2025 Onerado'!B:B,'11_SaoDesiderio'!C22,'Ins SINAPI DF 09-2025 Onerado'!F:F)),2) -> 470.15 | H22: =TRUNC(G22*(1+$H$5),2) -> 579.27 | I22: =TRUNC(F22*H22,2) -> 2317.08
A23: 1.2.7 | B23: PRÓPRIA | C23: CPU.05 | D23: =VLOOKUP(C23,CPU!B29:G4910,2,0) -> Ensaio de esclerometria em 10 pontos com 16 tiros por ponto | E23: =(VLOOKUP(C23,CPU!$B$10:D$142,3,0)) -> un | F23: 2 | G23: =TRUNC((1-$H$10)*(SUMIFS(CPU!$G:$G,CPU!$A:$A,'11_SaoDesiderio'!$C23,CPU!$H:$H,"ss")+SUMIFS(CPU!$G:$G,CPU!$A:$A,'11_SaoDesiderio'!$C23,CPU!$H:$H,"mdo")+SUMIF('Comp SINAPI DF 09-2025 Onerado'!B:B,'11_SaoDesiderio'!C23,'Comp SINAPI DF 09-2025 Onerado'!E:E)+SUMIF('Ins SINAPI DF 09-2025 Onerado'!B:B,'11_SaoDesiderio'!C23,'Ins SINAPI DF 09-2025 Onerado'!F:F)),2) -> 1927.99 | H23: =TRUNC(G23*(1+$H$5),2) -> 2375.47 | I23: =TRUNC(F23*H23,2) -> 4750.94 | J23: 0 | M23: c | N23: 1.5
A24: 1.3 | D24: Levantamento Topográfico | I24: =SUM(I25:I26) -> 13325.6 | M24: d | N24: =63.5/1000 -> 0.0635
A25: 1.3.1 | B25: PRÓPRIA | C25: CPU.28 | D25: =VLOOKUP(C25,CPU!B29:G409,2,0) -> Mobilização e Desmobilização de Equipe de Levantamento topográfico | E25: =(VLOOKUP(C25,CPU!$B$10:D$19919,3,0)) -> un | F25: 1 | G25: =TRUNC((1-$H$10)*(SUMIFS(CPU!$G:$G,CPU!$A:$A,'11_SaoDesiderio'!$C25,CPU!$H:$H,"ss")+SUMIFS(CPU!$G:$G,CPU!$A:$A,'11_SaoDesiderio'!$C25,CPU!$H:$H,"mdo")+SUMIF('Comp SINAPI DF 09-2025 Onerado'!B:B,'11_SaoDesiderio'!C25,'Comp SINAPI DF 09-2025 Onerado'!E:E)+SUMIF('Ins SINAPI DF 09-2025 Onerado'!B:B,'11_SaoDesiderio'!C25,'Ins SINAPI DF 09-2025 Onerado'!F:F)),2) -> 7747.32 | H25: =TRUNC(G25*(1+$H$5),2) -> 9545.47 | I25: =TRUNC(F25*H25,2) -> 9545.47 | M25: A | N25: =PI()*(N24*N24)/4 -> 0.003166921744
A26: 1.3.2 | B26: SETOP | C26: CO-27363 | D26: Levantamento planialtimétrico e cadastral terreno de 2.001 a 10.000 m² | E26: un | F26: 1 | G26: =TRUNC((1-$H$10)*J26,2) -> 3068.04 | H26: =TRUNC(G26*(1+$H$5),2) -> 3780.13 | I26: =TRUNC(F26*H26,2) -> 3780.13 | J26: =VLOOKUP(C26,'OUTRAS BASES'!B:C,2,0) -> 3068.04 | M26: V | N26: =N25*(F18)*N23 -> 0.1377610959
A27: 1.4 | D27: Levantamento Batimétrico | I27: =SUM(I28:I29) -> 49590.25
A28: 1.4.1 | B28: EMBASA | C28: 31.90.12 | D28: Transporte de Equipe e Equipamentos para levantamento batimétrico com Ecobatímetro | E28: km | F28: =F31 -> 562 | G28: =TRUNC((1-$H$10)*J28,2) -> 6.68 | H28: =TRUNC(G28*(1+$H$5),2) -> 8.23 | I28: =TRUNC(F28*H28,2) -> 4625.26 | J28: =VLOOKUP(C28,'OUTRAS BASES'!B:C,2,0) -> 6.68
A29: 1.4.2 | B29: EMOP | C29: 01.016.0090-A | D29: Levantamento topográfico por batimetria, serviços de campo e escritório, com seções de levantamento equidistante de até 20 metros, inclusive transporte do pessoal, com área de até 10 ha (escala 1:500) 3% - desgaste de ferramentas e EPI | E29: ha | F29: 7 | G29: =TRUNC((1-$H$10)*J29,2) -> 5213.52 | H29: =TRUNC(G29*(1+$H$5),2) -> 6423.57 | I29: =TRUNC(F29*H29,2) -> 44964.99 | J29: =VLOOKUP(C29,'OUTRAS BASES'!B:C,2,0) -> 5213.52
A30: 1.5 | D30: Levantamento Fotogramétrico | I30: =SUM(I31:I32) -> 152178.74
A31: 1.5.1 | B31: PRÓPRIA | C31: CPU.31 | D31: =VLOOKUP(C31,CPU!B29:G4921,2,0) -> Mobilização e Desmobilização de Equipe e Equipamentos de Levantamento Fotogramétrico | E31: =(VLOOKUP(C31,CPU!$B$10:D$210,3,0)) -> km | F31: ='Memorial de cálculo'!V14*2 -> 562 | G31: =TRUNC((1-$H$10)*J31,2) -> 7.74 | H31: =TRUNC(G31*(1+$H$5),2) -> 9.53 | I31: =TRUNC(F31*H31,2) -> 5355.86 | J31: 7.74
A32: 1.5.2 | B32: EMBASA | C32: 31.90.15 | D32: Levant. Fotogrametrico c/ VANT (drone) áreas pelo que exceder 1000 ha, incl. ortofotos, GSD<=3, acuracia horiz. min. 3 cm e vert. min. 6cm, aferidos c/ pontos de controle dist. min. 650 m entre eles,exclusive transporte de equipe e equipamentos | E32: ha | F32: ='Memorial de cálculo'!V27 -> 15152 | G32: =TRUNC((1-$H$10)*J32,2) -> 7.87 | H32: =TRUNC(G32*(1+$H$5),2) -> 9.69 | I32: =TRUNC(F32*H32,2) -> 146822.88 | J32: =VLOOKUP(C32,'OUTRAS BASES'!B:C,2,0) -> 7.87
A33: 2 | D33: ETAPA 2 | I33: =SUM(I34) -> 182116.62
A34: 2.1 | D34: ELABORAÇÃO DE ESTUDOS | I34: =SUM(I35:I42) -> 182116.62
A35: 2.1.1 | B35: PRÓPRIA | C35: CPU.10 | D35: =VLOOKUP(C35,CPU!$B$29:$G$142,2,0) -> Estudo Hidrológico e Hidráulico | E35: =(VLOOKUP(C35,CPU!$B$10:D$142,3,0)) -> un | F35: 1 | G35: =TRUNC((1-$H$10)*(SUMIFS(CPU!$G:$G,CPU!$A:$A,'11_SaoDesiderio'!$C35,CPU!$H:$H,"ss")+SUMIFS(CPU!$G:$G,CPU!$A:$A,'11_SaoDesiderio'!$C35,CPU!$H:$H,"mdo")+SUMIF('Comp SINAPI DF 09-2025 Onerado'!B:B,'11_SaoDesiderio'!C35,'Comp SINAPI DF 09-2025 Onerado'!E:E)+SUMIF('Ins SINAPI DF 09-2025 Onerado'!B:B,'11_SaoDesiderio'!C35,'Ins SINAPI DF 09-2025 Onerado'!F:F)),2) -> 39432.48 | H35: =TRUNC(G35*(1+$H$5),2) -> 48584.75 | I35: =TRUNC(F35*H35,2) -> 48584.75
A36: 2.1.2 | B36: PRÓPRIA | C36: CPU.11 | D36: =VLOOKUP(C36,CPU!B29:G9381,2,0) -> Estudo Geológico-geotécnico | E36: =(VLOOKUP(C36,CPU!B29:D$142,3,0)) -> un | F36: 1 | G36: =TRUNC((1-$H$10)*(SUMIFS(CPU!$G:$G,CPU!$A:$A,'11_SaoDesiderio'!$C36,CPU!$H:$H,"ss")+SUMIFS(CPU!$G:$G,CPU!$A:$A,'11_SaoDesiderio'!$C36,CPU!$H:$H,"mdo")+SUMIF('Comp SINAPI DF 09-2025 Onerado'!B:B,'11_SaoDesiderio'!C36,'Comp SINAPI DF 09-2025 Onerado'!E:E)+SUMIF('Ins SINAPI DF 09-2025 Onerado'!B:B,'11_SaoDesiderio'!C36,'Ins SINAPI DF 09-2025 Onerado'!F:F)),2) -> 14328.22 | H36: 17653.79 | I36: 17653.79
A37: 2.1.3 | B37: PRÓPRIA | C37: CPU.12 | D37: =VLOOKUP(C37,CPU!$B$29:$G$142,2,0) -> Relatório Fotogramétricos e Tratamento de Dados | E37: =(VLOOKUP(C37,CPU!$B$10:D$142,3,0)) -> un | F37: 1 | G37: =TRUNC((1-$H$10)*(SUMIFS(CPU!$G:$G,CPU!$A:$A,'11_SaoDesiderio'!$C37,CPU!$H:$H,"ss")+SUMIFS(CPU!$G:$G,CPU!$A:$A,'11_SaoDesiderio'!$C37,CPU!$H:$H,"mdo")+SUMIF('Comp SINAPI DF 09-2025 Onerado'!B:B,'11_SaoDesiderio'!C37,'Comp SINAPI DF 09-2025 Onerado'!E:E)+SUMIF('Ins SINAPI DF 09-2025 Onerado'!B:B,'11_SaoDesiderio'!C37,'Ins SINAPI DF 09-2025 Onerado'!F:F)),2) -> 8785.99 | H37: =TRUNC(G37*(1+$H$5),2) -> 10825.21 | I37: 10825.21
A38: 2.1.4 | B38: PRÓPRIA | C38: CPU.13 | D38: =VLOOKUP(C38,CPU!$B$29:$G$142,2,0) -> Estudo de Ruputura e Mapas de Inundação | E38: =(VLOOKUP(C38,CPU!$B$10:D$142,3,0)) -> un | F38: 1 | G38: =TRUNC((1-$H$10)*(SUMIFS(CPU!$G:$G,CPU!$A:$A,'11_SaoDesiderio'!$C38,CPU!$H:$H,"ss")+SUMIFS(CPU!$G:$G,CPU!$A:$A,'11_SaoDesiderio'!$C38,CPU!$H:$H,"mdo")+SUMIF('Comp SINAPI DF 09-2025 Onerado'!B:B,'11_SaoDesiderio'!C38,'Comp SINAPI DF 09-2025 Onerado'!E:E)+SUMIF('Ins SINAPI DF 09-2025 Onerado'!B:B,'11_SaoDesiderio'!C38,'Ins SINAPI DF 09-2025 Onerado'!F:F)),2) -> 38768.32 | H38: 47766.44 | I38: =TRUNC(F38*H38,2) -> 47766.44
A39: 2.1.5 | B39: PRÓPRIA | C39: CPU.16 | D39: =VLOOKUP(C39,CPU!$B$29:$G$4939,2,0) -> Estudo de Estabilidade e Análise do controle de percolação e da distribuição das subpressões na fundação - Barragem de Concreto | E39: =(VLOOKUP(C39,CPU!$B$10:D$4939,3,0)) -> un | F39: 1 | G39: =TRUNC((1-$H$10)*(SUMIFS(CPU!$G:$G,CPU!$A:$A,'11_SaoDesiderio'!$C39,CPU!$H:$H,"ss")+SUMIFS(CPU!$G:$G,CPU!$A:$A,'11_SaoDesiderio'!$C39,CPU!$H:$H,"mdo")+SUMIF('Comp SINAPI DF 09-2025 Onerado'!B:B,'11_SaoDesiderio'!C39,'Comp SINAPI DF 09-2025 Onerado'!E:E)+SUMIF('Ins SINAPI DF 09-2025 Onerado'!B:B,'11_SaoDesiderio'!C39,'Ins SINAPI DF 09-2025 Onerado'!F:F)),2) -> 23455.12 | H39: =TRUNC(G39*(1+$H$5),2) -> 28899.05 | I39: =TRUNC(F39*H39,2) -> 28899.05
A40: 2.1.6 | B40: PRÓPRIA | C40: CPU.33 | D40: =VLOOKUP(C40,CPU!$B$29:$G$4939,2,0) -> Relatório de Avaliação de Estruturas de Concreto | E40: un | F40: 1 | G40: =TRUNC((1-$H$10)*(SUMIFS(CPU!$G:$G,CPU!$A:$A,'11_SaoDesiderio'!$C40,CPU!$H:$H,"ss")+SUMIFS(CPU!$G:$G,CPU!$A:$A,'11_SaoDesiderio'!$C40,CPU!$H:$H,"mdo")+SUMIF('Comp SINAPI DF 09-2025 Onerado'!B:B,'11_SaoDesiderio'!C40,'Comp SINAPI DF 09-2025 Onerado'!E:E)+SUMIF('Ins SINAPI DF 09-2025 Onerado'!B:B,'11_SaoDesiderio'!C40,'Ins SINAPI DF 09-2025 Onerado'!F:F)),2) -> 6010.8 | H40: =TRUNC(G40*(1+$H$5),2) -> 7405.9 | I40: =TRUNC(F40*H40,2) -> 7405.9
A41: 2.1.7 | B41: PRÓPRIA | C41: CPU.40 | D41: =VLOOKUP(C41,CPU!$B$29:$G$4939,2,0) -> Relatório Topográfico e Tratamento de Dados | E41: un | F41: 1 | G41: =TRUNC((1-$H$10)*(SUMIFS(CPU!$G:$G,CPU!$A:$A,'11_SaoDesiderio'!$C41,CPU!$H:$H,"ss")+SUMIFS(CPU!$G:$G,CPU!$A:$A,'11_SaoDesiderio'!$C41,CPU!$H:$H,"mdo")+SUMIF('Comp SINAPI DF 09-2025 Onerado'!B:B,'11_SaoDesiderio'!C41,'Comp SINAPI DF 09-2025 Onerado'!E:E)+SUMIF('Ins SINAPI DF 09-2025 Onerado'!B:B,'11_SaoDesiderio'!C41,'Ins SINAPI DF 09-2025 Onerado'!F:F)),2) -> 8514.52 | H41: 10490.74 | I41: 10490.74
A42: 2.1.8 | B42: PRÓPRIA | C42: CPU.43 | D42: =VLOOKUP(C42,CPU!$B$29:$G$4939,2,0) -> Relatório de Levantamento Batimétrico e Tratamento de Dados | E42: un | F42: 1 | G42: =TRUNC((1-$H$10)*(SUMIFS(CPU!$G:$G,CPU!$A:$A,'11_SaoDesiderio'!$C42,CPU!$H:$H,"ss")+SUMIFS(CPU!$G:$G,CPU!$A:$A,'11_SaoDesiderio'!$C42,CPU!$H:$H,"mdo")+SUMIF('Comp SINAPI DF 09-2025 Onerado'!B:B,'11_SaoDesiderio'!C42,'Comp SINAPI DF 09-2025 Onerado'!E:E)+SUMIF('Ins SINAPI DF 09-2025 Onerado'!B:B,'11_SaoDesiderio'!C42,'Ins SINAPI DF 09-2025 Onerado'!F:F)),2) -> 8514.52 | H42: 10490.74 | I42: 10490.74
A43: 3 | D43: ETAPA 3 | I43: =SUM(I44,I47,I55) -> 372432.11
A44: 3.1 | D44: PROJETOS | I44: =SUM(I45:I46) -> 91058.79
A45: 3.1.1 | B45: PRÓPRIA | C45: CPU.18 | D45: =VLOOKUP(C45,CPU!B42:G133,2,0) -> Projeto de Instrumentação | E45: =(VLOOKUP(C45,CPU!$B$10:D$142,3,0)) -> un | F45: 1 | G45: =TRUNC((1-$H$10)*(SUMIFS(CPU!$G:$G,CPU!$A:$A,'11_SaoDesiderio'!$C45,CPU!$H:$H,"ss")+SUMIFS(CPU!$G:$G,CPU!$A:$A,'11_SaoDesiderio'!$C45,CPU!$H:$H,"mdo")+SUMIF('Comp SINAPI DF 09-2025 Onerado'!B:B,'11_SaoDesiderio'!C45,'Comp SINAPI DF 09-2025 Onerado'!E:E)+SUMIF('Ins SINAPI DF 09-2025 Onerado'!B:B,'11_SaoDesiderio'!C45,'Ins SINAPI DF 09-2025 Onerado'!F:F)),2) -> 29283.76 | H45: =TRUNC(G45*(1+$H$5),2) -> 36080.52 | I45: =TRUNC(F45*H45,2) -> 36080.52
A46: 3.1.2 | B46: PRÓPRIA | C46: CPU.20 | D46: =VLOOKUP(C46,CPU!B42:G138,2,0) -> Projeto Geométrico (AS IS) | E46: =(VLOOKUP(C46,CPU!$B$10:D$142,3,0)) -> un | F46: 1 | G46: =TRUNC((1-$H$10)*(SUMIFS(CPU!$G:$G,CPU!$A:$A,'11_SaoDesiderio'!$C46,CPU!$H:$H,"ss")+SUMIFS(CPU!$G:$G,CPU!$A:$A,'11_SaoDesiderio'!$C46,CPU!$H:$H,"mdo")+SUMIF('Comp SINAPI DF 09-2025 Onerado'!B:B,'11_SaoDesiderio'!C46,'Comp SINAPI DF 09-2025 Onerado'!E:E)+SUMIF('Ins SINAPI DF 09-2025 Onerado'!B:B,'11_SaoDesiderio'!C46,'Ins SINAPI DF 09-2025 Onerado'!F:F)),2) -> 44621.6 | H46: =TRUNC(G46*(1+$H$5),2) -> 54978.27 | I46: =TRUNC(F46*H46,2) -> 54978.27
A47: 3.2 | D47: PLANO DE SEGURANÇA DE BARRAGENS | I47: =SUM(I48:I54) -> 181035.5
A48: 3.2.1 | B48: PRÓPRIA | C48: CPU.34 | D48: =VLOOKUP(C48,CPU!B36:G4933,2,0) -> Volume I - Informações Gerais | E48: =(VLOOKUP(C48,CPU!$B$10:D$4896,3,0)) -> un | F48: 1 | G48: =TRUNC((1-$H$10)*(SUMIFS(CPU!$G:$G,CPU!$A:$A,'11_SaoDesiderio'!$C48,CPU!$H:$H,"ss")+SUMIFS(CPU!$G:$G,CPU!$A:$A,'11_SaoDesiderio'!$C48,CPU!$H:$H,"mdo")+SUMIF('Comp SINAPI DF 09-2025 Onerado'!B:B,'11_SaoDesiderio'!C48,'Comp SINAPI DF 09-2025 Onerado'!E:E)+SUMIF('Ins SINAPI DF 09-2025 Onerado'!B:B,'11_SaoDesiderio'!C48,'Ins SINAPI DF 09-2025 Onerado'!F:F)),2) -> 15330.6 | H48: =TRUNC(G48*(1+$H$5),2) -> 18888.83 | I48: =TRUNC(F48*H48,2) -> 18888.83
A49: 3.2.2 | B49: PRÓPRIA | C49: CPU.35 | D49: =VLOOKUP(C49,CPU!B37:G4934,2,0) -> Volume II - Documentação Técnica | E49: =(VLOOKUP(C49,CPU!$B$10:D$4896,3,0)) -> un | F49: 1 | G49: =TRUNC((1-$H$10)*(SUMIFS(CPU!$G:$G,CPU!$A:$A,'11_SaoDesiderio'!$C49,CPU!$H:$H,"ss")+SUMIFS(CPU!$G:$G,CPU!$A:$A,'11_SaoDesiderio'!$C49,CPU!$H:$H,"mdo")+SUMIF('Comp SINAPI DF 09-2025 Onerado'!B:B,'11_SaoDesiderio'!C49,'Comp SINAPI DF 09-2025 Onerado'!E:E)+SUMIF('Ins SINAPI DF 09-2025 Onerado'!B:B,'11_SaoDesiderio'!C49,'Ins SINAPI DF 09-2025 Onerado'!F:F)),2) -> 15751.56 | H49: 19407.49 | I49: 19407.49
A50: 3.2.3 | B50: PRÓPRIA | C50: CPU.36 | D50: =VLOOKUP(C50,CPU!B38:G4935,2,0) -> Volume III - Planos e Procedimentos | E50: =(VLOOKUP(C50,CPU!$B$10:D$4896,3,0)) -> un | F50: 1 | G50: =TRUNC((1-$H$10)*(SUMIFS(CPU!$G:$G,CPU!$A:$A,'11_SaoDesiderio'!$C50,CPU!$H:$H,"ss")+SUMIFS(CPU!$G:$G,CPU!$A:$A,'11_SaoDesiderio'!$C50,CPU!$H:$H,"mdo")+SUMIF('Comp SINAPI DF 09-2025 Onerado'!B:B,'11_SaoDesiderio'!C50,'Comp SINAPI DF 09-2025 Onerado'!E:E)+SUMIF('Ins SINAPI DF 09-2025 Onerado'!B:B,'11_SaoDesiderio'!C50,'Ins SINAPI DF 09-2025 Onerado'!F:F)),2) -> 15751.56 | H50: 19407.49 | I50: 19407.49
A51: 3.2.4 | B51: PRÓPRIA | C51: CPU.37 | D51: =VLOOKUP(C51,CPU!B39:G4936,2,0) -> Volume IV - Registros e Controles | E51: =(VLOOKUP(C51,CPU!$B$10:D$4896,3,0)) -> un | F51: 1 | G51: =TRUNC((1-$H$10)*(SUMIFS(CPU!$G:$G,CPU!$A:$A,'11_SaoDesiderio'!$C51,CPU!$H:$H,"ss")+SUMIFS(CPU!$G:$G,CPU!$A:$A,'11_SaoDesiderio'!$C51,CPU!$H:$H,"mdo")+SUMIF('Comp SINAPI DF 09-2025 Onerado'!B:B,'11_SaoDesiderio'!C51,'Comp SINAPI DF 09-2025 Onerado'!E:E)+SUMIF('Ins SINAPI DF 09-2025 Onerado'!B:B,'11_SaoDesiderio'!C51,'Ins SINAPI DF 09-2025 Onerado'!F:F)),2) -> 15751.56 | H51: 19407.49 | I51: 19407.49
A52: 3.2.5 | B52: PRÓPRIA | C52: CPU.38 | D52: =VLOOKUP(C52,CPU!B40:G4937,2,0) -> Volume V - Revisão Periódica de Segurança de Barragem | E52: =(VLOOKUP(C52,CPU!$B$10:D$4896,3,0)) -> un | F52: 1 | G52: =TRUNC((1-$H$10)*(SUMIFS(CPU!$G:$G,CPU!$A:$A,'11_SaoDesiderio'!$C52,CPU!$H:$H,"ss")+SUMIFS(CPU!$G:$G,CPU!$A:$A,'11_SaoDesiderio'!$C52,CPU!$H:$H,"mdo")+SUMIF('Comp SINAPI DF 09-2025 Onerado'!B:B,'11_SaoDesiderio'!C52,'Comp SINAPI DF 09-2025 Onerado'!E:E)+SUMIF('Ins SINAPI DF 09-2025 Onerado'!B:B,'11_SaoDesiderio'!C52,'Ins SINAPI DF 09-2025 Onerado'!F:F)),2) -> 27410.88 | H52: 33772.94 | I52: 33772.94
A53: 3.2.6 | B53: PRÓPRIA | C53: CPU.39 | D53: =VLOOKUP(C53,CPU!B41:G4938,2,0) -> Volume V - A - Resumo Executivo | E53: =(VLOOKUP(C53,CPU!$B$10:D$4896,3,0)) -> un | F53: 1 | G53: =TRUNC((1-$H$10)*(SUMIFS(CPU!$G:$G,CPU!$A:$A,'11_SaoDesiderio'!$C53,CPU!$H:$H,"ss")+SUMIFS(CPU!$G:$G,CPU!$A:$A,'11_SaoDesiderio'!$C53,CPU!$H:$H,"mdo")+SUMIF('Comp SINAPI DF 09-2025 Onerado'!B:B,'11_SaoDesiderio'!C53,'Comp SINAPI DF 09-2025 Onerado'!E:E)+SUMIF('Ins SINAPI DF 09-2025 Onerado'!B:B,'11_SaoDesiderio'!C53,'Ins SINAPI DF 09-2025 Onerado'!F:F)),2) -> 24473.94 | H53: 30154.34 | I53: 30154.34
A54: 3.2.7 | B54: PRÓPRIA | C54: CPU.41 | D54: =VLOOKUP(C54,CPU!B42:G4897,2,0) -> Volume VI - Plano de Ação de Emergência | E54: =(VLOOKUP(C54,CPU!$B$10:D$4896,3,0)) -> un | F54: 1 | G54: =TRUNC((1-$H$10)*(SUMIFS(CPU!$G:$G,CPU!$A:$A,'11_SaoDesiderio'!$C54,CPU!$H:$H,"ss")+SUMIFS(CPU!$G:$G,CPU!$A:$A,'11_SaoDesiderio'!$C54,CPU!$H:$H,"mdo")+SUMIF('Comp SINAPI DF 09-2025 Onerado'!B:B,'11_SaoDesiderio'!C54,'Comp SINAPI DF 09-2025 Onerado'!E:E)+SUMIF('Ins SINAPI DF 09-2025 Onerado'!B:B,'11_SaoDesiderio'!C54,'Ins SINAPI DF 09-2025 Onerado'!F:F)),2) -> 32462.4 | H54: =TRUNC(G54*(1+$H$5),2) -> 39996.92 | I54: =TRUNC(F54*H54,2) -> 39996.92
A55: 3.3 | D55: PLANO DE AÇÃO DE EMERGÊNCIA | I55: =SUM(I56:I58) -> 100337.82
A56: 3.3.1 | B56: PRÓPRIA | C56: CPU.24 | D56: =VLOOKUP(C56,CPU!B42:G4895,2,0) -> Projeto de sinalização | E56: =(VLOOKUP(C56,CPU!$B$10:D$4896,3,0)) -> un | F56: 1 | G56: =TRUNC((1-$H$10)*(SUMIFS(CPU!$G:$G,CPU!$A:$A,'11_SaoDesiderio'!$C56,CPU!$H:$H,"ss")+SUMIFS(CPU!$G:$G,CPU!$A:$A,'11_SaoDesiderio'!$C56,CPU!$H:$H,"mdo")+SUMIF('Comp SINAPI DF 09-2025 Onerado'!B:B,'11_SaoDesiderio'!C56,'Comp SINAPI DF 09-2025 Onerado'!E:E)+SUMIF('Ins SINAPI DF 09-2025 Onerado'!B:B,'11_SaoDesiderio'!C56,'Ins SINAPI DF 09-2025 Onerado'!F:F)),2) -> 27232.12 | H56: =TRUNC(G56*(1+$H$5),2) -> 33552.69 | I56: =TRUNC(F56*H56,2) -> 33552.69
A57: 3.3.2 | B57: PRÓPRIA | C57: CPU.25 | D57: =VLOOKUP(C57,CPU!B42:G4896,2,0) -> Projeto de rotas de fuga | E57: =(VLOOKUP(C57,CPU!$B$10:D$4896,3,0)) -> un | F57: 1 | G57: =TRUNC((1-$H$10)*(SUMIFS(CPU!$G:$G,CPU!$A:$A,'11_SaoDesiderio'!$C57,CPU!$H:$H,"ss")+SUMIFS(CPU!$G:$G,CPU!$A:$A,'11_SaoDesiderio'!$C57,CPU!$H:$H,"mdo")+SUMIF('Comp SINAPI DF 09-2025 Onerado'!B:B,'11_SaoDesiderio'!C57,'Comp SINAPI DF 09-2025 Onerado'!E:E)+SUMIF('Ins SINAPI DF 09-2025 Onerado'!B:B,'11_SaoDesiderio'!C57,'Ins SINAPI DF 09-2025 Onerado'!F:F)),2) -> 30599.8 | H57: =TRUNC(G57*(1+$H$5),2) -> 37702.01 | I57: =TRUNC(F57*H57,2) -> 37702.01
A58: 3.3.3 | B58: PRÓPRIA | C58: CPU.32 | D58: =VLOOKUP(C58,CPU!B43:G4898,2,0) -> Projeto de sistema sonoro | E58: =(VLOOKUP(C58,CPU!$B$10:D$4896,3,0)) -> un | F58: 1 | G58: =TRUNC((1-$H$10)*(SUMIFS(CPU!$G:$G,CPU!$A:$A,'11_SaoDesiderio'!$C58,CPU!$H:$H,"ss")+SUMIFS(CPU!$G:$G,CPU!$A:$A,'11_SaoDesiderio'!$C58,CPU!$H:$H,"mdo")+SUMIF('Comp SINAPI DF 09-2025 Onerado'!B:B,'11_SaoDesiderio'!C58,'Comp SINAPI DF 09-2025 Onerado'!E:E)+SUMIF('Ins SINAPI DF 09-2025 Onerado'!B:B,'11_SaoDesiderio'!C58,'Ins SINAPI DF 09-2025 Onerado'!F:F)),2) -> 23604.52 | H58: =TRUNC(G58*(1+$H$5),2) -> 29083.12 | I58: =TRUNC(F58*H58,2) -> 29083.12
D59: TOTAL (Custo): | I59: =TRUNC(SUMPRODUCT(F14:F58,G14:G58),2) -> 727197.99
D60: BDI e Encargos Sociais: | I60: =I61-I59 -> 168673.58
D61: TOTAL GERAL COM BDI: | I61: =SUM(I43,I33,I13) -> 895871.57 | P61: =TRUNC(SUMPRODUCT(F14:F58,H14:H58),2) -> 895871.57

Sheet 12_Itapicuru
A1: Ministério da Integração e do Desenvolvimento Regional
A2: Companhia de Desenvolvimento dos Vales do São Francisco e do Parnaíba
A4: PLANILHA ORÇAMENTÁRIA - ORÇAMENTO NÃO DESONERADO
A5: OBRA: | B5: =Resumo!B5 -> Elaboração de Plano de Segurança de Barragens | G5: BDI (serv.): | H5: ='BDI serv'!D23 -> 0.2321 | I5: Bancos de dados:
A6: LOCAL: | B6: Feira Grande, AL | G6: BDI (forn.): | H6: ='BDI forn'!D23 -> 0 | I6: =Resumo!G6 -> SETEMBRO/25 - SINAPI
A7: DATA BASE: | B7: 2025-10-01 | E7: Encargos sociais - Horistas: | H7: ='Encargos Sociais DF'!E49 -> 1.1011 | I7: =Resumo!G7 -> SIURB INFRA JAN/2025
A8: PRAZO: | B8: =Resumo!B8 -> 300 dias | E8: Encargos sociais - Mensalista: | H8: ='Encargos Sociais DF'!F49 -> 0.7019 | I8: =Resumo!G8 -> JAN/25 E JUL/2025- SETOP
I9: =Resumo!G9 -> JUNHO/25 - EMBASA
B10: Itapicuru | G10: Desconto: | H10: 0 | I10: =Resumo!G10 -> JUL/2025 - CONSULT. DNIT
A11: ITEM | B11: REFERÊNCIA | D11: DESCRIÇÃO | E11: UNID. | F11: QUANT. | G11: CUSTO UNITÁRIO | H11: PREÇO UNITÁRIO | I11: PREÇO TOTAL
B12: FONTE | C12: CÓDIGO
A13: 1 | D13: ='1_Bico da Pedra'!D13 -> ETAPA 1 | I13: =SUM(I14,I16,I34,I37,I40) -> 248481.36
A14: 1.1 | D14: Visita Técnica | I14: =SUM(I15:I15) -> 55532.37
A15: 1.1.1 | B15: PRÓPRIA | C15: CPU.09 | D15: =VLOOKUP(C15,CPU!B29:G75,2,0) -> Inspeção Visual da Estrutura (Multidisciplinar) e elaboração de relatório | E15: =(VLOOKUP(C15,CPU!$B$10:D$142,3,0)) -> un | F15: 1 | G15: =TRUNC((1-$H$10)*(SUMIFS(CPU!$G:$G,CPU!$A:$A,'12_Itapicuru'!$C15,CPU!$H:$H,"ss")+SUMIFS(CPU!$G:$G,CPU!$A:$A,'12_Itapicuru'!$C15,CPU!$H:$H,"mdo")+SUMIF('Comp SINAPI DF 09-2025 Onerado'!B:B,'12_Itapicuru'!C15,'Comp SINAPI DF 09-2025 Onerado'!E:E)+SUMIF('Ins SINAPI DF 09-2025 Onerado'!B:B,'12_Itapicuru'!C15,'Ins SINAPI DF 09-2025 Onerado'!F:F)),2) -> 45071.32 | H15: =TRUNC(G15*(1+$H$5),2) -> 55532.37 | I15: =TRUNC(F15*H15,2) -> 55532.37
A16: 1.2 | D16: INVESTIGAÇÃO GEOLÓGICA E GEOTÉCNICA | I16: =SUM(I17:I33) -> 83666.44
A17: 1.2.1 | B17: SETOP | C17: CO-28389 | D17: Mobilização e desmobilização de equipamento de sondagem a percussão com Ensaio de Penetração Padrão (SPT) (custo variável), exclusive custo fixo | E17: km | F17: ='Memorial de cálculo'!X14*2 -> 296 | G17: =TRUNC((1-$H$10)*J17,2) -> 2.04 | H17: =TRUNC(G17*(1+$H$5),2) -> 2.51 | I17: =TRUNC(F17*H17,2) -> 742.96 | J17: =VLOOKUP(C17,'OUTRAS BASES'!B:C,2,0) -> 2.04
A18: 1.2.2 | B18: SETOP | C18: CO-28388 | D18: Sondagem a percussão com Ensaio de Penetração Padrão (SPT), diâmetro 2.1/2", exclusive mobilização e desmobilização | E18: m | F18: =ROUNDUP('Pontos de Sondagem'!E431,0) -> 51 | G18: =TRUNC((1-$H$10)*J18,2) -> 79.09 | H18: =TRUNC(G18*(1+$H$5),2) -> 97.44 | I18: =TRUNC(F18*H18,2) -> 4969.44 | J18: =VLOOKUP(C18,'OUTRAS BASES'!B:C,2,0) -> 79.09
A19: 1.2.3 | B19: EMBASA | C19: 32.05.04 | D19: Mobilização e desmobilização de equipe e equipamentos para sondagem rotativa ou mista | E19: km | F19: =F17 -> 296 | G19: =TRUNC((1-$H$10)*J19,2) -> 5.16 | H19: 6.35 | I19: 1879.6 | J19: =VLOOKUP(C19,'OUTRAS BASES'!B:C,2,0) -> 5.16 | L19: c | M19: 1.5
A20: 1.2.4 | B20: SCO | C20: AD 05.15.0400 | D20: Sondagem rotativa vertical, em rocha sa, com coroa de diamante, diametro H (99mm), inclusive deslocamento e posicionamento em cada furo. | E20: m | F20: =ROUNDUP('Pontos de Sondagem'!G431,0) -> 16 | G20: =TRUNC((1-$H$10)*J20,2) -> 1422.4 | H20: =TRUNC(G20*(1+$H$5),2) -> 1752.53 | I20: =TRUNC(F20*H20,2) -> 28040.48 | J20: =VLOOKUP(C20,'OUTRAS BASES'!B:C,2,0) -> 1422.4 | L20: d | M20: =99/1000 -> 0.099
A21: 1.2.5 | B21: SICRO3 | C21: 3816196 | D21: Fechamento dos Furos - Injeção de nata de cimento | E21: m³ | F21: =ROUNDUP(M24,0) -> 1 | G21: =TRUNC((1-$H$10)*J21,2) -> 1012.78 | H21: 1247.84 | I21: =TRUNC(F21*H21,2) -> 1247.84 | J21: =VLOOKUP(C21,'OUTRAS BASES'!B:C,2,0) -> 1012.78 | L21: A | M21: =PI()*(M20*M20)/4 -> 0.007697687399
A22: 1.2.6 | B22: PRÓPRIA | C22: CPU.45 | D22: =VLOOKUP(C22,CPU!$B$29:$G$4941,2,0) -> Mobilização e Desmobilização de Equipe de retirada de amostra deformada e indeformada | E22: =(VLOOKUP(C22,CPU!$B$10:D$4935,3,0)) -> km | F22: =F17 -> 296 | G22: =TRUNC((1-$H$10)*(SUMIFS(CPU!$G:$G,CPU!$A:$A,'12_Itapicuru'!$C22,CPU!$H:$H,"ss")+SUMIFS(CPU!$G:$G,CPU!$A:$A,'12_Itapicuru'!$C22,CPU!$H:$H,"mdo")+SUMIF('Comp SINAPI DF 09-2025 Onerado'!B:B,'12_Itapicuru'!C22,'Comp SINAPI DF 09-2025 Onerado'!E:E)+SUMIF('Ins SINAPI DF 09-2025 Onerado'!B:B,'12_Itapicuru'!C22,'Ins SINAPI DF 09-2025 Onerado'!F:F)),2) -> 2.04 | H22: 2.51 | I22: =TRUNC(F22*H22,2) -> 742.96
A23: 1.2.7 | B23: EMBASA | C23: 34.04.07 | D23: Retirada de amostra deformada | E23: un | F23: =F24 -> 2 | G23: =TRUNC((1-$H$10)*J23,2) -> 105.24 | H23: =TRUNC(G23*(1+$H$5),2) -> 129.66 | I23: =TRUNC(F23*H23,2) -> 259.32 | J23: =VLOOKUP(C23,'OUTRAS BASES'!B:C,2,0) -> 105.24
A24: 1.2.8 | B24: SUDECAP | C24: 65.08.22 | D24: Retirada de amostra indeformada em blocos 30X30X30CM (NBR 9604:2016), Profundidade = 1 a 2 m | E24: =(VLOOKUP(C24,CPU!$B$10:D$142,3,0)) -> un | F24: 2 | G24: =TRUNC((1-$H$10)*J24,2) -> 1800 | H24: 2217.78 | I24: 4435.56 | J24: =VLOOKUP(C24,'OUTRAS BASES'!B:C,2,0) -> 1800 | L24: V | M24: =M21*(F18+F20)*M19 -> 0.7736175836
A25: 1.2.9 | B25: PRÓPRIA | C25: CPU.23 | D25: =VLOOKUP(C25,CPU!$B$29:$G$235,2,0) -> Reaterro com compactação adequada dos pontos de coleta de amostra, Inclusive com fornecimento de solo | E25: m³ | F25: =ROUNDUP(1.5*1.5*1.5*F24,0) -> 7 | G25: =TRUNC((1-$H$10)*(SUMIFS(CPU!$G:$G,CPU!$A:$A,'12_Itapicuru'!$C25,CPU!$H:$H,"ss")+SUMIFS(CPU!$G:$G,CPU!$A:$A,'12_Itapicuru'!$C25,CPU!$H:$H,"mdo")+SUMIF('Comp SINAPI DF 09-2025 Onerado'!B:B,'12_Itapicuru'!C25,'Comp SINAPI DF 09-2025 Onerado'!E:E)+SUMIF('Ins SINAPI DF 09-2025 Onerado'!B:B,'12_Itapicuru'!C25,'Ins SINAPI DF 09-2025 Onerado'!F:F)),2) -> 79.02 | H25: =TRUNC(G25*(1+$H$5),2) -> 97.36 | I25: =TRUNC(F25*H25,2) -> 681.52
A26: 1.2.10 | B26: SETOP | C26: CO-6334 | D26: Granulometria por peneiramento e sedimentação | E26: =(VLOOKUP(C26,CPU!$B$10:D$142,3,0)) -> un | F26: 2 | G26: =TRUNC((1-$H$10)*J26,2) -> 247.24 | H26: 304.62 | I26: 609.24 | J26: =VLOOKUP(C26,'OUTRAS BASES'!B:C,2,0) -> 247.24
A27: 1.2.11 | B27: SUDECAP | C27: 67.01.30 | D27: Compressão Triaxial Lento Saturado (CD) mínimo 3 corpos de prova | E27: =(VLOOKUP(C27,CPU!$B$10:D$142,3,0)) -> un | F27: 6 | G27: =TRUNC((1-$H$10)*J27,2) -> 1140.54 | H27: 1405.25 | I27: 8431.5 | J27: =VLOOKUP(C27,'OUTRAS BASES'!B:C,2,0) -> 1140.54
A28: 1.2.12 | B28: SUDECAP | C28: 67.01.28 | D28: Compressão Triaxial rápido pre-adensado saturado (R-SAT/CIU-SAT) c/ medidas pressão neutra mínimo 3 corpos de prova | E28: =(VLOOKUP(C28,CPU!$B$10:D$142,3,0)) -> un | F28: 3 | G28: =TRUNC((1-$H$10)*J28,2) -> 5250 | H28: =TRUNC(G28*(1+$H$5),2) -> 6468.52 | I28: 19405.56 | J28: =VLOOKUP(C28,'OUTRAS BASES'!B:C,2,0) -> 5250
A29: 1.2.13 | B29: SCO | C29: AD 04.05.0300 | D29: Ensaio para determinacao, em laboratorio, do Limite de Plasticidade de amostra de solo fino, de acordo com as recomendacoes da NBR7180 e da NBR6457.(desonerado) | E29: =(VLOOKUP(C29,CPU!$B$10:D$142,3,0)) -> un | F29: =F26 -> 2 | G29: =TRUNC((1-$H$10)*J29,2) -> 161.92 | H29: =TRUNC(G29*(1+$H$5),2) -> 199.5 | I29: =TRUNC(F29*H29,2) -> 399 | J29: =VLOOKUP(C29,'OUTRAS BASES'!B:C,2,0) -> 161.92
A30: 1.2.14 | B30: SCO | C30: AD 04.05.0250 | D30: Ensaio para determinacao, em laboratorio, do Limite de Liquidez de amostra de solo fino, de acordo com as recomendacoes da NBR7180 e da NBR6457.(desonerado) | E30: =(VLOOKUP(C30,CPU!$B$10:D$142,3,0)) -> um | F30: =F26 -> 2 | G30: =TRUNC((1-$H$10)*J30,2) -> 161.92 | H30: =TRUNC(G30*(1+$H$5),2) -> 199.5 | I30: =TRUNC(F30*H30,2) -> 399 | J30: =VLOOKUP(C30,'OUTRAS BASES'!B:C,2,0) -> 161.92
A31: 1.2.15 | B31: SETOP | C31: CO-6358 | D31: Determinação do coeficiente de permeabilidade de solos argilosos à carga variável | E31: =(VLOOKUP(C31,CPU!$B$10:D$142,3,0)) -> un | F31: 6 | G31: 589.03 | H31: 725.74 | I31: 4354.44 | J31: =VLOOKUP(C31,'OUTRAS BASES'!B:C,2,0) -> 589.03
A32: 1.2.16 | B32: PRÓPRIA | C32: CPU.04 | D32: =VLOOKUP(C32,CPU!$B$29:$G$235,2,0) -> Avaliação da espessura de carbonatação, por ponto, em estruturas de concreto armado ou protendido, através de aspersão de solução de fenolftaleína, inclusive coleta da amostra | E32: =(VLOOKUP(C32,CPU!$B$10:D$142,3,0)) -> un | F32: 4 | G32: =TRUNC((1-$H$10)*(SUMIFS(CPU!$G:$G,CPU!$A:$A,'12_Itapicuru'!$C32,CPU!$H:$H,"ss")+SUMIFS(CPU!$G:$G,CPU!$A:$A,'12_Itapicuru'!$C32,CPU!$H:$H,"mdo")+SUMIF('Comp SINAPI DF 09-2025 Onerado'!B:B,'12_Itapicuru'!C32,'Comp SINAPI DF 09-2025 Onerado'!E:E)+SUMIF('Ins SINAPI DF 09-2025 Onerado'!B:B,'12_Itapicuru'!C32,'Ins SINAPI DF 09-2025 Onerado'!F:F)),2) -> 470.15 | H32: 579.27 | I32: 2317.08
A33: 1.2.17 | B33: PRÓPRIA | C33: CPU.05 | D33: =VLOOKUP(C33,CPU!$B$29:$G$235,2,0) -> Ensaio de esclerometria em 10 pontos com 16 tiros por ponto | E33: =(VLOOKUP(C33,CPU!$B$10:D$142,3,0)) -> un | F33: 2 | G33: =TRUNC((1-$H$10)*(SUMIFS(CPU!$G:$G,CPU!$A:$A,'12_Itapicuru'!$C33,CPU!$H:$H,"ss")+SUMIFS(CPU!$G:$G,CPU!$A:$A,'12_Itapicuru'!$C33,CPU!$H:$H,"mdo")+SUMIF('Comp SINAPI DF 09-2025 Onerado'!B:B,'12_Itapicuru'!C33,'Comp SINAPI DF 09-2025 Onerado'!E:E)+SUMIF('Ins SINAPI DF 09-2025 Onerado'!B:B,'12_Itapicuru'!C33,'Ins SINAPI DF 09-2025 Onerado'!F:F)),2) -> 1927.99 | H33: 2375.47 | I33: 4750.94
A34: 1.3 | D34: Levantamento Topográfico | I34: =SUM(I35:I36) -> 13325.6
A35: 1.3.1 | B35: PRÓPRIA | C35: CPU.28 | D35: =VLOOKUP(C35,CPU!B29:G408,2,0) -> Mobilização e Desmobilização de Equipe de Levantamento topográfico | E35: =(VLOOKUP(C35,CPU!$B$10:D$19919,3,0)) -> un | F35: 1 | G35: =TRUNC((1-$H$10)*(SUMIFS(CPU!$G:$G,CPU!$A:$A,'12_Itapicuru'!$C35,CPU!$H:$H,"ss")+SUMIFS(CPU!$G:$G,CPU!$A:$A,'12_Itapicuru'!$C35,CPU!$H:$H,"mdo")+SUMIF('Comp SINAPI DF 09-2025 Onerado'!B:B,'12_Itapicuru'!C35,'Comp SINAPI DF 09-2025 Onerado'!E:E)+SUMIF('Ins SINAPI DF 09-2025 Onerado'!B:B,'12_Itapicuru'!C35,'Ins SINAPI DF 09-2025 Onerado'!F:F)),2) -> 7747.32 | H35: =TRUNC(G35*(1+$H$5),2) -> 9545.47 | I35: =TRUNC(F35*H35,2) -> 9545.47
A36: 1.3.2 | B36: SETOP | C36: CO-27363 | D36: Levantamento planialtimétrico e cadastral terreno de 2.001 a 10.000 m² | E36: un | F36: 1 | G36: =TRUNC((1-$H$10)*J36,2) -> 3068.04 | H36: =TRUNC(G36*(1+$H$5),2) -> 3780.13 | I36: =TRUNC(F36*H36,2) -> 3780.13 | J36: =VLOOKUP(C36,'OUTRAS BASES'!B:C,2,0) -> 3068.04
A37: 1.4 | D37: Levantamento Batimétrico | I37: =SUM(I38:I39) -> 60248.21
A38: 1.4.1 | B38: EMBASA | C38: 31.90.12 | D38: Transporte de Equipe e Equipamentos para levantamento batimétrico com Ecobatímetro | E38: km | F38: =F17 -> 296 | G38: =TRUNC((1-$H$10)*J38,2) -> 6.68 | H38: =TRUNC(G38*(1+$H$5),2) -> 8.23 | I38: =TRUNC(F38*H38,2) -> 2436.08 | J38: =VLOOKUP(C38,'OUTRAS BASES'!B:C,2,0) -> 6.68
A39: 1.4.2 | B39: EMOP | C39: 01.016.0090-A | D39: Levantamento topográfico por batimetria, serviços de campo e escritório, com seções de levantamento equidistante de até 20 metros, inclusive transporte do pessoal, com área de até 10 ha (escala 1:500) 3% - desgaste de ferramentas e EPI | E39: ha | F39: =ROUNDUP('Memorial de cálculo'!X5,0) -> 9 | G39: =TRUNC((1-$H$10)*J39,2) -> 5213.52 | H39: =TRUNC(G39*(1+$H$5),2) -> 6423.57 | I39: =TRUNC(F39*H39,2) -> 57812.13 | J39: =VLOOKUP(C39,'OUTRAS BASES'!B:C,2,0) -> 5213.52
A40: 1.5 | D40: Levantamento Fotogramétrico | I40: =SUM(I41:I42) -> 35708.74
A41: 1.5.1 | B41: PRÓPRIA | C41: CPU.31 | D41: =VLOOKUP(C41,CPU!B29:G4921,2,0) -> Mobilização e Desmobilização de Equipe e Equipamentos de Levantamento Fotogramétrico | E41: =(VLOOKUP(C41,CPU!$B$10:D$210,3,0)) -> km | F41: =F38 -> 296 | G41: =TRUNC((1-$H$10)*J41,2) -> 7.74 | H41: =TRUNC(G41*(1+$H$5),2) -> 9.53 | I41: =TRUNC(F41*H41,2) -> 2820.88 | J41: 7.74
A42: 1.5.2 | B42: EMBASA | C42: 31.90.15 | D42: Levant. Fotogrametrico c/ VANT (drone) áreas pelo que exceder 1000 ha, incl. ortofotos, GSD<=3, acuracia horiz. min. 3 cm e vert. min. 6cm, aferidos c/ pontos de controle dist. min. 650 m entre eles,exclusive transporte de equipe e equipamentos | E42: ha | F42: ='Memorial de cálculo'!X27 -> 3394 | G42: =TRUNC((1-$H$10)*J42,2) -> 7.87 | H42: =TRUNC(G42*(1+$H$5),2) -> 9.69 | I42: =TRUNC(F42*H42,2) -> 32887.86 | J42: =VLOOKUP(C42,'OUTRAS BASES'!B:C,2,0) -> 7.87
A43: 2 | D43: ETAPA 2 | I43: =SUM(I44) -> 204334.33
A44: 2.1 | D44: ESTUDOS | I44: =SUM(I45:I53) -> 204334.33
A45: 2.1.1 | B45: PRÓPRIA | C45: CPU.10 | D45: =VLOOKUP(C45,CPU!$B$29:$G$142,2,0) -> Estudo Hidrológico e Hidráulico | E45: =(VLOOKUP(C45,CPU!$B$10:D$142,3,0)) -> un | F45: 1 | G45: =TRUNC((1-$H$10)*(SUMIFS(CPU!$G:$G,CPU!$A:$A,'12_Itapicuru'!$C45,CPU!$H:$H,"ss")+SUMIFS(CPU!$G:$G,CPU!$A:$A,'12_Itapicuru'!$C45,CPU!$H:$H,"mdo")+SUMIF('Comp SINAPI DF 09-2025 Onerado'!B:B,'12_Itapicuru'!C45,'Comp SINAPI DF 09-2025 Onerado'!E:E)+SUMIF('Ins SINAPI DF 09-2025 Onerado'!B:B,'12_Itapicuru'!C45,'Ins SINAPI DF 09-2025 Onerado'!F:F)),2) -> 39432.48 | H45: =TRUNC(G45*(1+$H$5),2) -> 48584.75 | I45: =TRUNC(F45*H45,2) -> 48584.75
A46: 2.1.2 | B46: PRÓPRIA | C46: CPU.11 | D46: =VLOOKUP(C46,CPU!B29:G88,2,0) -> Estudo Geológico-geotécnico | E46: =(VLOOKUP(C46,CPU!B29:D$142,3,0)) -> un | F46: 1 | G46: =TRUNC((1-$H$10)*(SUMIFS(CPU!$G:$G,CPU!$A:$A,'12_Itapicuru'!$C46,CPU!$H:$H,"ss")+SUMIFS(CPU!$G:$G,CPU!$A:$A,'12_Itapicuru'!$C46,CPU!$H:$H,"mdo")+SUMIF('Comp SINAPI DF 09-2025 Onerado'!B:B,'12_Itapicuru'!C46,'Comp SINAPI DF 09-2025 Onerado'!E:E)+SUMIF('Ins SINAPI DF 09-2025 Onerado'!B:B,'12_Itapicuru'!C46,'Ins SINAPI DF 09-2025 Onerado'!F:F)),2) -> 14328.22 | H46: =TRUNC(G46*(1+$H$5),2) -> 17653.79 | I46: 17653.79
A47: 2.1.3 | B47: PRÓPRIA | C47: CPU.12 | D47: =VLOOKUP(C47,CPU!B29:G146,2,0) -> Relatório Fotogramétricos e Tratamento de Dados | E47: =(VLOOKUP(C47,CPU!B29:D$142,3,0)) -> un | F47: 1 | G47: =TRUNC((1-$H$10)*(SUMIFS(CPU!$G:$G,CPU!$A:$A,'12_Itapicuru'!$C47,CPU!$H:$H,"ss")+SUMIFS(CPU!$G:$G,CPU!$A:$A,'12_Itapicuru'!$C47,CPU!$H:$H,"mdo")+SUMIF('Comp SINAPI DF 09-2025 Onerado'!B:B,'12_Itapicuru'!C47,'Comp SINAPI DF 09-2025 Onerado'!E:E)+SUMIF('Ins SINAPI DF 09-2025 Onerado'!B:B,'12_Itapicuru'!C47,'Ins SINAPI DF 09-2025 Onerado'!F:F)),2) -> 8785.99 | H47: 10825.21 | I47: 10825.21
A48: 2.1.4 | B48: PRÓPRIA | C48: CPU.13 | D48: =VLOOKUP(C48,CPU!$B$29:$G$142,2,0) -> Estudo de Ruputura e Mapas de Inundação | E48: =(VLOOKUP(C48,CPU!$B$10:D$142,3,0)) -> un | F48: 1 | G48: =TRUNC((1-$H$10)*(SUMIFS(CPU!$G:$G,CPU!$A:$A,'12_Itapicuru'!$C48,CPU!$H:$H,"ss")+SUMIFS(CPU!$G:$G,CPU!$A:$A,'12_Itapicuru'!$C48,CPU!$H:$H,"mdo")+SUMIF('Comp SINAPI DF 09-2025 Onerado'!B:B,'12_Itapicuru'!C48,'Comp SINAPI DF 09-2025 Onerado'!E:E)+SUMIF('Ins SINAPI DF 09-2025 Onerado'!B:B,'12_Itapicuru'!C48,'Ins SINAPI DF 09-2025 Onerado'!F:F)),2) -> 38768.32 | H48: 47766.44 | I48: 47766.44
A49: 2.1.5 | B49: PRÓPRIA | C49: CPU.14 | D49: =VLOOKUP(C49,CPU!$B$29:$G$159,2,0) -> Estudo de Estabilidade e Percolação - Barragem de Terra | E49: =(VLOOKUP(C49,CPU!$B$10:D$159,3,0)) -> un | F49: 1 | G49: =TRUNC((1-$H$10)*(SUMIFS(CPU!$G:$G,CPU!$A:$A,'12_Itapicuru'!$C49,CPU!$H:$H,"ss")+SUMIFS(CPU!$G:$G,CPU!$A:$A,'12_Itapicuru'!$C49,CPU!$H:$H,"mdo")+SUMIF('Comp SINAPI DF 09-2025 Onerado'!B:B,'12_Itapicuru'!C49,'Comp SINAPI DF 09-2025 Onerado'!E:E)+SUMIF('Ins SINAPI DF 09-2025 Onerado'!B:B,'12_Itapicuru'!C49,'Ins SINAPI DF 09-2025 Onerado'!F:F)),2) -> 35476.72 | H49: =TRUNC(G49*(1+$H$5),2) -> 43710.86 | I49: =TRUNC(F49*H49,2) -> 43710.86
A50: 2.1.6 | B50: PRÓPRIA | C50: CPU.33 | D50: =VLOOKUP(C50,CPU!$B$29:$G$4939,2,0) -> Relatório de Avaliação de Estruturas de Concreto | E50: =(VLOOKUP(C50,CPU!$B$10:D$4939,3,0)) -> un | F50: 1 | G50: =TRUNC((1-$H$10)*(SUMIFS(CPU!$G:$G,CPU!$A:$A,'12_Itapicuru'!$C50,CPU!$H:$H,"ss")+SUMIFS(CPU!$G:$G,CPU!$A:$A,'12_Itapicuru'!$C50,CPU!$H:$H,"mdo")+SUMIF('Comp SINAPI DF 09-2025 Onerado'!B:B,'12_Itapicuru'!C50,'Comp SINAPI DF 09-2025 Onerado'!E:E)+SUMIF('Ins SINAPI DF 09-2025 Onerado'!B:B,'12_Itapicuru'!C50,'Ins SINAPI DF 09-2025 Onerado'!F:F)),2) -> 6010.8 | H50: =TRUNC(G50*(1+$H$5),2) -> 7405.9 | I50: =TRUNC(F50*H50,2) -> 7405.9
A51: 2.1.7 | B51: PRÓPRIA | C51: CPU.40 | D51: =VLOOKUP(C51,CPU!$B$29:$G$4939,2,0) -> Relatório Topográfico e Tratamento de Dados | E51: =(VLOOKUP(C51,CPU!$B$10:D$4939,3,0)) -> un | F51: 1 | G51: =TRUNC((1-$H$10)*(SUMIFS(CPU!$G:$G,CPU!$A:$A,'12_Itapicuru'!$C51,CPU!$H:$H,"ss")+SUMIFS(CPU!$G:$G,CPU!$A:$A,'12_Itapicuru'!$C51,CPU!$H:$H,"mdo")+SUMIF('Comp SINAPI DF 09-2025 Onerado'!B:B,'12_Itapicuru'!C51,'Comp SINAPI DF 09-2025 Onerado'!E:E)+SUMIF('Ins SINAPI DF 09-2025 Onerado'!B:B,'12_Itapicuru'!C51,'Ins SINAPI DF 09-2025 Onerado'!F:F)),2) -> 8514.52 | H51: 10490.74 | I51: 10490.74
A52: 2.1.8 | B52: PRÓPRIA | C52: CPU.42 | D52: =VLOOKUP(C52,CPU!$B$29:$G$4939,2,0) -> Relatório de Investigação Geológica/Geotécnica | E52: =(VLOOKUP(C52,CPU!$B$10:D$4939,3,0)) -> un | F52: 1 | G52: =TRUNC((1-$H$10)*(SUMIFS(CPU!$G:$G,CPU!$A:$A,'12_Itapicuru'!$C52,CPU!$H:$H,"ss")+SUMIFS(CPU!$G:$G,CPU!$A:$A,'12_Itapicuru'!$C52,CPU!$H:$H,"mdo")+SUMIF('Comp SINAPI DF 09-2025 Onerado'!B:B,'12_Itapicuru'!C52,'Comp SINAPI DF 09-2025 Onerado'!E:E)+SUMIF('Ins SINAPI DF 09-2025 Onerado'!B:B,'12_Itapicuru'!C52,'Ins SINAPI DF 09-2025 Onerado'!F:F)),2) -> 6010.8 | H52: 7405.9 | I52: 7405.9
A53: 2.1.9 | B53: PRÓPRIA | C53: CPU.43 | D53: =VLOOKUP(C53,CPU!$B$29:$G$4939,2,0) -> Relatório de Levantamento Batimétrico e Tratamento de Dados | E53: =(VLOOKUP(C53,CPU!$B$10:D$4939,3,0)) -> un | F53: 1 | G53: =TRUNC((1-$H$10)*(SUMIFS(CPU!$G:$G,CPU!$A:$A,'12_Itapicuru'!$C53,CPU!$H:$H,"ss")+SUMIFS(CPU!$G:$G,CPU!$A:$A,'12_Itapicuru'!$C53,CPU!$H:$H,"mdo")+SUMIF('Comp SINAPI DF 09-2025 Onerado'!B:B,'12_Itapicuru'!C53,'Comp SINAPI DF 09-2025 Onerado'!E:E)+SUMIF('Ins SINAPI DF 09-2025 Onerado'!B:B,'12_Itapicuru'!C53,'Ins SINAPI DF 09-2025 Onerado'!F:F)),2) -> 8514.52 | H53: 10490.74 | I53: =TRUNC(F53*H53,2) -> 10490.74
A54: 3 | D54: ETAPA 3 | I54: =SUM(I66,I55,I58) -> 372432.11
A55: 3.1 | D55: PROJETOS | I55: =SUM(I56:I57) -> 91058.79
A56: 3.1.1 | B56: PRÓPRIA | C56: CPU.18 | D56: =VLOOKUP(C56,CPU!B43:G137,2,0) -> Projeto de Instrumentação | E56: =(VLOOKUP(C56,CPU!$B$10:D$142,3,0)) -> un | F56: 1 | G56: =TRUNC((1-$H$10)*(SUMIFS(CPU!$G:$G,CPU!$A:$A,'12_Itapicuru'!$C56,CPU!$H:$H,"ss")+SUMIFS(CPU!$G:$G,CPU!$A:$A,'12_Itapicuru'!$C56,CPU!$H:$H,"mdo")+SUMIF('Comp SINAPI DF 09-2025 Onerado'!B:B,'12_Itapicuru'!C56,'Comp SINAPI DF 09-2025 Onerado'!E:E)+SUMIF('Ins SINAPI DF 09-2025 Onerado'!B:B,'12_Itapicuru'!C56,'Ins SINAPI DF 09-2025 Onerado'!F:F)),2) -> 29283.76 | H56: =TRUNC(G56*(1+$H$5),2) -> 36080.52 | I56: =TRUNC(F56*H56,2) -> 36080.52
A57: 3.1.2 | B57: PRÓPRIA | C57: CPU.20 | D57: =VLOOKUP(C57,CPU!B43:G143,2,0) -> Projeto Geométrico (AS IS) | E57: =(VLOOKUP(C57,CPU!$B$10:D$142,3,0)) -> un | F57: 1 | G57: =TRUNC((1-$H$10)*(SUMIFS(CPU!$G:$G,CPU!$A:$A,'12_Itapicuru'!$C57,CPU!$H:$H,"ss")+SUMIFS(CPU!$G:$G,CPU!$A:$A,'12_Itapicuru'!$C57,CPU!$H:$H,"mdo")+SUMIF('Comp SINAPI DF 09-2025 Onerado'!B:B,'12_Itapicuru'!C57,'Comp SINAPI DF 09-2025 Onerado'!E:E)+SUMIF('Ins SINAPI DF 09-2025 Onerado'!B:B,'12_Itapicuru'!C57,'Ins SINAPI DF 09-2025 Onerado'!F:F)),2) -> 44621.6 | H57: =TRUNC(G57*(1+$H$5),2) -> 54978.27 | I57: =TRUNC(F57*H57,2) -> 54978.27
A58: 3.2 | D58: PLANO DE SEGURANÇA DE BARRAGENS | I58: =SUM(I59:I65) -> 181035.5
A59: 3.2.1 | B59: PRÓPRIA | C59: CPU.34 | D59: =VLOOKUP(C59,CPU!B41:G4934,2,0) -> Volume I - Informações Gerais | E59: =(VLOOKUP(C59,CPU!$B$10:D$4896,3,0)) -> un | F59: 1 | G59: =TRUNC((1-$H$10)*(SUMIFS(CPU!$G:$G,CPU!$A:$A,'12_Itapicuru'!$C59,CPU!$H:$H,"ss")+SUMIFS(CPU!$G:$G,CPU!$A:$A,'12_Itapicuru'!$C59,CPU!$H:$H,"mdo")+SUMIF('Comp SINAPI DF 09-2025 Onerado'!B:B,'12_Itapicuru'!C59,'Comp SINAPI DF 09-2025 Onerado'!E:E)+SUMIF('Ins SINAPI DF 09-2025 Onerado'!B:B,'12_Itapicuru'!C59,'Ins SINAPI DF 09-2025 Onerado'!F:F)),2) -> 15330.6 | H59: =TRUNC(G59*(1+$H$5),2) -> 18888.83 | I59: =TRUNC(F59*H59,2) -> 18888.83
A60: 3.2.2 | B60: PRÓPRIA | C60: CPU.35 | D60: =VLOOKUP(C60,CPU!B42:G4935,2,0) -> Volume II - Documentação Técnica | E60: =(VLOOKUP(C60,CPU!$B$10:D$4896,3,0)) -> un | F60: 1 | G60: =TRUNC((1-$H$10)*(SUMIFS(CPU!$G:$G,CPU!$A:$A,'12_Itapicuru'!$C60,CPU!$H:$H,"ss")+SUMIFS(CPU!$G:$G,CPU!$A:$A,'12_Itapicuru'!$C60,CPU!$H:$H,"mdo")+SUMIF('Comp SINAPI DF 09-2025 Onerado'!B:B,'12_Itapicuru'!C60,'Comp SINAPI DF 09-2025 Onerado'!E:E)+SUMIF('Ins SINAPI DF 09-2025 Onerado'!B:B,'12_Itapicuru'!C60,'Ins SINAPI DF 09-2025 Onerado'!F:F)),2) -> 15751.56 | H60: 19407.49 | I60: =TRUNC(F60*H60,2) -> 19407.49
A61: 3.2.3 | B61: PRÓPRIA | C61: CPU.36 | D61: =VLOOKUP(C61,CPU!B43:G4936,2,0) -> Volume III - Planos e Procedimentos | E61: =(VLOOKUP(C61,CPU!$B$10:D$4896,3,0)) -> un | F61: 1 | G61: =TRUNC((1-$H$10)*(SUMIFS(CPU!$G:$G,CPU!$A:$A,'12_Itapicuru'!$C61,CPU!$H:$H,"ss")+SUMIFS(CPU!$G:$G,CPU!$A:$A,'12_Itapicuru'!$C61,CPU!$H:$H,"mdo")+SUMIF('Comp SINAPI DF 09-2025 Onerado'!B:B,'12_Itapicuru'!C61,'Comp SINAPI DF 09-2025 Onerado'!E:E)+SUMIF('Ins SINAPI DF 09-2025 Onerado'!B:B,'12_Itapicuru'!C61,'Ins SINAPI DF 09-2025 Onerado'!F:F)),2) -> 15751.56 | H61: 19407.49 | I61: 19407.49
A62: 3.2.4 | B62: PRÓPRIA | C62: CPU.37 | D62: =VLOOKUP(C62,CPU!B43:G4937,2,0) -> Volume IV - Registros e Controles | E62: =(VLOOKUP(C62,CPU!$B$10:D$4896,3,0)) -> un | F62: 1 | G62: =TRUNC((1-$H$10)*(SUMIFS(CPU!$G:$G,CPU!$A:$A,'12_Itapicuru'!$C62,CPU!$H:$H,"ss")+SUMIFS(CPU!$G:$G,CPU!$A:$A,'12_Itapicuru'!$C62,CPU!$H:$H,"mdo")+SUMIF('Comp SINAPI DF 09-2025 Onerado'!B:B,'12_Itapicuru'!C62,'Comp SINAPI DF 09-2025 Onerado'!E:E)+SUMIF('Ins SINAPI DF 09-2025 Onerado'!B:B,'12_Itapicuru'!C62,'Ins SINAPI DF 09-2025 Onerado'!F:F)),2) -> 15751.56 | H62: =TRUNC(G62*(1+$H$5),2) -> 19407.49 | I62: =TRUNC(F62*H62,2) -> 19407.49
A63: 3.2.5 | B63: PRÓPRIA | C63: CPU.38 | D63: =VLOOKUP(C63,CPU!B43:G4938,2,0) -> Volume V - Revisão Periódica de Segurança de Barragem | E63: =(VLOOKUP(C63,CPU!$B$10:D$4896,3,0)) -> un | F63: 1 | G63: =TRUNC((1-$H$10)*(SUMIFS(CPU!$G:$G,CPU!$A:$A,'12_Itapicuru'!$C63,CPU!$H:$H,"ss")+SUMIFS(CPU!$G:$G,CPU!$A:$A,'12_Itapicuru'!$C63,CPU!$H:$H,"mdo")+SUMIF('Comp SINAPI DF 09-2025 Onerado'!B:B,'12_Itapicuru'!C63,'Comp SINAPI DF 09-2025 Onerado'!E:E)+SUMIF('Ins SINAPI DF 09-2025 Onerado'!B:B,'12_Itapicuru'!C63,'Ins SINAPI DF 09-2025 Onerado'!F:F)),2) -> 27410.88 | H63: =TRUNC(G63*(1+$H$5),2) -> 33772.94 | I63: =TRUNC(F63*H63,2) -> 33772.94
A64: 3.2.6 | B64: PRÓPRIA | C64: CPU.39 | D64: =VLOOKUP(C64,CPU!B43:G4939,2,0) -> Volume V - A - Resumo Executivo | E64: =(VLOOKUP(C64,CPU!$B$10:D$4896,3,0)) -> un | F64: 1 | G64: =TRUNC((1-$H$10)*(SUMIFS(CPU!$G:$G,CPU!$A:$A,'12_Itapicuru'!$C64,CPU!$H:$H,"ss")+SUMIFS(CPU!$G:$G,CPU!$A:$A,'12_Itapicuru'!$C64,CPU!$H:$H,"mdo")+SUMIF('Comp SINAPI DF 09-2025 Onerado'!B:B,'12_Itapicuru'!C64,'Comp SINAPI DF 09-2025 Onerado'!E:E)+SUMIF('Ins SINAPI DF 09-2025 Onerado'!B:B,'12_Itapicuru'!C64,'Ins SINAPI DF 09-2025 Onerado'!F:F)),2) -> 24473.94 | H64: =TRUNC(G64*(1+$H$5),2) -> 30154.34 | I64: =TRUNC(F64*H64,2) -> 30154.34
A65: 3.2.7 | B65: PRÓPRIA | C65: CPU.41 | D65: =VLOOKUP(C65,CPU!B38:G4895,2,0) -> Volume VI - Plano de Ação de Emergência | E65: =(VLOOKUP(C65,CPU!$B$10:D$4896,3,0)) -> un | F65: 1 | G65: =TRUNC((1-$H$10)*(SUMIFS(CPU!$G:$G,CPU!$A:$A,'12_Itapicuru'!$C65,CPU!$H:$H,"ss")+SUMIFS(CPU!$G:$G,CPU!$A:$A,'12_Itapicuru'!$C65,CPU!$H:$H,"mdo")+SUMIF('Comp SINAPI DF 09-2025 Onerado'!B:B,'12_Itapicuru'!C65,'Comp SINAPI DF 09-2025 Onerado'!E:E)+SUMIF('Ins SINAPI DF 09-2025 Onerado'!B:B,'12_Itapicuru'!C65,'Ins SINAPI DF 09-2025 Onerado'!F:F)),2) -> 32462.4 | H65: =TRUNC(G65*(1+$H$5),2) -> 39996.92 | I65: =TRUNC(F65*H65,2) -> 39996.92
A66: 3.3 | D66: PLANO DE AÇÃO DE EMERGÊNCIA | I66: =SUM(I67:I69) -> 100337.82
A67: 3.3.1 | B67: PRÓPRIA | C67: CPU.24 | D67: =VLOOKUP(C67,CPU!B43:G4899,2,0) -> Projeto de sinalização | E67: =(VLOOKUP(C67,CPU!$B$10:D$4896,3,0)) -> un | F67: 1 | G67: =TRUNC((1-$H$10)*(SUMIFS(CPU!$G:$G,CPU!$A:$A,'12_Itapicuru'!$C67,CPU!$H:$H,"ss")+SUMIFS(CPU!$G:$G,CPU!$A:$A,'12_Itapicuru'!$C67,CPU!$H:$H,"mdo")+SUMIF('Comp SINAPI DF 09-2025 Onerado'!B:B,'12_Itapicuru'!C67,'Comp SINAPI DF 09-2025 Onerado'!E:E)+SUMIF('Ins SINAPI DF 09-2025 Onerado'!B:B,'12_Itapicuru'!C67,'Ins SINAPI DF 09-2025 Onerado'!F:F)),2) -> 27232.12 | H67: =TRUNC(G67*(1+$H$5),2) -> 33552.69 | I67: =TRUNC(F67*H67,2) -> 33552.69
A68: 3.3.2 | B68: PRÓPRIA | C68: CPU.25 | D68: =VLOOKUP(C68,CPU!B43:G4900,2,0) -> Projeto de rotas de fuga | E68: =(VLOOKUP(C68,CPU!$B$10:D$4896,3,0)) -> un | F68: 1 | G68: =TRUNC((1-$H$10)*(SUMIFS(CPU!$G:$G,CPU!$A:$A,'12_Itapicuru'!$C68,CPU!$H:$H,"ss")+SUMIFS(CPU!$G:$G,CPU!$A:$A,'12_Itapicuru'!$C68,CPU!$H:$H,"mdo")+SUMIF('Comp SINAPI DF 09-2025 Onerado'!B:B,'12_Itapicuru'!C68,'Comp SINAPI DF 09-2025 Onerado'!E:E)+SUMIF('Ins SINAPI DF 09-2025 Onerado'!B:B,'12_Itapicuru'!C68,'Ins SINAPI DF 09-2025 Onerado'!F:F)),2) -> 30599.8 | H68: =TRUNC(G68*(1+$H$5),2) -> 37702.01 | I68: =TRUNC(F68*H68,2) -> 37702.01
A69: 3.3.3 | B69: PRÓPRIA | C69: CPU.32 | D69: =VLOOKUP(C69,CPU!B43:G4902,2,0) -> Projeto de sistema sonoro | E69: =(VLOOKUP(C69,CPU!$B$10:D$4896,3,0)) -> un | F69: 1 | G69: =TRUNC((1-$H$10)*(SUMIFS(CPU!$G:$G,CPU!$A:$A,'12_Itapicuru'!$C69,CPU!$H:$H,"ss")+SUMIFS(CPU!$G:$G,CPU!$A:$A,'12_Itapicuru'!$C69,CPU!$H:$H,"mdo")+SUMIF('Comp SINAPI DF 09-2025 Onerado'!B:B,'12_Itapicuru'!C69,'Comp SINAPI DF 09-2025 Onerado'!E:E)+SUMIF('Ins SINAPI DF 09-2025 Onerado'!B:B,'12_Itapicuru'!C69,'Ins SINAPI DF 09-2025 Onerado'!F:F)),2) -> 23604.52 | H69: =TRUNC(G69*(1+$H$5),2) -> 29083.12 | I69: =TRUNC(F69*H69,2) -> 29083.12
D70: TOTAL (Custo): | I70: =TRUNC(SUMPRODUCT(F14:F69,G14:G69),2) -> 669813.72
D71: BDI e Encargos Sociais: | I71: =I72-I70 -> 155434.08
D72: TOTAL GERAL COM BDI: | I72: =SUM(I54,I43,I13) -> 825247.8 | L72: =TRUNC(SUMPRODUCT(F14:F58,H14:H58),2) -> 543874.48 | P72: =TRUNC(SUMPRODUCT(F14:F69,H14:H69),2) -> 825247.8

Sheet 13_CaatingadoMoura
A1: Ministério da Integração e do Desenvolvimento Regional
A2: Companhia de Desenvolvimento dos Vales do São Francisco e do Parnaíba
A4: PLANILHA ORÇAMENTÁRIA - ORÇAMENTO NÃO DESONERADO
A5: OBRA: | B5: =Resumo!B5 -> Elaboração de Plano de Segurança de Barragens | G5: BDI (serv.): | H5: ='BDI serv'!D23 -> 0.2321 | I5: Bancos de dados:
A6: LOCAL: | B6: Jacobina - BA | G6: BDI (forn.): | H6: ='BDI forn'!D23 -> 0 | I6: =Resumo!G6 -> SETEMBRO/25 - SINAPI
A7: DATA BASE: | B7: 2025-10-01 | E7: Encargos sociais - Horistas: | H7: ='Encargos Sociais DF'!E49 -> 1.1011 | I7: =Resumo!G7 -> SIURB INFRA JAN/2025
A8: PRAZO: | B8: =Resumo!B8 -> 300 dias | E8: Encargos sociais - Mensalista: | H8: ='Encargos Sociais DF'!F49 -> 0.7019 | I8: =Resumo!G8 -> JAN/25 E JUL/2025- SETOP
I9: =Resumo!G9 -> JUNHO/25 - EMBASA
B10: Caatinga do Moura | G10: Desconto: | H10: 0 | I10: =Resumo!G10 -> JUL/2025 - CONSULT. DNIT
A11: ITEM | B11: REFERÊNCIA | D11: DESCRIÇÃO | E11: UNID. | F11: QUANT. | G11: CUSTO UNITÁRIO | H11: PREÇO UNITÁRIO | I11: PREÇO TOTAL
B12: FONTE | C12: CÓDIGO
A13: 1 | D13: ='1_Bico da Pedra'!D13 -> ETAPA 1 | I13: =SUM(I14,I16,I24,I27,I30) -> 285645.95
A14: 1.1 | D14: Visita Técnica | I14: =SUM(I15:I15) -> 55532.37
A15: 1.1.1 | B15: PRÓPRIA | C15: CPU.09 | D15: =VLOOKUP(C15,CPU!B29:G75,2,0) -> Inspeção Visual da Estrutura (Multidisciplinar) e elaboração de relatório | E15: =(VLOOKUP(C15,CPU!$B$10:D$142,3,0)) -> un | F15: 1 | G15: =TRUNC((1-$H$10)*(SUMIFS(CPU!$G:$G,CPU!$A:$A,'13_CaatingadoMoura'!$C15,CPU!$H:$H,"ss")+SUMIFS(CPU!$G:$G,CPU!$A:$A,'13_CaatingadoMoura'!$C15,CPU!$H:$H,"mdo")+SUMIF('Comp SINAPI DF 09-2025 Onerado'!B:B,'13_CaatingadoMoura'!C15,'Comp SINAPI DF 09-2025 Onerado'!E:E)+SUMIF('Ins SINAPI DF 09-2025 Onerado'!B:B,'13_CaatingadoMoura'!C15,'Ins SINAPI DF 09-2025 Onerado'!F:F)),2) -> 45071.32 | H15: =TRUNC(G15*(1+$H$5),2) -> 55532.37 | I15: =TRUNC(F15*H15,2) -> 55532.37
A16: 1.2 | D16: INVESTIGAÇÃO GEOLÓGICA E GEOTÉCNICA | I16: =SUM(I17:I23) -> 104087.26
A17: 1.2.1 | B17: EMBASA | C17: 32.05.04 | D17: Mobilização e desmobilização de equipe e equipamentos para sondagem rotativa ou mista | E17: km | F17: =F28 -> 478 | G17: =TRUNC((1-$H$10)*J17,2) -> 5.16 | H17: =TRUNC(G17*(1+$H$5),2) -> 6.35 | I17: =TRUNC(F17*H17,2) -> 3035.3 | J17: =VLOOKUP(C17,'OUTRAS BASES'!B:C,2,0) -> 5.16 | L17: c | M17: 1.5
A18: 1.2.2 | B18: SCO | C18: AD 05.15.0400 | D18: Sondagem rotativa vertical, em rocha sa, com coroa de diamante, diametro H (99mm), inclusive deslocamento e posicionamento em cada furo. | E18: m | F18: =ROUNDUP('Pontos de Sondagem'!E342,0) -> 48 | G18: =TRUNC((1-$H$10)*J18,2) -> 1422.4 | H18: 1752.53 | I18: 84121.44 | J18: =VLOOKUP(C18,'OUTRAS BASES'!B:C,2,0) -> 1422.4 | L18: d | M18: =99/1000 -> 0.099 | N18: m
A19: 1.2.3 | B19: EMBASA | C19: 32.04.61 | D19: Ensaio de Perda de água sob pressão | E19: un | F19: =3*'Pontos de Sondagem'!G401 -> 9 | G19: =TRUNC((1-$H$10)*J19,2) -> 613.68 | H19: 756.11 | I19: 6804.99 | J19: =VLOOKUP(C19,'OUTRAS BASES'!B:C,2,0) -> 613.68 | L19: A | M19: =PI()*(M18*M18)/4 -> 0.007697687399
A20: 1.2.4 | B20: SICRO3 | C20: 3816196 | D20: Fechamento dos Furos - Injeção de nata de cimento | E20: m³ | F20: =M20 -> 0.5542334928 | G20: =TRUNC((1-$H$10)*J20,2) -> 1012.78 | H20: 1247.84 | I20: 691.59 | J20: =VLOOKUP(C20,'OUTRAS BASES'!B:C,2,0) -> 1012.78 | L20: V | M20: =M19*(F18)*M17 -> 0.5542334928
A21: 1.2.5 | B21: SCO | C21: AD 35.35.0400 | D21: Ensaio de compressão simples em amostra de concreto - Base em SCO 35.35.0400 | E21: un | F21: 6 | G21: =TRUNC((1-$H$10)*J21,2) -> 320.04 | H21: 394.32 | I21: 2365.92 | J21: =VLOOKUP(C21,'OUTRAS BASES'!B:C,2,0) -> 320.04
A22: 1.2.6 | B22: PRÓPRIA | C22: CPU.04 | D22: =VLOOKUP(C22,CPU!$B$29:$G$233,2,0) -> Avaliação da espessura de carbonatação, por ponto, em estruturas de concreto armado ou protendido, através de aspersão de solução de fenolftaleína, inclusive coleta da amostra | E22: =(VLOOKUP(C22,CPU!$B$10:D$142,3,0)) -> un | F22: 4 | G22: =TRUNC((1-$H$10)*(SUMIFS(CPU!$G:$G,CPU!$A:$A,'13_CaatingadoMoura'!$C22,CPU!$H:$H,"ss")+SUMIFS(CPU!$G:$G,CPU!$A:$A,'13_CaatingadoMoura'!$C22,CPU!$H:$H,"mdo")+SUMIF('Comp SINAPI DF 09-2025 Onerado'!B:B,'13_CaatingadoMoura'!C22,'Comp SINAPI DF 09-2025 Onerado'!E:E)+SUMIF('Ins SINAPI DF 09-2025 Onerado'!B:B,'13_CaatingadoMoura'!C22,'Ins SINAPI DF 09-2025 Onerado'!F:F)),2) -> 470.15 | H22: 579.27 | I22: 2317.08
A23: 1.2.7 | B23: PRÓPRIA | C23: CPU.05 | D23: =VLOOKUP(C23,CPU!$B$29:$G$233,2,0) -> Ensaio de esclerometria em 10 pontos com 16 tiros por ponto | E23: =(VLOOKUP(C23,CPU!$B$10:D$142,3,0)) -> un | F23: 2 | G23: =TRUNC((1-$H$10)*(SUMIFS(CPU!$G:$G,CPU!$A:$A,'13_CaatingadoMoura'!$C23,CPU!$H:$H,"ss")+SUMIFS(CPU!$G:$G,CPU!$A:$A,'13_CaatingadoMoura'!$C23,CPU!$H:$H,"mdo")+SUMIF('Comp SINAPI DF 09-2025 Onerado'!B:B,'13_CaatingadoMoura'!C23,'Comp SINAPI DF 09-2025 Onerado'!E:E)+SUMIF('Ins SINAPI DF 09-2025 Onerado'!B:B,'13_CaatingadoMoura'!C23,'Ins SINAPI DF 09-2025 Onerado'!F:F)),2) -> 1927.99 | H23: 2375.47 | I23: =TRUNC(F23*H23,2) -> 4750.94
A24: 1.3 | D24: Levantamento Topográfico | I24: =SUM(I25:I26) -> 13325.6
A25: 1.3.1 | B25: PRÓPRIA | C25: CPU.28 | D25: =VLOOKUP(C25,CPU!B29:G404,2,0) -> Mobilização e Desmobilização de Equipe de Levantamento topográfico | E25: =(VLOOKUP(C25,CPU!$B$10:D$19919,3,0)) -> un | F25: 1 | G25: =TRUNC((1-$H$10)*(SUMIFS(CPU!$G:$G,CPU!$A:$A,'13_CaatingadoMoura'!$C25,CPU!$H:$H,"ss")+SUMIFS(CPU!$G:$G,CPU!$A:$A,'13_CaatingadoMoura'!$C25,CPU!$H:$H,"mdo")+SUMIF('Comp SINAPI DF 09-2025 Onerado'!B:B,'13_CaatingadoMoura'!C25,'Comp SINAPI DF 09-2025 Onerado'!E:E)+SUMIF('Ins SINAPI DF 09-2025 Onerado'!B:B,'13_CaatingadoMoura'!C25,'Ins SINAPI DF 09-2025 Onerado'!F:F)),2) -> 7747.32 | H25: =TRUNC(G25*(1+$H$5),2) -> 9545.47 | I25: =TRUNC(F25*H25,2) -> 9545.47
A26: 1.3.2 | B26: SETOP | C26: CO-27363 | D26: Levantamento planialtimétrico e cadastral terreno de 2.001 a 10.000 m² | E26: un | F26: 1 | G26: =TRUNC((1-$H$10)*J26,2) -> 3068.04 | H26: =TRUNC(G26*(1+$H$5),2) -> 3780.13 | I26: =TRUNC(F26*H26,2) -> 3780.13 | J26: =VLOOKUP(C26,'OUTRAS BASES'!B:C,2,0) -> 3068.04
A27: 1.4 | D27: Levantamento Batimétrico | I27: =SUM(I28:I29) -> 19966.38
A28: 1.4.1 | B28: EMBASA | C28: 31.90.12 | D28: Transporte de Equipe e Equipamentos para levantamento batimétrico com Ecobatímetro | E28: km | F28: ='Memorial de cálculo'!U14*2 -> 478 | G28: =TRUNC((1-$H$10)*J28,2) -> 6.68 | H28: =TRUNC(G28*(1+$H$5),2) -> 8.23 | I28: =TRUNC(F28*H28,2) -> 3933.94 | J28: =VLOOKUP(C28,'OUTRAS BASES'!B:C,2,0) -> 6.68
A29: 1.4.2 | B29: PRÓPRIA | C29: CPU.44 | D29: =VLOOKUP(C29,CPU!B29:G4910,2,0) -> Levantamento batimétrico com equipamento ecobatímetro, processamento de dados e desenho técnico | E29: =(VLOOKUP(C29,CPU!$B$10:D$4939,3,0)) -> ha | F29: ='Memorial de cálculo'!U5 -> 34.7 | G29: =TRUNC((1-$H$10)*(SUMIFS(CPU!$G:$G,CPU!$A:$A,'13_CaatingadoMoura'!$C29,CPU!$H:$H,"ss")+SUMIFS(CPU!$G:$G,CPU!$A:$A,'13_CaatingadoMoura'!$C29,CPU!$H:$H,"mdo")+SUMIF('Comp SINAPI DF 09-2025 Onerado'!B:B,'13_CaatingadoMoura'!C29,'Comp SINAPI DF 09-2025 Onerado'!E:E)+SUMIF('Ins SINAPI DF 09-2025 Onerado'!B:B,'13_CaatingadoMoura'!C29,'Ins SINAPI DF 09-2025 Onerado'!F:F)),2) -> 375 | H29: =TRUNC(G29*(1+$H$5),2) -> 462.03 | I29: =TRUNC(F29*H29,2) -> 16032.44
A30: 1.5 | D30: Levantamento Fotogramétrico | I30: =SUM(I31:I32) -> 92734.34
A31: 1.5.1 | B31: PRÓPRIA | C31: CPU.31 | D31: =VLOOKUP(C31,CPU!B29:G4920,2,0) -> Mobilização e Desmobilização de Equipe e Equipamentos de Levantamento Fotogramétrico | E31: =(VLOOKUP(C31,CPU!$B$10:D$210,3,0)) -> km | F31: =F28 -> 478 | G31: =TRUNC((1-$H$10)*J31,2) -> 7.74 | H31: =TRUNC(G31*(1+$H$5),2) -> 9.53 | I31: =TRUNC(F31*H31,2) -> 4555.34 | J31: 7.74
A32: 1.5.2 | B32: EMBASA | C32: 31.90.15 | D32: Levant. Fotogrametrico c/ VANT (drone) áreas pelo que exceder 1000 ha, incl. ortofotos, GSD<=3, acuracia horiz. min. 3 cm e vert. min. 6cm, aferidos c/ pontos de controle dist. min. 650 m entre eles,exclusive transporte de equipe e equipamentos | E32: ha | F32: ='Memorial de cálculo'!U27 -> 9100 | G32: =TRUNC((1-$H$10)*J32,2) -> 7.87 | H32: =TRUNC(G32*(1+$H$5),2) -> 9.69 | I32: =TRUNC(F32*H32,2) -> 88179 | J32: =VLOOKUP(C32,'OUTRAS BASES'!B:C,2,0) -> 7.87
A33: 2 | D33: ETAPA 2 | I33: =SUM(I34) -> 171625.88
A34: 2.1 | D34: ESTUDOS | I34: =SUM(I35:I41) -> 171625.88
A35: 2.1.1 | B35: PRÓPRIA | C35: CPU.12 | D35: =VLOOKUP(C35,CPU!$B$29:$G$4939,2,0) -> Relatório Fotogramétricos e Tratamento de Dados | E35: =(VLOOKUP(C35,CPU!$B$10:D$142,3,0)) -> un | F35: 1 | G35: =TRUNC((1-$H$10)*(SUMIFS(CPU!$G:$G,CPU!$A:$A,'13_CaatingadoMoura'!$C35,CPU!$H:$H,"ss")+SUMIFS(CPU!$G:$G,CPU!$A:$A,'13_CaatingadoMoura'!$C35,CPU!$H:$H,"mdo")+SUMIF('Comp SINAPI DF 09-2025 Onerado'!B:B,'13_CaatingadoMoura'!C35,'Comp SINAPI DF 09-2025 Onerado'!E:E)+SUMIF('Ins SINAPI DF 09-2025 Onerado'!B:B,'13_CaatingadoMoura'!C35,'Ins SINAPI DF 09-2025 Onerado'!F:F)),2) -> 8785.99 | H35: =TRUNC(G35*(1+$H$5),2) -> 10825.21 | I35: =TRUNC(F35*H35,2) -> 10825.21
A36: 2.1.2 | B36: PRÓPRIA | C36: CPU.10 | D36: =VLOOKUP(C36,CPU!$B$29:$G$4939,2,0) -> Estudo Hidrológico e Hidráulico | E36: =(VLOOKUP(C36,CPU!B29:D$142,3,0)) -> un | F36: 1 | G36: =TRUNC((1-$H$10)*(SUMIFS(CPU!$G:$G,CPU!$A:$A,'13_CaatingadoMoura'!$C36,CPU!$H:$H,"ss")+SUMIFS(CPU!$G:$G,CPU!$A:$A,'13_CaatingadoMoura'!$C36,CPU!$H:$H,"mdo")+SUMIF('Comp SINAPI DF 09-2025 Onerado'!B:B,'13_CaatingadoMoura'!C36,'Comp SINAPI DF 09-2025 Onerado'!E:E)+SUMIF('Ins SINAPI DF 09-2025 Onerado'!B:B,'13_CaatingadoMoura'!C36,'Ins SINAPI DF 09-2025 Onerado'!F:F)),2) -> 39432.48 | H36: =TRUNC(G36*(1+$H$5),2) -> 48584.75 | I36: 48584.75
A37: 2.1.3 | B37: PRÓPRIA | C37: CPU.11 | D37: =VLOOKUP(C37,CPU!$B$29:$G$4939,2,0) -> Estudo Geológico-geotécnico | E37: =(VLOOKUP(C37,CPU!B29:D$142,3,0)) -> un | F37: 1 | G37: =TRUNC((1-$H$10)*(SUMIFS(CPU!$G:$G,CPU!$A:$A,'13_CaatingadoMoura'!$C37,CPU!$H:$H,"ss")+SUMIFS(CPU!$G:$G,CPU!$A:$A,'13_CaatingadoMoura'!$C37,CPU!$H:$H,"mdo")+SUMIF('Comp SINAPI DF 09-2025 Onerado'!B:B,'13_CaatingadoMoura'!C37,'Comp SINAPI DF 09-2025 Onerado'!E:E)+SUMIF('Ins SINAPI DF 09-2025 Onerado'!B:B,'13_CaatingadoMoura'!C37,'Ins SINAPI DF 09-2025 Onerado'!F:F)),2) -> 14328.22 | H37: 17653.79 | I37: 17653.79
A38: 2.1.4 | B38: PRÓPRIA | C38: CPU.40 | D38: =VLOOKUP(C38,CPU!$B$29:$G$4939,2,0) -> Relatório Topográfico e Tratamento de Dados | E38: =(VLOOKUP(C38,CPU!$B$10:D$4939,3,0)) -> un | F38: 1 | G38: =TRUNC((1-$H$10)*(SUMIFS(CPU!$G:$G,CPU!$A:$A,'13_CaatingadoMoura'!$C38,CPU!$H:$H,"ss")+SUMIFS(CPU!$G:$G,CPU!$A:$A,'13_CaatingadoMoura'!$C38,CPU!$H:$H,"mdo")+SUMIF('Comp SINAPI DF 09-2025 Onerado'!B:B,'13_CaatingadoMoura'!C38,'Comp SINAPI DF 09-2025 Onerado'!E:E)+SUMIF('Ins SINAPI DF 09-2025 Onerado'!B:B,'13_CaatingadoMoura'!C38,'Ins SINAPI DF 09-2025 Onerado'!F:F)),2) -> 8514.52 | H38: 10490.74 | I38: 10490.74
A39: 2.1.5 | B39: PRÓPRIA | C39: CPU.33 | D39: =VLOOKUP(C39,CPU!$B$29:$G$4939,2,0) -> Relatório de Avaliação de Estruturas de Concreto | E39: =(VLOOKUP(C39,CPU!$B$10:D$4939,3,0)) -> un | F39: 1 | G39: =TRUNC((1-$H$10)*(SUMIFS(CPU!$G:$G,CPU!$A:$A,'13_CaatingadoMoura'!$C39,CPU!$H:$H,"ss")+SUMIFS(CPU!$G:$G,CPU!$A:$A,'13_CaatingadoMoura'!$C39,CPU!$H:$H,"mdo")+SUMIF('Comp SINAPI DF 09-2025 Onerado'!B:B,'13_CaatingadoMoura'!C39,'Comp SINAPI DF 09-2025 Onerado'!E:E)+SUMIF('Ins SINAPI DF 09-2025 Onerado'!B:B,'13_CaatingadoMoura'!C39,'Ins SINAPI DF 09-2025 Onerado'!F:F)),2) -> 6010.8 | H39: 7405.9 | I39: 7405.9
A40: 2.1.6 | B40: PRÓPRIA | C40: CPU.13 | D40: =VLOOKUP(C40,CPU!$B$29:$G$142,2,0) -> Estudo de Ruputura e Mapas de Inundação | E40: =(VLOOKUP(C40,CPU!$B$10:D$4939,3,0)) -> un | F40: 1 | G40: =TRUNC((1-$H$10)*(SUMIFS(CPU!$G:$G,CPU!$A:$A,'13_CaatingadoMoura'!$C40,CPU!$H:$H,"ss")+SUMIFS(CPU!$G:$G,CPU!$A:$A,'13_CaatingadoMoura'!$C40,CPU!$H:$H,"mdo")+SUMIF('Comp SINAPI DF 09-2025 Onerado'!B:B,'13_CaatingadoMoura'!C40,'Comp SINAPI DF 09-2025 Onerado'!E:E)+SUMIF('Ins SINAPI DF 09-2025 Onerado'!B:B,'13_CaatingadoMoura'!C40,'Ins SINAPI DF 09-2025 Onerado'!F:F)),2) -> 38768.32 | H40: =TRUNC(G40*(1+$H$5),2) -> 47766.44 | I40: =TRUNC(F40*H40,2) -> 47766.44
A41: 2.1.7 | B41: PRÓPRIA | C41: CPU.16 | D41: =VLOOKUP(C41,CPU!$B$29:$G$159,2,0) -> Estudo de Estabilidade e Análise do controle de percolação e da distribuição das subpressões na fundação - Barragem de Concreto | E41: =(VLOOKUP(C41,CPU!$B$10:D$4939,3,0)) -> un | F41: 1 | G41: =TRUNC((1-$H$10)*(SUMIFS(CPU!$G:$G,CPU!$A:$A,'13_CaatingadoMoura'!$C41,CPU!$H:$H,"ss")+SUMIFS(CPU!$G:$G,CPU!$A:$A,'13_CaatingadoMoura'!$C41,CPU!$H:$H,"mdo")+SUMIF('Comp SINAPI DF 09-2025 Onerado'!B:B,'13_CaatingadoMoura'!C41,'Comp SINAPI DF 09-2025 Onerado'!E:E)+SUMIF('Ins SINAPI DF 09-2025 Onerado'!B:B,'13_CaatingadoMoura'!C41,'Ins SINAPI DF 09-2025 Onerado'!F:F)),2) -> 23455.12 | H41: =TRUNC(G41*(1+$H$5),2) -> 28899.05 | I41: =TRUNC(F41*H41,2) -> 28899.05
A42: 3 | D42: ETAPA 3 | I42: =SUM(I43,I46,I54) -> 372432.11
A43: 3.1 | D43: PROJETOS | I43: =SUM(I44:I45) -> 91058.79
A44: 3.1.1 | B44: PRÓPRIA | C44: CPU.18 | D44: =VLOOKUP(C44,CPU!B59:G4924,2,0) -> Projeto de Instrumentação | E44: =(VLOOKUP(C44,CPU!$B$10:D$142,3,0)) -> un | F44: 1 | G44: =TRUNC((1-$H$10)*(SUMIFS(CPU!$G:$G,CPU!$A:$A,'13_CaatingadoMoura'!$C44,CPU!$H:$H,"ss")+SUMIFS(CPU!$G:$G,CPU!$A:$A,'13_CaatingadoMoura'!$C44,CPU!$H:$H,"mdo")+SUMIF('Comp SINAPI DF 09-2025 Onerado'!B:B,'13_CaatingadoMoura'!C44,'Comp SINAPI DF 09-2025 Onerado'!E:E)+SUMIF('Ins SINAPI DF 09-2025 Onerado'!B:B,'13_CaatingadoMoura'!C44,'Ins SINAPI DF 09-2025 Onerado'!F:F)),2) -> 29283.76 | H44: =TRUNC(G44*(1+$H$5),2) -> 36080.52 | I44: =TRUNC(F44*H44,2) -> 36080.52
A45: 3.1.2 | B45: PRÓPRIA | C45: CPU.20 | D45: =VLOOKUP(C45,CPU!B60:G4925,2,0) -> Projeto Geométrico (AS IS) | E45: =(VLOOKUP(C45,CPU!$B$10:D$142,3,0)) -> un | F45: 1 | G45: =TRUNC((1-$H$10)*(SUMIFS(CPU!$G:$G,CPU!$A:$A,'13_CaatingadoMoura'!$C45,CPU!$H:$H,"ss")+SUMIFS(CPU!$G:$G,CPU!$A:$A,'13_CaatingadoMoura'!$C45,CPU!$H:$H,"mdo")+SUMIF('Comp SINAPI DF 09-2025 Onerado'!B:B,'13_CaatingadoMoura'!C45,'Comp SINAPI DF 09-2025 Onerado'!E:E)+SUMIF('Ins SINAPI DF 09-2025 Onerado'!B:B,'13_CaatingadoMoura'!C45,'Ins SINAPI DF 09-2025 Onerado'!F:F)),2) -> 44621.6 | H45: =TRUNC(G45*(1+$H$5),2) -> 54978.27 | I45: =TRUNC(F45*H45,2) -> 54978.27
A46: 3.2 | D46: PLANO DE SEGURANÇA DE BARRAGENS | I46: =SUM(I47:I53) -> 181035.5
A47: 3.2.1 | B47: PRÓPRIA | C47: CPU.34 | D47: =VLOOKUP(C47,CPU!B63:G4928,2,0) -> Volume I - Informações Gerais | E47: =(VLOOKUP(C47,CPU!$B$10:D$4896,3,0)) -> un | F47: 1 | G47: =TRUNC((1-$H$10)*(SUMIFS(CPU!$G:$G,CPU!$A:$A,'13_CaatingadoMoura'!$C47,CPU!$H:$H,"ss")+SUMIFS(CPU!$G:$G,CPU!$A:$A,'13_CaatingadoMoura'!$C47,CPU!$H:$H,"mdo")+SUMIF('Comp SINAPI DF 09-2025 Onerado'!B:B,'13_CaatingadoMoura'!C47,'Comp SINAPI DF 09-2025 Onerado'!E:E)+SUMIF('Ins SINAPI DF 09-2025 Onerado'!B:B,'13_CaatingadoMoura'!C47,'Ins SINAPI DF 09-2025 Onerado'!F:F)),2) -> 15330.6 | H47: =TRUNC(G47*(1+$H$5),2) -> 18888.83 | I47: =TRUNC(F47*H47,2) -> 18888.83
A48: 3.2.2 | B48: PRÓPRIA | C48: CPU.35 | D48: =VLOOKUP(C48,CPU!B64:G4929,2,0) -> Volume II - Documentação Técnica | E48: =(VLOOKUP(C48,CPU!$B$10:D$4896,3,0)) -> un | F48: 1 | G48: =TRUNC((1-$H$10)*(SUMIFS(CPU!$G:$G,CPU!$A:$A,'13_CaatingadoMoura'!$C48,CPU!$H:$H,"ss")+SUMIFS(CPU!$G:$G,CPU!$A:$A,'13_CaatingadoMoura'!$C48,CPU!$H:$H,"mdo")+SUMIF('Comp SINAPI DF 09-2025 Onerado'!B:B,'13_CaatingadoMoura'!C48,'Comp SINAPI DF 09-2025 Onerado'!E:E)+SUMIF('Ins SINAPI DF 09-2025 Onerado'!B:B,'13_CaatingadoMoura'!C48,'Ins SINAPI DF 09-2025 Onerado'!F:F)),2) -> 15751.56 | H48: =TRUNC(G48*(1+$H$5),2) -> 19407.49 | I48: =TRUNC(F48*H48,2) -> 19407.49
A49: 3.2.3 | B49: PRÓPRIA | C49: CPU.36 | D49: =VLOOKUP(C49,CPU!B65:G4930,2,0) -> Volume III - Planos e Procedimentos | E49: =(VLOOKUP(C49,CPU!$B$10:D$4896,3,0)) -> un | F49: 1 | G49: =TRUNC((1-$H$10)*(SUMIFS(CPU!$G:$G,CPU!$A:$A,'13_CaatingadoMoura'!$C49,CPU!$H:$H,"ss")+SUMIFS(CPU!$G:$G,CPU!$A:$A,'13_CaatingadoMoura'!$C49,CPU!$H:$H,"mdo")+SUMIF('Comp SINAPI DF 09-2025 Onerado'!B:B,'13_CaatingadoMoura'!C49,'Comp SINAPI DF 09-2025 Onerado'!E:E)+SUMIF('Ins SINAPI DF 09-2025 Onerado'!B:B,'13_CaatingadoMoura'!C49,'Ins SINAPI DF 09-2025 Onerado'!F:F)),2) -> 15751.56 | H49: 19407.49 | I49: 19407.49
A50: 3.2.4 | B50: PRÓPRIA | C50: CPU.37 | D50: =VLOOKUP(C50,CPU!B66:G4931,2,0) -> Volume IV - Registros e Controles | E50: =(VLOOKUP(C50,CPU!$B$10:D$4896,3,0)) -> un | F50: 1 | G50: =TRUNC((1-$H$10)*(SUMIFS(CPU!$G:$G,CPU!$A:$A,'13_CaatingadoMoura'!$C50,CPU!$H:$H,"ss")+SUMIFS(CPU!$G:$G,CPU!$A:$A,'13_CaatingadoMoura'!$C50,CPU!$H:$H,"mdo")+SUMIF('Comp SINAPI DF 09-2025 Onerado'!B:B,'13_CaatingadoMoura'!C50,'Comp SINAPI DF 09-2025 Onerado'!E:E)+SUMIF('Ins SINAPI DF 09-2025 Onerado'!B:B,'13_CaatingadoMoura'!C50,'Ins SINAPI DF 09-2025 Onerado'!F:F)),2) -> 15751.56 | H50: 19407.49 | I50: 19407.49
A51: 3.2.5 | B51: PRÓPRIA | C51: CPU.38 | D51: =VLOOKUP(C51,CPU!B67:G4932,2,0) -> Volume V - Revisão Periódica de Segurança de Barragem | E51: =(VLOOKUP(C51,CPU!$B$10:D$4896,3,0)) -> un | F51: 1 | G51: =TRUNC((1-$H$10)*(SUMIFS(CPU!$G:$G,CPU!$A:$A,'13_CaatingadoMoura'!$C51,CPU!$H:$H,"ss")+SUMIFS(CPU!$G:$G,CPU!$A:$A,'13_CaatingadoMoura'!$C51,CPU!$H:$H,"mdo")+SUMIF('Comp SINAPI DF 09-2025 Onerado'!B:B,'13_CaatingadoMoura'!C51,'Comp SINAPI DF 09-2025 Onerado'!E:E)+SUMIF('Ins SINAPI DF 09-2025 Onerado'!B:B,'13_CaatingadoMoura'!C51,'Ins SINAPI DF 09-2025 Onerado'!F:F)),2) -> 27410.88 | H51: 33772.94 | I51: 33772.94
A52: 3.2.6 | B52: PRÓPRIA | C52: CPU.39 | D52: =VLOOKUP(C52,CPU!B67:G4933,2,0) -> Volume V - A - Resumo Executivo | E52: =(VLOOKUP(C52,CPU!$B$10:D$4896,3,0)) -> un | F52: 1 | G52: =TRUNC((1-$H$10)*(SUMIFS(CPU!$G:$G,CPU!$A:$A,'13_CaatingadoMoura'!$C52,CPU!$H:$H,"ss")+SUMIFS(CPU!$G:$G,CPU!$A:$A,'13_CaatingadoMoura'!$C52,CPU!$H:$H,"mdo")+SUMIF('Comp SINAPI DF 09-2025 Onerado'!B:B,'13_CaatingadoMoura'!C52,'Comp SINAPI DF 09-2025 Onerado'!E:E)+SUMIF('Ins SINAPI DF 09-2025 Onerado'!B:B,'13_CaatingadoMoura'!C52,'Ins SINAPI DF 09-2025 Onerado'!F:F)),2) -> 24473.94 | H52: 30154.34 | I52: 30154.34
A53: 3.2.7 | B53: PRÓPRIA | C53: CPU.41 | D53: =VLOOKUP(C53,CPU!B61:G4928,2,0) -> Volume VI - Plano de Ação de Emergência | E53: =(VLOOKUP(C53,CPU!$B$10:D$4896,3,0)) -> un | F53: 1 | G53: =TRUNC((1-$H$10)*(SUMIFS(CPU!$G:$G,CPU!$A:$A,'13_CaatingadoMoura'!$C53,CPU!$H:$H,"ss")+SUMIFS(CPU!$G:$G,CPU!$A:$A,'13_CaatingadoMoura'!$C53,CPU!$H:$H,"mdo")+SUMIF('Comp SINAPI DF 09-2025 Onerado'!B:B,'13_CaatingadoMoura'!C53,'Comp SINAPI DF 09-2025 Onerado'!E:E)+SUMIF('Ins SINAPI DF 09-2025 Onerado'!B:B,'13_CaatingadoMoura'!C53,'Ins SINAPI DF 09-2025 Onerado'!F:F)),2) -> 32462.4 | H53: =TRUNC(G53*(1+$H$5),2) -> 39996.92 | I53: =TRUNC(F53*H53,2) -> 39996.92
A54: 3.3 | D54: PLANO DE AÇÃO DE EMERGÊNCIA | I54: =SUM(I55:I57) -> 100337.82
A55: 3.3.1 | B55: PRÓPRIA | C55: CPU.24 | D55: =VLOOKUP(C55,CPU!B67:G4932,2,0) -> Projeto de sinalização | E55: =(VLOOKUP(C55,CPU!$B$10:D$4896,3,0)) -> un | F55: 1 | G55: =TRUNC((1-$H$10)*(SUMIFS(CPU!$G:$G,CPU!$A:$A,'13_CaatingadoMoura'!$C55,CPU!$H:$H,"ss")+SUMIFS(CPU!$G:$G,CPU!$A:$A,'13_CaatingadoMoura'!$C55,CPU!$H:$H,"mdo")+SUMIF('Comp SINAPI DF 09-2025 Onerado'!B:B,'13_CaatingadoMoura'!C55,'Comp SINAPI DF 09-2025 Onerado'!E:E)+SUMIF('Ins SINAPI DF 09-2025 Onerado'!B:B,'13_CaatingadoMoura'!C55,'Ins SINAPI DF 09-2025 Onerado'!F:F)),2) -> 27232.12 | H55: =TRUNC(G55*(1+$H$5),2) -> 33552.69 | I55: =TRUNC(F55*H55,2) -> 33552.69
A56: 3.3.2 | B56: PRÓPRIA | C56: CPU.25 | D56: =VLOOKUP(C56,CPU!B67:G4933,2,0) -> Projeto de rotas de fuga | E56: =(VLOOKUP(C56,CPU!$B$10:D$4896,3,0)) -> un | F56: 1 | G56: =TRUNC((1-$H$10)*(SUMIFS(CPU!$G:$G,CPU!$A:$A,'13_CaatingadoMoura'!$C56,CPU!$H:$H,"ss")+SUMIFS(CPU!$G:$G,CPU!$A:$A,'13_CaatingadoMoura'!$C56,CPU!$H:$H,"mdo")+SUMIF('Comp SINAPI DF 09-2025 Onerado'!B:B,'13_CaatingadoMoura'!C56,'Comp SINAPI DF 09-2025 Onerado'!E:E)+SUMIF('Ins SINAPI DF 09-2025 Onerado'!B:B,'13_CaatingadoMoura'!C56,'Ins SINAPI DF 09-2025 Onerado'!F:F)),2) -> 30599.8 | H56: =TRUNC(G56*(1+$H$5),2) -> 37702.01 | I56: =TRUNC(F56*H56,2) -> 37702.01
A57: 3.3.3 | B57: PRÓPRIA | C57: CPU.32 | D57: =VLOOKUP(C57,CPU!B67:G4935,2,0) -> Projeto de sistema sonoro | E57: =(VLOOKUP(C57,CPU!$B$10:D$4896,3,0)) -> un | F57: 1 | G57: =TRUNC((1-$H$10)*(SUMIFS(CPU!$G:$G,CPU!$A:$A,'13_CaatingadoMoura'!$C57,CPU!$H:$H,"ss")+SUMIFS(CPU!$G:$G,CPU!$A:$A,'13_CaatingadoMoura'!$C57,CPU!$H:$H,"mdo")+SUMIF('Comp SINAPI DF 09-2025 Onerado'!B:B,'13_CaatingadoMoura'!C57,'Comp SINAPI DF 09-2025 Onerado'!E:E)+SUMIF('Ins SINAPI DF 09-2025 Onerado'!B:B,'13_CaatingadoMoura'!C57,'Ins SINAPI DF 09-2025 Onerado'!F:F)),2) -> 23604.52 | H57: =TRUNC(G57*(1+$H$5),2) -> 29083.12 | I57: =TRUNC(F57*H57,2) -> 29083.12
D58: TOTAL (Custo): | I58: =TRUNC(SUMPRODUCT(F14:F57,G14:G57),2) -> 673461.62
D59: BDI e Encargos Sociais: | I59: =I60-I58 -> 156242.32
D60: TOTAL GERAL COM BDI: | I60: =SUM(I42,I33,I13) -> 829703.94 | Q60: =TRUNC(SUMPRODUCT(F14:F57,H14:H57),2) -> 829703.94

Sheet 14_FazendaSantaCruz
A1: Ministério da Integração e do Desenvolvimento Regional
A2: Companhia de Desenvolvimento dos Vales do São Francisco e do Parnaíba
A4: PLANILHA ORÇAMENTÁRIA - ORÇAMENTO NÃO DESONERADO
A5: OBRA: | B5: =Resumo!B5 -> Elaboração de Plano de Segurança de Barragens | G5: BDI (serv.): | H5: ='BDI serv'!D23 -> 0.2321 | I5: Bancos de dados:
A6: LOCAL: | B6: Francisco Dumont - MG | G6: BDI (forn.): | H6: ='BDI forn'!D23 -> 0 | I6: =Resumo!G6 -> SETEMBRO/25 - SINAPI
A7: DATA BASE: | B7: 2025-10-01 | E7: Encargos sociais - Horistas: | H7: ='Encargos Sociais DF'!E49 -> 1.1011 | I7: =Resumo!G7 -> SIURB INFRA JAN/2025
A8: PRAZO: | B8: =Resumo!B8 -> 300 dias | E8: Encargos sociais - Mensalista: | H8: ='Encargos Sociais DF'!F49 -> 0.7019 | I8: =Resumo!G8 -> JAN/25 E JUL/2025- SETOP
I9: =Resumo!G9 -> JUNHO/25 - EMBASA
B10: Fazenda Santa Cruz | G10: Desconto: | H10: 0 | I10: =Resumo!G10 -> JUL/2025 - CONSULT. DNIT
A11: ITEM | B11: REFERÊNCIA | D11: DESCRIÇÃO | E11: UNID. | F11: QUANT. | G11: CUSTO UNITÁRIO | H11: PREÇO UNITÁRIO | I11: PREÇO TOTAL
B12: FONTE | C12: CÓDIGO
A13: 1 | D13: ='1_Bico da Pedra'!D13 -> ETAPA 1 | I13: =SUM(I14,I16,I34,I37,I40) -> 305160.79
A14: 1.1 | D14: Visita Técnica | I14: =SUM(I15:I15) -> 55532.37
A15: 1.1.1 | B15: PRÓPRIA | C15: CPU.09 | D15: =VLOOKUP(C15,CPU!B29:G75,2,0) -> Inspeção Visual da Estrutura (Multidisciplinar) e elaboração de relatório | E15: =(VLOOKUP(C15,CPU!$B$10:D$142,3,0)) -> un | F15: 1 | G15: =TRUNC((1-$H$10)*(SUMIFS(CPU!$G:$G,CPU!$A:$A,'14_FazendaSantaCruz'!$C15,CPU!$H:$H,"ss")+SUMIFS(CPU!$G:$G,CPU!$A:$A,'14_FazendaSantaCruz'!$C15,CPU!$H:$H,"mdo")+SUMIF('Comp SINAPI DF 09-2025 Onerado'!B:B,'14_FazendaSantaCruz'!C15,'Comp SINAPI DF 09-2025 Onerado'!E:E)+SUMIF('Ins SINAPI DF 09-2025 Onerado'!B:B,'14_FazendaSantaCruz'!C15,'Ins SINAPI DF 09-2025 Onerado'!F:F)),2) -> 45071.32 | H15: =TRUNC(G15*(1+$H$5),2) -> 55532.37 | I15: =TRUNC(F15*H15,2) -> 55532.37
A16: 1.2 | D16: INVESTIGAÇÃO GEOLÓGICA E GEOTÉCNICA | I16: =SUM(I17:I33) -> 82733.33 | J16: verificar
A17: 1.2.1 | B17: SETOP | C17: CO-28389 | D17: Mobilização e desmobilização de equipamento de sondagem a percussão com Ensaio de Penetração Padrão (SPT) (custo variável), exclusive custo fixo | E17: km | F17: ='Memorial de cálculo'!Y14*2 -> 204 | G17: =TRUNC((1-$H$10)*J17,2) -> 2.04 | H17: =TRUNC(G17*(1+$H$5),2) -> 2.51 | I17: =TRUNC(F17*H17,2) -> 512.04 | J17: =VLOOKUP(C17,'OUTRAS BASES'!B:C,2,0) -> 2.04
A18: 1.2.2 | B18: SETOP | C18: CO-28388 | D18: Sondagem a percussão com Ensaio de Penetração Padrão (SPT), diâmetro 2.1/2", exclusive mobilização e desmobilização | E18: m | F18: ='Pontos de Sondagem'!E286 -> 99 | G18: 79.09 | H18: =TRUNC(G18*(1+$H$5),2) -> 97.44 | I18: =TRUNC(F18*H18,2) -> 9646.56 | J18: =VLOOKUP(C18,'OUTRAS BASES'!B:C,2,0) -> 79.09
A19: 1.2.3 | B19: SUDECAP | C19: 65.06.01 | D19: Mobilização e Desmobilização - Sondagem Rotativa | E19: =(VLOOKUP(C19,CPU!$B$10:D$142,3,0)) -> un | F19: 1 | G19: 3000 | H19: =TRUNC(G19*(1+$H$5),2) -> 3696.3 | I19: 3696.3 | J19: =VLOOKUP(C19,'OUTRAS BASES'!B:C,2,0) -> 3000 | L19: c | M19: 1.5
